Workbook

Sheet Input_Details (hidden)
G1: . | H1: Swan Street | I1: 3854-LON | J1: LB of Southwark | AA1: CUSTOM GRAPH DATA | AW1: DASHBOARD DATA
B2: Current Selected Direction | H2: General Report Details
B3: =OFFSET(B5,B4,0) -> Northbound | G3: =OFFSET(G4,$O$4,0) -> 1 | H3: Meadow Street | I3: 51.49499,-0.09696 | J3: 1 | K3: =OFFSET(K4,$O$4,0) -> Northbound | L3: Southbound | M3: =OFFSET(M4,$O$4,0) -> 2017-11-17 | N3: =OFFSET(N4,$O$4,0) -> 20 | O3: 1. Meadow Street - 51.49499,-0.09696 | Q3: =OFFSET(Q4,$O$4,0) -> 2017-11-20 | R3: 2017-11-21 | S3: 2017-11-22 | T3: 2017-11-23 | U3: 2017-11-17 | V3: 2017-11-18 | W3: 2017-11-19 | X3: Site 1: Data loss Tue 21st Nov 16:15 - 16:30. | Y3: 7-Day Average | AL3: TRUE | AM3: TRUE | AN3: TRUE | AO3: TRUE | AP3: TRUE | AQ3: TRUE | AR3: TRUE | AS3: TRUE | AT3: TRUE | AW3: =K3 -> Northbound | BC3: =L3 -> Southbound | BI3: Combined | BO3: DROPDOWN MENU SELECTION
B4: 1 | H4: Road | I4: Lat/Long ONLY | J4: Site No. | K4: Dir 1 | L4: Dir 2 | M4: Start Date | N4: Speed (mph) | O4: 1 | P4: Start Day | Q4: Mon | R4: Tue | S4: Wed | T4: Thu | U4: Fri | V4: Sat | W4: Sun | X4: Incidents | AB4: Mon | AC4: Tue | AD4: Wed | AE4: Thu | AF4: Fri | AG4: Sat | AH4: Sun | AI4: 5 Day Ave | AJ4: 7 Day Ave | AL4: Mon | AM4: Tue | AN4: Wed | AO4: Thu | AP4: Fri | AQ4: Sat | AR4: Sun | AS4: 5 Day Ave | AT4: 7 Day Ave | AW4: M'Cycle & P'Cycle | AX4: Cars | AY4: LGV & PSV 2Axle | AZ4: OGV1 & PSV 3Axle | BA4: OGV2 | BB4: Total | BC4: =AW4 -> M'Cycle & P'Cycle | BD4: Cars | BE4: LGV & PSV 2Axle | BF4: OGV1 & PSV 3Axle | BG4: OGV2 | BH4: Total | BI4: M'Cycle & P'Cycle | BJ4: Cars | BK4: LGV/PSV 2Axle | BL4: OGV1/PSV 3Axle | BM4: OGV2 | BN4: Total | BO4: =BI4 -> M'Cycle & P'Cycle | BP4: =BJ4 -> Cars | BQ4: LGV/PSV 2Axle | BR4: OGV1/PSV 3Axle | BS4: OGV2 | BT4: Total
B5: Direction Options | G5: 1 | H5: Meadow Street | I5: 51.49499,-0.09696 | J5: 1 | K5: Northbound | L5: =IF(K5="Northbound","Southbound",IF(K5="Eastbound","Westbound",IF(K5="Southbound","Northbound",IF(K5="Westbound","Eastbound")))) -> Southbound | M5: 2017-11-17 | N5: 20 | O5: =IF(ISBLANK(H5),0,J5&". "&H5&" - "&I5) -> 1. Meadow Street - 51.49499,-0.09696 | P5: =IF(M5="", "", TEXT(M5,"dddd")) -> Friday | Q5: 2017-11-20 | R5: 2017-11-21 | S5: 2017-11-22 | T5: 2017-11-23 | U5: 2017-11-17 | V5: 2017-11-18 | W5: 2017-11-19 | X5: Site 1: Data loss Tue 21st Nov 16:15 - 16:30. | AA5: 0 | AB5: =OFFSET('Raw Data'!EJ4,$B$38,$B$37) -> 5 | AC5: =OFFSET('Raw Data'!EK4,$B$38,$B$37) -> 2 | AD5: =OFFSET('Raw Data'!EL4,$B$38,$B$37) -> 1 | AE5: =OFFSET('Raw Data'!EM4,$B$38,$B$37) -> 5 | AF5: =OFFSET('Raw Data'!EN4,$B$38,$B$37) -> 4 | AG5: =OFFSET('Raw Data'!EO4,$B$38,$B$37) -> 4 | AH5: =OFFSET('Raw Data'!EP4,$B$38,$B$37) -> 3 | AI5: =SUM(AB5:AF5)/5 -> 3.4 | AJ5: =SUM(AB5:AH5)/7 -> 3.428571429 | AK5: 00:00 | AL5: =IF(AL$3=TRUE,AB5,"") -> 5 | AM5: =IF(AM$3=TRUE,AC5,"") -> 2 | AN5: 1 | AO5: 5 | AP5: 4 | AQ5: 4 | AR5: 3 | AS5: =IF(AS$3=TRUE,AI5,"") -> 3.4 | AT5: =IF(AT$3=TRUE,AJ5,"") -> 3.428571429 | BO5: PC & MC | BP5: PC & MC | BQ5: PC & MC | BR5: PC & MC | BS5: PC & MC | BT5: PC & MC
B6: =+K3 -> Northbound | G6: 2 | H6: Rockingham Street | I6: 51.49637,-0.09528 | J6: 2 | K6: Northbound | L6: Southbound | M6: 2017-11-17 | N6: 20 | O6: =IF(ISBLANK(H6),0,J6&". "&H6&" - "&I6) -> 2. Rockingham Street - 51.49637,-0.09528 | P6: =IF(M6="", "", TEXT(M6,"dddd")) -> Friday | Q6: 2017-11-20 | R6: 2017-11-21 | S6: 2017-11-22 | T6: 2017-11-23 | U6: 2017-11-17 | V6: 2017-11-18 | W6: 2017-11-19 | X6: Site 2: No incidents | AA6: 15 | AB6: =OFFSET('Raw Data'!EJ5,$B$38,$B$37) -> 4 | AC6: =OFFSET('Raw Data'!EK5,$B$38,$B$37) -> 4 | AD6: =OFFSET('Raw Data'!EL5,$B$38,$B$37) -> 6 | AE6: =OFFSET('Raw Data'!EM5,$B$38,$B$37) -> 3 | AF6: =OFFSET('Raw Data'!EN5,$B$38,$B$37) -> 3 | AG6: =OFFSET('Raw Data'!EO5,$B$38,$B$37) -> 8 | AH6: =OFFSET('Raw Data'!EP5,$B$38,$B$37) -> 7 | AI6: =SUM(AB6:AF6)/5 -> 4 | AJ6: 5 | AK6: =AK5+"00:15" -> 00:15:00 | AL6: =IF(AL$3=TRUE,AB6,"") -> 4 | AM6: =IF(AM$3=TRUE,AC6,"") -> 4 | AN6: =IF(AN$3=TRUE,AD6,"") -> 6 | AO6: =IF(AO$3=TRUE,AE6,"") -> 3 | AP6: =IF(AP$3=TRUE,AF6,"") -> 3 | AQ6: =IF(AQ$3=TRUE,AG6,"") -> 8 | AR6: =IF(AR$3=TRUE,AH6,"") -> 7 | AS6: =IF(AS$3=TRUE,AI6,"") -> 4 | AT6: =IF(AT$3=TRUE,AJ6,"") -> 5 | AV6: Volume | AW6: =SUM(OFFSET('Raw Data'!DR4, Input_Details!$B$12, 0):OFFSET('Raw Data'!DR675, Input_Details!$B$12, 0)) -> 1925 | AX6: =SUM(OFFSET('Raw Data'!DS4, Input_Details!$B$12, 0):OFFSET('Raw Data'!DS675, Input_Details!$B$12, 0)) -> 2406 | AY6: =SUM(OFFSET('Raw Data'!DT4, Input_Details!$B$12, 0):OFFSET('Raw Data'!DT675, Input_Details!$B$12, 0)) -> 222 | AZ6: =SUM(OFFSET('Raw Data'!DU4, Input_Details!$B$12, 0):OFFSET('Raw Data'!DU675, Input_Details!$B$12, 0)) -> 22 | BA6: =SUM(OFFSET('Raw Data'!DV4, Input_Details!$B$12, 0):OFFSET('Raw Data'!DV675, Input_Details!$B$12, 0)) -> 229 | BB6: =SUM(OFFSET('Raw Data'!DW4, Input_Details!$B$12, 0):OFFSET('Raw Data'!DW675, Input_Details!$B$12, 0)) -> 4804 | BC6: =SUM(OFFSET('Raw Data'!DX4, Input_Details!$B$12, 0):OFFSET('Raw Data'!DX675, Input_Details!$B$12, 0)) -> 2155 | BD6: =SUM(OFFSET('Raw Data'!DY4, Input_Details!$B$12, 0):OFFSET('Raw Data'!DY675, Input_Details!$B$12, 0)) -> 2416 | BE6: =SUM(OFFSET('Raw Data'!DZ4, Input_Details!$B$12, 0):OFFSET('Raw Data'!DZ675, Input_Details!$B$12, 0)) -> 220 | BF6: =SUM(OFFSET('Raw Data'!EA4, Input_Details!$B$12, 0):OFFSET('Raw Data'!EA675, Input_Details!$B$12, 0)) -> 15 | BG6: =SUM(OFFSET('Raw Data'!EB4, Input_Details!$B$12, 0):OFFSET('Raw Data'!EB675, Input_Details!$B$12, 0)) -> 228 | BH6: =SUM(OFFSET('Raw Data'!EC4, Input_Details!$B$12, 0):OFFSET('Raw Data'!EC675, Input_Details!$B$12, 0)) -> 5034 | BI6: =SUM(AW6,BC6) -> 4080 | BJ6: 4822 | BK6: 442 | BL6: 37 | BM6: 457 | BN6: 9838 | BO6: =IF(Input_Details!$B$4=1, Input_Details!AW6, IF(Input_Details!$B$4=2, Input_Details!BC6, Input_Details!BI6)) -> 1925 | BP6: =IF(Input_Details!$B$4=1, Input_Details!AX6, IF(Input_Details!$B$4=2, Input_Details!BD6, Input_Details!BJ6)) -> 2406 | BQ6: =IF(Input_Details!$B$4=1, Input_Details!AY6, IF(Input_Details!$B$4=2, Input_Details!BE6, Input_Details!BK6)) -> 222 | BR6: =IF(Input_Details!$B$4=1, Input_Details!AZ6, IF(Input_Details!$B$4=2, Input_Details!BF6, Input_Details!BL6)) -> 22 | BS6: =IF(Input_Details!$B$4=1, Input_Details!BA6, IF(Input_Details!$B$4=2, Input_Details!BG6, Input_Details!BM6)) -> 229 | BT6: =SUM(BO6:BS6) -> 4804
B7: =+L3 -> Southbound | G7: 3 | H7: Falmouth Street | I7: 51.49566,-0.09463 | J7: 3 | K7: Northbound | L7: Southbound | M7: 2017-11-17 | N7: 20 | O7: 3. Falmouth Street - 51.49566,-0.09463 | P7: Friday | Q7: 2017-11-20 | R7: 2017-11-21 | S7: 2017-11-22 | T7: 2017-11-23 | U7: 2017-11-17 | V7: 2017-11-18 | W7: 2017-11-19 | X7: Site 3: No incidents | AA7: 30 | AB7: =OFFSET('Raw Data'!EJ6,$B$38,$B$37) -> 4 | AC7: =OFFSET('Raw Data'!EK6,$B$38,$B$37) -> 0 | AD7: =OFFSET('Raw Data'!EL6,$B$38,$B$37) -> 3 | AE7: =OFFSET('Raw Data'!EM6,$B$38,$B$37) -> 1 | AF7: =OFFSET('Raw Data'!EN6,$B$38,$B$37) -> 1 | AG7: =OFFSET('Raw Data'!EO6,$B$38,$B$37) -> 6 | AH7: =OFFSET('Raw Data'!EP6,$B$38,$B$37) -> 10 | AI7: 1.8 | AJ7: 3.571428571 | AK7: =AK6+"00:15" -> 00:30:00 | AL7: 4 | AM7: 0 | AN7: 3 | AO7: 1 | AP7: 1 | AQ7: 6 | AR7: 10 | AS7: 1.8 | AT7: 3.571428571 | AV7: (%) | AW7: =AW6/$BB$6 -> 0.4007077435 | AX7: =AX6/$BB$6 -> 0.5008326395 | AY7: 0.04621149042 | AZ7: 0.004579517069 | BA7: 0.04766860949 | BC7: =BC6/$BH$6 -> 0.4280889948 | BD7: =BD6/$BH$6 -> 0.4799364323 | BE7: 0.04370282082 | BF7: 0.002979737783 | BG7: 0.0452920143 | BI7: =BI6/$BN$6 -> 0.4147184387 | BJ7: =BJ6/$BN$6 -> 0.4901402724 | BK7: 0.04492783086 | BL7: 0.003760927018 | BM7: 0.046452531 | BO7: =IF(Input_Details!$B$4=1, Input_Details!AW7, IF(Input_Details!$B$4=2, Input_Details!BC7, Input_Details!BI7)) -> 0.4007077435 | BP7: =IF(Input_Details!$B$4=1, Input_Details!AX7, IF(Input_Details!$B$4=2, Input_Details!BD7, Input_Details!BJ7)) -> 0.5008326395 | BQ7: =IF(Input_Details!$B$4=1, Input_Details!AY7, IF(Input_Details!$B$4=2, Input_Details!BE7, Input_Details!BK7)) -> 0.04621149042 | BR7: =IF(Input_Details!$B$4=1, Input_Details!AZ7, IF(Input_Details!$B$4=2, Input_Details!BF7, Input_Details!BL7)) -> 0.004579517069 | BS7: =IF(Input_Details!$B$4=1, Input_Details!BA7, IF(Input_Details!$B$4=2, Input_Details!BG7, Input_Details!BM7)) -> 0.04766860949
B8: =IF(OR(B6="-", B7="-"), "-", "Combined") -> Combined | G8: 4 | H8: Brockham Street | I8: 51.49801,-0.09446 | J8: 4 | K8: Northbound | L8: Southbound | M8: 2017-11-17 | N8: 20 | O8: 4. Brockham Street - 51.49801,-0.09446 | P8: Friday | Q8: 2017-11-20 | R8: 2017-11-21 | S8: 2017-11-22 | T8: 2017-11-23 | U8: 2017-11-17 | V8: 2017-11-18 | W8: 2017-11-19 | X8: Site 4: Data loss Tue 21st Nov 12:30 until Wed 22nd Nov 08:30. | AA8: 45 | AB8: =OFFSET('Raw Data'!EJ7,$B$38,$B$37) -> 0 | AC8: =OFFSET('Raw Data'!EK7,$B$38,$B$37) -> 0 | AD8: =OFFSET('Raw Data'!EL7,$B$38,$B$37) -> 4 | AE8: =OFFSET('Raw Data'!EM7,$B$38,$B$37) -> 1 | AF8: =OFFSET('Raw Data'!EN7,$B$38,$B$37) -> 8 | AG8: =OFFSET('Raw Data'!EO7,$B$38,$B$37) -> 4 | AH8: =OFFSET('Raw Data'!EP7,$B$38,$B$37) -> 7 | AI8: 2.6 | AJ8: 3.428571429 | AK8: 00:45:00 | AL8: 0 | AM8: 0 | AN8: 4 | AO8: 1 | AP8: 8 | AQ8: 4 | AR8: 7 | AS8: 2.6 | AT8: 3.428571429
G9: 5 | H9: Swan Street | I9: 51.49881,-0.09521 | J9: 5 | K9: Northbound | L9: Southbound | M9: 2017-11-17 | N9: 20 | O9: 5. Swan Street - 51.49881,-0.09521 | P9: Friday | Q9: 2017-11-20 | R9: 2017-11-21 | S9: 2017-11-22 | T9: 2017-11-23 | U9: 2017-11-17 | V9: 2017-11-18 | W9: 2017-11-19 | X9: Site 5: No incidents | AA9: 100 | AB9: =OFFSET('Raw Data'!EJ8,$B$38,$B$37) -> 2 | AC9: =OFFSET('Raw Data'!EK8,$B$38,$B$37) -> 1 | AD9: =OFFSET('Raw Data'!EL8,$B$38,$B$37) -> 1 | AE9: =OFFSET('Raw Data'!EM8,$B$38,$B$37) -> 0 | AF9: =OFFSET('Raw Data'!EN8,$B$38,$B$37) -> 1 | AG9: =OFFSET('Raw Data'!EO8,$B$38,$B$37) -> 4 | AH9: =OFFSET('Raw Data'!EP8,$B$38,$B$37) -> 3 | AI9: 1 | AJ9: 1.714285714 | AK9: 01:00:00 | AL9: 2 | AM9: 1 | AN9: 1 | AO9: 0 | AP9: 1 | AQ9: 4 | AR9: 3 | AS9: 1 | AT9: 1.714285714 | AW9: =K3 -> Northbound | BD9: =L3 -> Southbound | BK9: COMBINED | BR9: DROPDOWN MENU SELECTION
B10: Current Data Row Reference (vol) | C10: Vol Sum Dir (Avg) | G10: 6 | H10: Avonmouth Street | I10: 51.49805,-0.09771 | J10: 6 | K10: Northbound | L10: =IF(K10="Northbound","Southbound",IF(K10="Eastbound","Westbound",IF(K10="Southbound","Northbound",IF(K10="Westbound","Eastbound")))) -> Southbound | M10: 2017-11-17 | N10: 20 | O10: 6. Avonmouth Street - 51.49805,-0.09771 | P10: Friday | Q10: 2017-11-20 | R10: 2017-11-21 | S10: 2017-11-22 | T10: 2017-11-23 | U10: 2017-11-17 | V10: 2017-11-18 | W10: 2017-11-26 | X10: Site 6: Data loss Sun 26th Nov 13:15 - 13:30. | AA10: 115 | AB10: =OFFSET('Raw Data'!EJ9,$B$38,$B$37) -> 2 | AC10: =OFFSET('Raw Data'!EK9,$B$38,$B$37) -> 0 | AD10: =OFFSET('Raw Data'!EL9,$B$38,$B$37) -> 3 | AE10: =OFFSET('Raw Data'!EM9,$B$38,$B$37) -> 2 | AF10: =OFFSET('Raw Data'!EN9,$B$38,$B$37) -> 1 | AG10: =OFFSET('Raw Data'!EO9,$B$38,$B$37) -> 5 | AH10: =OFFSET('Raw Data'!EP9,$B$38,$B$37) -> 6 | AI10: 1.6 | AJ10: 2.714285714 | AK10: 01:15:00 | AL10: 2 | AM10: 0 | AN10: 3 | AO10: 2 | AP10: 1 | AQ10: 5 | AR10: 6 | AS10: 1.6 | AT10: 2.714285714 | AW10: Mon | AX10: Tue | AY10: Wed | AZ10: Thu | BA10: Fri | BB10: Sat | BC10: Sun | BD10: Mon | BE10: Tue | BF10: Wed | BG10: Thu | BH10: Fri | BI10: Sat | BJ10: Sun | BK10: Mon | BL10: Tue | BM10: Wed | BN10: Thu | BO10: Fri | BP10: Sat | BQ10: Sun | BR10: Mon | BS10: Tue | BT10: Wed | BU10: Thu | BV10: Fri | BW10: Sat | BX10: Sun
B11: =SUM(B4-1)*7 -> 0 | C11: =SUM(B4-1)*6 -> 0 | G11: 7 | AA11: 130 | AB11: =OFFSET('Raw Data'!EJ10,$B$38,$B$37) -> 1 | AC11: =OFFSET('Raw Data'!EK10,$B$38,$B$37) -> 0 | AD11: =OFFSET('Raw Data'!EL10,$B$38,$B$37) -> 0 | AE11: =OFFSET('Raw Data'!EM10,$B$38,$B$37) -> 1 | AF11: =OFFSET('Raw Data'!EN10,$B$38,$B$37) -> 3 | AG11: =OFFSET('Raw Data'!EO10,$B$38,$B$37) -> 1 | AH11: =OFFSET('Raw Data'!EP10,$B$38,$B$37) -> 2 | AI11: 1 | AJ11: 1.142857143 | AK11: 01:30:00 | AL11: 1 | AM11: 0 | AN11: 0 | AO11: 1 | AP11: 3 | AQ11: 1 | AR11: 2 | AS11: 1 | AT11: 1.142857143 | AV11: Avg speed | AW11: =AVERAGE(OFFSET('Raw Data'!$AN$4, $B$12, 0):OFFSET('Raw Data'!$AN$99,$B$12, 0)) -> 14.26477273 | AX11: =AVERAGE(OFFSET('Raw Data'!$AN$100, $B$12, 0):OFFSET('Raw Data'!$AN$195,$B$12, 0)) -> 14.42911392 | AY11: =AVERAGE(OFFSET('Raw Data'!$AN$196, $B$12, 0):OFFSET('Raw Data'!$AN$291,$B$12, 0)) -> 14.69230769 | AZ11: =AVERAGE(OFFSET('Raw Data'!$AN$292, $B$12, 0):OFFSET('Raw Data'!$AN$387,$B$12, 0)) -> 14.43068182 | BA11: =AVERAGE(OFFSET('Raw Data'!$AN$388, $B$12, 0):OFFSET('Raw Data'!$AN$483,$B$12, 0)) -> 15.40555556 | BB11: =AVERAGE(OFFSET('Raw Data'!$AN$484, $B$12, 0):OFFSET('Raw Data'!$AN$579,$B$12, 0)) -> 14.65212766 | BC11: =AVERAGE(OFFSET('Raw Data'!$AN$580, $B$12, 0):OFFSET('Raw Data'!$AN$675,$B$12, 0)) -> 15.14631579 | BD11: =AVERAGE(OFFSET('Raw Data'!$CA$4, $B$12, 0):OFFSET('Raw Data'!$CA$99,$B$12, 0)) -> 13.8575 | BE11: =AVERAGE(OFFSET('Raw Data'!$CA$100, $B$12, 0):OFFSET('Raw Data'!$CA$195,$B$12, 0)) -> 14.09240506 | BF11: =AVERAGE(OFFSET('Raw Data'!$CA$196, $B$12, 0):OFFSET('Raw Data'!$CA$291,$B$12, 0)) -> 14.03152174 | BG11: =AVERAGE(OFFSET('Raw Data'!$CA$292, $B$12, 0):OFFSET('Raw Data'!$CA$387,$B$12, 0)) -> 15.05421687 | BH11: =AVERAGE(OFFSET('Raw Data'!$CA$388, $B$12, 0):OFFSET('Raw Data'!$CA$483,$B$12, 0)) -> 14.76352941 | BI11: =AVERAGE(OFFSET('Raw Data'!$CA$484, $B$12, 0):OFFSET('Raw Data'!$CA$579,$B$12, 0)) -> 14.65054945 | BJ11: =AVERAGE(OFFSET('Raw Data'!$CA$580, $B$12, 0):OFFSET('Raw Data'!$CA$675,$B$12, 0)) -> 15.13956044 | BK11: =AVERAGE(OFFSET('Raw Data'!$DN$4, $B$12, 0):OFFSET('Raw Data'!$DN$99,$B$12, 0)) -> 14.08582228 | BL11: =AVERAGE(OFFSET('Raw Data'!$DN$100, $B$12, 0):OFFSET('Raw Data'!$DN$195,$B$12, 0)) -> 14.16583451 | BM11: =AVERAGE(OFFSET('Raw Data'!$DN$196, $B$12, 0):OFFSET('Raw Data'!$DN$291,$B$12, 0)) -> 14.25376262 | BN11: =AVERAGE(OFFSET('Raw Data'!$DN$292, $B$12, 0):OFFSET('Raw Data'!$DN$387,$B$12, 0)) -> 14.62347834 | BO11: =AVERAGE(OFFSET('Raw Data'!$DN$388, $B$12, 0):OFFSET('Raw Data'!$DN$483,$B$12, 0)) -> 15.07301284 | BP11: =AVERAGE(OFFSET('Raw Data'!$DN$484, $B$12, 0):OFFSET('Raw Data'!$DN$579,$B$12, 0)) -> 14.65781765 | BQ11: =AVERAGE(OFFSET('Raw Data'!$DN$580, $B$12, 0):OFFSET('Raw Data'!$DN$675,$B$12, 0)) -> 15.14552441 | BR11: =IF(Input_Details!$B$4=1, Input_Details!AW11, IF(Input_Details!$B$4=2, Input_Details!BD11, Input_Details!BK11)) -> 14.26477273 | BS11: =IF(Input_Details!$B$4=1, Input_Details!AX11, IF(Input_Details!$B$4=2, Input_Details!BE11, Input_Details!BL11)) -> 14.42911392 | BT11: =IF(Input_Details!$B$4=1, Input_Details!AY11, IF(Input_Details!$B$4=2, Input_Details!BF11, Input_Details!BM11)) -> 14.69230769 | BU11: =IF(Input_Details!$B$4=1, Input_Details!AZ11, IF(Input_Details!$B$4=2, Input_Details!BG11, Input_Details!BN11)) -> 14.43068182 | BV11: =IF(Input_Details!$B$4=1, Input_Details!BA11, IF(Input_Details!$B$4=2, Input_Details!BH11, Input_Details!BO11)) -> 15.40555556 | BW11: =IF(Input_Details!$B$4=1, Input_Details!BB11, IF(Input_Details!$B$4=2, Input_Details!BI11, Input_Details!BP11)) -> 14.65212766 | BX11: =IF(Input_Details!$B$4=1, Input_Details!BC11, IF(Input_Details!$B$4=2, Input_Details!BJ11, Input_Details!BQ11)) -> 15.14631579
B12: =SUM($G$3-1)*864 -> 0 | C12: =SUM($G$3-1)*864 -> 0 | G12: 8 | AA12: 145 | AB12: =OFFSET('Raw Data'!EJ11,$B$38,$B$37) -> 1 | AC12: =OFFSET('Raw Data'!EK11,$B$38,$B$37) -> 0 | AD12: =OFFSET('Raw Data'!EL11,$B$38,$B$37) -> 1 | AE12: =OFFSET('Raw Data'!EM11,$B$38,$B$37) -> 1 | AF12: =OFFSET('Raw Data'!EN11,$B$38,$B$37) -> 4 | AG12: =OFFSET('Raw Data'!EO11,$B$38,$B$37) -> 8 | AH12: =OFFSET('Raw Data'!EP11,$B$38,$B$37) -> 3 | AI12: 1.4 | AJ12: 2.571428571 | AK12: 01:45:00 | AL12: 1 | AM12: 0 | AN12: 1 | AO12: 1 | AP12: 4 | AQ12: 8 | AR12: 3 | AS12: 1.4 | AT12: 2.571428571
G13: 9 | AA13: 200 | AB13: =OFFSET('Raw Data'!EJ12,$B$38,$B$37) -> 0 | AC13: =OFFSET('Raw Data'!EK12,$B$38,$B$37) -> 0 | AD13: =OFFSET('Raw Data'!EL12,$B$38,$B$37) -> 3 | AE13: =OFFSET('Raw Data'!EM12,$B$38,$B$37) -> 2 | AF13: =OFFSET('Raw Data'!EN12,$B$38,$B$37) -> 2 | AG13: =OFFSET('Raw Data'!EO12,$B$38,$B$37) -> 7 | AH13: =OFFSET('Raw Data'!EP12,$B$38,$B$37) -> 6 | AI13: 1.4 | AJ13: 2.857142857 | AK13: 02:00:00 | AL13: 0 | AM13: 0 | AN13: 3 | AO13: 2 | AP13: 2 | AQ13: 7 | AR13: 6 | AS13: 1.4 | AT13: 2.857142857 | AW13: 7D - avg speed | AX13: 7-D 85th | AY13: 7D avg, no. speeding | AZ13: 7D TOT
G14: 10 | AA14: 215 | AB14: =OFFSET('Raw Data'!EJ13,$B$38,$B$37) -> 0 | AC14: =OFFSET('Raw Data'!EK13,$B$38,$B$37) -> 0 | AD14: =OFFSET('Raw Data'!EL13,$B$38,$B$37) -> 3 | AE14: =OFFSET('Raw Data'!EM13,$B$38,$B$37) -> 1 | AF14: =OFFSET('Raw Data'!EN13,$B$38,$B$37) -> 2 | AG14: =OFFSET('Raw Data'!EO13,$B$38,$B$37) -> 7 | AH14: =OFFSET('Raw Data'!EP13,$B$38,$B$37) -> 4 | AI14: 1.2 | AJ14: 2.428571429 | AK14: 02:15:00 | AL14: 0 | AM14: 0 | AN14: 3 | AO14: 1 | AP14: 2 | AQ14: 7 | AR14: 4 | AS14: 1.2 | AT14: 2.428571429 | AV14: PRI | AW14: =IFERROR(AVERAGE(OFFSET('Raw Data'!$AN$772, $B$12, 0):OFFSET('Raw Data'!$AN867,$B$12, 0)), "-") -> 14.78172867 | AX14: =IFERROR(AVERAGE(OFFSET('Raw Data'!$AO$772, $B$12, 0):OFFSET('Raw Data'!$AO$867,$B$12, 0)), "-") -> 17.11109929 | AY14: =IFERROR(SUM(OFFSET('Raw Data'!$T$772,$B$12,VLOOKUP(Input_Details!$N$3, 'Speed Summary'!$AF$3:$AG$12, 2,0)-1):OFFSET('Raw Data'!$AM$867, $B$12, 0)), "-") -> 52.26190476 | AZ14: =IFERROR(SUM(OFFSET('Raw Data'!$T$772, $B$12, 0):OFFSET('Raw Data'!$AM$867, $B$12, 0)), "-") -> 687.2142857
B15: Day Options | G15: 11 | AA15: 230 | AB15: =OFFSET('Raw Data'!EJ14,$B$38,$B$37) -> 1 | AC15: =OFFSET('Raw Data'!EK14,$B$38,$B$37) -> 0 | AD15: =OFFSET('Raw Data'!EL14,$B$38,$B$37) -> 2 | AE15: =OFFSET('Raw Data'!EM14,$B$38,$B$37) -> 2 | AF15: =OFFSET('Raw Data'!EN14,$B$38,$B$37) -> 0 | AG15: =OFFSET('Raw Data'!EO14,$B$38,$B$37) -> 7 | AH15: =OFFSET('Raw Data'!EP14,$B$38,$B$37) -> 3 | AI15: 1 | AJ15: 2.142857143 | AK15: 02:30:00 | AL15: 1 | AM15: 0 | AN15: 2 | AO15: 2 | AP15: 0 | AQ15: 7 | AR15: 3 | AS15: 1 | AT15: 2.142857143 | AV15: SEC | AW15: =IFERROR(AVERAGE(OFFSET('Raw Data'!$CA$772, $B$12, 0):OFFSET('Raw Data'!$CA$867,$B$12, 0)), "-") -> 14.59971974 | AX15: =IFERROR(AVERAGE(OFFSET('Raw Data'!$CB$772, $B$12, 0):OFFSET('Raw Data'!$CB$867,$B$12, 0)), "-") -> 16.72996947 | AY15: =IFERROR(SUM(OFFSET('Raw Data'!$BG$772,$B$12,VLOOKUP(Input_Details!$N$3, 'Speed Summary'!$AF$3:$AG$12, 2,0)-1):OFFSET('Raw Data'!$BZ$867, $B$12, 0)), "-") -> 58.28571429 | AZ15: =IFERROR(SUM(OFFSET('Raw Data'!$BG$772, $B$12, 0):OFFSET('Raw Data'!$BZ$867, $B$12, 0)), "-") -> 720.4761905
B16: Monday | G16: 12 | AA16: 245 | AB16: =OFFSET('Raw Data'!EJ15,$B$38,$B$37) -> 1 | AC16: =OFFSET('Raw Data'!EK15,$B$38,$B$37) -> 0 | AD16: =OFFSET('Raw Data'!EL15,$B$38,$B$37) -> 2 | AE16: =OFFSET('Raw Data'!EM15,$B$38,$B$37) -> 0 | AF16: =OFFSET('Raw Data'!EN15,$B$38,$B$37) -> 0 | AG16: =OFFSET('Raw Data'!EO15,$B$38,$B$37) -> 1 | AH16: =OFFSET('Raw Data'!EP15,$B$38,$B$37) -> 2 | AI16: 0.6 | AJ16: 0.8571428571 | AK16: 02:45:00 | AL16: 1 | AM16: 0 | AN16: 2 | AO16: 0 | AP16: 0 | AQ16: 1 | AR16: 2 | AS16: 0.6 | AT16: 0.8571428571 | AV16: COM | AW16: =IFERROR(AVERAGE(OFFSET('Raw Data'!$DN$772, $B$12, 0):OFFSET('Raw Data'!$DN$867,$B$12, 0)), "-") -> 14.62567029 | AX16: =IFERROR(AVERAGE(OFFSET('Raw Data'!$DO$772, $B$12, 0):OFFSET('Raw Data'!$DO$867,$B$12, 0)), "-") -> 16.74771272 | AY16: =IFERROR(SUM(OFFSET('Raw Data'!$CT$772,$B$12,VLOOKUP(Input_Details!$N$3, 'Speed Summary'!$AF$3:$AG$12, 2,0)-1):OFFSET('Raw Data'!$DM$867, $B$12, 0)), "-") -> 101 | AZ16: =IFERROR(SUM(OFFSET('Raw Data'!$CT$772, $B$12, 0):OFFSET('Raw Data'!$DM$867, $B$12, 0)), "-") -> 1398
B17: Tuesday | G17: 13 | AA17: 300 | AB17: =OFFSET('Raw Data'!EJ16,$B$38,$B$37) -> 1 | AC17: =OFFSET('Raw Data'!EK16,$B$38,$B$37) -> 0 | AD17: =OFFSET('Raw Data'!EL16,$B$38,$B$37) -> 1 | AE17: =OFFSET('Raw Data'!EM16,$B$38,$B$37) -> 1 | AF17: =OFFSET('Raw Data'!EN16,$B$38,$B$37) -> 0 | AG17: =OFFSET('Raw Data'!EO16,$B$38,$B$37) -> 0 | AH17: =OFFSET('Raw Data'!EP16,$B$38,$B$37) -> 5 | AI17: 0.6 | AJ17: 1.142857143 | AK17: 03:00:00 | AL17: 1 | AM17: 0 | AN17: 1 | AO17: 1 | AP17: 0 | AQ17: 0 | AR17: 5 | AS17: 0.6 | AT17: 1.142857143
B18: Wednesday | G18: 14 | AA18: 315 | AB18: =OFFSET('Raw Data'!EJ17,$B$38,$B$37) -> 0 | AC18: =OFFSET('Raw Data'!EK17,$B$38,$B$37) -> 0 | AD18: =OFFSET('Raw Data'!EL17,$B$38,$B$37) -> 3 | AE18: =OFFSET('Raw Data'!EM17,$B$38,$B$37) -> 2 | AF18: =OFFSET('Raw Data'!EN17,$B$38,$B$37) -> 2 | AG18: =OFFSET('Raw Data'!EO17,$B$38,$B$37) -> 3 | AH18: =OFFSET('Raw Data'!EP17,$B$38,$B$37) -> 3 | AI18: 1.4 | AJ18: 1.857142857 | AK18: 03:15:00 | AL18: 0 | AM18: 0 | AN18: 3 | AO18: 2 | AP18: 2 | AQ18: 3 | AR18: 3 | AS18: 1.4 | AT18: 1.857142857
B19: Thursday | G19: 15 | AA19: 330 | AB19: =OFFSET('Raw Data'!EJ18,$B$38,$B$37) -> 1 | AC19: =OFFSET('Raw Data'!EK18,$B$38,$B$37) -> 0 | AD19: =OFFSET('Raw Data'!EL18,$B$38,$B$37) -> 0 | AE19: =OFFSET('Raw Data'!EM18,$B$38,$B$37) -> 0 | AF19: =OFFSET('Raw Data'!EN18,$B$38,$B$37) -> 1 | AG19: =OFFSET('Raw Data'!EO18,$B$38,$B$37) -> 1 | AH19: =OFFSET('Raw Data'!EP18,$B$38,$B$37) -> 5 | AI19: 0.4 | AJ19: 1.142857143 | AK19: 03:30:00 | AL19: 1 | AM19: 0 | AN19: 0 | AO19: 0 | AP19: 1 | AQ19: 1 | AR19: 5 | AS19: 0.4 | AT19: 1.142857143
B20: Friday | G20: 16 | AA20: 345 | AB20: =OFFSET('Raw Data'!EJ19,$B$38,$B$37) -> 1 | AC20: =OFFSET('Raw Data'!EK19,$B$38,$B$37) -> 1 | AD20: =OFFSET('Raw Data'!EL19,$B$38,$B$37) -> 0 | AE20: =OFFSET('Raw Data'!EM19,$B$38,$B$37) -> 0 | AF20: =OFFSET('Raw Data'!EN19,$B$38,$B$37) -> 0 | AG20: =OFFSET('Raw Data'!EO19,$B$38,$B$37) -> 1 | AH20: =OFFSET('Raw Data'!EP19,$B$38,$B$37) -> 5 | AI20: 0.4 | AJ20: 1.142857143 | AK20: 03:45:00 | AL20: 1 | AM20: 1 | AN20: 0 | AO20: 0 | AP20: 0 | AQ20: 1 | AR20: 5 | AS20: 0.4 | AT20: 1.142857143
B21: Saturday | G21: 17 | AA21: 400 | AB21: =OFFSET('Raw Data'!EJ20,$B$38,$B$37) -> 0 | AC21: =OFFSET('Raw Data'!EK20,$B$38,$B$37) -> 0 | AD21: =OFFSET('Raw Data'!EL20,$B$38,$B$37) -> 1 | AE21: =OFFSET('Raw Data'!EM20,$B$38,$B$37) -> 2 | AF21: =OFFSET('Raw Data'!EN20,$B$38,$B$37) -> 1 | AG21: =OFFSET('Raw Data'!EO20,$B$38,$B$37) -> 1 | AH21: =OFFSET('Raw Data'!EP20,$B$38,$B$37) -> 2 | AI21: 0.8 | AJ21: 1 | AK21: 04:00:00 | AL21: 0 | AM21: 0 | AN21: 1 | AO21: 2 | AP21: 1 | AQ21: 1 | AR21: 2 | AS21: 0.8 | AT21: 1
B22: Sunday | G22: 18 | AA22: 415 | AB22: =OFFSET('Raw Data'!EJ21,$B$38,$B$37) -> 0 | AC22: =OFFSET('Raw Data'!EK21,$B$38,$B$37) -> 0 | AD22: =OFFSET('Raw Data'!EL21,$B$38,$B$37) -> 0 | AE22: =OFFSET('Raw Data'!EM21,$B$38,$B$37) -> 1 | AF22: =OFFSET('Raw Data'!EN21,$B$38,$B$37) -> 1 | AG22: =OFFSET('Raw Data'!EO21,$B$38,$B$37) -> 3 | AH22: =OFFSET('Raw Data'!EP21,$B$38,$B$37) -> 2 | AI22: 0.4 | AJ22: 1 | AK22: 04:15:00 | AL22: 0 | AM22: 0 | AN22: 0 | AO22: 1 | AP22: 1 | AQ22: 3 | AR22: 2 | AS22: 0.4 | AT22: 1
B23: Weekday Average | G23: 19 | AA23: 430 | AB23: =OFFSET('Raw Data'!EJ22,$B$38,$B$37) -> 0 | AC23: =OFFSET('Raw Data'!EK22,$B$38,$B$37) -> 0 | AD23: =OFFSET('Raw Data'!EL22,$B$38,$B$37) -> 3 | AE23: =OFFSET('Raw Data'!EM22,$B$38,$B$37) -> 0 | AF23: =OFFSET('Raw Data'!EN22,$B$38,$B$37) -> 0 | AG23: =OFFSET('Raw Data'!EO22,$B$38,$B$37) -> 1 | AH23: =OFFSET('Raw Data'!EP22,$B$38,$B$37) -> 3 | AI23: 0.6 | AJ23: 1 | AK23: 04:30:00 | AL23: 0 | AM23: 0 | AN23: 3 | AO23: 0 | AP23: 0 | AQ23: 1 | AR23: 3 | AS23: 0.6 | AT23: 1
B24: 7-Day Average | G24: 20 | AA24: 445 | AB24: =OFFSET('Raw Data'!EJ23,$B$38,$B$37) -> 0 | AC24: =OFFSET('Raw Data'!EK23,$B$38,$B$37) -> 0 | AD24: =OFFSET('Raw Data'!EL23,$B$38,$B$37) -> 2 | AE24: =OFFSET('Raw Data'!EM23,$B$38,$B$37) -> 0 | AF24: =OFFSET('Raw Data'!EN23,$B$38,$B$37) -> 0 | AG24: =OFFSET('Raw Data'!EO23,$B$38,$B$37) -> 0 | AH24: =OFFSET('Raw Data'!EP23,$B$38,$B$37) -> 4 | AI24: 0.4 | AJ24: 0.8571428571 | AK24: 04:45:00 | AL24: 0 | AM24: 0 | AN24: 2 | AO24: 0 | AP24: 0 | AQ24: 0 | AR24: 4 | AS24: 0.4 | AT24: 0.8571428571
B25: 8 | AA25: 500 | AB25: =OFFSET('Raw Data'!EJ24,$B$38,$B$37) -> 2 | AC25: =OFFSET('Raw Data'!EK24,$B$38,$B$37) -> 3 | AD25: =OFFSET('Raw Data'!EL24,$B$38,$B$37) -> 1 | AE25: =OFFSET('Raw Data'!EM24,$B$38,$B$37) -> 1 | AF25: =OFFSET('Raw Data'!EN24,$B$38,$B$37) -> 3 | AG25: =OFFSET('Raw Data'!EO24,$B$38,$B$37) -> 2 | AH25: =OFFSET('Raw Data'!EP24,$B$38,$B$37) -> 2 | AI25: 2 | AJ25: 2 | AK25: 05:00:00 | AL25: 2 | AM25: 3 | AN25: 1 | AO25: 1 | AP25: 3 | AQ25: 2 | AR25: 2 | AS25: 2 | AT25: 2
H26: Input_Plans Details - alter if less site plans are needed than the no. of sites | AA26: 515 | AB26: =OFFSET('Raw Data'!EJ25,$B$38,$B$37) -> 1 | AC26: =OFFSET('Raw Data'!EK25,$B$38,$B$37) -> 2 | AD26: =OFFSET('Raw Data'!EL25,$B$38,$B$37) -> 2 | AE26: =OFFSET('Raw Data'!EM25,$B$38,$B$37) -> 1 | AF26: =OFFSET('Raw Data'!EN25,$B$38,$B$37) -> 4 | AG26: =OFFSET('Raw Data'!EO25,$B$38,$B$37) -> 3 | AH26: =OFFSET('Raw Data'!EP25,$B$38,$B$37) -> 2 | AI26: 2 | AJ26: 2.142857143 | AK26: =AK25+"00:15" -> 05:15:00 | AL26: =IF(AL$3=TRUE,AB26,"") -> 1 | AM26: 2 | AN26: 2 | AO26: 1 | AP26: 4 | AQ26: 3 | AR26: 2 | AS26: 2 | AT26: 2.142857143
B27: Current Data Row Reference (Classes) | H27: Road | I27: Location | J27: Site No. | O27: "Select Site…" | AA27: 530 | AB27: =OFFSET('Raw Data'!EJ26,$B$38,$B$37) -> 2 | AC27: =OFFSET('Raw Data'!EK26,$B$38,$B$37) -> 2 | AD27: =OFFSET('Raw Data'!EL26,$B$38,$B$37) -> 3 | AE27: =OFFSET('Raw Data'!EM26,$B$38,$B$37) -> 4 | AF27: =OFFSET('Raw Data'!EN26,$B$38,$B$37) -> 1 | AG27: =OFFSET('Raw Data'!EO26,$B$38,$B$37) -> 1 | AH27: =OFFSET('Raw Data'!EP26,$B$38,$B$37) -> 3 | AI27: 2.4 | AJ27: 2.285714286 | AK27: =AK26+"00:15" -> 05:30:00 | AL27: 2 | AM27: 2 | AN27: 3 | AO27: 4 | AP27: 1 | AQ27: 1 | AR27: 3 | AS27: 2.4 | AT27: 2.285714286
B28: =SUM(B25-1)*96 -> 672 | H28: =IF(H5="", "", H5) -> Meadow Street | I28: =IF(I5="", "", I5) -> 51.49499,-0.09696 | J28: 1 | O28: =IF(H28="", "",J28&". "&H28&" - "&I28) -> 1. Meadow Street - 51.49499,-0.09696 | AA28: 545 | AB28: =OFFSET('Raw Data'!EJ27,$B$38,$B$37) -> 7 | AC28: =OFFSET('Raw Data'!EK27,$B$38,$B$37) -> 2 | AD28: =OFFSET('Raw Data'!EL27,$B$38,$B$37) -> 1 | AE28: =OFFSET('Raw Data'!EM27,$B$38,$B$37) -> 3 | AF28: =OFFSET('Raw Data'!EN27,$B$38,$B$37) -> 2 | AG28: =OFFSET('Raw Data'!EO27,$B$38,$B$37) -> 3 | AH28: =OFFSET('Raw Data'!EP27,$B$38,$B$37) -> 1 | AI28: 3 | AJ28: 2.714285714 | AK28: 05:45:00 | AL28: 7 | AM28: 2 | AN28: 1 | AO28: 3 | AP28: 2 | AQ28: 3 | AR28: 1 | AS28: 3 | AT28: 2.714285714
B29: =SUM(($G$3-1)*864)+B28 -> 672 | H29: =IF(H6="", "", H6) -> Rockingham Street | I29: 51.49637,-0.09528 | J29: 2 | O29: =IF(H29="", "",J29&". "&H29&" - "&I29) -> 2. Rockingham Street - 51.49637,-0.09528 | AA29: 600 | AB29: =OFFSET('Raw Data'!EJ28,$B$38,$B$37) -> 3 | AC29: =OFFSET('Raw Data'!EK28,$B$38,$B$37) -> 2 | AD29: =OFFSET('Raw Data'!EL28,$B$38,$B$37) -> 4 | AE29: =OFFSET('Raw Data'!EM28,$B$38,$B$37) -> 1 | AF29: =OFFSET('Raw Data'!EN28,$B$38,$B$37) -> 2 | AG29: =OFFSET('Raw Data'!EO28,$B$38,$B$37) -> 2 | AH29: =OFFSET('Raw Data'!EP28,$B$38,$B$37) -> 0 | AI29: =SUM(AB29:AF29)/5 -> 2.4 | AJ29: =SUM(AB29:AH29)/7 -> 2 | AK29: 06:00:00 | AL29: 3 | AM29: 2 | AN29: 4 | AO29: 1 | AP29: 2 | AQ29: 2 | AR29: 0 | AS29: 2.4 | AT29: 2
H30: =IF(H7="", "", H7) -> Falmouth Street | I30: 51.49566,-0.09463 | J30: 3 | O30: 3. Falmouth Street - 51.49566,-0.09463 | AA30: 615 | AB30: =OFFSET('Raw Data'!EJ29,$B$38,$B$37) -> 6 | AC30: =OFFSET('Raw Data'!EK29,$B$38,$B$37) -> 2 | AD30: =OFFSET('Raw Data'!EL29,$B$38,$B$37) -> 3 | AE30: =OFFSET('Raw Data'!EM29,$B$38,$B$37) -> 2 | AF30: =OFFSET('Raw Data'!EN29,$B$38,$B$37) -> 3 | AG30: =OFFSET('Raw Data'!EO29,$B$38,$B$37) -> 5 | AH30: =OFFSET('Raw Data'!EP29,$B$38,$B$37) -> 3 | AI30: 3.2 | AJ30: 3.428571429 | AK30: 06:15:00 | AL30: 6 | AM30: 2 | AN30: 3 | AO30: 2 | AP30: 3 | AQ30: 5 | AR30: 3 | AS30: 3.2 | AT30: 3.428571429
B31: Current Data Row Reference (Speed) | H31: =IF(H8="", "", H8) -> Brockham Street | I31: 51.49801,-0.09446 | J31: 4 | O31: 4. Brockham Street - 51.49801,-0.09446 | AA31: 630 | AB31: =OFFSET('Raw Data'!EJ30,$B$38,$B$37) -> 5 | AC31: =OFFSET('Raw Data'!EK30,$B$38,$B$37) -> 6 | AD31: =OFFSET('Raw Data'!EL30,$B$38,$B$37) -> 6 | AE31: =OFFSET('Raw Data'!EM30,$B$38,$B$37) -> 5 | AF31: =OFFSET('Raw Data'!EN30,$B$38,$B$37) -> 2 | AG31: =OFFSET('Raw Data'!EO30,$B$38,$B$37) -> 4 | AH31: =OFFSET('Raw Data'!EP30,$B$38,$B$37) -> 2 | AI31: 4.8 | AJ31: 4.285714286 | AK31: 06:30:00 | AL31: 5 | AM31: 6 | AN31: 6 | AO31: 5 | AP31: 2 | AQ31: 4 | AR31: 2 | AS31: 4.8 | AT31: 4.285714286
B32: =SUM(B4-1)*39 -> 0 | H32: =IF(H9="", "", H9) -> Swan Street | I32: 51.49881,-0.09521 | J32: 5 | O32: 5. Swan Street - 51.49881,-0.09521 | AA32: 645 | AB32: =OFFSET('Raw Data'!EJ31,$B$38,$B$37) -> 7 | AC32: =OFFSET('Raw Data'!EK31,$B$38,$B$37) -> 8 | AD32: =OFFSET('Raw Data'!EL31,$B$38,$B$37) -> 13 | AE32: =OFFSET('Raw Data'!EM31,$B$38,$B$37) -> 10 | AF32: =OFFSET('Raw Data'!EN31,$B$38,$B$37) -> 5 | AG32: =OFFSET('Raw Data'!EO31,$B$38,$B$37) -> 5 | AH32: =OFFSET('Raw Data'!EP31,$B$38,$B$37) -> 1 | AI32: 8.6 | AJ32: 7 | AK32: 06:45:00 | AL32: 7 | AM32: 8 | AN32: 13 | AO32: 10 | AP32: 5 | AQ32: 5 | AR32: 1 | AS32: 8.6 | AT32: 7
B33: =SUM(B25-1)*96 -> 672 | H33: =IF(H10="", "", H10) -> Avonmouth Street | I33: 51.49805,-0.09771 | J33: 6 | O33: 6. Avonmouth Street - 51.49805,-0.09771 | AA33: 700 | AB33: =OFFSET('Raw Data'!EJ32,$B$38,$B$37) -> 4 | AC33: =OFFSET('Raw Data'!EK32,$B$38,$B$37) -> 8 | AD33: =OFFSET('Raw Data'!EL32,$B$38,$B$37) -> 13 | AE33: =OFFSET('Raw Data'!EM32,$B$38,$B$37) -> 10 | AF33: =OFFSET('Raw Data'!EN32,$B$38,$B$37) -> 8 | AG33: =OFFSET('Raw Data'!EO32,$B$38,$B$37) -> 2 | AH33: =OFFSET('Raw Data'!EP32,$B$38,$B$37) -> 1 | AI33: 8.6 | AJ33: 6.571428571 | AK33: 07:00:00 | AL33: 4 | AM33: 8 | AN33: 13 | AO33: 10 | AP33: 8 | AQ33: 2 | AR33: 1 | AS33: 8.6 | AT33: 6.571428571
B34: =SUM(B33+B12) -> 672 | H34: =IF(H11="", "", H11) ->  | AA34: 715 | AB34: =OFFSET('Raw Data'!EJ33,$B$38,$B$37) -> 14 | AC34: =OFFSET('Raw Data'!EK33,$B$38,$B$37) -> 12 | AD34: =OFFSET('Raw Data'!EL33,$B$38,$B$37) -> 14 | AE34: =OFFSET('Raw Data'!EM33,$B$38,$B$37) -> 16 | AF34: =OFFSET('Raw Data'!EN33,$B$38,$B$37) -> 6 | AG34: =OFFSET('Raw Data'!EO33,$B$38,$B$37) -> 2 | AH34: =OFFSET('Raw Data'!EP33,$B$38,$B$37) -> 2 | AI34: 12.4 | AJ34: 9.428571429 | AK34: 07:15:00 | AL34: 14 | AM34: 12 | AN34: 14 | AO34: 16 | AP34: 6 | AQ34: 2 | AR34: 2 | AS34: 12.4 | AT34: 9.428571429
H35: =IF(H12="", "", H12) ->  | AA35: 730 | AB35: =OFFSET('Raw Data'!EJ34,$B$38,$B$37) -> 20 | AC35: =OFFSET('Raw Data'!EK34,$B$38,$B$37) -> 19 | AD35: =OFFSET('Raw Data'!EL34,$B$38,$B$37) -> 19 | AE35: =OFFSET('Raw Data'!EM34,$B$38,$B$37) -> 16 | AF35: =OFFSET('Raw Data'!EN34,$B$38,$B$37) -> 18 | AG35: =OFFSET('Raw Data'!EO34,$B$38,$B$37) -> 5 | AH35: =OFFSET('Raw Data'!EP34,$B$38,$B$37) -> 2 | AI35: 18.4 | AJ35: 14.14285714 | AK35: 07:30:00 | AL35: 20 | AM35: 19 | AN35: 19 | AO35: 16 | AP35: 18 | AQ35: 5 | AR35: 2 | AS35: 18.4 | AT35: 14.14285714
B36: Current Data Row Reference (Vol Graph) | H36: =IF(H13="", "", H13) ->  | AA36: 745 | AB36: =OFFSET('Raw Data'!EJ35,$B$38,$B$37) -> 21 | AC36: =OFFSET('Raw Data'!EK35,$B$38,$B$37) -> 34 | AD36: =OFFSET('Raw Data'!EL35,$B$38,$B$37) -> 32 | AE36: =OFFSET('Raw Data'!EM35,$B$38,$B$37) -> 26 | AF36: =OFFSET('Raw Data'!EN35,$B$38,$B$37) -> 26 | AG36: =OFFSET('Raw Data'!EO35,$B$38,$B$37) -> 4 | AH36: =OFFSET('Raw Data'!EP35,$B$38,$B$37) -> 2 | AI36: 27.8 | AJ36: 20.71428571 | AK36: 07:45:00 | AL36: 21 | AM36: 34 | AN36: 32 | AO36: 26 | AP36: 26 | AQ36: 4 | AR36: 2 | AS36: 27.8 | AT36: 20.71428571
B37: =+B11 -> 0 | H37: =IF(H14="", "", H14) ->  | AA37: 800 | AB37: =OFFSET('Raw Data'!EJ36,$B$38,$B$37) -> 36 | AC37: =OFFSET('Raw Data'!EK36,$B$38,$B$37) -> 38 | AD37: =OFFSET('Raw Data'!EL36,$B$38,$B$37) -> 30 | AE37: =OFFSET('Raw Data'!EM36,$B$38,$B$37) -> 28 | AF37: =OFFSET('Raw Data'!EN36,$B$38,$B$37) -> 15 | AG37: =OFFSET('Raw Data'!EO36,$B$38,$B$37) -> 3 | AH37: =OFFSET('Raw Data'!EP36,$B$38,$B$37) -> 2 | AI37: 29.4 | AJ37: 21.71428571 | AK37: 08:00:00 | AL37: 36 | AM37: 38 | AN37: 30 | AO37: 28 | AP37: 15 | AQ37: 3 | AR37: 2 | AS37: 29.4 | AT37: 21.71428571
B38: =+B12 -> 0 | AA38: 815 | AB38: =OFFSET('Raw Data'!EJ37,$B$38,$B$37) -> 42 | AC38: =OFFSET('Raw Data'!EK37,$B$38,$B$37) -> 52 | AD38: =OFFSET('Raw Data'!EL37,$B$38,$B$37) -> 36 | AE38: =OFFSET('Raw Data'!EM37,$B$38,$B$37) -> 37 | AF38: =OFFSET('Raw Data'!EN37,$B$38,$B$37) -> 42 | AG38: =OFFSET('Raw Data'!EO37,$B$38,$B$37) -> 3 | AH38: =OFFSET('Raw Data'!EP37,$B$38,$B$37) -> 3 | AI38: 41.8 | AJ38: 30.71428571 | AK38: 08:15:00 | AL38: 42 | AM38: 52 | AN38: 36 | AO38: 37 | AP38: 42 | AQ38: 3 | AR38: 3 | AS38: 41.8 | AT38: 30.71428571
AA39: 830 | AB39: =OFFSET('Raw Data'!EJ38,$B$38,$B$37) -> 46 | AC39: =OFFSET('Raw Data'!EK38,$B$38,$B$37) -> 51 | AD39: =OFFSET('Raw Data'!EL38,$B$38,$B$37) -> 47 | AE39: =OFFSET('Raw Data'!EM38,$B$38,$B$37) -> 41 | AF39: =OFFSET('Raw Data'!EN38,$B$38,$B$37) -> 30 | AG39: =OFFSET('Raw Data'!EO38,$B$38,$B$37) -> 4 | AH39: =OFFSET('Raw Data'!EP38,$B$38,$B$37) -> 8 | AI39: 43 | AJ39: 32.42857143 | AK39: 08:30:00 | AL39: 46 | AM39: 51 | AN39: 47 | AO39: 41 | AP39: 30 | AQ39: 4 | AR39: 8 | AS39: 43 | AT39: 32.42857143
AA40: 845 | AB40: =OFFSET('Raw Data'!EJ39,$B$38,$B$37) -> 45 | AC40: =OFFSET('Raw Data'!EK39,$B$38,$B$37) -> 44 | AD40: =OFFSET('Raw Data'!EL39,$B$38,$B$37) -> 54 | AE40: =OFFSET('Raw Data'!EM39,$B$38,$B$37) -> 41 | AF40: =OFFSET('Raw Data'!EN39,$B$38,$B$37) -> 36 | AG40: =OFFSET('Raw Data'!EO39,$B$38,$B$37) -> 2 | AH40: =OFFSET('Raw Data'!EP39,$B$38,$B$37) -> 3 | AI40: 44 | AJ40: 32.14285714 | AK40: 08:45:00 | AL40: 45 | AM40: 44 | AN40: 54 | AO40: 41 | AP40: 36 | AQ40: 2 | AR40: 3 | AS40: 44 | AT40: 32.14285714
AA41: 900 | AB41: =OFFSET('Raw Data'!EJ40,$B$38,$B$37) -> 32 | AC41: =OFFSET('Raw Data'!EK40,$B$38,$B$37) -> 35 | AD41: =OFFSET('Raw Data'!EL40,$B$38,$B$37) -> 47 | AE41: =OFFSET('Raw Data'!EM40,$B$38,$B$37) -> 31 | AF41: =OFFSET('Raw Data'!EN40,$B$38,$B$37) -> 35 | AG41: =OFFSET('Raw Data'!EO40,$B$38,$B$37) -> 4 | AH41: =OFFSET('Raw Data'!EP40,$B$38,$B$37) -> 4 | AI41: 36 | AJ41: 26.85714286 | AK41: 09:00:00 | AL41: 32 | AM41: 35 | AN41: 47 | AO41: 31 | AP41: 35 | AQ41: 4 | AR41: 4 | AS41: 36 | AT41: 26.85714286
AA42: 915 | AB42: =OFFSET('Raw Data'!EJ41,$B$38,$B$37) -> 27 | AC42: =OFFSET('Raw Data'!EK41,$B$38,$B$37) -> 37 | AD42: =OFFSET('Raw Data'!EL41,$B$38,$B$37) -> 28 | AE42: =OFFSET('Raw Data'!EM41,$B$38,$B$37) -> 29 | AF42: =OFFSET('Raw Data'!EN41,$B$38,$B$37) -> 18 | AG42: =OFFSET('Raw Data'!EO41,$B$38,$B$37) -> 9 | AH42: =OFFSET('Raw Data'!EP41,$B$38,$B$37) -> 4 | AI42: 27.8 | AJ42: 21.71428571 | AK42: 09:15:00 | AL42: 27 | AM42: 37 | AN42: 28 | AO42: 29 | AP42: 18 | AQ42: 9 | AR42: 4 | AS42: 27.8 | AT42: 21.71428571
AA43: 930 | AB43: =OFFSET('Raw Data'!EJ42,$B$38,$B$37) -> 24 | AC43: =OFFSET('Raw Data'!EK42,$B$38,$B$37) -> 27 | AD43: =OFFSET('Raw Data'!EL42,$B$38,$B$37) -> 27 | AE43: =OFFSET('Raw Data'!EM42,$B$38,$B$37) -> 23 | AF43: =OFFSET('Raw Data'!EN42,$B$38,$B$37) -> 22 | AG43: =OFFSET('Raw Data'!EO42,$B$38,$B$37) -> 9 | AH43: =OFFSET('Raw Data'!EP42,$B$38,$B$37) -> 4 | AI43: 24.6 | AJ43: 19.42857143 | AK43: 09:30:00 | AL43: 24 | AM43: 27 | AN43: 27 | AO43: 23 | AP43: 22 | AQ43: 9 | AR43: 4 | AS43: 24.6 | AT43: 19.42857143
AA44: 945 | AB44: =OFFSET('Raw Data'!EJ43,$B$38,$B$37) -> 16 | AC44: =OFFSET('Raw Data'!EK43,$B$38,$B$37) -> 15 | AD44: =OFFSET('Raw Data'!EL43,$B$38,$B$37) -> 19 | AE44: =OFFSET('Raw Data'!EM43,$B$38,$B$37) -> 17 | AF44: =OFFSET('Raw Data'!EN43,$B$38,$B$37) -> 21 | AG44: =OFFSET('Raw Data'!EO43,$B$38,$B$37) -> 12 | AH44: =OFFSET('Raw Data'!EP43,$B$38,$B$37) -> 9 | AI44: 17.6 | AJ44: 15.57142857 | AK44: 09:45:00 | AL44: 16 | AM44: 15 | AN44: 19 | AO44: 17 | AP44: 21 | AQ44: 12 | AR44: 9 | AS44: 17.6 | AT44: 15.57142857
AA45: 1000 | AB45: =OFFSET('Raw Data'!EJ44,$B$38,$B$37) -> 12 | AC45: =OFFSET('Raw Data'!EK44,$B$38,$B$37) -> 18 | AD45: =OFFSET('Raw Data'!EL44,$B$38,$B$37) -> 10 | AE45: =OFFSET('Raw Data'!EM44,$B$38,$B$37) -> 17 | AF45: =OFFSET('Raw Data'!EN44,$B$38,$B$37) -> 5 | AG45: =OFFSET('Raw Data'!EO44,$B$38,$B$37) -> 12 | AH45: =OFFSET('Raw Data'!EP44,$B$38,$B$37) -> 4 | AI45: 12.4 | AJ45: 11.14285714 | AK45: 10:00:00 | AL45: 12 | AM45: 18 | AN45: 10 | AO45: 17 | AP45: 5 | AQ45: 12 | AR45: 4 | AS45: 12.4 | AT45: 11.14285714
AA46: 1015 | AB46: =OFFSET('Raw Data'!EJ45,$B$38,$B$37) -> 9 | AC46: =OFFSET('Raw Data'!EK45,$B$38,$B$37) -> 9 | AD46: =OFFSET('Raw Data'!EL45,$B$38,$B$37) -> 4 | AE46: =OFFSET('Raw Data'!EM45,$B$38,$B$37) -> 3 | AF46: =OFFSET('Raw Data'!EN45,$B$38,$B$37) -> 6 | AG46: =OFFSET('Raw Data'!EO45,$B$38,$B$37) -> 15 | AH46: =OFFSET('Raw Data'!EP45,$B$38,$B$37) -> 4 | AI46: 6.2 | AJ46: 7.142857143 | AK46: 10:15:00 | AL46: 9 | AM46: 9 | AN46: 4 | AO46: 3 | AP46: 6 | AQ46: 15 | AR46: 4 | AS46: 6.2 | AT46: 7.142857143
AA47: 1030 | AB47: =OFFSET('Raw Data'!EJ46,$B$38,$B$37) -> 8 | AC47: =OFFSET('Raw Data'!EK46,$B$38,$B$37) -> 9 | AD47: =OFFSET('Raw Data'!EL46,$B$38,$B$37) -> 7 | AE47: =OFFSET('Raw Data'!EM46,$B$38,$B$37) -> 10 | AF47: =OFFSET('Raw Data'!EN46,$B$38,$B$37) -> 8 | AG47: =OFFSET('Raw Data'!EO46,$B$38,$B$37) -> 4 | AH47: =OFFSET('Raw Data'!EP46,$B$38,$B$37) -> 4 | AI47: 8.4 | AJ47: 7.142857143 | AK47: 10:30:00 | AL47: 8 | AM47: 9 | AN47: 7 | AO47: 10 | AP47: 8 | AQ47: 4 | AR47: 4 | AS47: 8.4 | AT47: 7.142857143
AA48: 1045 | AB48: =OFFSET('Raw Data'!EJ47,$B$38,$B$37) -> 5 | AC48: =OFFSET('Raw Data'!EK47,$B$38,$B$37) -> 5 | AD48: =OFFSET('Raw Data'!EL47,$B$38,$B$37) -> 11 | AE48: =OFFSET('Raw Data'!EM47,$B$38,$B$37) -> 4 | AF48: =OFFSET('Raw Data'!EN47,$B$38,$B$37) -> 11 | AG48: =OFFSET('Raw Data'!EO47,$B$38,$B$37) -> 9 | AH48: =OFFSET('Raw Data'!EP47,$B$38,$B$37) -> 5 | AI48: 7.2 | AJ48: 7.142857143 | AK48: =AK47+"00:15" -> 10:45:00 | AL48: 5 | AM48: 5 | AN48: 11 | AO48: 4 | AP48: 11 | AQ48: 9 | AR48: 5 | AS48: 7.2 | AT48: 7.142857143
AA49: 1100 | AB49: =OFFSET('Raw Data'!EJ48,$B$38,$B$37) -> 4 | AC49: =OFFSET('Raw Data'!EK48,$B$38,$B$37) -> 4 | AD49: =OFFSET('Raw Data'!EL48,$B$38,$B$37) -> 9 | AE49: =OFFSET('Raw Data'!EM48,$B$38,$B$37) -> 15 | AF49: =OFFSET('Raw Data'!EN48,$B$38,$B$37) -> 9 | AG49: =OFFSET('Raw Data'!EO48,$B$38,$B$37) -> 8 | AH49: =OFFSET('Raw Data'!EP48,$B$38,$B$37) -> 5 | AI49: 8.2 | AJ49: 7.714285714 | AK49: 11:00:00 | AL49: 4 | AM49: 4 | AN49: 9 | AO49: 15 | AP49: 9 | AQ49: 8 | AR49: 5 | AS49: 8.2 | AT49: 7.714285714
AA50: 1115 | AB50: =OFFSET('Raw Data'!EJ49,$B$38,$B$37) -> 4 | AC50: =OFFSET('Raw Data'!EK49,$B$38,$B$37) -> 6 | AD50: =OFFSET('Raw Data'!EL49,$B$38,$B$37) -> 14 | AE50: =OFFSET('Raw Data'!EM49,$B$38,$B$37) -> 1 | AF50: =OFFSET('Raw Data'!EN49,$B$38,$B$37) -> 5 | AG50: =OFFSET('Raw Data'!EO49,$B$38,$B$37) -> 7 | AH50: =OFFSET('Raw Data'!EP49,$B$38,$B$37) -> 3 | AI50: 6 | AJ50: 5.714285714 | AK50: 11:15:00 | AL50: 4 | AM50: 6 | AN50: 14 | AO50: 1 | AP50: 5 | AQ50: 7 | AR50: 3 | AS50: 6 | AT50: 5.714285714
AA51: 1130 | AB51: =OFFSET('Raw Data'!EJ50,$B$38,$B$37) -> 8 | AC51: =OFFSET('Raw Data'!EK50,$B$38,$B$37) -> 7 | AD51: =OFFSET('Raw Data'!EL50,$B$38,$B$37) -> 9 | AE51: =OFFSET('Raw Data'!EM50,$B$38,$B$37) -> 4 | AF51: =OFFSET('Raw Data'!EN50,$B$38,$B$37) -> 6 | AG51: =OFFSET('Raw Data'!EO50,$B$38,$B$37) -> 8 | AH51: =OFFSET('Raw Data'!EP50,$B$38,$B$37) -> 10 | AI51: 6.8 | AJ51: 7.428571429 | AK51: 11:30:00 | AL51: 8 | AM51: 7 | AN51: 9 | AO51: 4 | AP51: 6 | AQ51: 8 | AR51: 10 | AS51: 6.8 | AT51: 7.428571429
AA52: 1145 | AB52: =OFFSET('Raw Data'!EJ51,$B$38,$B$37) -> 5 | AC52: =OFFSET('Raw Data'!EK51,$B$38,$B$37) -> 4 | AD52: =OFFSET('Raw Data'!EL51,$B$38,$B$37) -> 5 | AE52: =OFFSET('Raw Data'!EM51,$B$38,$B$37) -> 9 | AF52: =OFFSET('Raw Data'!EN51,$B$38,$B$37) -> 6 | AG52: =OFFSET('Raw Data'!EO51,$B$38,$B$37) -> 7 | AH52: =OFFSET('Raw Data'!EP51,$B$38,$B$37) -> 7 | AI52: 5.8 | AJ52: 6.142857143 | AK52: 11:45:00 | AL52: 5 | AM52: 4 | AN52: 5 | AO52: 9 | AP52: 6 | AQ52: 7 | AR52: 7 | AS52: 5.8 | AT52: 6.142857143
AA53: 1200 | AB53: =OFFSET('Raw Data'!EJ52,$B$38,$B$37) -> 10 | AC53: =OFFSET('Raw Data'!EK52,$B$38,$B$37) -> 5 | AD53: =OFFSET('Raw Data'!EL52,$B$38,$B$37) -> 5 | AE53: =OFFSET('Raw Data'!EM52,$B$38,$B$37) -> 4 | AF53: =OFFSET('Raw Data'!EN52,$B$38,$B$37) -> 9 | AG53: =OFFSET('Raw Data'!EO52,$B$38,$B$37) -> 8 | AH53: =OFFSET('Raw Data'!EP52,$B$38,$B$37) -> 8 | AI53: 6.6 | AJ53: 7 | AK53: 12:00:00 | AL53: 10 | AM53: 5 | AN53: 5 | AO53: 4 | AP53: 9 | AQ53: 8 | AR53: 8 | AS53: 6.6 | AT53: 7
AA54: 1215 | AB54: =OFFSET('Raw Data'!EJ53,$B$38,$B$37) -> 9 | AC54: =OFFSET('Raw Data'!EK53,$B$38,$B$37) -> 4 | AD54: =OFFSET('Raw Data'!EL53,$B$38,$B$37) -> 9 | AE54: =OFFSET('Raw Data'!EM53,$B$38,$B$37) -> 7 | AF54: =OFFSET('Raw Data'!EN53,$B$38,$B$37) -> 8 | AG54: =OFFSET('Raw Data'!EO53,$B$38,$B$37) -> 6 | AH54: =OFFSET('Raw Data'!EP53,$B$38,$B$37) -> 5 | AI54: 7.4 | AJ54: 6.857142857 | AK54: 12:15:00 | AL54: 9 | AM54: 4 | AN54: 9 | AO54: 7 | AP54: 8 | AQ54: 6 | AR54: 5 | AS54: 7.4 | AT54: 6.857142857
AA55: 1230 | AB55: =OFFSET('Raw Data'!EJ54,$B$38,$B$37) -> 8 | AC55: =OFFSET('Raw Data'!EK54,$B$38,$B$37) -> 4 | AD55: =OFFSET('Raw Data'!EL54,$B$38,$B$37) -> 4 | AE55: =OFFSET('Raw Data'!EM54,$B$38,$B$37) -> 6 | AF55: =OFFSET('Raw Data'!EN54,$B$38,$B$37) -> 8 | AG55: =OFFSET('Raw Data'!EO54,$B$38,$B$37) -> 9 | AH55: =OFFSET('Raw Data'!EP54,$B$38,$B$37) -> 6 | AI55: 6 | AJ55: 6.428571429 | AK55: 12:30:00 | AL55: 8 | AM55: 4 | AN55: 4 | AO55: 6 | AP55: 8 | AQ55: 9 | AR55: 6 | AS55: 6 | AT55: 6.428571429
AA56: 1245 | AB56: =OFFSET('Raw Data'!EJ55,$B$38,$B$37) -> 7 | AC56: =OFFSET('Raw Data'!EK55,$B$38,$B$37) -> 7 | AD56: =OFFSET('Raw Data'!EL55,$B$38,$B$37) -> 4 | AE56: =OFFSET('Raw Data'!EM55,$B$38,$B$37) -> 7 | AF56: =OFFSET('Raw Data'!EN55,$B$38,$B$37) -> 14 | AG56: =OFFSET('Raw Data'!EO55,$B$38,$B$37) -> 12 | AH56: =OFFSET('Raw Data'!EP55,$B$38,$B$37) -> 10 | AI56: 7.8 | AJ56: 8.714285714 | AK56: 12:45:00 | AL56: 7 | AM56: 7 | AN56: 4 | AO56: 7 | AP56: 14 | AQ56: 12 | AR56: 10 | AS56: 7.8 | AT56: 8.714285714
AA57: 1300 | AB57: =OFFSET('Raw Data'!EJ56,$B$38,$B$37) -> 8 | AC57: =OFFSET('Raw Data'!EK56,$B$38,$B$37) -> 7 | AD57: =OFFSET('Raw Data'!EL56,$B$38,$B$37) -> 9 | AE57: =OFFSET('Raw Data'!EM56,$B$38,$B$37) -> 8 | AF57: =OFFSET('Raw Data'!EN56,$B$38,$B$37) -> 17 | AG57: =OFFSET('Raw Data'!EO56,$B$38,$B$37) -> 8 | AH57: =OFFSET('Raw Data'!EP56,$B$38,$B$37) -> 5 | AI57: 9.8 | AJ57: 8.857142857 | AK57: 13:00:00 | AL57: 8 | AM57: 7 | AN57: 9 | AO57: 8 | AP57: 17 | AQ57: 8 | AR57: 5 | AS57: 9.8 | AT57: 8.857142857
AA58: 1315 | AB58: =OFFSET('Raw Data'!EJ57,$B$38,$B$37) -> 9 | AC58: =OFFSET('Raw Data'!EK57,$B$38,$B$37) -> 5 | AD58: =OFFSET('Raw Data'!EL57,$B$38,$B$37) -> 6 | AE58: =OFFSET('Raw Data'!EM57,$B$38,$B$37) -> 7 | AF58: =OFFSET('Raw Data'!EN57,$B$38,$B$37) -> 10 | AG58: =OFFSET('Raw Data'!EO57,$B$38,$B$37) -> 9 | AH58: =OFFSET('Raw Data'!EP57,$B$38,$B$37) -> 11 | AI58: 7.4 | AJ58: 8.142857143 | AK58: 13:15:00 | AL58: 9 | AM58: 5 | AN58: 6 | AO58: 7 | AP58: 10 | AQ58: 9 | AR58: 11 | AS58: 7.4 | AT58: 8.142857143
AA59: 1330 | AB59: =OFFSET('Raw Data'!EJ58,$B$38,$B$37) -> 7 | AC59: =OFFSET('Raw Data'!EK58,$B$38,$B$37) -> 5 | AD59: =OFFSET('Raw Data'!EL58,$B$38,$B$37) -> 8 | AE59: =OFFSET('Raw Data'!EM58,$B$38,$B$37) -> 5 | AF59: =OFFSET('Raw Data'!EN58,$B$38,$B$37) -> 8 | AG59: =OFFSET('Raw Data'!EO58,$B$38,$B$37) -> 9 | AH59: =OFFSET('Raw Data'!EP58,$B$38,$B$37) -> 11 | AI59: 6.6 | AJ59: 7.571428571 | AK59: 13:30:00 | AL59: 7 | AM59: 5 | AN59: 8 | AO59: 5 | AP59: 8 | AQ59: 9 | AR59: 11 | AS59: 6.6 | AT59: 7.571428571
AA60: 1345 | AB60: =OFFSET('Raw Data'!EJ59,$B$38,$B$37) -> 4 | AC60: =OFFSET('Raw Data'!EK59,$B$38,$B$37) -> 8 | AD60: =OFFSET('Raw Data'!EL59,$B$38,$B$37) -> 5 | AE60: =OFFSET('Raw Data'!EM59,$B$38,$B$37) -> 6 | AF60: =OFFSET('Raw Data'!EN59,$B$38,$B$37) -> 5 | AG60: =OFFSET('Raw Data'!EO59,$B$38,$B$37) -> 8 | AH60: =OFFSET('Raw Data'!EP59,$B$38,$B$37) -> 11 | AI60: 5.6 | AJ60: 6.714285714 | AK60: 13:45:00 | AL60: 4 | AM60: 8 | AN60: 5 | AO60: 6 | AP60: 5 | AQ60: 8 | AR60: 11 | AS60: 5.6 | AT60: 6.714285714
AA61: 1400 | AB61: =OFFSET('Raw Data'!EJ60,$B$38,$B$37) -> 4 | AC61: =OFFSET('Raw Data'!EK60,$B$38,$B$37) -> 4 | AD61: =OFFSET('Raw Data'!EL60,$B$38,$B$37) -> 4 | AE61: =OFFSET('Raw Data'!EM60,$B$38,$B$37) -> 3 | AF61: =OFFSET('Raw Data'!EN60,$B$38,$B$37) -> 5 | AG61: =OFFSET('Raw Data'!EO60,$B$38,$B$37) -> 9 | AH61: =OFFSET('Raw Data'!EP60,$B$38,$B$37) -> 12 | AI61: 4 | AJ61: 5.857142857 | AK61: 14:00:00 | AL61: 4 | AM61: 4 | AN61: 4 | AO61: 3 | AP61: 5 | AQ61: 9 | AR61: 12 | AS61: 4 | AT61: 5.857142857
AA62: 1415 | AB62: =OFFSET('Raw Data'!EJ61,$B$38,$B$37) -> 6 | AC62: =OFFSET('Raw Data'!EK61,$B$38,$B$37) -> 4 | AD62: =OFFSET('Raw Data'!EL61,$B$38,$B$37) -> 6 | AE62: =OFFSET('Raw Data'!EM61,$B$38,$B$37) -> 4 | AF62: =OFFSET('Raw Data'!EN61,$B$38,$B$37) -> 5 | AG62: =OFFSET('Raw Data'!EO61,$B$38,$B$37) -> 7 | AH62: =OFFSET('Raw Data'!EP61,$B$38,$B$37) -> 6 | AI62: 5 | AJ62: 5.428571429 | AK62: 14:15:00 | AL62: 6 | AM62: 4 | AN62: 6 | AO62: 4 | AP62: 5 | AQ62: 7 | AR62: 6 | AS62: 5 | AT62: 5.428571429
AA63: 1430 | AB63: =OFFSET('Raw Data'!EJ62,$B$38,$B$37) -> 6 | AC63: =OFFSET('Raw Data'!EK62,$B$38,$B$37) -> 6 | AD63: =OFFSET('Raw Data'!EL62,$B$38,$B$37) -> 8 | AE63: =OFFSET('Raw Data'!EM62,$B$38,$B$37) -> 2 | AF63: =OFFSET('Raw Data'!EN62,$B$38,$B$37) -> 7 | AG63: =OFFSET('Raw Data'!EO62,$B$38,$B$37) -> 8 | AH63: =OFFSET('Raw Data'!EP62,$B$38,$B$37) -> 10 | AI63: 5.8 | AJ63: 6.714285714 | AK63: 14:30:00 | AL63: 6 | AM63: 6 | AN63: 8 | AO63: 2 | AP63: 7 | AQ63: 8 | AR63: 10 | AS63: 5.8 | AT63: 6.714285714
AA64: 1445 | AB64: =OFFSET('Raw Data'!EJ63,$B$38,$B$37) -> 10 | AC64: =OFFSET('Raw Data'!EK63,$B$38,$B$37) -> 7 | AD64: =OFFSET('Raw Data'!EL63,$B$38,$B$37) -> 0 | AE64: =OFFSET('Raw Data'!EM63,$B$38,$B$37) -> 3 | AF64: =OFFSET('Raw Data'!EN63,$B$38,$B$37) -> 3 | AG64: =OFFSET('Raw Data'!EO63,$B$38,$B$37) -> 10 | AH64: =OFFSET('Raw Data'!EP63,$B$38,$B$37) -> 5 | AI64: 4.6 | AJ64: 5.428571429 | AK64: 14:45:00 | AL64: 10 | AM64: 7 | AN64: 0 | AO64: 3 | AP64: 3 | AQ64: 10 | AR64: 5 | AS64: 4.6 | AT64: 5.428571429
AA65: 1500 | AB65: =OFFSET('Raw Data'!EJ64,$B$38,$B$37) -> 5 | AC65: =OFFSET('Raw Data'!EK64,$B$38,$B$37) -> 3 | AD65: =OFFSET('Raw Data'!EL64,$B$38,$B$37) -> 6 | AE65: =OFFSET('Raw Data'!EM64,$B$38,$B$37) -> 5 | AF65: =OFFSET('Raw Data'!EN64,$B$38,$B$37) -> 5 | AG65: =OFFSET('Raw Data'!EO64,$B$38,$B$37) -> 5 | AH65: =OFFSET('Raw Data'!EP64,$B$38,$B$37) -> 12 | AI65: 4.8 | AJ65: 5.857142857 | AK65: 15:00:00 | AL65: 5 | AM65: 3 | AN65: 6 | AO65: 5 | AP65: 5 | AQ65: 5 | AR65: 12 | AS65: 4.8 | AT65: 5.857142857
AA66: 1515 | AB66: =OFFSET('Raw Data'!EJ65,$B$38,$B$37) -> 7 | AC66: =OFFSET('Raw Data'!EK65,$B$38,$B$37) -> 5 | AD66: =OFFSET('Raw Data'!EL65,$B$38,$B$37) -> 5 | AE66: =OFFSET('Raw Data'!EM65,$B$38,$B$37) -> 6 | AF66: =OFFSET('Raw Data'!EN65,$B$38,$B$37) -> 5 | AG66: =OFFSET('Raw Data'!EO65,$B$38,$B$37) -> 2 | AH66: =OFFSET('Raw Data'!EP65,$B$38,$B$37) -> 9 | AI66: 5.6 | AJ66: 5.571428571 | AK66: 15:15:00 | AL66: 7 | AM66: 5 | AN66: 5 | AO66: 6 | AP66: 5 | AQ66: 2 | AR66: 9 | AS66: 5.6 | AT66: 5.571428571
AA67: 1530 | AB67: =OFFSET('Raw Data'!EJ66,$B$38,$B$37) -> 7 | AC67: =OFFSET('Raw Data'!EK66,$B$38,$B$37) -> 7 | AD67: =OFFSET('Raw Data'!EL66,$B$38,$B$37) -> 5 | AE67: =OFFSET('Raw Data'!EM66,$B$38,$B$37) -> 7 | AF67: =OFFSET('Raw Data'!EN66,$B$38,$B$37) -> 4 | AG67: =OFFSET('Raw Data'!EO66,$B$38,$B$37) -> 10 | AH67: =OFFSET('Raw Data'!EP66,$B$38,$B$37) -> 6 | AI67: 6 | AJ67: 6.571428571 | AK67: 15:30:00 | AL67: 7 | AM67: 7 | AN67: 5 | AO67: 7 | AP67: 4 | AQ67: 10 | AR67: 6 | AS67: 6 | AT67: 6.571428571
AA68: 1545 | AB68: =OFFSET('Raw Data'!EJ67,$B$38,$B$37) -> 9 | AC68: =OFFSET('Raw Data'!EK67,$B$38,$B$37) -> 6 | AD68: =OFFSET('Raw Data'!EL67,$B$38,$B$37) -> 6 | AE68: =OFFSET('Raw Data'!EM67,$B$38,$B$37) -> 5 | AF68: =OFFSET('Raw Data'!EN67,$B$38,$B$37) -> 9 | AG68: =OFFSET('Raw Data'!EO67,$B$38,$B$37) -> 4 | AH68: =OFFSET('Raw Data'!EP67,$B$38,$B$37) -> 10 | AI68: 7 | AJ68: 7 | AK68: 15:45:00 | AL68: 9 | AM68: 6 | AN68: 6 | AO68: 5 | AP68: 9 | AQ68: 4 | AR68: 10 | AS68: 7 | AT68: 7
AA69: 1600 | AB69: =OFFSET('Raw Data'!EJ68,$B$38,$B$37) -> 6 | AC69: =OFFSET('Raw Data'!EK68,$B$38,$B$37) -> 5 | AD69: =OFFSET('Raw Data'!EL68,$B$38,$B$37) -> 3 | AE69: =OFFSET('Raw Data'!EM68,$B$38,$B$37) -> 3 | AF69: =OFFSET('Raw Data'!EN68,$B$38,$B$37) -> 4 | AG69: =OFFSET('Raw Data'!EO68,$B$38,$B$37) -> 4 | AH69: =OFFSET('Raw Data'!EP68,$B$38,$B$37) -> 13 | AI69: 4.2 | AJ69: 5.428571429 | AK69: 16:00:00 | AL69: 6 | AM69: 5 | AN69: 3 | AO69: 3 | AP69: 4 | AQ69: 4 | AR69: 13 | AS69: 4.2 | AT69: 5.428571429
AA70: 1615 | AB70: =OFFSET('Raw Data'!EJ69,$B$38,$B$37) -> 6 | AC70: =OFFSET('Raw Data'!EK69,$B$38,$B$37) -> - | AD70: =OFFSET('Raw Data'!EL69,$B$38,$B$37) -> 5 | AE70: =OFFSET('Raw Data'!EM69,$B$38,$B$37) -> 4 | AF70: =OFFSET('Raw Data'!EN69,$B$38,$B$37) -> 7 | AG70: =OFFSET('Raw Data'!EO69,$B$38,$B$37) -> 9 | AH70: =OFFSET('Raw Data'!EP69,$B$38,$B$37) -> 8 | AI70: 4.4 | AJ70: 5.571428571 | AK70: 16:15:00 | AL70: =IF(AL$3=TRUE,AB70,"") -> 6 | AM70: =IF(AM$3=TRUE,AC70,"") -> - | AN70: =IF(AN$3=TRUE,AD70,"") -> 5 | AO70: =IF(AO$3=TRUE,AE70,"") -> 4 | AP70: =IF(AP$3=TRUE,AF70,"") -> 7 | AQ70: =IF(AQ$3=TRUE,AG70,"") -> 9 | AR70: =IF(AR$3=TRUE,AH70,"") -> 8 | AS70: =IF(AS$3=TRUE,AI70,"") -> 4.4 | AT70: =IF(AT$3=TRUE,AJ70,"") -> 5.571428571
AA71: 1630 | AB71: =OFFSET('Raw Data'!EJ70,$B$38,$B$37) -> 8 | AC71: =OFFSET('Raw Data'!EK70,$B$38,$B$37) -> 3 | AD71: =OFFSET('Raw Data'!EL70,$B$38,$B$37) -> 9 | AE71: =OFFSET('Raw Data'!EM70,$B$38,$B$37) -> 8 | AF71: =OFFSET('Raw Data'!EN70,$B$38,$B$37) -> 7 | AG71: =OFFSET('Raw Data'!EO70,$B$38,$B$37) -> 9 | AH71: =OFFSET('Raw Data'!EP70,$B$38,$B$37) -> 12 | AI71: 7 | AJ71: 8 | AK71: =AK70+"00:15" -> 16:30:00 | AL71: 8 | AM71: 3 | AN71: 9 | AO71: 8 | AP71: 7 | AQ71: 9 | AR71: 12 | AS71: 7 | AT71: 8
AA72: 1645 | AB72: =OFFSET('Raw Data'!EJ71,$B$38,$B$37) -> 7 | AC72: =OFFSET('Raw Data'!EK71,$B$38,$B$37) -> 10 | AD72: =OFFSET('Raw Data'!EL71,$B$38,$B$37) -> 2 | AE72: =OFFSET('Raw Data'!EM71,$B$38,$B$37) -> 12 | AF72: =OFFSET('Raw Data'!EN71,$B$38,$B$37) -> 4 | AG72: =OFFSET('Raw Data'!EO71,$B$38,$B$37) -> 8 | AH72: =OFFSET('Raw Data'!EP71,$B$38,$B$37) -> 8 | AI72: 7 | AJ72: 7.285714286 | AK72: 16:45:00 | AL72: 7 | AM72: 10 | AN72: 2 | AO72: 12 | AP72: 4 | AQ72: 8 | AR72: 8 | AS72: 7 | AT72: 7.285714286
AA73: 1700 | AB73: =OFFSET('Raw Data'!EJ72,$B$38,$B$37) -> 5 | AC73: =OFFSET('Raw Data'!EK72,$B$38,$B$37) -> 4 | AD73: =OFFSET('Raw Data'!EL72,$B$38,$B$37) -> 4 | AE73: =OFFSET('Raw Data'!EM72,$B$38,$B$37) -> 12 | AF73: =OFFSET('Raw Data'!EN72,$B$38,$B$37) -> 3 | AG73: =OFFSET('Raw Data'!EO72,$B$38,$B$37) -> 12 | AH73: =OFFSET('Raw Data'!EP72,$B$38,$B$37) -> 7 | AI73: 5.6 | AJ73: 6.714285714 | AK73: 17:00:00 | AL73: 5 | AM73: 4 | AN73: 4 | AO73: 12 | AP73: 3 | AQ73: 12 | AR73: 7 | AS73: 5.6 | AT73: 6.714285714
AA74: 1715 | AB74: =OFFSET('Raw Data'!EJ73,$B$38,$B$37) -> 7 | AC74: =OFFSET('Raw Data'!EK73,$B$38,$B$37) -> 5 | AD74: =OFFSET('Raw Data'!EL73,$B$38,$B$37) -> 3 | AE74: =OFFSET('Raw Data'!EM73,$B$38,$B$37) -> 2 | AF74: =OFFSET('Raw Data'!EN73,$B$38,$B$37) -> 2 | AG74: =OFFSET('Raw Data'!EO73,$B$38,$B$37) -> 8 | AH74: =OFFSET('Raw Data'!EP73,$B$38,$B$37) -> 5 | AI74: 3.8 | AJ74: 4.571428571 | AK74: 17:15:00 | AL74: 7 | AM74: 5 | AN74: 3 | AO74: 2 | AP74: 2 | AQ74: 8 | AR74: 5 | AS74: 3.8 | AT74: 4.571428571
AA75: 1730 | AB75: =OFFSET('Raw Data'!EJ74,$B$38,$B$37) -> 10 | AC75: =OFFSET('Raw Data'!EK74,$B$38,$B$37) -> 9 | AD75: =OFFSET('Raw Data'!EL74,$B$38,$B$37) -> 7 | AE75: =OFFSET('Raw Data'!EM74,$B$38,$B$37) -> 5 | AF75: =OFFSET('Raw Data'!EN74,$B$38,$B$37) -> 7 | AG75: =OFFSET('Raw Data'!EO74,$B$38,$B$37) -> 7 | AH75: =OFFSET('Raw Data'!EP74,$B$38,$B$37) -> 6 | AI75: 7.6 | AJ75: 7.285714286 | AK75: 17:30:00 | AL75: 10 | AM75: 9 | AN75: 7 | AO75: 5 | AP75: 7 | AQ75: 7 | AR75: 6 | AS75: 7.6 | AT75: 7.285714286
AA76: 1745 | AB76: =OFFSET('Raw Data'!EJ75,$B$38,$B$37) -> 6 | AC76: =OFFSET('Raw Data'!EK75,$B$38,$B$37) -> 10 | AD76: =OFFSET('Raw Data'!EL75,$B$38,$B$37) -> 11 | AE76: =OFFSET('Raw Data'!EM75,$B$38,$B$37) -> 4 | AF76: =OFFSET('Raw Data'!EN75,$B$38,$B$37) -> 4 | AG76: =OFFSET('Raw Data'!EO75,$B$38,$B$37) -> 6 | AH76: =OFFSET('Raw Data'!EP75,$B$38,$B$37) -> 5 | AI76: 7 | AJ76: 6.571428571 | AK76: 17:45:00 | AL76: 6 | AM76: 10 | AN76: 11 | AO76: 4 | AP76: 4 | AQ76: 6 | AR76: 5 | AS76: 7 | AT76: 6.571428571
AA77: 1800 | AB77: =OFFSET('Raw Data'!EJ76,$B$38,$B$37) -> 4 | AC77: =OFFSET('Raw Data'!EK76,$B$38,$B$37) -> 12 | AD77: =OFFSET('Raw Data'!EL76,$B$38,$B$37) -> 5 | AE77: =OFFSET('Raw Data'!EM76,$B$38,$B$37) -> 9 | AF77: =OFFSET('Raw Data'!EN76,$B$38,$B$37) -> 13 | AG77: =OFFSET('Raw Data'!EO76,$B$38,$B$37) -> 3 | AH77: =OFFSET('Raw Data'!EP76,$B$38,$B$37) -> 12 | AI77: 8.6 | AJ77: 8.285714286 | AK77: 18:00:00 | AL77: 4 | AM77: 12 | AN77: 5 | AO77: 9 | AP77: 13 | AQ77: 3 | AR77: 12 | AS77: 8.6 | AT77: 8.285714286
AA78: 1815 | AB78: =OFFSET('Raw Data'!EJ77,$B$38,$B$37) -> 10 | AC78: =OFFSET('Raw Data'!EK77,$B$38,$B$37) -> 8 | AD78: =OFFSET('Raw Data'!EL77,$B$38,$B$37) -> 7 | AE78: =OFFSET('Raw Data'!EM77,$B$38,$B$37) -> 2 | AF78: =OFFSET('Raw Data'!EN77,$B$38,$B$37) -> 7 | AG78: =OFFSET('Raw Data'!EO77,$B$38,$B$37) -> 13 | AH78: =OFFSET('Raw Data'!EP77,$B$38,$B$37) -> 5 | AI78: 6.8 | AJ78: 7.428571429 | AK78: 18:15:00 | AL78: 10 | AM78: 8 | AN78: 7 | AO78: 2 | AP78: 7 | AQ78: 13 | AR78: 5 | AS78: 6.8 | AT78: 7.428571429
AA79: 1830 | AB79: =OFFSET('Raw Data'!EJ78,$B$38,$B$37) -> 6 | AC79: =OFFSET('Raw Data'!EK78,$B$38,$B$37) -> 8 | AD79: =OFFSET('Raw Data'!EL78,$B$38,$B$37) -> 6 | AE79: =OFFSET('Raw Data'!EM78,$B$38,$B$37) -> 5 | AF79: =OFFSET('Raw Data'!EN78,$B$38,$B$37) -> 13 | AG79: =OFFSET('Raw Data'!EO78,$B$38,$B$37) -> 15 | AH79: =OFFSET('Raw Data'!EP78,$B$38,$B$37) -> 13 | AI79: 7.6 | AJ79: 9.428571429 | AK79: 18:30:00 | AL79: 6 | AM79: 8 | AN79: 6 | AO79: 5 | AP79: 13 | AQ79: 15 | AR79: 13 | AS79: 7.6 | AT79: 9.428571429
AA80: 1845 | AB80: =OFFSET('Raw Data'!EJ79,$B$38,$B$37) -> 5 | AC80: =OFFSET('Raw Data'!EK79,$B$38,$B$37) -> 13 | AD80: =OFFSET('Raw Data'!EL79,$B$38,$B$37) -> 4 | AE80: =OFFSET('Raw Data'!EM79,$B$38,$B$37) -> 7 | AF80: =OFFSET('Raw Data'!EN79,$B$38,$B$37) -> 10 | AG80: =OFFSET('Raw Data'!EO79,$B$38,$B$37) -> 11 | AH80: =OFFSET('Raw Data'!EP79,$B$38,$B$37) -> 11 | AI80: 7.8 | AJ80: 8.714285714 | AK80: 18:45:00 | AL80: 5 | AM80: 13 | AN80: 4 | AO80: 7 | AP80: 10 | AQ80: 11 | AR80: 11 | AS80: 7.8 | AT80: 8.714285714
AA81: 1900 | AB81: =OFFSET('Raw Data'!EJ80,$B$38,$B$37) -> 9 | AC81: =OFFSET('Raw Data'!EK80,$B$38,$B$37) -> 5 | AD81: =OFFSET('Raw Data'!EL80,$B$38,$B$37) -> 11 | AE81: =OFFSET('Raw Data'!EM80,$B$38,$B$37) -> 4 | AF81: =OFFSET('Raw Data'!EN80,$B$38,$B$37) -> 5 | AG81: =OFFSET('Raw Data'!EO80,$B$38,$B$37) -> 13 | AH81: =OFFSET('Raw Data'!EP80,$B$38,$B$37) -> 13 | AI81: 6.8 | AJ81: 8.571428571 | AK81: 19:00:00 | AL81: 9 | AM81: 5 | AN81: 11 | AO81: 4 | AP81: 5 | AQ81: 13 | AR81: 13 | AS81: 6.8 | AT81: 8.571428571
AA82: 1915 | AB82: =OFFSET('Raw Data'!EJ81,$B$38,$B$37) -> 9 | AC82: =OFFSET('Raw Data'!EK81,$B$38,$B$37) -> 9 | AD82: =OFFSET('Raw Data'!EL81,$B$38,$B$37) -> 12 | AE82: =OFFSET('Raw Data'!EM81,$B$38,$B$37) -> 1 | AF82: =OFFSET('Raw Data'!EN81,$B$38,$B$37) -> 10 | AG82: =OFFSET('Raw Data'!EO81,$B$38,$B$37) -> 6 | AH82: =OFFSET('Raw Data'!EP81,$B$38,$B$37) -> 9 | AI82: 8.2 | AJ82: 8 | AK82: 19:15:00 | AL82: 9 | AM82: 9 | AN82: 12 | AO82: 1 | AP82: 10 | AQ82: 6 | AR82: 9 | AS82: 8.2 | AT82: 8
AA83: 1930 | AB83: =OFFSET('Raw Data'!EJ82,$B$38,$B$37) -> 7 | AC83: =OFFSET('Raw Data'!EK82,$B$38,$B$37) -> 8 | AD83: =OFFSET('Raw Data'!EL82,$B$38,$B$37) -> 3 | AE83: =OFFSET('Raw Data'!EM82,$B$38,$B$37) -> 4 | AF83: =OFFSET('Raw Data'!EN82,$B$38,$B$37) -> 8 | AG83: =OFFSET('Raw Data'!EO82,$B$38,$B$37) -> 9 | AH83: =OFFSET('Raw Data'!EP82,$B$38,$B$37) -> 11 | AI83: 6 | AJ83: 7.142857143 | AK83: 19:30:00 | AL83: 7 | AM83: 8 | AN83: 3 | AO83: 4 | AP83: 8 | AQ83: 9 | AR83: 11 | AS83: 6 | AT83: 7.142857143
AA84: 1945 | AB84: =OFFSET('Raw Data'!EJ83,$B$38,$B$37) -> 12 | AC84: =OFFSET('Raw Data'!EK83,$B$38,$B$37) -> 9 | AD84: =OFFSET('Raw Data'!EL83,$B$38,$B$37) -> 8 | AE84: =OFFSET('Raw Data'!EM83,$B$38,$B$37) -> 3 | AF84: =OFFSET('Raw Data'!EN83,$B$38,$B$37) -> 6 | AG84: =OFFSET('Raw Data'!EO83,$B$38,$B$37) -> 9 | AH84: =OFFSET('Raw Data'!EP83,$B$38,$B$37) -> 13 | AI84: 7.6 | AJ84: 8.571428571 | AK84: 19:45:00 | AL84: 12 | AM84: 9 | AN84: 8 | AO84: 3 | AP84: 6 | AQ84: 9 | AR84: 13 | AS84: 7.6 | AT84: 8.571428571
AA85: 2000 | AB85: =OFFSET('Raw Data'!EJ84,$B$38,$B$37) -> 4 | AC85: =OFFSET('Raw Data'!EK84,$B$38,$B$37) -> 6 | AD85: =OFFSET('Raw Data'!EL84,$B$38,$B$37) -> 2 | AE85: =OFFSET('Raw Data'!EM84,$B$38,$B$37) -> 2 | AF85: =OFFSET('Raw Data'!EN84,$B$38,$B$37) -> 9 | AG85: =OFFSET('Raw Data'!EO84,$B$38,$B$37) -> 7 | AH85: =OFFSET('Raw Data'!EP84,$B$38,$B$37) -> 7 | AI85: 4.6 | AJ85: 5.285714286 | AK85: 20:00:00 | AL85: 4 | AM85: 6 | AN85: 2 | AO85: 2 | AP85: 9 | AQ85: 7 | AR85: 7 | AS85: 4.6 | AT85: 5.285714286
AA86: 2015 | AB86: =OFFSET('Raw Data'!EJ85,$B$38,$B$37) -> 9 | AC86: =OFFSET('Raw Data'!EK85,$B$38,$B$37) -> 3 | AD86: =OFFSET('Raw Data'!EL85,$B$38,$B$37) -> 4 | AE86: =OFFSET('Raw Data'!EM85,$B$38,$B$37) -> 2 | AF86: =OFFSET('Raw Data'!EN85,$B$38,$B$37) -> 9 | AG86: =OFFSET('Raw Data'!EO85,$B$38,$B$37) -> 11 | AH86: =OFFSET('Raw Data'!EP85,$B$38,$B$37) -> 8 | AI86: 5.4 | AJ86: 6.571428571 | AK86: 20:15:00 | AL86: 9 | AM86: 3 | AN86: 4 | AO86: 2 | AP86: 9 | AQ86: 11 | AR86: 8 | AS86: 5.4 | AT86: 6.571428571
AA87: 2030 | AB87: =OFFSET('Raw Data'!EJ86,$B$38,$B$37) -> 6 | AC87: =OFFSET('Raw Data'!EK86,$B$38,$B$37) -> 6 | AD87: =OFFSET('Raw Data'!EL86,$B$38,$B$37) -> 5 | AE87: =OFFSET('Raw Data'!EM86,$B$38,$B$37) -> 2 | AF87: =OFFSET('Raw Data'!EN86,$B$38,$B$37) -> 2 | AG87: =OFFSET('Raw Data'!EO86,$B$38,$B$37) -> 8 | AH87: =OFFSET('Raw Data'!EP86,$B$38,$B$37) -> 6 | AI87: 4.2 | AJ87: 5 | AK87: 20:30:00 | AL87: 6 | AM87: 6 | AN87: 5 | AO87: 2 | AP87: 2 | AQ87: 8 | AR87: 6 | AS87: 4.2 | AT87: 5
AA88: 2045 | AB88: =OFFSET('Raw Data'!EJ87,$B$38,$B$37) -> 4 | AC88: =OFFSET('Raw Data'!EK87,$B$38,$B$37) -> 4 | AD88: =OFFSET('Raw Data'!EL87,$B$38,$B$37) -> 3 | AE88: =OFFSET('Raw Data'!EM87,$B$38,$B$37) -> 4 | AF88: =OFFSET('Raw Data'!EN87,$B$38,$B$37) -> 6 | AG88: =OFFSET('Raw Data'!EO87,$B$38,$B$37) -> 11 | AH88: =OFFSET('Raw Data'!EP87,$B$38,$B$37) -> 11 | AI88: 4.2 | AJ88: 6.142857143 | AK88: 20:45:00 | AL88: 4 | AM88: 4 | AN88: 3 | AO88: 4 | AP88: 6 | AQ88: 11 | AR88: 11 | AS88: 4.2 | AT88: 6.142857143
AA89: 2100 | AB89: =OFFSET('Raw Data'!EJ88,$B$38,$B$37) -> 7 | AC89: =OFFSET('Raw Data'!EK88,$B$38,$B$37) -> 1 | AD89: =OFFSET('Raw Data'!EL88,$B$38,$B$37) -> 6 | AE89: =OFFSET('Raw Data'!EM88,$B$38,$B$37) -> 1 | AF89: =OFFSET('Raw Data'!EN88,$B$38,$B$37) -> 10 | AG89: =OFFSET('Raw Data'!EO88,$B$38,$B$37) -> 11 | AH89: =OFFSET('Raw Data'!EP88,$B$38,$B$37) -> 4 | AI89: 5 | AJ89: 5.714285714 | AK89: 21:00:00 | AL89: 7 | AM89: 1 | AN89: 6 | AO89: 1 | AP89: 10 | AQ89: 11 | AR89: 4 | AS89: 5 | AT89: 5.714285714
AA90: 2115 | AB90: =OFFSET('Raw Data'!EJ89,$B$38,$B$37) -> 3 | AC90: =OFFSET('Raw Data'!EK89,$B$38,$B$37) -> 8 | AD90: =OFFSET('Raw Data'!EL89,$B$38,$B$37) -> 4 | AE90: =OFFSET('Raw Data'!EM89,$B$38,$B$37) -> 3 | AF90: =OFFSET('Raw Data'!EN89,$B$38,$B$37) -> 9 | AG90: =OFFSET('Raw Data'!EO89,$B$38,$B$37) -> 5 | AH90: =OFFSET('Raw Data'!EP89,$B$38,$B$37) -> 9 | AI90: 5.4 | AJ90: 5.857142857 | AK90: 21:15:00 | AL90: 3 | AM90: 8 | AN90: 4 | AO90: 3 | AP90: 9 | AQ90: 5 | AR90: 9 | AS90: 5.4 | AT90: 5.857142857
AA91: 2130 | AB91: =OFFSET('Raw Data'!EJ90,$B$38,$B$37) -> 3 | AC91: =OFFSET('Raw Data'!EK90,$B$38,$B$37) -> 4 | AD91: =OFFSET('Raw Data'!EL90,$B$38,$B$37) -> 2 | AE91: =OFFSET('Raw Data'!EM90,$B$38,$B$37) -> 2 | AF91: =OFFSET('Raw Data'!EN90,$B$38,$B$37) -> 6 | AG91: =OFFSET('Raw Data'!EO90,$B$38,$B$37) -> 11 | AH91: =OFFSET('Raw Data'!EP90,$B$38,$B$37) -> 3 | AI91: 3.4 | AJ91: 4.428571429 | AK91: 21:30:00 | AL91: 3 | AM91: 4 | AN91: 2 | AO91: 2 | AP91: 6 | AQ91: 11 | AR91: 3 | AS91: 3.4 | AT91: 4.428571429
AA92: 2145 | AB92: =OFFSET('Raw Data'!EJ91,$B$38,$B$37) -> 7 | AC92: =OFFSET('Raw Data'!EK91,$B$38,$B$37) -> 7 | AD92: =OFFSET('Raw Data'!EL91,$B$38,$B$37) -> 4 | AE92: =OFFSET('Raw Data'!EM91,$B$38,$B$37) -> 3 | AF92: =OFFSET('Raw Data'!EN91,$B$38,$B$37) -> 1 | AG92: =OFFSET('Raw Data'!EO91,$B$38,$B$37) -> 8 | AH92: =OFFSET('Raw Data'!EP91,$B$38,$B$37) -> 6 | AI92: 4.4 | AJ92: 5.142857143 | AK92: 21:45:00 | AL92: 7 | AM92: 7 | AN92: 4 | AO92: 3 | AP92: 1 | AQ92: 8 | AR92: 6 | AS92: 4.4 | AT92: 5.142857143
AA93: 2200 | AB93: =OFFSET('Raw Data'!EJ92,$B$38,$B$37) -> 4 | AC93: =OFFSET('Raw Data'!EK92,$B$38,$B$37) -> 1 | AD93: =OFFSET('Raw Data'!EL92,$B$38,$B$37) -> 5 | AE93: =OFFSET('Raw Data'!EM92,$B$38,$B$37) -> 0 | AF93: =OFFSET('Raw Data'!EN92,$B$38,$B$37) -> 4 | AG93: =OFFSET('Raw Data'!EO92,$B$38,$B$37) -> 13 | AH93: =OFFSET('Raw Data'!EP92,$B$38,$B$37) -> 4 | AI93: =SUM(AB93:AF93)/5 -> 2.8 | AJ93: =SUM(AB93:AH93)/7 -> 4.428571429 | AK93: 22:00:00 | AL93: 4 | AM93: 1 | AN93: 5 | AO93: 0 | AP93: 4 | AQ93: 13 | AR93: 4 | AS93: 2.8 | AT93: 4.428571429
AA94: 2215 | AB94: =OFFSET('Raw Data'!EJ93,$B$38,$B$37) -> 2 | AC94: =OFFSET('Raw Data'!EK93,$B$38,$B$37) -> 6 | AD94: =OFFSET('Raw Data'!EL93,$B$38,$B$37) -> 4 | AE94: =OFFSET('Raw Data'!EM93,$B$38,$B$37) -> 3 | AF94: =OFFSET('Raw Data'!EN93,$B$38,$B$37) -> 10 | AG94: =OFFSET('Raw Data'!EO93,$B$38,$B$37) -> 2 | AH94: =OFFSET('Raw Data'!EP93,$B$38,$B$37) -> 7 | AI94: 5 | AJ94: 4.857142857 | AK94: 22:15:00 | AL94: 2 | AM94: 6 | AN94: 4 | AO94: 3 | AP94: 10 | AQ94: 2 | AR94: 7 | AS94: 5 | AT94: 4.857142857
AA95: 2230 | AB95: =OFFSET('Raw Data'!EJ94,$B$38,$B$37) -> 4 | AC95: =OFFSET('Raw Data'!EK94,$B$38,$B$37) -> 5 | AD95: =OFFSET('Raw Data'!EL94,$B$38,$B$37) -> 8 | AE95: =OFFSET('Raw Data'!EM94,$B$38,$B$37) -> 1 | AF95: =OFFSET('Raw Data'!EN94,$B$38,$B$37) -> 12 | AG95: =OFFSET('Raw Data'!EO94,$B$38,$B$37) -> 3 | AH95: =OFFSET('Raw Data'!EP94,$B$38,$B$37) -> 7 | AI95: 6 | AJ95: 5.714285714 | AK95: 22:30:00 | AL95: 4 | AM95: 5 | AN95: 8 | AO95: 1 | AP95: 12 | AQ95: 3 | AR95: 7 | AS95: 6 | AT95: 5.714285714
AA96: 2245 | AB96: =OFFSET('Raw Data'!EJ95,$B$38,$B$37) -> 5 | AC96: =OFFSET('Raw Data'!EK95,$B$38,$B$37) -> 2 | AD96: =OFFSET('Raw Data'!EL95,$B$38,$B$37) -> 4 | AE96: =OFFSET('Raw Data'!EM95,$B$38,$B$37) -> 1 | AF96: =OFFSET('Raw Data'!EN95,$B$38,$B$37) -> 11 | AG96: =OFFSET('Raw Data'!EO95,$B$38,$B$37) -> 7 | AH96: =OFFSET('Raw Data'!EP95,$B$38,$B$37) -> 5 | AI96: 4.6 | AJ96: 5 | AK96: 22:45:00 | AL96: 5 | AM96: 2 | AN96: 4 | AO96: 1 | AP96: 11 | AQ96: 7 | AR96: 5 | AS96: 4.6 | AT96: 5
AA97: 2300 | AB97: =OFFSET('Raw Data'!EJ96,$B$38,$B$37) -> 5 | AC97: =OFFSET('Raw Data'!EK96,$B$38,$B$37) -> 1 | AD97: =OFFSET('Raw Data'!EL96,$B$38,$B$37) -> 3 | AE97: =OFFSET('Raw Data'!EM96,$B$38,$B$37) -> 0 | AF97: =OFFSET('Raw Data'!EN96,$B$38,$B$37) -> 9 | AG97: =OFFSET('Raw Data'!EO96,$B$38,$B$37) -> 7 | AH97: =OFFSET('Raw Data'!EP96,$B$38,$B$37) -> 14 | AI97: 3.6 | AJ97: 5.571428571 | AK97: 23:00:00 | AL97: 5 | AM97: 1 | AN97: 3 | AO97: 0 | AP97: 9 | AQ97: 7 | AR97: 14 | AS97: 3.6 | AT97: 5.571428571
AA98: 2315 | AB98: =OFFSET('Raw Data'!EJ97,$B$38,$B$37) -> 1 | AC98: =OFFSET('Raw Data'!EK97,$B$38,$B$37) -> 2 | AD98: =OFFSET('Raw Data'!EL97,$B$38,$B$37) -> 5 | AE98: =OFFSET('Raw Data'!EM97,$B$38,$B$37) -> 1 | AF98: =OFFSET('Raw Data'!EN97,$B$38,$B$37) -> 5 | AG98: =OFFSET('Raw Data'!EO97,$B$38,$B$37) -> 11 | AH98: =OFFSET('Raw Data'!EP97,$B$38,$B$37) -> 10 | AI98: 2.8 | AJ98: 5 | AK98: 23:15:00 | AL98: 1 | AM98: 2 | AN98: 5 | AO98: 1 | AP98: 5 | AQ98: 11 | AR98: 10 | AS98: 2.8 | AT98: 5
AA99: 2330 | AB99: =OFFSET('Raw Data'!EJ98,$B$38,$B$37) -> 3 | AC99: =OFFSET('Raw Data'!EK98,$B$38,$B$37) -> 3 | AD99: =OFFSET('Raw Data'!EL98,$B$38,$B$37) -> 2 | AE99: =OFFSET('Raw Data'!EM98,$B$38,$B$37) -> 1 | AF99: =OFFSET('Raw Data'!EN98,$B$38,$B$37) -> 8 | AG99: =OFFSET('Raw Data'!EO98,$B$38,$B$37) -> 6 | AH99: =OFFSET('Raw Data'!EP98,$B$38,$B$37) -> 3 | AI99: 3.4 | AJ99: 3.714285714 | AK99: 23:30:00 | AL99: 3 | AM99: 3 | AN99: 2 | AO99: 1 | AP99: 8 | AQ99: 6 | AR99: 3 | AS99: 3.4 | AT99: 3.714285714
AA100: 2345 | AB100: =OFFSET('Raw Data'!EJ99,$B$38,$B$37) -> 5 | AC100: =OFFSET('Raw Data'!EK99,$B$38,$B$37) -> 1 | AD100: =OFFSET('Raw Data'!EL99,$B$38,$B$37) -> 4 | AE100: =OFFSET('Raw Data'!EM99,$B$38,$B$37) -> 1 | AF100: =OFFSET('Raw Data'!EN99,$B$38,$B$37) -> 7 | AG100: =OFFSET('Raw Data'!EO99,$B$38,$B$37) -> 5 | AH100: =OFFSET('Raw Data'!EP99,$B$38,$B$37) -> 3 | AI100: 3.6 | AJ100: 3.714285714 | AK100: 23:45:00 | AL100: 5 | AM100: 1 | AN100: 4 | AO100: 1 | AP100: 7 | AQ100: 5 | AR100: 3 | AS100: 3.6 | AT100: 3.714285714

Sheet Input_Plans (hidden)
A1: Please select… | B1: Site Picture
A2: =Input_Details!O28 -> 1. Meadow Street - 51.49499,-0.09696 | B2: Picture 1
A3: =Input_Details!O29 -> 2. Rockingham Street - 51.49637,-0.09528 | B3: Picture 2
A4: =Input_Details!O30 -> 3. Falmouth Street - 51.49566,-0.09463 | B4: Picture 3
A5: =Input_Details!O31 -> 4. Brockham Street - 51.49801,-0.09446 | B5: Picture 4
A6: =Input_Details!O32 -> 5. Swan Street - 51.49881,-0.09521 | B6: Picture 5
A7: =Input_Details!O33 -> 6. Avonmouth Street - 51.49805,-0.09771 | B7: Picture 6
A8: =Input_Details!O34 ->  | B8: Picture 7
A9: =Input_Details!O35 ->  | B9: Picture 8
A10: =Input_Details!O36 ->  | B10: Picture 9
A11: =Input_Details!O37 ->  | B11: Picture 10

Sheet Raw Data
E1: PRIMARY DATA | AR1: SECONDARY DATA | CH1: COMBINED DATA | DN1: Speed | DR1: PRIMARY DATA Class Grouping | DX1: SECONDARY DATA Class Grouping | ED1: COMBINED Class Grouping | EJ1: PRIMARY DATA Weekly Summary | EQ1: SECONDARY DATA Weekly Summary | EX1: COMBINED DATA Weekly Summary
H2: Volume Counts - Vehicle Classification Breakdown | T2: Volume Counts - Vehicle Speed Bin Breakdown | AN2: Speed Statistics | AU2: Volume Counts - Vehicle Classification Breakdown | BG2: Volume Counts - Vehicle Speed Bin Breakdown | CA2: Speed Statistics | CH2: Vehicle Classification | CT2: Vehicle Speed Bins | DR2: PC + MC | DS2: Cars | DT2: LGV, R2 & PSV 2Axle | DU2: OGV1 & PSV 3Axle | DV2: OGV2 | DW2: Total | DX2: =DR2 -> PC + MC | DY2: =DS2 -> Cars | DZ2: LGV, R2 & PSV 2Axle | EA2: OGV1 & PSV 3Axle | EB2: OGV2 | EC2: Total | ED2: PC + MC | EE2: Cars | EF2: LGV, R2 & PSV 2Axle | EG2: OGV1 & PSV 3Axle | EH2: OGV2 | EI2: Total
A3: Site No. | B3: Date | C3: Road Name | D3: Location | E3: Primary Direction | F3: Day | G3: Time | H3: PC & MC | I3: Car | J3: Short Towing | K3: R2 | L3: R3 | M3: R4 | N3: A3 | O3: A4 | P3: A5 | Q3: A6+ | R3: BD | S3: DRT | T3: 0-10 | U3: 10-15 | V3: 15-20 | W3: 20-25 | X3: 25-30 | Y3: 30-35 | Z3: 35-40 | AA3: 40-45 | AB3: 45-50 | AC3: 50-55 | AD3: 55-60 | AE3: 60-65 | AF3: 65-70 | AG3: 70-75 | AH3: 75-80 | AI3: 80-85 | AJ3: 85-90 | AK3: 90-95 | AL3: 95-100 | AM3: 100+ | AN3: Ave | AO3: 85%ile | AP3: Min | AQ3: Max | AR3: Secondary Direction | AS3: Day | AT3: Time | AU3: =H3 -> PC & MC | AV3: =I3 -> Car | AW3: Short Towing | AX3: R2 | AY3: R3 | AZ3: R4 | BA3: A3 | BB3: A4 | BC3: A5 | BD3: A6+ | BE3: BD | BF3: DRT | BG3: 0-10 | BH3: 10-15 | BI3: 15-20 | BJ3: 20-25 | BK3: 25-30 | BL3: 30-35 | BM3: 35-40 | BN3: 40-45 | BO3: 45-50 | BP3: 50-55 | BQ3: 55-60 | BR3: 60-65 | BS3: 65-70 | BT3: 70-75 | BU3: 75-80 | BV3: 80-85 | BW3: 85-90 | BX3: 90-95 | BY3: 95-100 | BZ3: 100+ | CA3: Ave | CB3: 85%ile | CC3: Min | CD3: Max | CH3: =H3 -> PC & MC | CI3: =I3 -> Car | CJ3: Short Towing | CK3: R2 | CL3: R3 | CM3: R4 | CN3: A3 | CO3: A4 | CP3: A5 | CQ3: A6+ | CR3: BD | CS3: DRT | CT3: 0-10 | CU3: 10-15 | CV3: 15-20 | CW3: 20-25 | CX3: 25-30 | CY3: 30-35 | CZ3: 35-40 | DA3: 40-45 | DB3: 45-50 | DC3: 50-55 | DD3: 55-60 | DE3: 60-65 | DF3: 65-70 | DG3: 70-75 | DH3: 75-80 | DI3: 80-85 | DJ3: 85-90 | DK3: 90-95 | DL3: 95-100 | DM3: 100+ | DN3: Ave | DO3: 85%ile | DP3: Min | DQ3: Max | EJ3: Mon | EK3: Tue | EL3: Wed | EM3: Thu | EN3: Fri | EO3: Sat | EP3: Sun | EQ3: Mon | ER3: Tue | ES3: Wed | ET3: Thu | EU3: Fri | EV3: Sat | EW3: Sun | EX3: Mon | EY3: Tue | EZ3: Wed | FA3: Thu | FB3: Fri | FC3: Sat | FD3: Sun
A4: =Input_Details!$J$5 -> 1 | B4: =OFFSET(Input_Details!$Q$4,MATCH($A4, Input_Details!$J$5:$J$24, 0), 0) -> 2017-11-20 | C4: =INDEX(Input_Details!$H$5:$H$24, MATCH($A4, Input_Details!$J$5:$J$24, 0), 0) -> Meadow Street | D4: =INDEX(Input_Details!$I$5:$I$24, MATCH($A4, Input_Details!$J$5:$J$24, 0), 0) -> 51.49499,-0.09696 | E4: =INDEX(Input_Details!$K$5:$K$24, MATCH($A4, Input_Details!$J$5:$J$24, 0), 0) -> Northbound | F4: Mon | G4: 00:00:00 | H4: 1 | I4: 4 | J4: 0 | K4: 0 | L4: 0 | M4: 0 | N4: 0 | O4: 0 | P4: 0 | Q4: 0 | R4: 0 | S4: 0 | T4: 0 | U4: 1 | V4: 3 | W4: 1 | X4: 0 | Y4: 0 | Z4: 0 | AA4: 0 | AB4: 0 | AC4: 0 | AD4: 0 | AE4: 0 | AF4: 0 | AG4: 0 | AH4: 0 | AI4: 0 | AJ4: 0 | AK4: 0 | AL4: 0 | AM4: 0 | AN4: 18 | AO4: - | AP4: 13.9 | AQ4: 20.9 | AR4: =INDEX(Input_Details!$L$5:$L$24, MATCH($A4, Input_Details!$J$5:$J$24, 0), 0) -> Southbound | AS4: Mon | AT4: 00:00:00 | AU4: 0 | AV4: 1 | AW4: 0 | AX4: 0 | AY4: 0 | AZ4: 0 | BA4: 0 | BB4: 0 | BC4: 0 | BD4: 0 | BE4: 0 | BF4: 0 | BG4: 0 | BH4: 1 | BI4: 0 | BJ4: 0 | BK4: 0 | BL4: 0 | BM4: 0 | BN4: 0 | BO4: 0 | BP4: 0 | BQ4: 0 | BR4: 0 | BS4: 0 | BT4: 0 | BU4: 0 | BV4: 0 | BW4: 0 | BX4: 0 | BY4: 0 | BZ4: 0 | CA4: 13.3 | CB4: - | CC4: 13.3 | CD4: 13.3 | CF4: Mon | CG4: 00:00:00 | CH4: =IF(OR(H4="", AU4=""), "-",SUM(H4+AU4)) -> 1 | CI4: =IF(OR(I4="", AV4=""), "-",SUM(I4+AV4)) -> 5 | CJ4: =IF(OR(J4="", AW4=""), "-",SUM(J4+AW4)) -> 0 | CK4: =IF(OR(K4="", AX4=""), "-",SUM(K4+AX4)) -> 0 | CL4: =IF(OR(L4="", AY4=""), "-",SUM(L4+AY4)) -> 0 | CM4: =IF(OR(M4="", AZ4=""), "-",SUM(M4+AZ4)) -> 0 | CN4: =IF(OR(N4="", BA4=""), "-",SUM(N4+BA4)) -> 0 | CO4: =IF(OR(O4="", BB4=""), "-",SUM(O4+BB4)) -> 0 | CP4: =IF(OR(P4="", BC4=""), "-",SUM(P4+BC4)) -> 0 | CQ4: =IF(OR(Q4="", BD4=""), "-",SUM(Q4+BD4)) -> 0 | CR4: =IF(OR(R4="", BE4=""), "-",SUM(R4+BE4)) -> 0 | CS4: =IF(OR(S4="", BF4=""), "-",SUM(S4+BF4)) -> 0 | CT4: =IF(OR(T4="", BG4=""), "-",SUM(T4+BG4)) -> 0 | CU4: =IF(OR(U4="", BH4=""), "-",SUM(U4+BH4)) -> 2 | CV4: =IF(OR(V4="", BI4=""), "-",SUM(V4+BI4)) -> 3 | CW4: =IF(OR(W4="", BJ4=""), "-",SUM(W4+BJ4)) -> 1 | CX4: =IF(OR(X4="", BK4=""), "-",SUM(X4+BK4)) -> 0 | CY4: =IF(OR(Y4="", BL4=""), "-",SUM(Y4+BL4)) -> 0 | CZ4: =IF(OR(Z4="", BM4=""), "-",SUM(Z4+BM4)) -> 0 | DA4: =IF(OR(AA4="", BN4=""), "-",SUM(AA4+BN4)) -> 0 | DB4: =IF(OR(AB4="", BO4=""), "-",SUM(AB4+BO4)) -> 0 | DC4: =IF(OR(AC4="", BP4=""), "-",SUM(AC4+BP4)) -> 0 | DD4: =IF(OR(AD4="", BQ4=""), "-",SUM(AD4+BQ4)) -> 0 | DE4: =IF(OR(AE4="", BR4=""), "-",SUM(AE4+BR4)) -> 0 | DF4: =IF(OR(AF4="", BS4=""), "-",SUM(AF4+BS4)) -> 0 | DG4: =IF(OR(AG4="", BT4=""), "-",SUM(AG4+BT4)) -> 0 | DH4: =IF(OR(AH4="", BU4=""), "-",SUM(AH4+BU4)) -> 0 | DI4: =IF(OR(AI4="", BV4=""), "-",SUM(AI4+BV4)) -> 0 | DJ4: =IF(OR(AJ4="", BW4=""), "-",SUM(AJ4+BW4)) -> 0 | DK4: =IF(OR(AK4="", BX4=""), "-",SUM(AK4+BX4)) -> 0 | DL4: =IF(OR(AL4="", BY4=""), "-",SUM(AL4+BY4)) -> 0 | DM4: =IF(OR(AM4="", BZ4=""), "-",SUM(AM4+BZ4)) -> 0 | DN4: =IF(OR(DW4="-", EC4="-", EI4="-", EI4=0),"-",IF(OR(DW4="-", DW4=0),CA4,IF(EC4=0,AN4,SUM((AN4*DW4),(CA4*EC4))/EI4))) -> 17.21666667 | DO4: =IFERROR(IF(OR(DW4="-", EC4="-", EI4="-", EI4=0), "-", IF(AO4="-", CB4, AVERAGE(AO4,CB4))), "-") -> - | DP4: =IF(OR(DW4="-", EC4="-",EI4="-", EI4=0),"-",MIN(AP4,CC4)) -> 13.3 | DQ4: =IF(OR(DW4="-", EC4="-",EI4="-", EI4=0),"-",MAX(AQ4,CD4)) -> 20.9 | DR4: =IF(H4="", "-", H4) -> 1 | DS4: =IF(DR4="-", "-", SUM(I4:J4)) -> 4 | DT4: =IF(DR4="-", "-", K4) -> 0 | DU4: =IF(DR4="-", "-", L4) -> 0 | DV4: =IF(DR4="-", "-", SUM(M4:S4)) -> 0 | DW4: =IF(DR4="-", "-", SUM(H4:S4)) -> 5 | DX4: =IF(AU4="", "-", AU4) -> 0 | DY4: =IF(DX4="-", "-", SUM(AV4:AW4)) -> 1 | DZ4: =IF(DX4="-", "-", AX4) -> 0 | EA4: =IF(DX4="-", "-", AY4) -> 0 | EB4: =IF(DX4="-", "-", SUM(AZ4:BF4)) -> 0 | EC4: =IF(DX4="-", "-", SUM(AU4:BF4)) -> 1 | ED4: =IF(OR(DR4="-", DX4="-"), "-", SUM(DR4,DX4)) -> 1 | EE4: =IF(OR(DS4="-", DY4="-"), "-", SUM(DS4,DY4)) -> 5 | EF4: =IF(OR(DT4="-", DZ4="-"), "-", SUM(DT4,DZ4)) -> 0 | EG4: =IF(OR(DU4="-", EA4="-"), "-", SUM(DU4,EA4)) -> 0 | EH4: =IF(OR(DV4="-", EB4="-"), "-", SUM(DV4,EB4)) -> 0 | EI4: =IF(OR(DW4="-", EC4="-"), "-", SUM(DW4,EC4)) -> 6 | EJ4: =+DW4 -> 5 | EK4: =+DW100 -> 2 | EL4: =+DW196 -> 1 | EM4: =+DW292 -> 5 | EN4: =+DW388 -> 4 | EO4: =+DW484 -> 4 | EP4: =+DW580 -> 3 | EQ4: =+EC4 -> 1 | ER4: =+EC100 -> 3 | ES4: =+EC196 -> 6 | ET4: =+EC292 -> 3 | EU4: =+EC388 -> 7 | EV4: =+EC484 -> 7 | EW4: =+EC580 -> 6 | EX4: =IF(OR(EJ4="-", EQ4="-"), "-", SUM(EJ4,EQ4)) -> 6 | EY4: =IF(OR(EK4="-", ER4="-"), "-", SUM(EK4,ER4)) -> 5 | EZ4: =IF(OR(EL4="-", ES4="-"), "-", SUM(EL4,ES4)) -> 7 | FA4: =IF(OR(EM4="-", ET4="-"), "-", SUM(EM4,ET4)) -> 8 | FB4: =IF(OR(EN4="-", EU4="-"), "-", SUM(EN4,EU4)) -> 11 | FC4: =IF(OR(EO4="-", EV4="-"), "-", SUM(EO4,EV4)) -> 11 | FD4: =IF(OR(EP4="-", EW4="-"), "-", SUM(EP4,EW4)) -> 9
A5: =A4 -> 1 | B5: =OFFSET(Input_Details!$Q$4,MATCH($A5, Input_Details!$J$5:$J$24, 0), 0) -> 2017-11-20 | C5: =INDEX(Input_Details!$H$5:$H$24, MATCH($A5, Input_Details!$J$5:$J$24, 0), 0) -> Meadow Street | D5: =INDEX(Input_Details!$I$5:$I$24, MATCH($A5, Input_Details!$J$5:$J$24, 0), 0) -> 51.49499,-0.09696 | E5: =INDEX(Input_Details!$K$5:$K$24, MATCH($A5, Input_Details!$J$5:$J$24, 0), 0) -> Northbound | F5: =+F4 -> Mon | G5: 00:15:00 | H5: 0 | I5: 4 | J5: 0 | K5: 0 | L5: 0 | M5: 0 | N5: 0 | O5: 0 | P5: 0 | Q5: 0 | R5: 0 | S5: 0 | T5: 0 | U5: 3 | V5: 1 | W5: 0 | X5: 0 | Y5: 0 | Z5: 0 | AA5: 0 | AB5: 0 | AC5: 0 | AD5: 0 | AE5: 0 | AF5: 0 | AG5: 0 | AH5: 0 | AI5: 0 | AJ5: 0 | AK5: 0 | AL5: 0 | AM5: 0 | AN5: 13.4 | AO5: - | AP5: 11.5 | AQ5: 17.5 | AR5: =INDEX(Input_Details!$L$5:$L$24, MATCH($A5, Input_Details!$J$5:$J$24, 0), 0) -> Southbound | AS5: Mon | AT5: 00:15:00 | AU5: 0 | AV5: 3 | AW5: 0 | AX5: 0 | AY5: 0 | AZ5: 0 | BA5: 0 | BB5: 0 | BC5: 0 | BD5: 0 | BE5: 0 | BF5: 0 | BG5: 0 | BH5: 1 | BI5: 0 | BJ5: 2 | BK5: 0 | BL5: 0 | BM5: 0 | BN5: 0 | BO5: 0 | BP5: 0 | BQ5: 0 | BR5: 0 | BS5: 0 | BT5: 0 | BU5: 0 | BV5: 0 | BW5: 0 | BX5: 0 | BY5: 0 | BZ5: 0 | CA5: 17.9 | CB5: - | CC5: 13.3 | CD5: 20.3 | CF5: Mon | CG5: 00:15:00 | CH5: =IF(OR(H5="", AU5=""), "-",SUM(H5+AU5)) -> 0 | CI5: 7 | CJ5: 0 | CK5: 0 | CL5: 0 | CM5: 0 | CN5: 0 | CO5: 0 | CP5: 0 | CQ5: 0 | CR5: 0 | CS5: 0 | CT5: 0 | CU5: 4 | CV5: 1 | CW5: 2 | CX5: 0 | CY5: 0 | CZ5: 0 | DA5: 0 | DB5: 0 | DC5: 0 | DD5: 0 | DE5: 0 | DF5: 0 | DG5: 0 | DH5: 0 | DI5: 0 | DJ5: 0 | DK5: 0 | DL5: 0 | DM5: 0 | DN5: =IF(OR(DW5="-", EC5="-", EI5="-", EI5=0),"-",IF(OR(DW5="-", DW5=0),CA5,IF(EC5=0,AN5,SUM((AN5*DW5),(CA5*EC5))/EI5))) -> 15.32857143 | DO5: =IFERROR(IF(OR(DW5="-", EC5="-", EI5="-", EI5=0), "-", IF(AO5="-", CB5, AVERAGE(AO5,CB5))), "-") -> - | DP5: =IF(OR(DW5="-", EC5="-",EI5="-", EI5=0),"-",MIN(AP5,CC5)) -> 11.5 | DQ5: =IF(OR(DW5="-", EC5="-",EI5="-", EI5=0),"-",MAX(AQ5,CD5)) -> 20.3 | DR5: 0 | DS5: 4 | DT5: 0 | DU5: 0 | DV5: 0 | DW5: 4 | DX5: =IF(AU5="", "-", AU5) -> 0 | DY5: =IF(DX5="-", "-", SUM(AV5:AW5)) -> 3 | DZ5: =IF(DX5="-", "-", AX5) -> 0 | EA5: =IF(DX5="-", "-", AY5) -> 0 | EB5: =IF(DX5="-", "-", SUM(AZ5:BF5)) -> 0 | EC5: =IF(DX5="-", "-", SUM(AU5:BF5)) -> 3 | ED5: =IF(OR(DR5="-", DX5="-"), "-", SUM(DR5,DX5)) -> 0 | EE5: 7 | EF5: 0 | EG5: 0 | EH5: 0 | EI5: 7 | EJ5: =+DW5 -> 4 | EK5: =+DW101 -> 4 | EL5: =+DW197 -> 6 | EM5: =+DW293 -> 3 | EN5: =+DW389 -> 3 | EO5: =+DW485 -> 8 | EP5: =+DW581 -> 7 | EQ5: =+EC5 -> 3 | ER5: =+EC101 -> 2 | ES5: =+EC197 -> 2 | ET5: =+EC293 -> 5 | EU5: =+EC389 -> 1 | EV5: =+EC485 -> 9 | EW5: =+EC581 -> 5 | EX5: =IF(OR(EJ5="-", EQ5="-"), "-", SUM(EJ5,EQ5)) -> 7 | EY5: 6 | EZ5: 8 | FA5: 8 | FB5: 4 | FC5: 17 | FD5: 12
A6: 1 | B6: =OFFSET(Input_Details!$Q$4,MATCH($A6, Input_Details!$J$5:$J$24, 0), 0) -> 2017-11-20 | C6: =INDEX(Input_Details!$H$5:$H$24, MATCH($A6, Input_Details!$J$5:$J$24, 0), 0) -> Meadow Street | D6: =INDEX(Input_Details!$I$5:$I$24, MATCH($A6, Input_Details!$J$5:$J$24, 0), 0) -> 51.49499,-0.09696 | E6: =INDEX(Input_Details!$K$5:$K$24, MATCH($A6, Input_Details!$J$5:$J$24, 0), 0) -> Northbound | F6: Mon | G6: 00:30:00 | H6: 0 | I6: 4 | J6: 0 | K6: 0 | L6: 0 | M6: 0 | N6: 0 | O6: 0 | P6: 0 | Q6: 0 | R6: 0 | S6: 0 | T6: 1 | U6: 1 | V6: 2 | W6: 0 | X6: 0 | Y6: 0 | Z6: 0 | AA6: 0 | AB6: 0 | AC6: 0 | AD6: 0 | AE6: 0 | AF6: 0 | AG6: 0 | AH6: 0 | AI6: 0 | AJ6: 0 | AK6: 0 | AL6: 0 | AM6: 0 | AN6: 13.2 | AO6: - | AP6: 4.2 | AQ6: 18.5 | AR6: =INDEX(Input_Details!$L$5:$L$24, MATCH($A6, Input_Details!$J$5:$J$24, 0), 0) -> Southbound | AS6: Mon | AT6: 00:30:00 | AU6: 0 | AV6: 1 | AW6: 0 | AX6: 0 | AY6: 0 | AZ6: 0 | BA6: 0 | BB6: 0 | BC6: 0 | BD6: 0 | BE6: 0 | BF6: 0 | BG6: 1 | BH6: 0 | BI6: 0 | BJ6: 0 | BK6: 0 | BL6: 0 | BM6: 0 | BN6: 0 | BO6: 0 | BP6: 0 | BQ6: 0 | BR6: 0 | BS6: 0 | BT6: 0 | BU6: 0 | BV6: 0 | BW6: 0 | BX6: 0 | BY6: 0 | BZ6: 0 | CA6: 4.2 | CB6: - | CC6: 4.2 | CD6: 4.2 | CF6: Mon | CG6: 00:30:00 | CH6: 0 | CI6: 5 | CJ6: 0 | CK6: 0 | CL6: 0 | CM6: 0 | CN6: 0 | CO6: 0 | CP6: 0 | CQ6: 0 | CR6: 0 | CS6: 0 | CT6: 2 | CU6: 1 | CV6: 2 | CW6: 0 | CX6: 0 | CY6: 0 | CZ6: 0 | DA6: 0 | DB6: 0 | DC6: 0 | DD6: 0 | DE6: 0 | DF6: 0 | DG6: 0 | DH6: 0 | DI6: 0 | DJ6: 0 | DK6: 0 | DL6: 0 | DM6: 0 | DN6: 11.4 | DO6: - | DP6: 4.2 | DQ6: 18.5 | DR6: 0 | DS6: 4 | DT6: 0 | DU6: 0 | DV6: 0 | DW6: 4 | DX6: 0 | DY6: 1 | DZ6: 0 | EA6: 0 | EB6: 0 | EC6: 1 | ED6: 0 | EE6: 5 | EF6: 0 | EG6: 0 | EH6: 0 | EI6: 5 | EJ6: 4 | EK6: 0 | EL6: 3 | EM6: 1 | EN6: 1 | EO6: 6 | EP6: 10 | EQ6: 1 | ER6: 0 | ES6: 2 | ET6: 1 | EU6: 3 | EV6: 6 | EW6: 7 | EX6: 5 | EY6: 0 | EZ6: 5 | FA6: 2 | FB6: 4 | FC6: 12 | FD6: 17
A7: 1 | B7: =OFFSET(Input_Details!$Q$4,MATCH($A7, Input_Details!$J$5:$J$24, 0), 0) -> 2017-11-20 | C7: =INDEX(Input_Details!$H$5:$H$24, MATCH($A7, Input_Details!$J$5:$J$24, 0), 0) -> Meadow Street | D7: =INDEX(Input_Details!$I$5:$I$24, MATCH($A7, Input_Details!$J$5:$J$24, 0), 0) -> 51.49499,-0.09696 | E7: =INDEX(Input_Details!$K$5:$K$24, MATCH($A7, Input_Details!$J$5:$J$24, 0), 0) -> Northbound | F7: Mon | G7: 00:45:00 | H7: 0 | I7: 0 | J7: 0 | K7: 0 | L7: 0 | M7: 0 | N7: 0 | O7: 0 | P7: 0 | Q7: 0 | R7: 0 | S7: 0 | T7: 0 | U7: 0 | V7: 0 | W7: 0 | X7: 0 | Y7: 0 | Z7: 0 | AA7: 0 | AB7: 0 | AC7: 0 | AD7: 0 | AE7: 0 | AF7: 0 | AG7: 0 | AH7: 0 | AI7: 0 | AJ7: 0 | AK7: 0 | AL7: 0 | AM7: 0 | AN7: - | AO7: - | AP7: - | AQ7: - | AR7: =INDEX(Input_Details!$L$5:$L$24, MATCH($A7, Input_Details!$J$5:$J$24, 0), 0) -> Southbound | AS7: Mon | AT7: 00:45:00 | AU7: 1 | AV7: 1 | AW7: 0 | AX7: 0 | AY7: 0 | AZ7: 0 | BA7: 0 | BB7: 0 | BC7: 0 | BD7: 0 | BE7: 0 | BF7: 0 | BG7: 0 | BH7: 1 | BI7: 1 | BJ7: 0 | BK7: 0 | BL7: 0 | BM7: 0 | BN7: 0 | BO7: 0 | BP7: 0 | BQ7: 0 | BR7: 0 | BS7: 0 | BT7: 0 | BU7: 0 | BV7: 0 | BW7: 0 | BX7: 0 | BY7: 0 | BZ7: 0 | CA7: 14.9 | CB7: - | CC7: 12.9 | CD7: 16.9 | CF7: Mon | CG7: 00:45:00 | CH7: 1 | CI7: 1 | CJ7: 0 | CK7: 0 | CL7: 0 | CM7: 0 | CN7: 0 | CO7: 0 | CP7: 0 | CQ7: 0 | CR7: 0 | CS7: 0 | CT7: 0 | CU7: 1 | CV7: 1 | CW7: 0 | CX7: 0 | CY7: 0 | CZ7: 0 | DA7: 0 | DB7: 0 | DC7: 0 | DD7: 0 | DE7: 0 | DF7: 0 | DG7: 0 | DH7: 0 | DI7: 0 | DJ7: 0 | DK7: 0 | DL7: 0 | DM7: 0 | DN7: 14.9 | DO7: - | DP7: 12.9 | DQ7: 16.9 | DR7: 0 | DS7: 0 | DT7: 0 | DU7: 0 | DV7: 0 | DW7: 0 | DX7: 1 | DY7: 1 | DZ7: 0 | EA7: 0 | EB7: 0 | EC7: 2 | ED7: 1 | EE7: 1 | EF7: 0 | EG7: 0 | EH7: 0 | EI7: 2 | EJ7: 0 | EK7: 0 | EL7: 4 | EM7: 1 | EN7: 8 | EO7: 4 | EP7: 7 | EQ7: 2 | ER7: 0 | ES7: 3 | ET7: 0 | EU7: 3 | EV7: 3 | EW7: 3 | EX7: 2 | EY7: 0 | EZ7: 7 | FA7: 1 | FB7: 11 | FC7: 7 | FD7: 10
A8: 1 | B8: =OFFSET(Input_Details!$Q$4,MATCH($A8, Input_Details!$J$5:$J$24, 0), 0) -> 2017-11-20 | C8: =INDEX(Input_Details!$H$5:$H$24, MATCH($A8, Input_Details!$J$5:$J$24, 0), 0) -> Meadow Street | D8: =INDEX(Input_Details!$I$5:$I$24, MATCH($A8, Input_Details!$J$5:$J$24, 0), 0) -> 51.49499,-0.09696 | E8: =INDEX(Input_Details!$K$5:$K$24, MATCH($A8, Input_Details!$J$5:$J$24, 0), 0) -> Northbound | F8: Mon | G8: 01:00:00 | H8: 0 | I8: 2 | J8: 0 | K8: 0 | L8: 0 | M8: 0 | N8: 0 | O8: 0 | P8: 0 | Q8: 0 | R8: 0 | S8: 0 | T8: 0 | U8: 1 | V8: 1 | W8: 0 | X8: 0 | Y8: 0 | Z8: 0 | AA8: 0 | AB8: 0 | AC8: 0 | AD8: 0 | AE8: 0 | AF8: 0 | AG8: 0 | AH8: 0 | AI8: 0 | AJ8: 0 | AK8: 0 | AL8: 0 | AM8: 0 | AN8: 15.5 | AO8: - | AP8: 13.6 | AQ8: 17.5 | AR8: =INDEX(Input_Details!$L$5:$L$24, MATCH($A8, Input_Details!$J$5:$J$24, 0), 0) -> Southbound | AS8: Mon | AT8: 01:00:00 | AU8: 0 | AV8: 2 | AW8: 0 | AX8: 0 | AY8: 0 | AZ8: 0 | BA8: 0 | BB8: 0 | BC8: 0 | BD8: 0 | BE8: 0 | BF8: 0 | BG8: 0 | BH8: 1 | BI8: 1 | BJ8: 0 | BK8: 0 | BL8: 0 | BM8: 0 | BN8: 0 | BO8: 0 | BP8: 0 | BQ8: 0 | BR8: 0 | BS8: 0 | BT8: 0 | BU8: 0 | BV8: 0 | BW8: 0 | BX8: 0 | BY8: 0 | BZ8: 0 | CA8: 16 | CB8: - | CC8: 14.5 | CD8: 17.6 | CF8: Mon | CG8: 01:00:00 | CH8: 0 | CI8: 4 | CJ8: 0 | CK8: 0 | CL8: 0 | CM8: 0 | CN8: 0 | CO8: 0 | CP8: 0 | CQ8: 0 | CR8: 0 | CS8: 0 | CT8: 0 | CU8: 2 | CV8: 2 | CW8: 0 | CX8: 0 | CY8: 0 | CZ8: 0 | DA8: 0 | DB8: 0 | DC8: 0 | DD8: 0 | DE8: 0 | DF8: 0 | DG8: 0 | DH8: 0 | DI8: 0 | DJ8: 0 | DK8: 0 | DL8: 0 | DM8: 0 | DN8: 15.75 | DO8: - | DP8: 13.6 | DQ8: 17.6 | DR8: 0 | DS8: 2 | DT8: 0 | DU8: 0 | DV8: 0 | DW8: 2 | DX8: 0 | DY8: 2 | DZ8: 0 | EA8: 0 | EB8: 0 | EC8: 2 | ED8: 0 | EE8: 4 | EF8: 0 | EG8: 0 | EH8: 0 | EI8: 4 | EJ8: 2 | EK8: 1 | EL8: 1 | EM8: 0 | EN8: 1 | EO8: 4 | EP8: 3 | EQ8: 2 | ER8: 0 | ES8: 2 | ET8: 0 | EU8: 1 | EV8: 3 | EW8: 2 | EX8: 4 | EY8: 1 | EZ8: 3 | FA8: 0 | FB8: 2 | FC8: 7 | FD8: 5
A9: 1 | B9: =OFFSET(Input_Details!$Q$4,MATCH($A9, Input_Details!$J$5:$J$24, 0), 0) -> 2017-11-20 | C9: =INDEX(Input_Details!$H$5:$H$24, MATCH($A9, Input_Details!$J$5:$J$24, 0), 0) -> Meadow Street | D9: =INDEX(Input_Details!$I$5:$I$24, MATCH($A9, Input_Details!$J$5:$J$24, 0), 0) -> 51.49499,-0.09696 | E9: =INDEX(Input_Details!$K$5:$K$24, MATCH($A9, Input_Details!$J$5:$J$24, 0), 0) -> Northbound | F9: Mon | G9: 01:15:00 | H9: 0 | I9: 2 | J9: 0 | K9: 0 | L9: 0 | M9: 0 | N9: 0 | O9: 0 | P9: 0 | Q9: 0 | R9: 0 | S9: 0 | T9: 1 | U9: 1 | V9: 0 | W9: 0 | X9: 0 | Y9: 0 | Z9: 0 | AA9: 0 | AB9: 0 | AC9: 0 | AD9: 0 | AE9: 0 | AF9: 0 | AG9: 0 | AH9: 0 | AI9: 0 | AJ9: 0 | AK9: 0 | AL9: 0 | AM9: 0 | AN9: 8.3 | AO9: - | AP9: 4.9 | AQ9: 11.7 | AR9: =INDEX(Input_Details!$L$5:$L$24, MATCH($A9, Input_Details!$J$5:$J$24, 0), 0) -> Southbound | AS9: Mon | AT9: 01:15:00 | AU9: 0 | AV9: 3 | AW9: 0 | AX9: 0 | AY9: 0 | AZ9: 0 | BA9: 0 | BB9: 0 | BC9: 0 | BD9: 0 | BE9: 0 | BF9: 0 | BG9: 0 | BH9: 3 | BI9: 0 | BJ9: 0 | BK9: 0 | BL9: 0 | BM9: 0 | BN9: 0 | BO9: 0 | BP9: 0 | BQ9: 0 | BR9: 0 | BS9: 0 | BT9: 0 | BU9: 0 | BV9: 0 | BW9: 0 | BX9: 0 | BY9: 0 | BZ9: 0 | CA9: 14.3 | CB9: - | CC9: 13.8 | CD9: 14.5 | CF9: Mon | CG9: 01:15:00 | CH9: 0 | CI9: 5 | CJ9: 0 | CK9: 0 | CL9: 0 | CM9: 0 | CN9: 0 | CO9: 0 | CP9: 0 | CQ9: 0 | CR9: 0 | CS9: 0 | CT9: 1 | CU9: 4 | CV9: 0 | CW9: 0 | CX9: 0 | CY9: 0 | CZ9: 0 | DA9: 0 | DB9: 0 | DC9: 0 | DD9: 0 | DE9: 0 | DF9: 0 | DG9: 0 | DH9: 0 | DI9: 0 | DJ9: 0 | DK9: 0 | DL9: 0 | DM9: 0 | DN9: 11.9 | DO9: - | DP9: 4.9 | DQ9: 14.5 | DR9: 0 | DS9: 2 | DT9: 0 | DU9: 0 | DV9: 0 | DW9: 2 | DX9: 0 | DY9: 3 | DZ9: 0 | EA9: 0 | EB9: 0 | EC9: 3 | ED9: 0 | EE9: 5 | EF9: 0 | EG9: 0 | EH9: 0 | EI9: 5 | EJ9: 2 | EK9: 0 | EL9: 3 | EM9: 2 | EN9: 1 | EO9: 5 | EP9: 6 | EQ9: 3 | ER9: 1 | ES9: 2 | ET9: 1 | EU9: 2 | EV9: 2 | EW9: 1 | EX9: 5 | EY9: 1 | EZ9: 5 | FA9: 3 | FB9: 3 | FC9: 7 | FD9: 7
A10: 1 | B10: =OFFSET(Input_Details!$Q$4,MATCH($A10, Input_Details!$J$5:$J$24, 0), 0) -> 2017-11-20 | C10: =INDEX(Input_Details!$H$5:$H$24, MATCH($A10, Input_Details!$J$5:$J$24, 0), 0) -> Meadow Street | D10: =INDEX(Input_Details!$I$5:$I$24, MATCH($A10, Input_Details!$J$5:$J$24, 0), 0) -> 51.49499,-0.09696 | E10: =INDEX(Input_Details!$K$5:$K$24, MATCH($A10, Input_Details!$J$5:$J$24, 0), 0) -> Northbound | F10: Mon | G10: 01:30:00 | H10: 0 | I10: 1 | J10: 0 | K10: 0 | L10: 0 | M10: 0 | N10: 0 | O10: 0 | P10: 0 | Q10: 0 | R10: 0 | S10: 0 | T10: 0 | U10: 0 | V10: 1 | W10: 0 | X10: 0 | Y10: 0 | Z10: 0 | AA10: 0 | AB10: 0 | AC10: 0 | AD10: 0 | AE10: 0 | AF10: 0 | AG10: 0 | AH10: 0 | AI10: 0 | AJ10: 0 | AK10: 0 | AL10: 0 | AM10: 0 | AN10: 18.4 | AO10: - | AP10: 18.4 | AQ10: 18.4 | AR10: =INDEX(Input_Details!$L$5:$L$24, MATCH($A10, Input_Details!$J$5:$J$24, 0), 0) -> Southbound | AS10: Mon | AT10: 01:30:00 | AU10: 0 | AV10: 0 | AW10: 0 | AX10: 0 | AY10: 0 | AZ10: 0 | BA10: 0 | BB10: 0 | BC10: 0 | BD10: 0 | BE10: 0 | BF10: 0 | BG10: 0 | BH10: 0 | BI10: 0 | BJ10: 0 | BK10: 0 | BL10: 0 | BM10: 0 | BN10: 0 | BO10: 0 | BP10: 0 | BQ10: 0 | BR10: 0 | BS10: 0 | BT10: 0 | BU10: 0 | BV10: 0 | BW10: 0 | BX10: 0 | BY10: 0 | BZ10: 0 | CA10: - | CB10: - | CC10: - | CD10: - | CF10: Mon | CG10: 01:30:00 | CH10: 0 | CI10: 1 | CJ10: 0 | CK10: 0 | CL10: 0 | CM10: 0 | CN10: 0 | CO10: 0 | CP10: 0 | CQ10: 0 | CR10: 0 | CS10: 0 | CT10: 0 | CU10: 0 | CV10: 1 | CW10: 0 | CX10: 0 | CY10: 0 | CZ10: 0 | DA10: 0 | DB10: 0 | DC10: 0 | DD10: 0 | DE10: 0 | DF10: 0 | DG10: 0 | DH10: 0 | DI10: 0 | DJ10: 0 | DK10: 0 | DL10: 0 | DM10: 0 | DN10: 18.4 | DO10: - | DP10: 18.4 | DQ10: 18.4 | DR10: 0 | DS10: 1 | DT10: 0 | DU10: 0 | DV10: 0 | DW10: 1 | DX10: 0 | DY10: 0 | DZ10: 0 | EA10: 0 | EB10: 0 | EC10: 0 | ED10: 0 | EE10: 1 | EF10: 0 | EG10: 0 | EH10: 0 | EI10: 1 | EJ10: 1 | EK10: 0 | EL10: 0 | EM10: 1 | EN10: 3 | EO10: 1 | EP10: 2 | EQ10: 0 | ER10: 1 | ES10: 3 | ET10: 1 | EU10: 0 | EV10: 1 | EW10: 1 | EX10: 1 | EY10: 1 | EZ10: 3 | FA10: 2 | FB10: 3 | FC10: 2 | FD10: 3
A11: 1 | B11: =OFFSET(Input_Details!$Q$4,MATCH($A11, Input_Details!$J$5:$J$24, 0), 0) -> 2017-11-20 | C11: =INDEX(Input_Details!$H$5:$H$24, MATCH($A11, Input_Details!$J$5:$J$24, 0), 0) -> Meadow Street | D11: =INDEX(Input_Details!$I$5:$I$24, MATCH($A11, Input_Details!$J$5:$J$24, 0), 0) -> 51.49499,-0.09696 | E11: =INDEX(Input_Details!$K$5:$K$24, MATCH($A11, Input_Details!$J$5:$J$24, 0), 0) -> Northbound | F11: Mon | G11: 01:45:00 | H11: 0 | I11: 0 | J11: 0 | K11: 1 | L11: 0 | M11: 0 | N11: 0 | O11: 0 | P11: 0 | Q11: 0 | R11: 0 | S11: 0 | T11: 0 | U11: 1 | V11: 0 | W11: 0 | X11: 0 | Y11: 0 | Z11: 0 | AA11: 0 | AB11: 0 | AC11: 0 | AD11: 0 | AE11: 0 | AF11: 0 | AG11: 0 | AH11: 0 | AI11: 0 | AJ11: 0 | AK11: 0 | AL11: 0 | AM11: 0 | AN11: 11.7 | AO11: - | AP11: 11.7 | AQ11: 11.7 | AR11: =INDEX(Input_Details!$L$5:$L$24, MATCH($A11, Input_Details!$J$5:$J$24, 0), 0) -> Southbound | AS11: Mon | AT11: 01:45:00 | AU11: 0 | AV11: 1 | AW11: 0 | AX11: 0 | AY11: 0 | AZ11: 0 | BA11: 0 | BB11: 0 | BC11: 0 | BD11: 0 | BE11: 0 | BF11: 0 | BG11: 0 | BH11: 0 | BI11: 1 | BJ11: 0 | BK11: 0 | BL11: 0 | BM11: 0 | BN11: 0 | BO11: 0 | BP11: 0 | BQ11: 0 | BR11: 0 | BS11: 0 | BT11: 0 | BU11: 0 | BV11: 0 | BW11: 0 | BX11: 0 | BY11: 0 | BZ11: 0 | CA11: 16.5 | CB11: - | CC11: 16.5 | CD11: 16.5 | CF11: Mon | CG11: 01:45:00 | CH11: 0 | CI11: 1 | CJ11: 0 | CK11: 1 | CL11: 0 | CM11: 0 | CN11: 0 | CO11: 0 | CP11: 0 | CQ11: 0 | CR11: 0 | CS11: 0 | CT11: 0 | CU11: 1 | CV11: 1 | CW11: 0 | CX11: 0 | CY11: 0 | CZ11: 0 | DA11: 0 | DB11: 0 | DC11: 0 | DD11: 0 | DE11: 0 | DF11: 0 | DG11: 0 | DH11: 0 | DI11: 0 | DJ11: 0 | DK11: 0 | DL11: 0 | DM11: 0 | DN11: 14.1 | DO11: - | DP11: 11.7 | DQ11: 16.5 | DR11: 0 | DS11: 0 | DT11: 1 | DU11: 0 | DV11: 0 | DW11: 1 | DX11: 0 | DY11: 1 | DZ11: 0 | EA11: 0 | EB11: 0 | EC11: 1 | ED11: 0 | EE11: 1 | EF11: 1 | EG11: 0 | EH11: 0 | EI11: 2 | EJ11: 1 | EK11: 0 | EL11: 1 | EM11: 1 | EN11: 4 | EO11: 8 | EP11: 3 | EQ11: 1 | ER11: 0 | ES11: 1 | ET11: 0 | EU11: 2 | EV11: 1 | EW11: 2 | EX11: 2 | EY11: 0 | EZ11: 2 | FA11: 1 | FB11: 6 | FC11: 9 | FD11: 5
A12: 1 | B12: =OFFSET(Input_Details!$Q$4,MATCH($A12, Input_Details!$J$5:$J$24, 0), 0) -> 2017-11-20 | C12: =INDEX(Input_Details!$H$5:$H$24, MATCH($A12, Input_Details!$J$5:$J$24, 0), 0) -> Meadow Street | D12: =INDEX(Input_Details!$I$5:$I$24, MATCH($A12, Input_Details!$J$5:$J$24, 0), 0) -> 51.49499,-0.09696 | E12: =INDEX(Input_Details!$K$5:$K$24, MATCH($A12, Input_Details!$J$5:$J$24, 0), 0) -> Northbound | F12: Mon | G12: 02:00:00 | H12: 0 | I12: 0 | J12: 0 | K12: 0 | L12: 0 | M12: 0 | N12: 0 | O12: 0 | P12: 0 | Q12: 0 | R12: 0 | S12: 0 | T12: 0 | U12: 0 | V12: 0 | W12: 0 | X12: 0 | Y12: 0 | Z12: 0 | AA12: 0 | AB12: 0 | AC12: 0 | AD12: 0 | AE12: 0 | AF12: 0 | AG12: 0 | AH12: 0 | AI12: 0 | AJ12: 0 | AK12: 0 | AL12: 0 | AM12: 0 | AN12: - | AO12: - | AP12: - | AQ12: - | AR12: =INDEX(Input_Details!$L$5:$L$24, MATCH($A12, Input_Details!$J$5:$J$24, 0), 0) -> Southbound | AS12: Mon | AT12: 02:00:00 | AU12: 0 | AV12: 0 | AW12: 0 | AX12: 0 | AY12: 0 | AZ12: 0 | BA12: 0 | BB12: 0 | BC12: 0 | BD12: 0 | BE12: 0 | BF12: 0 | BG12: 0 | BH12: 0 | BI12: 0 | BJ12: 0 | BK12: 0 | BL12: 0 | BM12: 0 | BN12: 0 | BO12: 0 | BP12: 0 | BQ12: 0 | BR12: 0 | BS12: 0 | BT12: 0 | BU12: 0 | BV12: 0 | BW12: 0 | BX12: 0 | BY12: 0 | BZ12: 0 | CA12: - | CB12: - | CC12: - | CD12: - | CF12: Mon | CG12: 02:00:00 | CH12: 0 | CI12: 0 | CJ12: 0 | CK12: 0 | CL12: 0 | CM12: 0 | CN12: 0 | CO12: 0 | CP12: 0 | CQ12: 0 | CR12: 0 | CS12: 0 | CT12: 0 | CU12: 0 | CV12: 0 | CW12: 0 | CX12: 0 | CY12: 0 | CZ12: 0 | DA12: 0 | DB12: 0 | DC12: 0 | DD12: 0 | DE12: 0 | DF12: 0 | DG12: 0 | DH12: 0 | DI12: 0 | DJ12: 0 | DK12: 0 | DL12: 0 | DM12: 0 | DN12: - | DO12: - | DP12: - | DQ12: - | DR12: 0 | DS12: 0 | DT12: 0 | DU12: 0 | DV12: 0 | DW12: 0 | DX12: 0 | DY12: 0 | DZ12: 0 | EA12: 0 | EB12: 0 | EC12: 0 | ED12: 0 | EE12: 0 | EF12: 0 | EG12: 0 | EH12: 0 | EI12: 0 | EJ12: 0 | EK12: 0 | EL12: 3 | EM12: 2 | EN12: 2 | EO12: 7 | EP12: 6 | EQ12: 0 | ER12: 0 | ES12: 2 | ET12: 2 | EU12: 3 | EV12: 2 | EW12: 5 | EX12: 0 | EY12: 0 | EZ12: 5 | FA12: 4 | FB12: 5 | FC12: 9 | FD12: 11
A13: 1 | B13: =OFFSET(Input_Details!$Q$4,MATCH($A13, Input_Details!$J$5:$J$24, 0), 0) -> 2017-11-20 | C13: =INDEX(Input_Details!$H$5:$H$24, MATCH($A13, Input_Details!$J$5:$J$24, 0), 0) -> Meadow Street | D13: =INDEX(Input_Details!$I$5:$I$24, MATCH($A13, Input_Details!$J$5:$J$24, 0), 0) -> 51.49499,-0.09696 | E13: =INDEX(Input_Details!$K$5:$K$24, MATCH($A13, Input_Details!$J$5:$J$24, 0), 0) -> Northbound | F13: Mon | G13: 02:15:00 | H13: 0 | I13: 0 | J13: 0 | K13: 0 | L13: 0 | M13: 0 | N13: 0 | O13: 0 | P13: 0 | Q13: 0 | R13: 0 | S13: 0 | T13: 0 | U13: 0 | V13: 0 | W13: 0 | X13: 0 | Y13: 0 | Z13: 0 | AA13: 0 | AB13: 0 | AC13: 0 | AD13: 0 | AE13: 0 | AF13: 0 | AG13: 0 | AH13: 0 | AI13: 0 | AJ13: 0 | AK13: 0 | AL13: 0 | AM13: 0 | AN13: - | AO13: - | AP13: - | AQ13: - | AR13: =INDEX(Input_Details!$L$5:$L$24, MATCH($A13, Input_Details!$J$5:$J$24, 0), 0) -> Southbound | AS13: Mon | AT13: 02:15:00 | AU13: 0 | AV13: 0 | AW13: 0 | AX13: 0 | AY13: 0 | AZ13: 0 | BA13: 0 | BB13: 0 | BC13: 0 | BD13: 0 | BE13: 0 | BF13: 0 | BG13: 0 | BH13: 0 | BI13: 0 | BJ13: 0 | BK13: 0 | BL13: 0 | BM13: 0 | BN13: 0 | BO13: 0 | BP13: 0 | BQ13: 0 | BR13: 0 | BS13: 0 | BT13: 0 | BU13: 0 | BV13: 0 | BW13: 0 | BX13: 0 | BY13: 0 | BZ13: 0 | CA13: - | CB13: - | CC13: - | CD13: - | CF13: Mon | CG13: 02:15:00 | CH13: 0 | CI13: 0 | CJ13: 0 | CK13: 0 | CL13: 0 | CM13: 0 | CN13: 0 | CO13: 0 | CP13: 0 | CQ13: 0 | CR13: 0 | CS13: 0 | CT13: 0 | CU13: 0 | CV13: 0 | CW13: 0 | CX13: 0 | CY13: 0 | CZ13: 0 | DA13: 0 | DB13: 0 | DC13: 0 | DD13: 0 | DE13: 0 | DF13: 0 | DG13: 0 | DH13: 0 | DI13: 0 | DJ13: 0 | DK13: 0 | DL13: 0 | DM13: 0 | DN13: - | DO13: - | DP13: - | DQ13: - | DR13: 0 | DS13: 0 | DT13: 0 | DU13: 0 | DV13: 0 | DW13: 0 | DX13: 0 | DY13: 0 | DZ13: 0 | EA13: 0 | EB13: 0 | EC13: 0 | ED13: 0 | EE13: 0 | EF13: 0 | EG13: 0 | EH13: 0 | EI13: 0 | EJ13: 0 | EK13: 0 | EL13: 3 | EM13: 1 | EN13: 2 | EO13: 7 | EP13: 4 | EQ13: 0 | ER13: 0 | ES13: 1 | ET13: 0 | EU13: 1 | EV13: 2 | EW13: 3 | EX13: 0 | EY13: 0 | EZ13: 4 | FA13: 1 | FB13: 3 | FC13: 9 | FD13: 7
A14: 1 | B14: =OFFSET(Input_Details!$Q$4,MATCH($A14, Input_Details!$J$5:$J$24, 0), 0) -> 2017-11-20 | C14: =INDEX(Input_Details!$H$5:$H$24, MATCH($A14, Input_Details!$J$5:$J$24, 0), 0) -> Meadow Street | D14: =INDEX(Input_Details!$I$5:$I$24, MATCH($A14, Input_Details!$J$5:$J$24, 0), 0) -> 51.49499,-0.09696 | E14: =INDEX(Input_Details!$K$5:$K$24, MATCH($A14, Input_Details!$J$5:$J$24, 0), 0) -> Northbound | F14: Mon | G14: 02:30:00 | H14: 0 | I14: 1 | J14: 0 | K14: 0 | L14: 0 | M14: 0 | N14: 0 | O14: 0 | P14: 0 | Q14: 0 | R14: 0 | S14: 0 | T14: 0 | U14: 1 | V14: 0 | W14: 0 | X14: 0 | Y14: 0 | Z14: 0 | AA14: 0 | AB14: 0 | AC14: 0 | AD14: 0 | AE14: 0 | AF14: 0 | AG14: 0 | AH14: 0 | AI14: 0 | AJ14: 0 | AK14: 0 | AL14: 0 | AM14: 0 | AN14: 12.6 | AO14: - | AP14: 12.6 | AQ14: 12.6 | AR14: =INDEX(Input_Details!$L$5:$L$24, MATCH($A14, Input_Details!$J$5:$J$24, 0), 0) -> Southbound | AS14: Mon | AT14: 02:30:00 | AU14: 0 | AV14: 0 | AW14: 0 | AX14: 0 | AY14: 0 | AZ14: 0 | BA14: 0 | BB14: 0 | BC14: 0 | BD14: 0 | BE14: 0 | BF14: 0 | BG14: 0 | BH14: 0 | BI14: 0 | BJ14: 0 | BK14: 0 | BL14: 0 | BM14: 0 | BN14: 0 | BO14: 0 | BP14: 0 | BQ14: 0 | BR14: 0 | BS14: 0 | BT14: 0 | BU14: 0 | BV14: 0 | BW14: 0 | BX14: 0 | BY14: 0 | BZ14: 0 | CA14: - | CB14: - | CC14: - | CD14: - | CF14: Mon | CG14: 02:30:00 | CH14: 0 | CI14: 1 | CJ14: 0 | CK14: 0 | CL14: 0 | CM14: 0 | CN14: 0 | CO14: 0 | CP14: 0 | CQ14: 0 | CR14: 0 | CS14: 0 | CT14: 0 | CU14: 1 | CV14: 0 | CW14: 0 | CX14: 0 | CY14: 0 | CZ14: 0 | DA14: 0 | DB14: 0 | DC14: 0 | DD14: 0 | DE14: 0 | DF14: 0 | DG14: 0 | DH14: 0 | DI14: 0 | DJ14: 0 | DK14: 0 | DL14: 0 | DM14: 0 | DN14: 12.6 | DO14: - | DP14: 12.6 | DQ14: 12.6 | DR14: 0 | DS14: 1 | DT14: 0 | DU14: 0 | DV14: 0 | DW14: 1 | DX14: 0 | DY14: 0 | DZ14: 0 | EA14: 0 | EB14: 0 | EC14: 0 | ED14: 0 | EE14: 1 | EF14: 0 | EG14: 0 | EH14: 0 | EI14: 1 | EJ14: 1 | EK14: 0 | EL14: 2 | EM14: 2 | EN14: 0 | EO14: 7 | EP14: 3 | EQ14: 0 | ER14: 1 | ES14: 1 | ET14: 0 | EU14: 0 | EV14: 3 | EW14: 3 | EX14: 1 | EY14: 1 | EZ14: 3 | FA14: 2 | FB14: 0 | FC14: 10 | FD14: 6
A15: 1 | B15: =OFFSET(Input_Details!$Q$4,MATCH($A15, Input_Details!$J$5:$J$24, 0), 0) -> 2017-11-20 | C15: =INDEX(Input_Details!$H$5:$H$24, MATCH($A15, Input_Details!$J$5:$J$24, 0), 0) -> Meadow Street | D15: =INDEX(Input_Details!$I$5:$I$24, MATCH($A15, Input_Details!$J$5:$J$24, 0), 0) -> 51.49499,-0.09696 | E15: =INDEX(Input_Details!$K$5:$K$24, MATCH($A15, Input_Details!$J$5:$J$24, 0), 0) -> Northbound | F15: Mon | G15: 02:45:00 | H15: 0 | I15: 1 | J15: 0 | K15: 0 | L15: 0 | M15: 0 | N15: 0 | O15: 0 | P15: 0 | Q15: 0 | R15: 0 | S15: 0 | T15: 0 | U15: 0 | V15: 1 | W15: 0 | X15: 0 | Y15: 0 | Z15: 0 | AA15: 0 | AB15: 0 | AC15: 0 | AD15: 0 | AE15: 0 | AF15: 0 | AG15: 0 | AH15: 0 | AI15: 0 | AJ15: 0 | AK15: 0 | AL15: 0 | AM15: 0 | AN15: 18 | AO15: - | AP15: 18 | AQ15: 18 | AR15: =INDEX(Input_Details!$L$5:$L$24, MATCH($A15, Input_Details!$J$5:$J$24, 0), 0) -> Southbound | AS15: Mon | AT15: 02:45:00 | AU15: 0 | AV15: 0 | AW15: 0 | AX15: 0 | AY15: 0 | AZ15: 0 | BA15: 0 | BB15: 0 | BC15: 0 | BD15: 0 | BE15: 0 | BF15: 0 | BG15: 0 | BH15: 0 | BI15: 0 | BJ15: 0 | BK15: 0 | BL15: 0 | BM15: 0 | BN15: 0 | BO15: 0 | BP15: 0 | BQ15: 0 | BR15: 0 | BS15: 0 | BT15: 0 | BU15: 0 | BV15: 0 | BW15: 0 | BX15: 0 | BY15: 0 | BZ15: 0 | CA15: - | CB15: - | CC15: - | CD15: - | CF15: Mon | CG15: 02:45:00 | CH15: 0 | CI15: 1 | CJ15: 0 | CK15: 0 | CL15: 0 | CM15: 0 | CN15: 0 | CO15: 0 | CP15: 0 | CQ15: 0 | CR15: 0 | CS15: 0 | CT15: 0 | CU15: 0 | CV15: 1 | CW15: 0 | CX15: 0 | CY15: 0 | CZ15: 0 | DA15: 0 | DB15: 0 | DC15: 0 | DD15: 0 | DE15: 0 | DF15: 0 | DG15: 0 | DH15: 0 | DI15: 0 | DJ15: 0 | DK15: 0 | DL15: 0 | DM15: 0 | DN15: 18 | DO15: - | DP15: 18 | DQ15: 18 | DR15: 0 | DS15: 1 | DT15: 0 | DU15: 0 | DV15: 0 | DW15: 1 | DX15: 0 | DY15: 0 | DZ15: 0 | EA15: 0 | EB15: 0 | EC15: 0 | ED15: 0 | EE15: 1 | EF15: 0 | EG15: 0 | EH15: 0 | EI15: 1 | EJ15: 1 | EK15: 0 | EL15: 2 | EM15: 0 | EN15: 0 | EO15: 1 | EP15: 2 | EQ15: 0 | ER15: 0 | ES15: 2 | ET15: 1 | EU15: 0 | EV15: 2 | EW15: 3 | EX15: 1 | EY15: 0 | EZ15: 4 | FA15: 1 | FB15: 0 | FC15: 3 | FD15: 5
A16: 1 | B16: =OFFSET(Input_Details!$Q$4,MATCH($A16, Input_Details!$J$5:$J$24, 0), 0) -> 2017-11-20 | C16: =INDEX(Input_Details!$H$5:$H$24, MATCH($A16, Input_Details!$J$5:$J$24, 0), 0) -> Meadow Street | D16: =INDEX(Input_Details!$I$5:$I$24, MATCH($A16, Input_Details!$J$5:$J$24, 0), 0) -> 51.49499,-0.09696 | E16: =INDEX(Input_Details!$K$5:$K$24, MATCH($A16, Input_Details!$J$5:$J$24, 0), 0) -> Northbound | F16: Mon | G16: 03:00:00 | H16: 1 | I16: 0 | J16: 0 | K16: 0 | L16: 0 | M16: 0 | N16: 0 | O16: 0 | P16: 0 | Q16: 0 | R16: 0 | S16: 0 | T16: 0 | U16: 1 | V16: 0 | W16: 0 | X16: 0 | Y16: 0 | Z16: 0 | AA16: 0 | AB16: 0 | AC16: 0 | AD16: 0 | AE16: 0 | AF16: 0 | AG16: 0 | AH16: 0 | AI16: 0 | AJ16: 0 | AK16: 0 | AL16: 0 | AM16: 0 | AN16: 11 | AO16: - | AP16: 11 | AQ16: 11 | AR16: =INDEX(Input_Details!$L$5:$L$24, MATCH($A16, Input_Details!$J$5:$J$24, 0), 0) -> Southbound | AS16: Mon | AT16: 03:00:00 | AU16: 0 | AV16: 0 | AW16: 0 | AX16: 0 | AY16: 0 | AZ16: 0 | BA16: 0 | BB16: 0 | BC16: 0 | BD16: 0 | BE16: 0 | BF16: 0 | BG16: 0 | BH16: 0 | BI16: 0 | BJ16: 0 | BK16: 0 | BL16: 0 | BM16: 0 | BN16: 0 | BO16: 0 | BP16: 0 | BQ16: 0 | BR16: 0 | BS16: 0 | BT16: 0 | BU16: 0 | BV16: 0 | BW16: 0 | BX16: 0 | BY16: 0 | BZ16: 0 | CA16: - | CB16: - | CC16: - | CD16: - | CF16: Mon | CG16: 03:00:00 | CH16: 1 | CI16: 0 | CJ16: 0 | CK16: 0 | CL16: 0 | CM16: 0 | CN16: 0 | CO16: 0 | CP16: 0 | CQ16: 0 | CR16: 0 | CS16: 0 | CT16: 0 | CU16: 1 | CV16: 0 | CW16: 0 | CX16: 0 | CY16: 0 | CZ16: 0 | DA16: 0 | DB16: 0 | DC16: 0 | DD16: 0 | DE16: 0 | DF16: 0 | DG16: 0 | DH16: 0 | DI16: 0 | DJ16: 0 | DK16: 0 | DL16: 0 | DM16: 0 | DN16: 11 | DO16: - | DP16: 11 | DQ16: 11 | DR16: 1 | DS16: 0 | DT16: 0 | DU16: 0 | DV16: 0 | DW16: 1 | DX16: 0 | DY16: 0 | DZ16: 0 | EA16: 0 | EB16: 0 | EC16: 0 | ED16: 1 | EE16: 0 | EF16: 0 | EG16: 0 | EH16: 0 | EI16: 1 | EJ16: 1 | EK16: 0 | EL16: 1 | EM16: 1 | EN16: 0 | EO16: 0 | EP16: 5 | EQ16: 0 | ER16: 0 | ES16: 1 | ET16: 0 | EU16: 0 | EV16: 2 | EW16: 2 | EX16: 1 | EY16: 0 | EZ16: 2 | FA16: 1 | FB16: 0 | FC16: 2 | FD16: 7
A17: 1 | B17: =OFFSET(Input_Details!$Q$4,MATCH($A17, Input_Details!$J$5:$J$24, 0), 0) -> 2017-11-20 | C17: =INDEX(Input_Details!$H$5:$H$24, MATCH($A17, Input_Details!$J$5:$J$24, 0), 0) -> Meadow Street | D17: =INDEX(Input_Details!$I$5:$I$24, MATCH($A17, Input_Details!$J$5:$J$24, 0), 0) -> 51.49499,-0.09696 | E17: =INDEX(Input_Details!$K$5:$K$24, MATCH($A17, Input_Details!$J$5:$J$24, 0), 0) -> Northbound | F17: Mon | G17: 03:15:00 | H17: 0 | I17: 0 | J17: 0 | K17: 0 | L17: 0 | M17: 0 | N17: 0 | O17: 0 | P17: 0 | Q17: 0 | R17: 0 | S17: 0 | T17: 0 | U17: 0 | V17: 0 | W17: 0 | X17: 0 | Y17: 0 | Z17: 0 | AA17: 0 | AB17: 0 | AC17: 0 | AD17: 0 | AE17: 0 | AF17: 0 | AG17: 0 | AH17: 0 | AI17: 0 | AJ17: 0 | AK17: 0 | AL17: 0 | AM17: 0 | AN17: - | AO17: - | AP17: - | AQ17: - | AR17: =INDEX(Input_Details!$L$5:$L$24, MATCH($A17, Input_Details!$J$5:$J$24, 0), 0) -> Southbound | AS17: Mon | AT17: 03:15:00 | AU17: 0 | AV17: 0 | AW17: 0 | AX17: 0 | AY17: 0 | AZ17: 0 | BA17: 0 | BB17: 0 | BC17: 0 | BD17: 0 | BE17: 0 | BF17: 0 | BG17: 0 | BH17: 0 | BI17: 0 | BJ17: 0 | BK17: 0 | BL17: 0 | BM17: 0 | BN17: 0 | BO17: 0 | BP17: 0 | BQ17: 0 | BR17: 0 | BS17: 0 | BT17: 0 | BU17: 0 | BV17: 0 | BW17: 0 | BX17: 0 | BY17: 0 | BZ17: 0 | CA17: - | CB17: - | CC17: - | CD17: - | CF17: Mon | CG17: 03:15:00 | CH17: 0 | CI17: 0 | CJ17: 0 | CK17: 0 | CL17: 0 | CM17: 0 | CN17: 0 | CO17: 0 | CP17: 0 | CQ17: 0 | CR17: 0 | CS17: 0 | CT17: 0 | CU17: 0 | CV17: 0 | CW17: 0 | CX17: 0 | CY17: 0 | CZ17: 0 | DA17: 0 | DB17: 0 | DC17: 0 | DD17: 0 | DE17: 0 | DF17: 0 | DG17: 0 | DH17: 0 | DI17: 0 | DJ17: 0 | DK17: 0 | DL17: 0 | DM17: 0 | DN17: - | DO17: - | DP17: - | DQ17: - | DR17: 0 | DS17: 0 | DT17: 0 | DU17: 0 | DV17: 0 | DW17: 0 | DX17: 0 | DY17: 0 | DZ17: 0 | EA17: 0 | EB17: 0 | EC17: 0 | ED17: 0 | EE17: 0 | EF17: 0 | EG17: 0 | EH17: 0 | EI17: 0 | EJ17: 0 | EK17: 0 | EL17: 3 | EM17: 2 | EN17: 2 | EO17: 3 | EP17: 3 | EQ17: 0 | ER17: 0 | ES17: 1 | ET17: 1 | EU17: 1 | EV17: 0 | EW17: 2 | EX17: 0 | EY17: 0 | EZ17: 4 | FA17: 3 | FB17: 3 | FC17: 3 | FD17: 5
A18: 1 | B18: =OFFSET(Input_Details!$Q$4,MATCH($A18, Input_Details!$J$5:$J$24, 0), 0) -> 2017-11-20 | C18: =INDEX(Input_Details!$H$5:$H$24, MATCH($A18, Input_Details!$J$5:$J$24, 0), 0) -> Meadow Street | D18: =INDEX(Input_Details!$I$5:$I$24, MATCH($A18, Input_Details!$J$5:$J$24, 0), 0) -> 51.49499,-0.09696 | E18: =INDEX(Input_Details!$K$5:$K$24, MATCH($A18, Input_Details!$J$5:$J$24, 0), 0) -> Northbound | F18: Mon | G18: 03:30:00 | H18: 0 | I18: 1 | J18: 0 | K18: 0 | L18: 0 | M18: 0 | N18: 0 | O18: 0 | P18: 0 | Q18: 0 | R18: 0 | S18: 0 | T18: 0 | U18: 0 | V18: 1 | W18: 0 | X18: 0 | Y18: 0 | Z18: 0 | AA18: 0 | AB18: 0 | AC18: 0 | AD18: 0 | AE18: 0 | AF18: 0 | AG18: 0 | AH18: 0 | AI18: 0 | AJ18: 0 | AK18: 0 | AL18: 0 | AM18: 0 | AN18: 15.5 | AO18: - | AP18: 15.5 | AQ18: 15.5 | AR18: =INDEX(Input_Details!$L$5:$L$24, MATCH($A18, Input_Details!$J$5:$J$24, 0), 0) -> Southbound | AS18: Mon | AT18: 03:30:00 | AU18: 0 | AV18: 0 | AW18: 0 | AX18: 0 | AY18: 0 | AZ18: 0 | BA18: 0 | BB18: 0 | BC18: 0 | BD18: 0 | BE18: 0 | BF18: 0 | BG18: 0 | BH18: 0 | BI18: 0 | BJ18: 0 | BK18: 0 | BL18: 0 | BM18: 0 | BN18: 0 | BO18: 0 | BP18: 0 | BQ18: 0 | BR18: 0 | BS18: 0 | BT18: 0 | BU18: 0 | BV18: 0 | BW18: 0 | BX18: 0 | BY18: 0 | BZ18: 0 | CA18: - | CB18: - | CC18: - | CD18: - | CF18: Mon | CG18: 03:30:00 | CH18: 0 | CI18: 1 | CJ18: 0 | CK18: 0 | CL18: 0 | CM18: 0 | CN18: 0 | CO18: 0 | CP18: 0 | CQ18: 0 | CR18: 0 | CS18: 0 | CT18: 0 | CU18: 0 | CV18: 1 | CW18: 0 | CX18: 0 | CY18: 0 | CZ18: 0 | DA18: 0 | DB18: 0 | DC18: 0 | DD18: 0 | DE18: 0 | DF18: 0 | DG18: 0 | DH18: 0 | DI18: 0 | DJ18: 0 | DK18: 0 | DL18: 0 | DM18: 0 | DN18: 15.5 | DO18: - | DP18: 15.5 | DQ18: 15.5 | DR18: 0 | DS18: 1 | DT18: 0 | DU18: 0 | DV18: 0 | DW18: 1 | DX18: 0 | DY18: 0 | DZ18: 0 | EA18: 0 | EB18: 0 | EC18: 0 | ED18: 0 | EE18: 1 | EF18: 0 | EG18: 0 | EH18: 0 | EI18: 1 | EJ18: 1 | EK18: 0 | EL18: 0 | EM18: 0 | EN18: 1 | EO18: 1 | EP18: 5 | EQ18: 0 | ER18: 1 | ES18: 2 | ET18: 0 | EU18: 0 | EV18: 4 | EW18: 4 | EX18: 1 | EY18: 1 | EZ18: 2 | FA18: 0 | FB18: 1 | FC18: 5 | FD18: 9
A19: 1 | B19: =OFFSET(Input_Details!$Q$4,MATCH($A19, Input_Details!$J$5:$J$24, 0), 0) -> 2017-11-20 | C19: =INDEX(Input_Details!$H$5:$H$24, MATCH($A19, Input_Details!$J$5:$J$24, 0), 0) -> Meadow Street | D19: =INDEX(Input_Details!$I$5:$I$24, MATCH($A19, Input_Details!$J$5:$J$24, 0), 0) -> 51.49499,-0.09696 | E19: =INDEX(Input_Details!$K$5:$K$24, MATCH($A19, Input_Details!$J$5:$J$24, 0), 0) -> Northbound | F19: Mon | G19: 03:45:00 | H19: 1 | I19: 0 | J19: 0 | K19: 0 | L19: 0 | M19: 0 | N19: 0 | O19: 0 | P19: 0 | Q19: 0 | R19: 0 | S19: 0 | T19: 0 | U19: 0 | V19: 0 | W19: 1 | X19: 0 | Y19: 0 | Z19: 0 | AA19: 0 | AB19: 0 | AC19: 0 | AD19: 0 | AE19: 0 | AF19: 0 | AG19: 0 | AH19: 0 | AI19: 0 | AJ19: 0 | AK19: 0 | AL19: 0 | AM19: 0 | AN19: 21.5 | AO19: - | AP19: 21.5 | AQ19: 21.5 | AR19: =INDEX(Input_Details!$L$5:$L$24, MATCH($A19, Input_Details!$J$5:$J$24, 0), 0) -> Southbound | AS19: Mon | AT19: 03:45:00 | AU19: 0 | AV19: 1 | AW19: 0 | AX19: 0 | AY19: 0 | AZ19: 0 | BA19: 0 | BB19: 0 | BC19: 0 | BD19: 0 | BE19: 0 | BF19: 0 | BG19: 0 | BH19: 0 | BI19: 1 | BJ19: 0 | BK19: 0 | BL19: 0 | BM19: 0 | BN19: 0 | BO19: 0 | BP19: 0 | BQ19: 0 | BR19: 0 | BS19: 0 | BT19: 0 | BU19: 0 | BV19: 0 | BW19: 0 | BX19: 0 | BY19: 0 | BZ19: 0 | CA19: 17.8 | CB19: - | CC19: 17.8 | CD19: 17.8 | CF19: Mon | CG19: 03:45:00 | CH19: 1 | CI19: 1 | CJ19: 0 | CK19: 0 | CL19: 0 | CM19: 0 | CN19: 0 | CO19: 0 | CP19: 0 | CQ19: 0 | CR19: 0 | CS19: 0 | CT19: 0 | CU19: 0 | CV19: 1 | CW19: 1 | CX19: 0 | CY19: 0 | CZ19: 0 | DA19: 0 | DB19: 0 | DC19: 0 | DD19: 0 | DE19: 0 | DF19: 0 | DG19: 0 | DH19: 0 | DI19: 0 | DJ19: 0 | DK19: 0 | DL19: 0 | DM19: 0 | DN19: 19.65 | DO19: - | DP19: 17.8 | DQ19: 21.5 | DR19: 1 | DS19: 0 | DT19: 0 | DU19: 0 | DV19: 0 | DW19: 1 | DX19: 0 | DY19: 1 | DZ19: 0 | EA19: 0 | EB19: 0 | EC19: 1 | ED19: 1 | EE19: 1 | EF19: 0 | EG19: 0 | EH19: 0 | EI19: 2 | EJ19: 1 | EK19: 1 | EL19: 0 | EM19: 0 | EN19: 0 | EO19: 1 | EP19: 5 | EQ19: 1 | ER19: 2 | ES19: 3 | ET19: 2 | EU19: 0 | EV19: 1 | EW19: 6 | EX19: 2 | EY19: 3 | EZ19: 3 | FA19: 2 | FB19: 0 | FC19: 2 | FD19: 11
A20: 1 | B20: =OFFSET(Input_Details!$Q$4,MATCH($A20, Input_Details!$J$5:$J$24, 0), 0) -> 2017-11-20 | C20: =INDEX(Input_Details!$H$5:$H$24, MATCH($A20, Input_Details!$J$5:$J$24, 0), 0) -> Meadow Street | D20: =INDEX(Input_Details!$I$5:$I$24, MATCH($A20, Input_Details!$J$5:$J$24, 0), 0) -> 51.49499,-0.09696 | E20: =INDEX(Input_Details!$K$5:$K$24, MATCH($A20, Input_Details!$J$5:$J$24, 0), 0) -> Northbound | F20: Mon | G20: 04:00:00 | H20: 0 | I20: 0 | J20: 0 | K20: 0 | L20: 0 | M20: 0 | N20: 0 | O20: 0 | P20: 0 | Q20: 0 | R20: 0 | S20: 0 | T20: 0 | U20: 0 | V20: 0 | W20: 0 | X20: 0 | Y20: 0 | Z20: 0 | AA20: 0 | AB20: 0 | AC20: 0 | AD20: 0 | AE20: 0 | AF20: 0 | AG20: 0 | AH20: 0 | AI20: 0 | AJ20: 0 | AK20: 0 | AL20: 0 | AM20: 0 | AN20: - | AO20: - | AP20: - | AQ20: - | AR20: =INDEX(Input_Details!$L$5:$L$24, MATCH($A20, Input_Details!$J$5:$J$24, 0), 0) -> Southbound | AS20: Mon | AT20: 04:00:00 | AU20: 0 | AV20: 0 | AW20: 0 | AX20: 0 | AY20: 0 | AZ20: 0 | BA20: 0 | BB20: 0 | BC20: 0 | BD20: 0 | BE20: 0 | BF20: 0 | BG20: 0 | BH20: 0 | BI20: 0 | BJ20: 0 | BK20: 0 | BL20: 0 | BM20: 0 | BN20: 0 | BO20: 0 | BP20: 0 | BQ20: 0 | BR20: 0 | BS20: 0 | BT20: 0 | BU20: 0 | BV20: 0 | BW20: 0 | BX20: 0 | BY20: 0 | BZ20: 0 | CA20: - | CB20: - | CC20: - | CD20: - | CF20: Mon | CG20: 04:00:00 | CH20: 0 | CI20: 0 | CJ20: 0 | CK20: 0 | CL20: 0 | CM20: 0 | CN20: 0 | CO20: 0 | CP20: 0 | CQ20: 0 | CR20: 0 | CS20: 0 | CT20: 0 | CU20: 0 | CV20: 0 | CW20: 0 | CX20: 0 | CY20: 0 | CZ20: 0 | DA20: 0 | DB20: 0 | DC20: 0 | DD20: 0 | DE20: 0 | DF20: 0 | DG20: 0 | DH20: 0 | DI20: 0 | DJ20: 0 | DK20: 0 | DL20: 0 | DM20: 0 | DN20: - | DO20: - | DP20: - | DQ20: - | DR20: 0 | DS20: 0 | DT20: 0 | DU20: 0 | DV20: 0 | DW20: 0 | DX20: 0 | DY20: 0 | DZ20: 0 | EA20: 0 | EB20: 0 | EC20: 0 | ED20: 0 | EE20: 0 | EF20: 0 | EG20: 0 | EH20: 0 | EI20: 0 | EJ20: 0 | EK20: 0 | EL20: 1 | EM20: 2 | EN20: 1 | EO20: 1 | EP20: 2 | EQ20: 0 | ER20: 1 | ES20: 1 | ET20: 1 | EU20: 2 | EV20: 1 | EW20: 2 | EX20: 0 | EY20: 1 | EZ20: 2 | FA20: 3 | FB20: 3 | FC20: 2 | FD20: 4
A21: 1 | B21: =OFFSET(Input_Details!$Q$4,MATCH($A21, Input_Details!$J$5:$J$24, 0), 0) -> 2017-11-20 | C21: =INDEX(Input_Details!$H$5:$H$24, MATCH($A21, Input_Details!$J$5:$J$24, 0), 0) -> Meadow Street | D21: =INDEX(Input_Details!$I$5:$I$24, MATCH($A21, Input_Details!$J$5:$J$24, 0), 0) -> 51.49499,-0.09696 | E21: =INDEX(Input_Details!$K$5:$K$24, MATCH($A21, Input_Details!$J$5:$J$24, 0), 0) -> Northbound | F21: Mon | G21: 04:15:00 | H21: 0 | I21: 0 | J21: 0 | K21: 0 | L21: 0 | M21: 0 | N21: 0 | O21: 0 | P21: 0 | Q21: 0 | R21: 0 | S21: 0 | T21: 0 | U21: 0 | V21: 0 | W21: 0 | X21: 0 | Y21: 0 | Z21: 0 | AA21: 0 | AB21: 0 | AC21: 0 | AD21: 0 | AE21: 0 | AF21: 0 | AG21: 0 | AH21: 0 | AI21: 0 | AJ21: 0 | AK21: 0 | AL21: 0 | AM21: 0 | AN21: - | AO21: - | AP21: - | AQ21: - | AR21: =INDEX(Input_Details!$L$5:$L$24, MATCH($A21, Input_Details!$J$5:$J$24, 0), 0) -> Southbound | AS21: Mon | AT21: 04:15:00 | AU21: 0 | AV21: 0 | AW21: 0 | AX21: 0 | AY21: 0 | AZ21: 0 | BA21: 0 | BB21: 0 | BC21: 0 | BD21: 0 | BE21: 0 | BF21: 0 | BG21: 0 | BH21: 0 | BI21: 0 | BJ21: 0 | BK21: 0 | BL21: 0 | BM21: 0 | BN21: 0 | BO21: 0 | BP21: 0 | BQ21: 0 | BR21: 0 | BS21: 0 | BT21: 0 | BU21: 0 | BV21: 0 | BW21: 0 | BX21: 0 | BY21: 0 | BZ21: 0 | CA21: - | CB21: - | CC21: - | CD21: - | CF21: Mon | CG21: 04:15:00 | CH21: 0 | CI21: 0 | CJ21: 0 | CK21: 0 | CL21: 0 | CM21: 0 | CN21: 0 | CO21: 0 | CP21: 0 | CQ21: 0 | CR21: 0 | CS21: 0 | CT21: 0 | CU21: 0 | CV21: 0 | CW21: 0 | CX21: 0 | CY21: 0 | CZ21: 0 | DA21: 0 | DB21: 0 | DC21: 0 | DD21: 0 | DE21: 0 | DF21: 0 | DG21: 0 | DH21: 0 | DI21: 0 | DJ21: 0 | DK21: 0 | DL21: 0 | DM21: 0 | DN21: - | DO21: - | DP21: - | DQ21: - | DR21: 0 | DS21: 0 | DT21: 0 | DU21: 0 | DV21: 0 | DW21: 0 | DX21: 0 | DY21: 0 | DZ21: 0 | EA21: 0 | EB21: 0 | EC21: 0 | ED21: 0 | EE21: 0 | EF21: 0 | EG21: 0 | EH21: 0 | EI21: 0 | EJ21: 0 | EK21: 0 | EL21: 0 | EM21: 1 | EN21: 1 | EO21: 3 | EP21: 2 | EQ21: 0 | ER21: 0 | ES21: 0 | ET21: 1 | EU21: 1 | EV21: 1 | EW21: 0 | EX21: 0 | EY21: 0 | EZ21: 0 | FA21: 2 | FB21: 2 | FC21: 4 | FD21: 2
A22: 1 | B22: =OFFSET(Input_Details!$Q$4,MATCH($A22, Input_Details!$J$5:$J$24, 0), 0) -> 2017-11-20 | C22: =INDEX(Input_Details!$H$5:$H$24, MATCH($A22, Input_Details!$J$5:$J$24, 0), 0) -> Meadow Street | D22: =INDEX(Input_Details!$I$5:$I$24, MATCH($A22, Input_Details!$J$5:$J$24, 0), 0) -> 51.49499,-0.09696 | E22: =INDEX(Input_Details!$K$5:$K$24, MATCH($A22, Input_Details!$J$5:$J$24, 0), 0) -> Northbound | F22: Mon | G22: 04:30:00 | H22: 0 | I22: 0 | J22: 0 | K22: 0 | L22: 0 | M22: 0 | N22: 0 | O22: 0 | P22: 0 | Q22: 0 | R22: 0 | S22: 0 | T22: 0 | U22: 0 | V22: 0 | W22: 0 | X22: 0 | Y22: 0 | Z22: 0 | AA22: 0 | AB22: 0 | AC22: 0 | AD22: 0 | AE22: 0 | AF22: 0 | AG22: 0 | AH22: 0 | AI22: 0 | AJ22: 0 | AK22: 0 | AL22: 0 | AM22: 0 | AN22: - | AO22: - | AP22: - | AQ22: - | AR22: =INDEX(Input_Details!$L$5:$L$24, MATCH($A22, Input_Details!$J$5:$J$24, 0), 0) -> Southbound | AS22: Mon | AT22: 04:30:00 | AU22: 0 | AV22: 0 | AW22: 0 | AX22: 0 | AY22: 0 | AZ22: 0 | BA22: 0 | BB22: 0 | BC22: 0 | BD22: 0 | BE22: 0 | BF22: 0 | BG22: 0 | BH22: 0 | BI22: 0 | BJ22: 0 | BK22: 0 | BL22: 0 | BM22: 0 | BN22: 0 | BO22: 0 | BP22: 0 | BQ22: 0 | BR22: 0 | BS22: 0 | BT22: 0 | BU22: 0 | BV22: 0 | BW22: 0 | BX22: 0 | BY22: 0 | BZ22: 0 | CA22: - | CB22: - | CC22: - | CD22: - | CF22: Mon | CG22: 04:30:00 | CH22: 0 | CI22: 0 | CJ22: 0 | CK22: 0 | CL22: 0 | CM22: 0 | CN22: 0 | CO22: 0 | CP22: 0 | CQ22: 0 | CR22: 0 | CS22: 0 | CT22: 0 | CU22: 0 | CV22: 0 | CW22: 0 | CX22: 0 | CY22: 0 | CZ22: 0 | DA22: 0 | DB22: 0 | DC22: 0 | DD22: 0 | DE22: 0 | DF22: 0 | DG22: 0 | DH22: 0 | DI22: 0 | DJ22: 0 | DK22: 0 | DL22: 0 | DM22: 0 | DN22: - | DO22: - | DP22: - | DQ22: - | DR22: 0 | DS22: 0 | DT22: 0 | DU22: 0 | DV22: 0 | DW22: 0 | DX22: 0 | DY22: 0 | DZ22: 0 | EA22: 0 | EB22: 0 | EC22: 0 | ED22: 0 | EE22: 0 | EF22: 0 | EG22: 0 | EH22: 0 | EI22: 0 | EJ22: 0 | EK22: 0 | EL22: 3 | EM22: 0 | EN22: 0 | EO22: 1 | EP22: 3 | EQ22: 0 | ER22: 0 | ES22: 2 | ET22: 0 | EU22: 0 | EV22: 1 | EW22: 2 | EX22: 0 | EY22: 0 | EZ22: 5 | FA22: 0 | FB22: 0 | FC22: 2 | FD22: 5
A23: 1 | B23: =OFFSET(Input_Details!$Q$4,MATCH($A23, Input_Details!$J$5:$J$24, 0), 0) -> 2017-11-20 | C23: =INDEX(Input_Details!$H$5:$H$24, MATCH($A23, Input_Details!$J$5:$J$24, 0), 0) -> Meadow Street | D23: =INDEX(Input_Details!$I$5:$I$24, MATCH($A23, Input_Details!$J$5:$J$24, 0), 0) -> 51.49499,-0.09696 | E23: =INDEX(Input_Details!$K$5:$K$24, MATCH($A23, Input_Details!$J$5:$J$24, 0), 0) -> Northbound | F23: Mon | G23: 04:45:00 | H23: 0 | I23: 0 | J23: 0 | K23: 0 | L23: 0 | M23: 0 | N23: 0 | O23: 0 | P23: 0 | Q23: 0 | R23: 0 | S23: 0 | T23: 0 | U23: 0 | V23: 0 | W23: 0 | X23: 0 | Y23: 0 | Z23: 0 | AA23: 0 | AB23: 0 | AC23: 0 | AD23: 0 | AE23: 0 | AF23: 0 | AG23: 0 | AH23: 0 | AI23: 0 | AJ23: 0 | AK23: 0 | AL23: 0 | AM23: 0 | AN23: - | AO23: - | AP23: - | AQ23: - | AR23: =INDEX(Input_Details!$L$5:$L$24, MATCH($A23, Input_Details!$J$5:$J$24, 0), 0) -> Southbound | AS23: Mon | AT23: 04:45:00 | AU23: 0 | AV23: 0 | AW23: 0 | AX23: 0 | AY23: 0 | AZ23: 0 | BA23: 0 | BB23: 0 | BC23: 0 | BD23: 0 | BE23: 0 | BF23: 0 | BG23: 0 | BH23: 0 | BI23: 0 | BJ23: 0 | BK23: 0 | BL23: 0 | BM23: 0 | BN23: 0 | BO23: 0 | BP23: 0 | BQ23: 0 | BR23: 0 | BS23: 0 | BT23: 0 | BU23: 0 | BV23: 0 | BW23: 0 | BX23: 0 | BY23: 0 | BZ23: 0 | CA23: - | CB23: - | CC23: - | CD23: - | CF23: Mon | CG23: 04:45:00 | CH23: 0 | CI23: 0 | CJ23: 0 | CK23: 0 | CL23: 0 | CM23: 0 | CN23: 0 | CO23: 0 | CP23: 0 | CQ23: 0 | CR23: 0 | CS23: 0 | CT23: 0 | CU23: 0 | CV23: 0 | CW23: 0 | CX23: 0 | CY23: 0 | CZ23: 0 | DA23: 0 | DB23: 0 | DC23: 0 | DD23: 0 | DE23: 0 | DF23: 0 | DG23: 0 | DH23: 0 | DI23: 0 | DJ23: 0 | DK23: 0 | DL23: 0 | DM23: 0 | DN23: - | DO23: - | DP23: - | DQ23: - | DR23: 0 | DS23: 0 | DT23: 0 | DU23: 0 | DV23: 0 | DW23: 0 | DX23: 0 | DY23: 0 | DZ23: 0 | EA23: 0 | EB23: 0 | EC23: 0 | ED23: 0 | EE23: 0 | EF23: 0 | EG23: 0 | EH23: 0 | EI23: 0 | EJ23: 0 | EK23: 0 | EL23: 2 | EM23: 0 | EN23: 0 | EO23: 0 | EP23: 4 | EQ23: 0 | ER23: 0 | ES23: 0 | ET23: 0 | EU23: 0 | EV23: 1 | EW23: 1 | EX23: 0 | EY23: 0 | EZ23: 2 | FA23: 0 | FB23: 0 | FC23: 1 | FD23: 5
A24: 1 | B24: =OFFSET(Input_Details!$Q$4,MATCH($A24, Input_Details!$J$5:$J$24, 0), 0) -> 2017-11-20 | C24: =INDEX(Input_Details!$H$5:$H$24, MATCH($A24, Input_Details!$J$5:$J$24, 0), 0) -> Meadow Street | D24: =INDEX(Input_Details!$I$5:$I$24, MATCH($A24, Input_Details!$J$5:$J$24, 0), 0) -> 51.49499,-0.09696 | E24: =INDEX(Input_Details!$K$5:$K$24, MATCH($A24, Input_Details!$J$5:$J$24, 0), 0) -> Northbound | F24: Mon | G24: 05:00:00 | H24: 0 | I24: 2 | J24: 0 | K24: 0 | L24: 0 | M24: 0 | N24: 0 | O24: 0 | P24: 0 | Q24: 0 | R24: 0 | S24: 0 | T24: 0 | U24: 0 | V24: 1 | W24: 1 | X24: 0 | Y24: 0 | Z24: 0 | AA24: 0 | AB24: 0 | AC24: 0 | AD24: 0 | AE24: 0 | AF24: 0 | AG24: 0 | AH24: 0 | AI24: 0 | AJ24: 0 | AK24: 0 | AL24: 0 | AM24: 0 | AN24: 20.2 | AO24: - | AP24: 18.5 | AQ24: 21.8 | AR24: =INDEX(Input_Details!$L$5:$L$24, MATCH($A24, Input_Details!$J$5:$J$24, 0), 0) -> Southbound | AS24: Mon | AT24: 05:00:00 | AU24: 0 | AV24: 0 | AW24: 0 | AX24: 0 | AY24: 0 | AZ24: 0 | BA24: 0 | BB24: 0 | BC24: 0 | BD24: 0 | BE24: 0 | BF24: 0 | BG24: 0 | BH24: 0 | BI24: 0 | BJ24: 0 | BK24: 0 | BL24: 0 | BM24: 0 | BN24: 0 | BO24: 0 | BP24: 0 | BQ24: 0 | BR24: 0 | BS24: 0 | BT24: 0 | BU24: 0 | BV24: 0 | BW24: 0 | BX24: 0 | BY24: 0 | BZ24: 0 | CA24: - | CB24: - | CC24: - | CD24: - | CF24: Mon | CG24: 05:00:00 | CH24: 0 | CI24: 2 | CJ24: 0 | CK24: 0 | CL24: 0 | CM24: 0 | CN24: 0 | CO24: 0 | CP24: 0 | CQ24: 0 | CR24: 0 | CS24: 0 | CT24: 0 | CU24: 0 | CV24: 1 | CW24: 1 | CX24: 0 | CY24: 0 | CZ24: 0 | DA24: 0 | DB24: 0 | DC24: 0 | DD24: 0 | DE24: 0 | DF24: 0 | DG24: 0 | DH24: 0 | DI24: 0 | DJ24: 0 | DK24: 0 | DL24: 0 | DM24: 0 | DN24: 20.2 | DO24: - | DP24: 18.5 | DQ24: 21.8 | DR24: 0 | DS24: 2 | DT24: 0 | DU24: 0 | DV24: 0 | DW24: 2 | DX24: 0 | DY24: 0 | DZ24: 0 | EA24: 0 | EB24: 0 | EC24: 0 | ED24: 0 | EE24: 2 | EF24: 0 | EG24: 0 | EH24: 0 | EI24: 2 | EJ24: 2 | EK24: 3 | EL24: 1 | EM24: 1 | EN24: 3 | EO24: 2 | EP24: 2 | EQ24: 0 | ER24: 0 | ES24: 1 | ET24: 0 | EU24: 0 | EV24: 1 | EW24: 0 | EX24: 2 | EY24: 3 | EZ24: 2 | FA24: 1 | FB24: 3 | FC24: 3 | FD24: 2
A25: 1 | B25: =OFFSET(Input_Details!$Q$4,MATCH($A25, Input_Details!$J$5:$J$24, 0), 0) -> 2017-11-20 | C25: =INDEX(Input_Details!$H$5:$H$24, MATCH($A25, Input_Details!$J$5:$J$24, 0), 0) -> Meadow Street | D25: =INDEX(Input_Details!$I$5:$I$24, MATCH($A25, Input_Details!$J$5:$J$24, 0), 0) -> 51.49499,-0.09696 | E25: =INDEX(Input_Details!$K$5:$K$24, MATCH($A25, Input_Details!$J$5:$J$24, 0), 0) -> Northbound | F25: Mon | G25: 05:15:00 | H25: 0 | I25: 0 | J25: 0 | K25: 1 | L25: 0 | M25: 0 | N25: 0 | O25: 0 | P25: 0 | Q25: 0 | R25: 0 | S25: 0 | T25: 0 | U25: 1 | V25: 0 | W25: 0 | X25: 0 | Y25: 0 | Z25: 0 | AA25: 0 | AB25: 0 | AC25: 0 | AD25: 0 | AE25: 0 | AF25: 0 | AG25: 0 | AH25: 0 | AI25: 0 | AJ25: 0 | AK25: 0 | AL25: 0 | AM25: 0 | AN25: 12.4 | AO25: - | AP25: 12.4 | AQ25: 12.4 | AR25: =INDEX(Input_Details!$L$5:$L$24, MATCH($A25, Input_Details!$J$5:$J$24, 0), 0) -> Southbound | AS25: Mon | AT25: 05:15:00 | AU25: 0 | AV25: 0 | AW25: 0 | AX25: 1 | AY25: 0 | AZ25: 0 | BA25: 0 | BB25: 0 | BC25: 0 | BD25: 0 | BE25: 0 | BF25: 0 | BG25: 0 | BH25: 1 | BI25: 0 | BJ25: 0 | BK25: 0 | BL25: 0 | BM25: 0 | BN25: 0 | BO25: 0 | BP25: 0 | BQ25: 0 | BR25: 0 | BS25: 0 | BT25: 0 | BU25: 0 | BV25: 0 | BW25: 0 | BX25: 0 | BY25: 0 | BZ25: 0 | CA25: 10.2 | CB25: - | CC25: 10.2 | CD25: 10.2 | CF25: Mon | CG25: 05:15:00 | CH25: 0 | CI25: 0 | CJ25: 0 | CK25: 2 | CL25: 0 | CM25: 0 | CN25: 0 | CO25: 0 | CP25: 0 | CQ25: 0 | CR25: 0 | CS25: 0 | CT25: 0 | CU25: 2 | CV25: 0 | CW25: 0 | CX25: 0 | CY25: 0 | CZ25: 0 | DA25: 0 | DB25: 0 | DC25: 0 | DD25: 0 | DE25: 0 | DF25: 0 | DG25: 0 | DH25: 0 | DI25: 0 | DJ25: 0 | DK25: 0 | DL25: 0 | DM25: 0 | DN25: 11.3 | DO25: - | DP25: 10.2 | DQ25: 12.4 | DR25: 0 | DS25: 0 | DT25: 1 | DU25: 0 | DV25: 0 | DW25: 1 | DX25: 0 | DY25: 0 | DZ25: 1 | EA25: 0 | EB25: 0 | EC25: 1 | ED25: 0 | EE25: 0 | EF25: 2 | EG25: 0 | EH25: 0 | EI25: 2 | EJ25: 1 | EK25: 2 | EL25: 2 | EM25: 1 | EN25: 4 | EO25: 3 | EP25: 2 | EQ25: 1 | ER25: 0 | ES25: 1 | ET25: 2 | EU25: 1 | EV25: 3 | EW25: 1 | EX25: 2 | EY25: 2 | EZ25: 3 | FA25: 3 | FB25: 5 | FC25: 6 | FD25: 3
A26: 1 | B26: =OFFSET(Input_Details!$Q$4,MATCH($A26, Input_Details!$J$5:$J$24, 0), 0) -> 2017-11-20 | C26: =INDEX(Input_Details!$H$5:$H$24, MATCH($A26, Input_Details!$J$5:$J$24, 0), 0) -> Meadow Street | D26: =INDEX(Input_Details!$I$5:$I$24, MATCH($A26, Input_Details!$J$5:$J$24, 0), 0) -> 51.49499,-0.09696 | E26: =INDEX(Input_Details!$K$5:$K$24, MATCH($A26, Input_Details!$J$5:$J$24, 0), 0) -> Northbound | F26: Mon | G26: 05:30:00 | H26: 1 | I26: 1 | J26: 0 | K26: 0 | L26: 0 | M26: 0 | N26: 0 | O26: 0 | P26: 0 | Q26: 0 | R26: 0 | S26: 0 | T26: 1 | U26: 1 | V26: 0 | W26: 0 | X26: 0 | Y26: 0 | Z26: 0 | AA26: 0 | AB26: 0 | AC26: 0 | AD26: 0 | AE26: 0 | AF26: 0 | AG26: 0 | AH26: 0 | AI26: 0 | AJ26: 0 | AK26: 0 | AL26: 0 | AM26: 0 | AN26: 10.6 | AO26: - | AP26: 9.7 | AQ26: 11.5 | AR26: =INDEX(Input_Details!$L$5:$L$24, MATCH($A26, Input_Details!$J$5:$J$24, 0), 0) -> Southbound | AS26: Mon | AT26: 05:30:00 | AU26: 0 | AV26: 0 | AW26: 0 | AX26: 0 | AY26: 0 | AZ26: 0 | BA26: 0 | BB26: 0 | BC26: 0 | BD26: 0 | BE26: 0 | BF26: 0 | BG26: 0 | BH26: 0 | BI26: 0 | BJ26: 0 | BK26: 0 | BL26: 0 | BM26: 0 | BN26: 0 | BO26: 0 | BP26: 0 | BQ26: 0 | BR26: 0 | BS26: 0 | BT26: 0 | BU26: 0 | BV26: 0 | BW26: 0 | BX26: 0 | BY26: 0 | BZ26: 0 | CA26: - | CB26: - | CC26: - | CD26: - | CF26: Mon | CG26: 05:30:00 | CH26: 1 | CI26: 1 | CJ26: 0 | CK26: 0 | CL26: 0 | CM26: 0 | CN26: 0 | CO26: 0 | CP26: 0 | CQ26: 0 | CR26: 0 | CS26: 0 | CT26: 1 | CU26: 1 | CV26: 0 | CW26: 0 | CX26: 0 | CY26: 0 | CZ26: 0 | DA26: 0 | DB26: 0 | DC26: 0 | DD26: 0 | DE26: 0 | DF26: 0 | DG26: 0 | DH26: 0 | DI26: 0 | DJ26: 0 | DK26: 0 | DL26: 0 | DM26: 0 | DN26: 10.6 | DO26: - | DP26: 9.7 | DQ26: 11.5 | DR26: 1 | DS26: 1 | DT26: 0 | DU26: 0 | DV26: 0 | DW26: 2 | DX26: 0 | DY26: 0 | DZ26: 0 | EA26: 0 | EB26: 0 | EC26: 0 | ED26: 1 | EE26: 1 | EF26: 0 | EG26: 0 | EH26: 0 | EI26: 2 | EJ26: 2 | EK26: 2 | EL26: 3 | EM26: 4 | EN26: 1 | EO26: 1 | EP26: 3 | EQ26: 0 | ER26: 0 | ES26: 0 | ET26: 0 | EU26: 0 | EV26: 2 | EW26: 1 | EX26: 2 | EY26: 2 | EZ26: 3 | FA26: 4 | FB26: 1 | FC26: 3 | FD26: 4
A27: 1 | B27: =OFFSET(Input_Details!$Q$4,MATCH($A27, Input_Details!$J$5:$J$24, 0), 0) -> 2017-11-20 | C27: =INDEX(Input_Details!$H$5:$H$24, MATCH($A27, Input_Details!$J$5:$J$24, 0), 0) -> Meadow Street | D27: =INDEX(Input_Details!$I$5:$I$24, MATCH($A27, Input_Details!$J$5:$J$24, 0), 0) -> 51.49499,-0.09696 | E27: =INDEX(Input_Details!$K$5:$K$24, MATCH($A27, Input_Details!$J$5:$J$24, 0), 0) -> Northbound | F27: Mon | G27: 05:45:00 | H27: 3 | I27: 2 | J27: 0 | K27: 2 | L27: 0 | M27: 0 | N27: 0 | O27: 0 | P27: 0 | Q27: 0 | R27: 0 | S27: 0 | T27: 0 | U27: 4 | V27: 2 | W27: 1 | X27: 0 | Y27: 0 | Z27: 0 | AA27: 0 | AB27: 0 | AC27: 0 | AD27: 0 | AE27: 0 | AF27: 0 | AG27: 0 | AH27: 0 | AI27: 0 | AJ27: 0 | AK27: 0 | AL27: 0 | AM27: 0 | AN27: 16.1 | AO27: - | AP27: 11.8 | AQ27: 21.7 | AR27: =INDEX(Input_Details!$L$5:$L$24, MATCH($A27, Input_Details!$J$5:$J$24, 0), 0) -> Southbound | AS27: Mon | AT27: 05:45:00 | AU27: 0 | AV27: 0 | AW27: 0 | AX27: 0 | AY27: 0 | AZ27: 0 | BA27: 0 | BB27: 0 | BC27: 0 | BD27: 0 | BE27: 0 | BF27: 0 | BG27: 0 | BH27: 0 | BI27: 0 | BJ27: 0 | BK27: 0 | BL27: 0 | BM27: 0 | BN27: 0 | BO27: 0 | BP27: 0 | BQ27: 0 | BR27: 0 | BS27: 0 | BT27: 0 | BU27: 0 | BV27: 0 | BW27: 0 | BX27: 0 | BY27: 0 | BZ27: 0 | CA27: - | CB27: - | CC27: - | CD27: - | CF27: Mon | CG27: 05:45:00 | CH27: 3 | CI27: 2 | CJ27: 0 | CK27: 2 | CL27: 0 | CM27: 0 | CN27: 0 | CO27: 0 | CP27: 0 | CQ27: 0 | CR27: 0 | CS27: 0 | CT27: 0 | CU27: 4 | CV27: 2 | CW27: 1 | CX27: 0 | CY27: 0 | CZ27: 0 | DA27: 0 | DB27: 0 | DC27: 0 | DD27: 0 | DE27: 0 | DF27: 0 | DG27: 0 | DH27: 0 | DI27: 0 | DJ27: 0 | DK27: 0 | DL27: 0 | DM27: 0 | DN27: 16.1 | DO27: - | DP27: 11.8 | DQ27: 21.7 | DR27: 3 | DS27: 2 | DT27: 2 | DU27: 0 | DV27: 0 | DW27: 7 | DX27: 0 | DY27: 0 | DZ27: 0 | EA27: 0 | EB27: 0 | EC27: 0 | ED27: 3 | EE27: 2 | EF27: 2 | EG27: 0 | EH27: 0 | EI27: 7 | EJ27: 7 | EK27: 2 | EL27: 1 | EM27: 3 | EN27: 2 | EO27: 3 | EP27: 1 | EQ27: 0 | ER27: 2 | ES27: 1 | ET27: 2 | EU27: 1 | EV27: 0 | EW27: 0 | EX27: 7 | EY27: 4 | EZ27: 2 | FA27: 5 | FB27: 3 | FC27: 3 | FD27: 1
A28: 1 | B28: =OFFSET(Input_Details!$Q$4,MATCH($A28, Input_Details!$J$5:$J$24, 0), 0) -> 2017-11-20 | C28: =INDEX(Input_Details!$H$5:$H$24, MATCH($A28, Input_Details!$J$5:$J$24, 0), 0) -> Meadow Street | D28: =INDEX(Input_Details!$I$5:$I$24, MATCH($A28, Input_Details!$J$5:$J$24, 0), 0) -> 51.49499,-0.09696 | E28: =INDEX(Input_Details!$K$5:$K$24, MATCH($A28, Input_Details!$J$5:$J$24, 0), 0) -> Northbound | F28: Mon | G28: 06:00:00 | H28: 2 | I28: 1 | J28: 0 | K28: 0 | L28: 0 | M28: 0 | N28: 0 | O28: 0 | P28: 0 | Q28: 0 | R28: 0 | S28: 0 | T28: 0 | U28: 3 | V28: 0 | W28: 0 | X28: 0 | Y28: 0 | Z28: 0 | AA28: 0 | AB28: 0 | AC28: 0 | AD28: 0 | AE28: 0 | AF28: 0 | AG28: 0 | AH28: 0 | AI28: 0 | AJ28: 0 | AK28: 0 | AL28: 0 | AM28: 0 | AN28: 12.6 | AO28: - | AP28: 11 | AQ28: 14.2 | AR28: =INDEX(Input_Details!$L$5:$L$24, MATCH($A28, Input_Details!$J$5:$J$24, 0), 0) -> Southbound | AS28: Mon | AT28: 06:00:00 | AU28: 0 | AV28: 1 | AW28: 0 | AX28: 0 | AY28: 0 | AZ28: 0 | BA28: 0 | BB28: 0 | BC28: 0 | BD28: 0 | BE28: 0 | BF28: 0 | BG28: 0 | BH28: 0 | BI28: 0 | BJ28: 1 | BK28: 0 | BL28: 0 | BM28: 0 | BN28: 0 | BO28: 0 | BP28: 0 | BQ28: 0 | BR28: 0 | BS28: 0 | BT28: 0 | BU28: 0 | BV28: 0 | BW28: 0 | BX28: 0 | BY28: 0 | BZ28: 0 | CA28: 21.4 | CB28: - | CC28: 21.4 | CD28: 21.4 | CF28: Mon | CG28: 06:00:00 | CH28: 2 | CI28: 2 | CJ28: 0 | CK28: 0 | CL28: 0 | CM28: 0 | CN28: 0 | CO28: 0 | CP28: 0 | CQ28: 0 | CR28: 0 | CS28: 0 | CT28: 0 | CU28: 3 | CV28: 0 | CW28: 1 | CX28: 0 | CY28: 0 | CZ28: 0 | DA28: 0 | DB28: 0 | DC28: 0 | DD28: 0 | DE28: 0 | DF28: 0 | DG28: 0 | DH28: 0 | DI28: 0 | DJ28: 0 | DK28: 0 | DL28: 0 | DM28: 0 | DN28: 14.8 | DO28: - | DP28: 11 | DQ28: 21.4 | DR28: 2 | DS28: 1 | DT28: 0 | DU28: 0 | DV28: 0 | DW28: 3 | DX28: 0 | DY28: 1 | DZ28: 0 | EA28: 0 | EB28: 0 | EC28: 1 | ED28: 2 | EE28: 2 | EF28: 0 | EG28: 0 | EH28: 0 | EI28: 4 | EJ28: 3 | EK28: 2 | EL28: 4 | EM28: 1 | EN28: 2 | EO28: 2 | EP28: 0 | EQ28: 1 | ER28: 1 | ES28: 1 | ET28: 0 | EU28: 2 | EV28: 1 | EW28: 2 | EX28: 4 | EY28: 3 | EZ28: 5 | FA28: 1 | FB28: 4 | FC28: 3 | FD28: 2
A29: 1 | B29: =OFFSET(Input_Details!$Q$4,MATCH($A29, Input_Details!$J$5:$J$24, 0), 0) -> 2017-11-20 | C29: =INDEX(Input_Details!$H$5:$H$24, MATCH($A29, Input_Details!$J$5:$J$24, 0), 0) -> Meadow Street | D29: =INDEX(Input_Details!$I$5:$I$24, MATCH($A29, Input_Details!$J$5:$J$24, 0), 0) -> 51.49499,-0.09696 | E29: =INDEX(Input_Details!$K$5:$K$24, MATCH($A29, Input_Details!$J$5:$J$24, 0), 0) -> Northbound | F29: Mon | G29: 06:15:00 | H29: 1 | I29: 5 | J29: 0 | K29: 0 | L29: 0 | M29: 0 | N29: 0 | O29: 0 | P29: 0 | Q29: 0 | R29: 0 | S29: 0 | T29: 0 | U29: 4 | V29: 1 | W29: 1 | X29: 0 | Y29: 0 | Z29: 0 | AA29: 0 | AB29: 0 | AC29: 0 | AD29: 0 | AE29: 0 | AF29: 0 | AG29: 0 | AH29: 0 | AI29: 0 | AJ29: 0 | AK29: 0 | AL29: 0 | AM29: 0 | AN29: 15 | AO29: - | AP29: 10.1 | AQ29: 21.7 | AR29: =INDEX(Input_Details!$L$5:$L$24, MATCH($A29, Input_Details!$J$5:$J$24, 0), 0) -> Southbound | AS29: Mon | AT29: 06:15:00 | AU29: 0 | AV29: 4 | AW29: 0 | AX29: 0 | AY29: 0 | AZ29: 0 | BA29: 0 | BB29: 0 | BC29: 0 | BD29: 0 | BE29: 0 | BF29: 0 | BG29: 2 | BH29: 1 | BI29: 1 | BJ29: 0 | BK29: 0 | BL29: 0 | BM29: 0 | BN29: 0 | BO29: 0 | BP29: 0 | BQ29: 0 | BR29: 0 | BS29: 0 | BT29: 0 | BU29: 0 | BV29: 0 | BW29: 0 | BX29: 0 | BY29: 0 | BZ29: 0 | CA29: 11.8 | CB29: - | CC29: 8.2 | CD29: 16 | CF29: Mon | CG29: 06:15:00 | CH29: 1 | CI29: 9 | CJ29: 0 | CK29: 0 | CL29: 0 | CM29: 0 | CN29: 0 | CO29: 0 | CP29: 0 | CQ29: 0 | CR29: 0 | CS29: 0 | CT29: 2 | CU29: 5 | CV29: 2 | CW29: 1 | CX29: 0 | CY29: 0 | CZ29: 0 | DA29: 0 | DB29: 0 | DC29: 0 | DD29: 0 | DE29: 0 | DF29: 0 | DG29: 0 | DH29: 0 | DI29: 0 | DJ29: 0 | DK29: 0 | DL29: 0 | DM29: 0 | DN29: 13.72 | DO29: - | DP29: 8.2 | DQ29: 21.7 | DR29: 1 | DS29: 5 | DT29: 0 | DU29: 0 | DV29: 0 | DW29: 6 | DX29: 0 | DY29: 4 | DZ29: 0 | EA29: 0 | EB29: 0 | EC29: 4 | ED29: 1 | EE29: 9 | EF29: 0 | EG29: 0 | EH29: 0 | EI29: 10 | EJ29: 6 | EK29: 2 | EL29: 3 | EM29: 2 | EN29: 3 | EO29: 5 | EP29: 3 | EQ29: 4 | ER29: 2 | ES29: 1 | ET29: 0 | EU29: 2 | EV29: 1 | EW29: 2 | EX29: 10 | EY29: 4 | EZ29: 4 | FA29: 2 | FB29: 5 | FC29: 6 | FD29: 5
A30: 1 | B30: =OFFSET(Input_Details!$Q$4,MATCH($A30, Input_Details!$J$5:$J$24, 0), 0) -> 2017-11-20 | C30: =INDEX(Input_Details!$H$5:$H$24, MATCH($A30, Input_Details!$J$5:$J$24, 0), 0) -> Meadow Street | D30: =INDEX(Input_Details!$I$5:$I$24, MATCH($A30, Input_Details!$J$5:$J$24, 0), 0) -> 51.49499,-0.09696 | E30: =INDEX(Input_Details!$K$5:$K$24, MATCH($A30, Input_Details!$J$5:$J$24, 0), 0) -> Northbound | F30: Mon | G30: 06:30:00 | H30: 3 | I30: 2 | J30: 0 | K30: 0 | L30: 0 | M30: 0 | N30: 0 | O30: 0 | P30: 0 | Q30: 0 | R30: 0 | S30: 0 | T30: 0 | U30: 4 | V30: 1 | W30: 0 | X30: 0 | Y30: 0 | Z30: 0 | AA30: 0 | AB30: 0 | AC30: 0 | AD30: 0 | AE30: 0 | AF30: 0 | AG30: 0 | AH30: 0 | AI30: 0 | AJ30: 0 | AK30: 0 | AL30: 0 | AM30: 0 | AN30: 13.8 | AO30: - | AP30: 11.4 | AQ30: 18.2 | AR30: =INDEX(Input_Details!$L$5:$L$24, MATCH($A30, Input_Details!$J$5:$J$24, 0), 0) -> Southbound | AS30: Mon | AT30: 06:30:00 | AU30: 0 | AV30: 0 | AW30: 0 | AX30: 0 | AY30: 0 | AZ30: 0 | BA30: 0 | BB30: 0 | BC30: 0 | BD30: 0 | BE30: 0 | BF30: 0 | BG30: 0 | BH30: 0 | BI30: 0 | BJ30: 0 | BK30: 0 | BL30: 0 | BM30: 0 | BN30: 0 | BO30: 0 | BP30: 0 | BQ30: 0 | BR30: 0 | BS30: 0 | BT30: 0 | BU30: 0 | BV30: 0 | BW30: 0 | BX30: 0 | BY30: 0 | BZ30: 0 | CA30: - | CB30: - | CC30: - | CD30: - | CF30: Mon | CG30: 06:30:00 | CH30: 3 | CI30: 2 | CJ30: 0 | CK30: 0 | CL30: 0 | CM30: 0 | CN30: 0 | CO30: 0 | CP30: 0 | CQ30: 0 | CR30: 0 | CS30: 0 | CT30: 0 | CU30: 4 | CV30: 1 | CW30: 0 | CX30: 0 | CY30: 0 | CZ30: 0 | DA30: 0 | DB30: 0 | DC30: 0 | DD30: 0 | DE30: 0 | DF30: 0 | DG30: 0 | DH30: 0 | DI30: 0 | DJ30: 0 | DK30: 0 | DL30: 0 | DM30: 0 | DN30: 13.8 | DO30: - | DP30: 11.4 | DQ30: 18.2 | DR30: 3 | DS30: 2 | DT30: 0 | DU30: 0 | DV30: 0 | DW30: 5 | DX30: 0 | DY30: 0 | DZ30: 0 | EA30: 0 | EB30: 0 | EC30: 0 | ED30: 3 | EE30: 2 | EF30: 0 | EG30: 0 | EH30: 0 | EI30: 5 | EJ30: 5 | EK30: 6 | EL30: 6 | EM30: 5 | EN30: 2 | EO30: 4 | EP30: 2 | EQ30: 0 | ER30: 3 | ES30: 3 | ET30: 2 | EU30: 2 | EV30: 1 | EW30: 3 | EX30: 5 | EY30: 9 | EZ30: 9 | FA30: 7 | FB30: 4 | FC30: 5 | FD30: 5
A31: 1 | B31: =OFFSET(Input_Details!$Q$4,MATCH($A31, Input_Details!$J$5:$J$24, 0), 0) -> 2017-11-20 | C31: =INDEX(Input_Details!$H$5:$H$24, MATCH($A31, Input_Details!$J$5:$J$24, 0), 0) -> Meadow Street | D31: =INDEX(Input_Details!$I$5:$I$24, MATCH($A31, Input_Details!$J$5:$J$24, 0), 0) -> 51.49499,-0.09696 | E31: =INDEX(Input_Details!$K$5:$K$24, MATCH($A31, Input_Details!$J$5:$J$24, 0), 0) -> Northbound | F31: Mon | G31: 06:45:00 | H31: 5 | I31: 1 | J31: 0 | K31: 1 | L31: 0 | M31: 0 | N31: 0 | O31: 0 | P31: 0 | Q31: 0 | R31: 0 | S31: 0 | T31: 0 | U31: 5 | V31: 1 | W31: 1 | X31: 0 | Y31: 0 | Z31: 0 | AA31: 0 | AB31: 0 | AC31: 0 | AD31: 0 | AE31: 0 | AF31: 0 | AG31: 0 | AH31: 0 | AI31: 0 | AJ31: 0 | AK31: 0 | AL31: 0 | AM31: 0 | AN31: 14.7 | AO31: - | AP31: 11.8 | AQ31: 21.2 | AR31: =INDEX(Input_Details!$L$5:$L$24, MATCH($A31, Input_Details!$J$5:$J$24, 0), 0) -> Southbound | AS31: Mon | AT31: 06:45:00 | AU31: 0 | AV31: 1 | AW31: 0 | AX31: 0 | AY31: 0 | AZ31: 0 | BA31: 0 | BB31: 0 | BC31: 0 | BD31: 0 | BE31: 0 | BF31: 0 | BG31: 1 | BH31: 0 | BI31: 0 | BJ31: 0 | BK31: 0 | BL31: 0 | BM31: 0 | BN31: 0 | BO31: 0 | BP31: 0 | BQ31: 0 | BR31: 0 | BS31: 0 | BT31: 0 | BU31: 0 | BV31: 0 | BW31: 0 | BX31: 0 | BY31: 0 | BZ31: 0 | CA31: 8.7 | CB31: - | CC31: 8.7 | CD31: 8.7 | CF31: Mon | CG31: 06:45:00 | CH31: 5 | CI31: 2 | CJ31: 0 | CK31: 1 | CL31: 0 | CM31: 0 | CN31: 0 | CO31: 0 | CP31: 0 | CQ31: 0 | CR31: 0 | CS31: 0 | CT31: 1 | CU31: 5 | CV31: 1 | CW31: 1 | CX31: 0 | CY31: 0 | CZ31: 0 | DA31: 0 | DB31: 0 | DC31: 0 | DD31: 0 | DE31: 0 | DF31: 0 | DG31: 0 | DH31: 0 | DI31: 0 | DJ31: 0 | DK31: 0 | DL31: 0 | DM31: 0 | DN31: 13.95 | DO31: - | DP31: 8.7 | DQ31: 21.2 | DR31: 5 | DS31: 1 | DT31: 1 | DU31: 0 | DV31: 0 | DW31: 7 | DX31: 0 | DY31: 1 | DZ31: 0 | EA31: 0 | EB31: 0 | EC31: 1 | ED31: 5 | EE31: 2 | EF31: 1 | EG31: 0 | EH31: 0 | EI31: 8 | EJ31: 7 | EK31: 8 | EL31: 13 | EM31: 10 | EN31: 5 | EO31: 5 | EP31: 1 | EQ31: 1 | ER31: 3 | ES31: 2 | ET31: 4 | EU31: 3 | EV31: 0 | EW31: 3 | EX31: 8 | EY31: 11 | EZ31: 15 | FA31: 14 | FB31: 8 | FC31: 5 | FD31: 4
A32: 1 | B32: =OFFSET(Input_Details!$Q$4,MATCH($A32, Input_Details!$J$5:$J$24, 0), 0) -> 2017-11-20 | C32: =INDEX(Input_Details!$H$5:$H$24, MATCH($A32, Input_Details!$J$5:$J$24, 0), 0) -> Meadow Street | D32: =INDEX(Input_Details!$I$5:$I$24, MATCH($A32, Input_Details!$J$5:$J$24, 0), 0) -> 51.49499,-0.09696 | E32: =INDEX(Input_Details!$K$5:$K$24, MATCH($A32, Input_Details!$J$5:$J$24, 0), 0) -> Northbound | F32: Mon | G32: 07:00:00 | H32: 4 | I32: 0 | J32: 0 | K32: 0 | L32: 0 | M32: 0 | N32: 0 | O32: 0 | P32: 0 | Q32: 0 | R32: 0 | S32: 0 | T32: 0 | U32: 4 | V32: 0 | W32: 0 | X32: 0 | Y32: 0 | Z32: 0 | AA32: 0 | AB32: 0 | AC32: 0 | AD32: 0 | AE32: 0 | AF32: 0 | AG32: 0 | AH32: 0 | AI32: 0 | AJ32: 0 | AK32: 0 | AL32: 0 | AM32: 0 | AN32: 12.5 | AO32: - | AP32: 11.5 | AQ32: 13.6 | AR32: =INDEX(Input_Details!$L$5:$L$24, MATCH($A32, Input_Details!$J$5:$J$24, 0), 0) -> Southbound | AS32: Mon | AT32: 07:00:00 | AU32: 2 | AV32: 2 | AW32: 0 | AX32: 0 | AY32: 0 | AZ32: 0 | BA32: 0 | BB32: 0 | BC32: 0 | BD32: 0 | BE32: 0 | BF32: 0 | BG32: 0 | BH32: 2 | BI32: 2 | BJ32: 0 | BK32: 0 | BL32: 0 | BM32: 0 | BN32: 0 | BO32: 0 | BP32: 0 | BQ32: 0 | BR32: 0 | BS32: 0 | BT32: 0 | BU32: 0 | BV32: 0 | BW32: 0 | BX32: 0 | BY32: 0 | BZ32: 0 | CA32: 14.5 | CB32: - | CC32: 12.6 | CD32: 16.7 | CF32: Mon | CG32: 07:00:00 | CH32: 6 | CI32: 2 | CJ32: 0 | CK32: 0 | CL32: 0 | CM32: 0 | CN32: 0 | CO32: 0 | CP32: 0 | CQ32: 0 | CR32: 0 | CS32: 0 | CT32: 0 | CU32: 6 | CV32: 2 | CW32: 0 | CX32: 0 | CY32: 0 | CZ32: 0 | DA32: 0 | DB32: 0 | DC32: 0 | DD32: 0 | DE32: 0 | DF32: 0 | DG32: 0 | DH32: 0 | DI32: 0 | DJ32: 0 | DK32: 0 | DL32: 0 | DM32: 0 | DN32: 13.5 | DO32: - | DP32: 11.5 | DQ32: 16.7 | DR32: 4 | DS32: 0 | DT32: 0 | DU32: 0 | DV32: 0 | DW32: 4 | DX32: 2 | DY32: 2 | DZ32: 0 | EA32: 0 | EB32: 0 | EC32: 4 | ED32: 6 | EE32: 2 | EF32: 0 | EG32: 0 | EH32: 0 | EI32: 8 | EJ32: 4 | EK32: 8 | EL32: 13 | EM32: 10 | EN32: 8 | EO32: 2 | EP32: 1 | EQ32: 4 | ER32: 2 | ES32: 3 | ET32: 6 | EU32: 0 | EV32: 4 | EW32: 2 | EX32: 8 | EY32: 10 | EZ32: 16 | FA32: 16 | FB32: 8 | FC32: 6 | FD32: 3
A33: 1 | B33: =OFFSET(Input_Details!$Q$4,MATCH($A33, Input_Details!$J$5:$J$24, 0), 0) -> 2017-11-20 | C33: =INDEX(Input_Details!$H$5:$H$24, MATCH($A33, Input_Details!$J$5:$J$24, 0), 0) -> Meadow Street | D33: =INDEX(Input_Details!$I$5:$I$24, MATCH($A33, Input_Details!$J$5:$J$24, 0), 0) -> 51.49499,-0.09696 | E33: =INDEX(Input_Details!$K$5:$K$24, MATCH($A33, Input_Details!$J$5:$J$24, 0), 0) -> Northbound | F33: Mon | G33: 07:15:00 | H33: 11 | I33: 3 | J33: 0 | K33: 0 | L33: 0 | M33: 0 | N33: 0 | O33: 0 | P33: 0 | Q33: 0 | R33: 0 | S33: 0 | T33: 0 | U33: 13 | V33: 1 | W33: 0 | X33: 0 | Y33: 0 | Z33: 0 | AA33: 0 | AB33: 0 | AC33: 0 | AD33: 0 | AE33: 0 | AF33: 0 | AG33: 0 | AH33: 0 | AI33: 0 | AJ33: 0 | AK33: 0 | AL33: 0 | AM33: 0 | AN33: 13.5 | AO33: 14.3 | AP33: 10.8 | AQ33: 16.2 | AR33: =INDEX(Input_Details!$L$5:$L$24, MATCH($A33, Input_Details!$J$5:$J$24, 0), 0) -> Southbound | AS33: Mon | AT33: 07:15:00 | AU33: 0 | AV33: 3 | AW33: 0 | AX33: 0 | AY33: 0 | AZ33: 0 | BA33: 0 | BB33: 0 | BC33: 0 | BD33: 0 | BE33: 0 | BF33: 0 | BG33: 0 | BH33: 3 | BI33: 0 | BJ33: 0 | BK33: 0 | BL33: 0 | BM33: 0 | BN33: 0 | BO33: 0 | BP33: 0 | BQ33: 0 | BR33: 0 | BS33: 0 | BT33: 0 | BU33: 0 | BV33: 0 | BW33: 0 | BX33: 0 | BY33: 0 | BZ33: 0 | CA33: 13.5 | CB33: - | CC33: 13.2 | CD33: 14 | CF33: Mon | CG33: 07:15:00 | CH33: 11 | CI33: 6 | CJ33: 0 | CK33: 0 | CL33: 0 | CM33: 0 | CN33: 0 | CO33: 0 | CP33: 0 | CQ33: 0 | CR33: 0 | CS33: 0 | CT33: 0 | CU33: 16 | CV33: 1 | CW33: 0 | CX33: 0 | CY33: 0 | CZ33: 0 | DA33: 0 | DB33: 0 | DC33: 0 | DD33: 0 | DE33: 0 | DF33: 0 | DG33: 0 | DH33: 0 | DI33: 0 | DJ33: 0 | DK33: 0 | DL33: 0 | DM33: 0 | DN33: 13.5 | DO33: 14.3 | DP33: 10.8 | DQ33: 16.2 | DR33: 11 | DS33: 3 | DT33: 0 | DU33: 0 | DV33: 0 | DW33: 14 | DX33: 0 | DY33: 3 | DZ33: 0 | EA33: 0 | EB33: 0 | EC33: 3 | ED33: 11 | EE33: 6 | EF33: 0 | EG33: 0 | EH33: 0 | EI33: 17 | EJ33: 14 | EK33: 12 | EL33: 14 | EM33: 16 | EN33: 6 | EO33: 2 | EP33: 2 | EQ33: 3 | ER33: 2 | ES33: 2 | ET33: 4 | EU33: 1 | EV33: 3 | EW33: 2 | EX33: 17 | EY33: 14 | EZ33: 16 | FA33: 20 | FB33: 7 | FC33: 5 | FD33: 4
A34: 1 | B34: =OFFSET(Input_Details!$Q$4,MATCH($A34, Input_Details!$J$5:$J$24, 0), 0) -> 2017-11-20 | C34: =INDEX(Input_Details!$H$5:$H$24, MATCH($A34, Input_Details!$J$5:$J$24, 0), 0) -> Meadow Street | D34: =INDEX(Input_Details!$I$5:$I$24, MATCH($A34, Input_Details!$J$5:$J$24, 0), 0) -> 51.49499,-0.09696 | E34: =INDEX(Input_Details!$K$5:$K$24, MATCH($A34, Input_Details!$J$5:$J$24, 0), 0) -> Northbound | F34: Mon | G34: 07:30:00 | H34: 14 | I34: 5 | J34: 0 | K34: 0 | L34: 0 | M34: 1 | N34: 0 | O34: 0 | P34: 0 | Q34: 0 | R34: 0 | S34: 0 | T34: 1 | U34: 16 | V34: 2 | W34: 1 | X34: 0 | Y34: 0 | Z34: 0 | AA34: 0 | AB34: 0 | AC34: 0 | AD34: 0 | AE34: 0 | AF34: 0 | AG34: 0 | AH34: 0 | AI34: 0 | AJ34: 0 | AK34: 0 | AL34: 0 | AM34: 0 | AN34: 13.6 | AO34: 14.8 | AP34: 8.9 | AQ34: 22.8 | AR34: =INDEX(Input_Details!$L$5:$L$24, MATCH($A34, Input_Details!$J$5:$J$24, 0), 0) -> Southbound | AS34: Mon | AT34: 07:30:00 | AU34: 1 | AV34: 4 | AW34: 0 | AX34: 0 | AY34: 0 | AZ34: 0 | BA34: 0 | BB34: 0 | BC34: 0 | BD34: 0 | BE34: 0 | BF34: 0 | BG34: 0 | BH34: 1 | BI34: 0 | BJ34: 4 | BK34: 0 | BL34: 0 | BM34: 0 | BN34: 0 | BO34: 0 | BP34: 0 | BQ34: 0 | BR34: 0 | BS34: 0 | BT34: 0 | BU34: 0 | BV34: 0 | BW34: 0 | BX34: 0 | BY34: 0 | BZ34: 0 | CA34: 19.5 | CB34: - | CC34: 12.2 | CD34: 22.6 | CF34: Mon | CG34: 07:30:00 | CH34: 15 | CI34: 9 | CJ34: 0 | CK34: 0 | CL34: 0 | CM34: 1 | CN34: 0 | CO34: 0 | CP34: 0 | CQ34: 0 | CR34: 0 | CS34: 0 | CT34: 1 | CU34: 17 | CV34: 2 | CW34: 5 | CX34: 0 | CY34: 0 | CZ34: 0 | DA34: 0 | DB34: 0 | DC34: 0 | DD34: 0 | DE34: 0 | DF34: 0 | DG34: 0 | DH34: 0 | DI34: 0 | DJ34: 0 | DK34: 0 | DL34: 0 | DM34: 0 | DN34: 14.78 | DO34: 14.8 | DP34: 8.9 | DQ34: 22.8 | DR34: 14 | DS34: 5 | DT34: 0 | DU34: 0 | DV34: 1 | DW34: 20 | DX34: 1 | DY34: 4 | DZ34: 0 | EA34: 0 | EB34: 0 | EC34: 5 | ED34: 15 | EE34: 9 | EF34: 0 | EG34: 0 | EH34: 1 | EI34: 25 | EJ34: 20 | EK34: 19 | EL34: 19 | EM34: 16 | EN34: 18 | EO34: 5 | EP34: 2 | EQ34: 5 | ER34: 0 | ES34: 2 | ET34: 3 | EU34: 3 | EV34: 0 | EW34: 0 | EX34: 25 | EY34: 19 | EZ34: 21 | FA34: 19 | FB34: 21 | FC34: 5 | FD34: 2
A35: 1 | B35: =OFFSET(Input_Details!$Q$4,MATCH($A35, Input_Details!$J$5:$J$24, 0), 0) -> 2017-11-20 | C35: =INDEX(Input_Details!$H$5:$H$24, MATCH($A35, Input_Details!$J$5:$J$24, 0), 0) -> Meadow Street | D35: =INDEX(Input_Details!$I$5:$I$24, MATCH($A35, Input_Details!$J$5:$J$24, 0), 0) -> 51.49499,-0.09696 | E35: =INDEX(Input_Details!$K$5:$K$24, MATCH($A35, Input_Details!$J$5:$J$24, 0), 0) -> Northbound | F35: Mon | G35: 07:45:00 | H35: 13 | I35: 1 | J35: 0 | K35: 1 | L35: 1 | M35: 5 | N35: 0 | O35: 0 | P35: 0 | Q35: 0 | R35: 0 | S35: 0 | T35: 1 | U35: 16 | V35: 4 | W35: 0 | X35: 0 | Y35: 0 | Z35: 0 | AA35: 0 | AB35: 0 | AC35: 0 | AD35: 0 | AE35: 0 | AF35: 0 | AG35: 0 | AH35: 0 | AI35: 0 | AJ35: 0 | AK35: 0 | AL35: 0 | AM35: 0 | AN35: 13.2 | AO35: 15.7 | AP35: 5.9 | AQ35: 16.2 | AR35: =INDEX(Input_Details!$L$5:$L$24, MATCH($A35, Input_Details!$J$5:$J$24, 0), 0) -> Southbound | AS35: Mon | AT35: 07:45:00 | AU35: 2 | AV35: 1 | AW35: 0 | AX35: 1 | AY35: 0 | AZ35: 0 | BA35: 0 | BB35: 0 | BC35: 0 | BD35: 0 | BE35: 0 | BF35: 0 | BG35: 0 | BH35: 2 | BI35: 1 | BJ35: 1 | BK35: 0 | BL35: 0 | BM35: 0 | BN35: 0 | BO35: 0 | BP35: 0 | BQ35: 0 | BR35: 0 | BS35: 0 | BT35: 0 | BU35: 0 | BV35: 0 | BW35: 0 | BX35: 0 | BY35: 0 | BZ35: 0 | CA35: 15.9 | CB35: - | CC35: 11.5 | CD35: 21 | CF35: Mon | CG35: 07:45:00 | CH35: 15 | CI35: 2 | CJ35: 0 | CK35: 2 | CL35: 1 | CM35: 5 | CN35: 0 | CO35: 0 | CP35: 0 | CQ35: 0 | CR35: 0 | CS35: 0 | CT35: 1 | CU35: 18 | CV35: 5 | CW35: 1 | CX35: 0 | CY35: 0 | CZ35: 0 | DA35: 0 | DB35: 0 | DC35: 0 | DD35: 0 | DE35: 0 | DF35: 0 | DG35: 0 | DH35: 0 | DI35: 0 | DJ35: 0 | DK35: 0 | DL35: 0 | DM35: 0 | DN35: 13.632 | DO35: 15.7 | DP35: 5.9 | DQ35: 21 | DR35: 13 | DS35: 1 | DT35: 1 | DU35: 1 | DV35: 5 | DW35: 21 | DX35: 2 | DY35: 1 | DZ35: 1 | EA35: 0 | EB35: 0 | EC35: 4 | ED35: 15 | EE35: 2 | EF35: 2 | EG35: 1 | EH35: 5 | EI35: 25 | EJ35: 21 | EK35: 34 | EL35: 32 | EM35: 26 | EN35: 26 | EO35: 4 | EP35: 2 | EQ35: 4 | ER35: 8 | ES35: 5 | ET35: 3 | EU35: 5 | EV35: 3 | EW35: 2 | EX35: 25 | EY35: 42 | EZ35: 37 | FA35: 29 | FB35: 31 | FC35: 7 | FD35: 4
A36: 1 | B36: =OFFSET(Input_Details!$Q$4,MATCH($A36, Input_Details!$J$5:$J$24, 0), 0) -> 2017-11-20 | C36: =INDEX(Input_Details!$H$5:$H$24, MATCH($A36, Input_Details!$J$5:$J$24, 0), 0) -> Meadow Street | D36: =INDEX(Input_Details!$I$5:$I$24, MATCH($A36, Input_Details!$J$5:$J$24, 0), 0) -> 51.49499,-0.09696 | E36: =INDEX(Input_Details!$K$5:$K$24, MATCH($A36, Input_Details!$J$5:$J$24, 0), 0) -> Northbound | F36: Mon | G36: 08:00:00 | H36: 24 | I36: 6 | J36: 0 | K36: 0 | L36: 0 | M36: 6 | N36: 0 | O36: 0 | P36: 0 | Q36: 0 | R36: 0 | S36: 0 | T36: 1 | U36: 34 | V36: 1 | W36: 0 | X36: 0 | Y36: 0 | Z36: 0 | AA36: 0 | AB36: 0 | AC36: 0 | AD36: 0 | AE36: 0 | AF36: 0 | AG36: 0 | AH36: 0 | AI36: 0 | AJ36: 0 | AK36: 0 | AL36: 0 | AM36: 0 | AN36: 12.8 | AO36: 14.3 | AP36: 8.7 | AQ36: 15.4 | AR36: =INDEX(Input_Details!$L$5:$L$24, MATCH($A36, Input_Details!$J$5:$J$24, 0), 0) -> Southbound | AS36: Mon | AT36: 08:00:00 | AU36: 2 | AV36: 5 | AW36: 0 | AX36: 0 | AY36: 0 | AZ36: 0 | BA36: 0 | BB36: 0 | BC36: 0 | BD36: 0 | BE36: 0 | BF36: 0 | BG36: 1 | BH36: 3 | BI36: 3 | BJ36: 0 | BK36: 0 | BL36: 0 | BM36: 0 | BN36: 0 | BO36: 0 | BP36: 0 | BQ36: 0 | BR36: 0 | BS36: 0 | BT36: 0 | BU36: 0 | BV36: 0 | BW36: 0 | BX36: 0 | BY36: 0 | BZ36: 0 | CA36: 13.3 | CB36: - | CC36: 5.7 | CD36: 18.4 | CF36: Mon | CG36: 08:00:00 | CH36: 26 | CI36: 11 | CJ36: 0 | CK36: 0 | CL36: 0 | CM36: 6 | CN36: 0 | CO36: 0 | CP36: 0 | CQ36: 0 | CR36: 0 | CS36: 0 | CT36: 2 | CU36: 37 | CV36: 4 | CW36: 0 | CX36: 0 | CY36: 0 | CZ36: 0 | DA36: 0 | DB36: 0 | DC36: 0 | DD36: 0 | DE36: 0 | DF36: 0 | DG36: 0 | DH36: 0 | DI36: 0 | DJ36: 0 | DK36: 0 | DL36: 0 | DM36: 0 | DN36: 12.88139535 | DO36: 14.3 | DP36: 5.7 | DQ36: 18.4 | DR36: 24 | DS36: 6 | DT36: 0 | DU36: 0 | DV36: 6 | DW36: 36 | DX36: 2 | DY36: 5 | DZ36: 0 | EA36: 0 | EB36: 0 | EC36: 7 | ED36: 26 | EE36: 11 | EF36: 0 | EG36: 0 | EH36: 6 | EI36: 43 | EJ36: 36 | EK36: 38 | EL36: 30 | EM36: 28 | EN36: 15 | EO36: 3 | EP36: 2 | EQ36: 7 | ER36: 6 | ES36: 4 | ET36: 3 | EU36: 4 | EV36: 1 | EW36: 2 | EX36: 43 | EY36: 44 | EZ36: 34 | FA36: 31 | FB36: 19 | FC36: 4 | FD36: 4
A37: 1 | B37: =OFFSET(Input_Details!$Q$4,MATCH($A37, Input_Details!$J$5:$J$24, 0), 0) -> 2017-11-20 | C37: =INDEX(Input_Details!$H$5:$H$24, MATCH($A37, Input_Details!$J$5:$J$24, 0), 0) -> Meadow Street | D37: =INDEX(Input_Details!$I$5:$I$24, MATCH($A37, Input_Details!$J$5:$J$24, 0), 0) -> 51.49499,-0.09696 | E37: =INDEX(Input_Details!$K$5:$K$24, MATCH($A37, Input_Details!$J$5:$J$24, 0), 0) -> Northbound | F37: =+F36 -> Mon | G37: 08:15:00 | H37: 27 | I37: 7 | J37: 0 | K37: 3 | L37: 1 | M37: 4 | N37: 0 | O37: 0 | P37: 0 | Q37: 0 | R37: 0 | S37: 0 | T37: 0 | U37: 36 | V37: 6 | W37: 0 | X37: 0 | Y37: 0 | Z37: 0 | AA37: 0 | AB37: 0 | AC37: 0 | AD37: 0 | AE37: 0 | AF37: 0 | AG37: 0 | AH37: 0 | AI37: 0 | AJ37: 0 | AK37: 0 | AL37: 0 | AM37: 0 | AN37: 13.1 | AO37: 14.8 | AP37: 10.2 | AQ37: 17.7 | AR37: =INDEX(Input_Details!$L$5:$L$24, MATCH($A37, Input_Details!$J$5:$J$24, 0), 0) -> Southbound | AS37: Mon | AT37: 08:15:00 | AU37: 0 | AV37: 4 | AW37: 0 | AX37: 0 | AY37: 0 | AZ37: 0 | BA37: 0 | BB37: 0 | BC37: 0 | BD37: 0 | BE37: 0 | BF37: 0 | BG37: 0 | BH37: 3 | BI37: 1 | BJ37: 0 | BK37: 0 | BL37: 0 | BM37: 0 | BN37: 0 | BO37: 0 | BP37: 0 | BQ37: 0 | BR37: 0 | BS37: 0 | BT37: 0 | BU37: 0 | BV37: 0 | BW37: 0 | BX37: 0 | BY37: 0 | BZ37: 0 | CA37: 14.7 | CB37: - | CC37: 13 | CD37: 19.1 | CF37: Mon | CG37: 08:15:00 | CH37: 27 | CI37: 11 | CJ37: 0 | CK37: 3 | CL37: 1 | CM37: 4 | CN37: 0 | CO37: 0 | CP37: 0 | CQ37: 0 | CR37: 0 | CS37: 0 | CT37: 0 | CU37: 39 | CV37: 7 | CW37: 0 | CX37: 0 | CY37: 0 | CZ37: 0 | DA37: 0 | DB37: 0 | DC37: 0 | DD37: 0 | DE37: 0 | DF37: 0 | DG37: 0 | DH37: 0 | DI37: 0 | DJ37: 0 | DK37: 0 | DL37: 0 | DM37: 0 | DN37: 13.23913043 | DO37: 14.8 | DP37: 10.2 | DQ37: 19.1 | DR37: 27 | DS37: 7 | DT37: 3 | DU37: 1 | DV37: 4 | DW37: 42 | DX37: 0 | DY37: 4 | DZ37: 0 | EA37: 0 | EB37: 0 | EC37: 4 | ED37: 27 | EE37: 11 | EF37: 3 | EG37: 1 | EH37: 4 | EI37: 46 | EJ37: 42 | EK37: 52 | EL37: 36 | EM37: 37 | EN37: 42 | EO37: 3 | EP37: 3 | EQ37: 4 | ER37: 4 | ES37: 0 | ET37: 6 | EU37: 5 | EV37: 0 | EW37: 3 | EX37: 46 | EY37: 56 | EZ37: 36 | FA37: 43 | FB37: 47 | FC37: 3 | FD37: 6
A38: 1 | B38: =OFFSET(Input_Details!$Q$4,MATCH($A38, Input_Details!$J$5:$J$24, 0), 0) -> 2017-11-20 | C38: =INDEX(Input_Details!$H$5:$H$24, MATCH($A38, Input_Details!$J$5:$J$24, 0), 0) -> Meadow Street | D38: =INDEX(Input_Details!$I$5:$I$24, MATCH($A38, Input_Details!$J$5:$J$24, 0), 0) -> 51.49499,-0.09696 | E38: =INDEX(Input_Details!$K$5:$K$24, MATCH($A38, Input_Details!$J$5:$J$24, 0), 0) -> Northbound | F38: Mon | G38: 08:30:00 | H38: 23 | I38: 13 | J38: 0 | K38: 0 | L38: 0 | M38: 6 | N38: 0 | O38: 0 | P38: 1 | Q38: 3 | R38: 0 | S38: 0 | T38: 2 | U38: 36 | V38: 7 | W38: 1 | X38: 0 | Y38: 0 | Z38: 0 | AA38: 0 | AB38: 0 | AC38: 0 | AD38: 0 | AE38: 0 | AF38: 0 | AG38: 0 | AH38: 0 | AI38: 0 | AJ38: 0 | AK38: 0 | AL38: 0 | AM38: 0 | AN38: 13.6 | AO38: 15 | AP38: 9.8 | AQ38: 20.4 | AR38: =INDEX(Input_Details!$L$5:$L$24, MATCH($A38, Input_Details!$J$5:$J$24, 0), 0) -> Southbound | AS38: Mon | AT38: 08:30:00 | AU38: 0 | AV38: 6 | AW38: 0 | AX38: 1 | AY38: 0 | AZ38: 0 | BA38: 0 | BB38: 0 | BC38: 0 | BD38: 0 | BE38: 0 | BF38: 0 | BG38: 0 | BH38: 3 | BI38: 4 | BJ38: 0 | BK38: 0 | BL38: 0 | BM38: 0 | BN38: 0 | BO38: 0 | BP38: 0 | BQ38: 0 | BR38: 0 | BS38: 0 | BT38: 0 | BU38: 0 | BV38: 0 | BW38: 0 | BX38: 0 | BY38: 0 | BZ38: 0 | CA38: 15.8 | CB38: - | CC38: 14.8 | CD38: 17.7 | CF38: Mon | CG38: 08:30:00 | CH38: 23 | CI38: 19 | CJ38: 0 | CK38: 1 | CL38: 0 | CM38: 6 | CN38: 0 | CO38: 0 | CP38: 1 | CQ38: 3 | CR38: 0 | CS38: 0 | CT38: 2 | CU38: 39 | CV38: 11 | CW38: 1 | CX38: 0 | CY38: 0 | CZ38: 0 | DA38: 0 | DB38: 0 | DC38: 0 | DD38: 0 | DE38: 0 | DF38: 0 | DG38: 0 | DH38: 0 | DI38: 0 | DJ38: 0 | DK38: 0 | DL38: 0 | DM38: 0 | DN38: 13.89056604 | DO38: 15 | DP38: 9.8 | DQ38: 20.4 | DR38: 23 | DS38: 13 | DT38: 0 | DU38: 0 | DV38: 10 | DW38: 46 | DX38: 0 | DY38: 6 | DZ38: 1 | EA38: 0 | EB38: 0 | EC38: 7 | ED38: 23 | EE38: 19 | EF38: 1 | EG38: 0 | EH38: 10 | EI38: 53 | EJ38: 46 | EK38: 51 | EL38: 47 | EM38: 41 | EN38: 30 | EO38: 4 | EP38: 8 | EQ38: 7 | ER38: 7 | ES38: 5 | ET38: 6 | EU38: 3 | EV38: 3 | EW38: 3 | EX38: 53 | EY38: 58 | EZ38: 52 | FA38: 47 | FB38: 33 | FC38: 7 | FD38: 11
A39: 1 | B39: =OFFSET(Input_Details!$Q$4,MATCH($A39, Input_Details!$J$5:$J$24, 0), 0) -> 2017-11-20 | C39: =INDEX(Input_Details!$H$5:$H$24, MATCH($A39, Input_Details!$J$5:$J$24, 0), 0) -> Meadow Street | D39: =INDEX(Input_Details!$I$5:$I$24, MATCH($A39, Input_Details!$J$5:$J$24, 0), 0) -> 51.49499,-0.09696 | E39: =INDEX(Input_Details!$K$5:$K$24, MATCH($A39, Input_Details!$J$5:$J$24, 0), 0) -> Northbound | F39: Mon | G39: 08:45:00 | H39: 31 | I39: 8 | J39: 0 | K39: 0 | L39: 0 | M39: 3 | N39: 0 | O39: 0 | P39: 0 | Q39: 1 | R39: 0 | S39: 2 | T39: 0 | U39: 40 | V39: 4 | W39: 1 | X39: 0 | Y39: 0 | Z39: 0 | AA39: 0 | AB39: 0 | AC39: 0 | AD39: 0 | AE39: 0 | AF39: 0 | AG39: 0 | AH39: 0 | AI39: 0 | AJ39: 0 | AK39: 0 | AL39: 0 | AM39: 0 | AN39: 13.5 | AO39: 14.5 | AP39: 10.7 | AQ39: 20.1 | AR39: =INDEX(Input_Details!$L$5:$L$24, MATCH($A39, Input_Details!$J$5:$J$24, 0), 0) -> Southbound | AS39: Mon | AT39: 08:45:00 | AU39: 0 | AV39: 7 | AW39: 0 | AX39: 0 | AY39: 0 | AZ39: 0 | BA39: 0 | BB39: 0 | BC39: 0 | BD39: 0 | BE39: 0 | BF39: 0 | BG39: 0 | BH39: 4 | BI39: 3 | BJ39: 0 | BK39: 0 | BL39: 0 | BM39: 0 | BN39: 0 | BO39: 0 | BP39: 0 | BQ39: 0 | BR39: 0 | BS39: 0 | BT39: 0 | BU39: 0 | BV39: 0 | BW39: 0 | BX39: 0 | BY39: 0 | BZ39: 0 | CA39: 14.1 | CB39: - | CC39: 12.2 | CD39: 16.1 | CF39: Mon | CG39: 08:45:00 | CH39: 31 | CI39: 15 | CJ39: 0 | CK39: 0 | CL39: 0 | CM39: 3 | CN39: 0 | CO39: 0 | CP39: 0 | CQ39: 1 | CR39: 0 | CS39: 2 | CT39: 0 | CU39: 44 | CV39: 7 | CW39: 1 | CX39: 0 | CY39: 0 | CZ39: 0 | DA39: 0 | DB39: 0 | DC39: 0 | DD39: 0 | DE39: 0 | DF39: 0 | DG39: 0 | DH39: 0 | DI39: 0 | DJ39: 0 | DK39: 0 | DL39: 0 | DM39: 0 | DN39: 13.58076923 | DO39: 14.5 | DP39: 10.7 | DQ39: 20.1 | DR39: 31 | DS39: 8 | DT39: 0 | DU39: 0 | DV39: 6 | DW39: 45 | DX39: 0 | DY39: 7 | DZ39: 0 | EA39: 0 | EB39: 0 | EC39: 7 | ED39: 31 | EE39: 15 | EF39: 0 | EG39: 0 | EH39: 6 | EI39: 52 | EJ39: 45 | EK39: 44 | EL39: 54 | EM39: 41 | EN39: 36 | EO39: 2 | EP39: 3 | EQ39: 7 | ER39: 6 | ES39: 6 | ET39: 4 | EU39: 7 | EV39: 10 | EW39: 4 | EX39: 52 | EY39: 50 | EZ39: 60 | FA39: 45 | FB39: 43 | FC39: 12 | FD39: 7
A40: 1 | B40: =OFFSET(Input_Details!$Q$4,MATCH($A40, Input_Details!$J$5:$J$24, 0), 0) -> 2017-11-20 | C40: =INDEX(Input_Details!$H$5:$H$24, MATCH($A40, Input_Details!$J$5:$J$24, 0), 0) -> Meadow Street | D40: =INDEX(Input_Details!$I$5:$I$24, MATCH($A40, Input_Details!$J$5:$J$24, 0), 0) -> 51.49499,-0.09696 | E40: =INDEX(Input_Details!$K$5:$K$24, MATCH($A40, Input_Details!$J$5:$J$24, 0), 0) -> Northbound | F40: Mon | G40: 09:00:00 | H40: 17 | I40: 7 | J40: 0 | K40: 2 | L40: 0 | M40: 1 | N40: 0 | O40: 0 | P40: 0 | Q40: 2 | R40: 1 | S40: 2 | T40: 1 | U40: 26 | V40: 4 | W40: 1 | X40: 0 | Y40: 0 | Z40: 0 | AA40: 0 | AB40: 0 | AC40: 0 | AD40: 0 | AE40: 0 | AF40: 0 | AG40: 0 | AH40: 0 | AI40: 0 | AJ40: 0 | AK40: 0 | AL40: 0 | AM40: 0 | AN40: 13.7 | AO40: 15 | AP40: 7.8 | AQ40: 20.5 | AR40: =INDEX(Input_Details!$L$5:$L$24, MATCH($A40, Input_Details!$J$5:$J$24, 0), 0) -> Southbound | AS40: Mon | AT40: 09:00:00 | AU40: 1 | AV40: 3 | AW40: 0 | AX40: 0 | AY40: 0 | AZ40: 0 | BA40: 0 | BB40: 0 | BC40: 0 | BD40: 0 | BE40: 0 | BF40: 0 | BG40: 1 | BH40: 3 | BI40: 0 | BJ40: 0 | BK40: 0 | BL40: 0 | BM40: 0 | BN40: 0 | BO40: 0 | BP40: 0 | BQ40: 0 | BR40: 0 | BS40: 0 | BT40: 0 | BU40: 0 | BV40: 0 | BW40: 0 | BX40: 0 | BY40: 0 | BZ40: 0 | CA40: 11.9 | CB40: - | CC40: 9.8 | CD40: 13.5 | CF40: Mon | CG40: 09:00:00 | CH40: 18 | CI40: 10 | CJ40: 0 | CK40: 2 | CL40: 0 | CM40: 1 | CN40: 0 | CO40: 0 | CP40: 0 | CQ40: 2 | CR40: 1 | CS40: 2 | CT40: 2 | CU40: 29 | CV40: 4 | CW40: 1 | CX40: 0 | CY40: 0 | CZ40: 0 | DA40: 0 | DB40: 0 | DC40: 0 | DD40: 0 | DE40: 0 | DF40: 0 | DG40: 0 | DH40: 0 | DI40: 0 | DJ40: 0 | DK40: 0 | DL40: 0 | DM40: 0 | DN40: 13.5 | DO40: 15 | DP40: 7.8 | DQ40: 20.5 | DR40: 17 | DS40: 7 | DT40: 2 | DU40: 0 | DV40: 6 | DW40: 32 | DX40: 1 | DY40: 3 | DZ40: 0 | EA40: 0 | EB40: 0 | EC40: 4 | ED40: 18 | EE40: 10 | EF40: 2 | EG40: 0 | EH40: 6 | EI40: 36 | EJ40: 32 | EK40: 35 | EL40: 47 | EM40: 31 | EN40: 35 | EO40: 4 | EP40: 4 | EQ40: 4 | ER40: 10 | ES40: 10 | ET40: 10 | EU40: 9 | EV40: 7 | EW40: 1 | EX40: 36 | EY40: 45 | EZ40: 57 | FA40: 41 | FB40: 44 | FC40: 11 | FD40: 5
A41: 1 | B41: =OFFSET(Input_Details!$Q$4,MATCH($A41, Input_Details!$J$5:$J$24, 0), 0) -> 2017-11-20 | C41: =INDEX(Input_Details!$H$5:$H$24, MATCH($A41, Input_Details!$J$5:$J$24, 0), 0) -> Meadow Street | D41: =INDEX(Input_Details!$I$5:$I$24, MATCH($A41, Input_Details!$J$5:$J$24, 0), 0) -> 51.49499,-0.09696 | E41: =INDEX(Input_Details!$K$5:$K$24, MATCH($A41, Input_Details!$J$5:$J$24, 0), 0) -> Northbound | F41: Mon | G41: 09:15:00 | H41: 16 | I41: 6 | J41: 0 | K41: 1 | L41: 0 | M41: 3 | N41: 0 | O41: 0 | P41: 0 | Q41: 0 | R41: 0 | S41: 1 | T41: 2 | U41: 20 | V41: 5 | W41: 0 | X41: 0 | Y41: 0 | Z41: 0 | AA41: 0 | AB41: 0 | AC41: 0 | AD41: 0 | AE41: 0 | AF41: 0 | AG41: 0 | AH41: 0 | AI41: 0 | AJ41: 0 | AK41: 0 | AL41: 0 | AM41: 0 | AN41: 13.4 | AO41: 15 | AP41: 9.4 | AQ41: 19 | AR41: =INDEX(Input_Details!$L$5:$L$24, MATCH($A41, Input_Details!$J$5:$J$24, 0), 0) -> Southbound | AS41: Mon | AT41: 09:15:00 | AU41: 0 | AV41: 6 | AW41: 0 | AX41: 0 | AY41: 0 | AZ41: 0 | BA41: 0 | BB41: 0 | BC41: 0 | BD41: 0 | BE41: 0 | BF41: 0 | BG41: 1 | BH41: 4 | BI41: 1 | BJ41: 0 | BK41: 0 | BL41: 0 | BM41: 0 | BN41: 0 | BO41: 0 | BP41: 0 | BQ41: 0 | BR41: 0 | BS41: 0 | BT41: 0 | BU41: 0 | BV41: 0 | BW41: 0 | BX41: 0 | BY41: 0 | BZ41: 0 | CA41: 11.7 | CB41: - | CC41: 7.4 | CD41: 15.4 | CF41: Mon | CG41: 09:15:00 | CH41: 16 | CI41: 12 | CJ41: 0 | CK41: 1 | CL41: 0 | CM41: 3 | CN41: 0 | CO41: 0 | CP41: 0 | CQ41: 0 | CR41: 0 | CS41: 1 | CT41: 3 | CU41: 24 | CV41: 6 | CW41: 0 | CX41: 0 | CY41: 0 | CZ41: 0 | DA41: 0 | DB41: 0 | DC41: 0 | DD41: 0 | DE41: 0 | DF41: 0 | DG41: 0 | DH41: 0 | DI41: 0 | DJ41: 0 | DK41: 0 | DL41: 0 | DM41: 0 | DN41: 13.09090909 | DO41: 15 | DP41: 7.4 | DQ41: 19 | DR41: 16 | DS41: 6 | DT41: 1 | DU41: 0 | DV41: 4 | DW41: 27 | DX41: 0 | DY41: 6 | DZ41: 0 | EA41: 0 | EB41: 0 | EC41: 6 | ED41: 16 | EE41: 12 | EF41: 1 | EG41: 0 | EH41: 4 | EI41: 33 | EJ41: 27 | EK41: 37 | EL41: 28 | EM41: 29 | EN41: 18 | EO41: 9 | EP41: 4 | EQ41: 6 | ER41: 8 | ES41: 2 | ET41: 5 | EU41: 4 | EV41: 7 | EW41: 3 | EX41: 33 | EY41: 45 | EZ41: 30 | FA41: 34 | FB41: 22 | FC41: 16 | FD41: 7
A42: 1 | B42: =OFFSET(Input_Details!$Q$4,MATCH($A42, Input_Details!$J$5:$J$24, 0), 0) -> 2017-11-20 | C42: =INDEX(Input_Details!$H$5:$H$24, MATCH($A42, Input_Details!$J$5:$J$24, 0), 0) -> Meadow Street | D42: =INDEX(Input_Details!$I$5:$I$24, MATCH($A42, Input_Details!$J$5:$J$24, 0), 0) -> 51.49499,-0.09696 | E42: =INDEX(Input_Details!$K$5:$K$24, MATCH($A42, Input_Details!$J$5:$J$24, 0), 0) -> Northbound | F42: Mon | G42: 09:30:00 | H42: 16 | I42: 6 | J42: 0 | K42: 1 | L42: 0 | M42: 1 | N42: 0 | O42: 0 | P42: 0 | Q42: 0 | R42: 0 | S42: 0 | T42: 5 | U42: 13 | V42: 5 | W42: 1 | X42: 0 | Y42: 0 | Z42: 0 | AA42: 0 | AB42: 0 | AC42: 0 | AD42: 0 | AE42: 0 | AF42: 0 | AG42: 0 | AH42: 0 | AI42: 0 | AJ42: 0 | AK42: 0 | AL42: 0 | AM42: 0 | AN42: 12.2 | AO42: 15.4 | AP42: 2.8 | AQ42: 21.5 | AR42: =INDEX(Input_Details!$L$5:$L$24, MATCH($A42, Input_Details!$J$5:$J$24, 0), 0) -> Southbound | AS42: Mon | AT42: 09:30:00 | AU42: 1 | AV42: 4 | AW42: 0 | AX42: 0 | AY42: 0 | AZ42: 0 | BA42: 0 | BB42: 0 | BC42: 0 | BD42: 0 | BE42: 0 | BF42: 0 | BG42: 2 | BH42: 3 | BI42: 0 | BJ42: 0 | BK42: 0 | BL42: 0 | BM42: 0 | BN42: 0 | BO42: 0 | BP42: 0 | BQ42: 0 | BR42: 0 | BS42: 0 | BT42: 0 | BU42: 0 | BV42: 0 | BW42: 0 | BX42: 0 | BY42: 0 | BZ42: 0 | CA42: 10.2 | CB42: - | CC42: 2.8 | CD42: 14.6 | CF42: Mon | CG42: 09:30:00 | CH42: 17 | CI42: 10 | CJ42: 0 | CK42: 1 | CL42: 0 | CM42: 1 | CN42: 0 | CO42: 0 | CP42: 0 | CQ42: 0 | CR42: 0 | CS42: 0 | CT42: 7 | CU42: 16 | CV42: 5 | CW42: 1 | CX42: 0 | CY42: 0 | CZ42: 0 | DA42: 0 | DB42: 0 | DC42: 0 | DD42: 0 | DE42: 0 | DF42: 0 | DG42: 0 | DH42: 0 | DI42: 0 | DJ42: 0 | DK42: 0 | DL42: 0 | DM42: 0 | DN42: 11.85517241 | DO42: 15.4 | DP42: 2.8 | DQ42: 21.5 | DR42: 16 | DS42: 6 | DT42: 1 | DU42: 0 | DV42: 1 | DW42: 24 | DX42: 1 | DY42: 4 | DZ42: 0 | EA42: 0 | EB42: 0 | EC42: 5 | ED42: 17 | EE42: 10 | EF42: 1 | EG42: 0 | EH42: 1 | EI42: 29 | EJ42: 24 | EK42: 27 | EL42: 27 | EM42: 23 | EN42: 22 | EO42: 9 | EP42: 4 | EQ42: 5 | ER42: 6 | ES42: 3 | ET42: 4 | EU42: 6 | EV42: 1 | EW42: 3 | EX42: 29 | EY42: 33 | EZ42: 30 | FA42: 27 | FB42: 28 | FC42: 10 | FD42: 7
A43: 1 | B43: =OFFSET(Input_Details!$Q$4,MATCH($A43, Input_Details!$J$5:$J$24, 0), 0) -> 2017-11-20 | C43: =INDEX(Input_Details!$H$5:$H$24, MATCH($A43, Input_Details!$J$5:$J$24, 0), 0) -> Meadow Street | D43: =INDEX(Input_Details!$I$5:$I$24, MATCH($A43, Input_Details!$J$5:$J$24, 0), 0) -> 51.49499,-0.09696 | E43: =INDEX(Input_Details!$K$5:$K$24, MATCH($A43, Input_Details!$J$5:$J$24, 0), 0) -> Northbound | F43: Mon | G43: 09:45:00 | H43: 8 | I43: 7 | J43: 0 | K43: 0 | L43: 0 | M43: 1 | N43: 0 | O43: 0 | P43: 0 | Q43: 0 | R43: 0 | S43: 0 | T43: 1 | U43: 8 | V43: 7 | W43: 0 | X43: 0 | Y43: 0 | Z43: 0 | AA43: 0 | AB43: 0 | AC43: 0 | AD43: 0 | AE43: 0 | AF43: 0 | AG43: 0 | AH43: 0 | AI43: 0 | AJ43: 0 | AK43: 0 | AL43: 0 | AM43: 0 | AN43: 14.5 | AO43: 17.2 | AP43: 8 | AQ43: 19 | AR43: =INDEX(Input_Details!$L$5:$L$24, MATCH($A43, Input_Details!$J$5:$J$24, 0), 0) -> Southbound | AS43: Mon | AT43: 09:45:00 | AU43: 0 | AV43: 2 | AW43: 0 | AX43: 0 | AY43: 0 | AZ43: 0 | BA43: 0 | BB43: 0 | BC43: 0 | BD43: 0 | BE43: 0 | BF43: 0 | BG43: 0 | BH43: 1 | BI43: 1 | BJ43: 0 | BK43: 0 | BL43: 0 | BM43: 0 | BN43: 0 | BO43: 0 | BP43: 0 | BQ43: 0 | BR43: 0 | BS43: 0 | BT43: 0 | BU43: 0 | BV43: 0 | BW43: 0 | BX43: 0 | BY43: 0 | BZ43: 0 | CA43: 13.9 | CB43: - | CC43: 10.8 | CD43: 17 | CF43: Mon | CG43: 09:45:00 | CH43: 8 | CI43: 9 | CJ43: 0 | CK43: 0 | CL43: 0 | CM43: 1 | CN43: 0 | CO43: 0 | CP43: 0 | CQ43: 0 | CR43: 0 | CS43: 0 | CT43: 1 | CU43: 9 | CV43: 8 | CW43: 0 | CX43: 0 | CY43: 0 | CZ43: 0 | DA43: 0 | DB43: 0 | DC43: 0 | DD43: 0 | DE43: 0 | DF43: 0 | DG43: 0 | DH43: 0 | DI43: 0 | DJ43: 0 | DK43: 0 | DL43: 0 | DM43: 0 | DN43: 14.43333333 | DO43: 17.2 | DP43: 8 | DQ43: 19 | DR43: 8 | DS43: 7 | DT43: 0 | DU43: 0 | DV43: 1 | DW43: 16 | DX43: 0 | DY43: 2 | DZ43: 0 | EA43: 0 | EB43: 0 | EC43: 2 | ED43: 8 | EE43: 9 | EF43: 0 | EG43: 0 | EH43: 1 | EI43: 18 | EJ43: 16 | EK43: 15 | EL43: 19 | EM43: 17 | EN43: 21 | EO43: 12 | EP43: 9 | EQ43: 2 | ER43: 3 | ES43: 3 | ET43: 5 | EU43: 5 | EV43: 7 | EW43: 1 | EX43: 18 | EY43: 18 | EZ43: 22 | FA43: 22 | FB43: 26 | FC43: 19 | FD43: 10
A44: 1 | B44: =OFFSET(Input_Details!$Q$4,MATCH($A44, Input_Details!$J$5:$J$24, 0), 0) -> 2017-11-20 | C44: =INDEX(Input_Details!$H$5:$H$24, MATCH($A44, Input_Details!$J$5:$J$24, 0), 0) -> Meadow Street | D44: =INDEX(Input_Details!$I$5:$I$24, MATCH($A44, Input_Details!$J$5:$J$24, 0), 0) -> 51.49499,-0.09696 | E44: =INDEX(Input_Details!$K$5:$K$24, MATCH($A44, Input_Details!$J$5:$J$24, 0), 0) -> Northbound | F44: Mon | G44: 10:00:00 | H44: 8 | I44: 4 | J44: 0 | K44: 0 | L44: 0 | M44: 0 | N44: 0 | O44: 0 | P44: 0 | Q44: 0 | R44: 0 | S44: 0 | T44: 1 | U44: 8 | V44: 1 | W44: 2 | X44: 0 | Y44: 0 | Z44: 0 | AA44: 0 | AB44: 0 | AC44: 0 | AD44: 0 | AE44: 0 | AF44: 0 | AG44: 0 | AH44: 0 | AI44: 0 | AJ44: 0 | AK44: 0 | AL44: 0 | AM44: 0 | AN44: 13.8 | AO44: 15 | AP44: 7 | AQ44: 21 | AR44: =INDEX(Input_Details!$L$5:$L$24, MATCH($A44, Input_Details!$J$5:$J$24, 0), 0) -> Southbound | AS44: Mon | AT44: 10:00:00 | AU44: 2 | AV44: 3 | AW44: 0 | AX44: 1 | AY44: 0 | AZ44: 0 | BA44: 0 | BB44: 0 | BC44: 0 | BD44: 0 | BE44: 0 | BF44: 0 | BG44: 1 | BH44: 1 | BI44: 3 | BJ44: 1 | BK44: 0 | BL44: 0 | BM44: 0 | BN44: 0 | BO44: 0 | BP44: 0 | BQ44: 0 | BR44: 0 | BS44: 0 | BT44: 0 | BU44: 0 | BV44: 0 | BW44: 0 | BX44: 0 | BY44: 0 | BZ44: 0 | CA44: 16.6 | CB44: - | CC44: 10 | CD44: 24.7 | CF44: Mon | CG44: 10:00:00 | CH44: 10 | CI44: 7 | CJ44: 0 | CK44: 1 | CL44: 0 | CM44: 0 | CN44: 0 | CO44: 0 | CP44: 0 | CQ44: 0 | CR44: 0 | CS44: 0 | CT44: 2 | CU44: 9 | CV44: 4 | CW44: 3 | CX44: 0 | CY44: 0 | CZ44: 0 | DA44: 0 | DB44: 0 | DC44: 0 | DD44: 0 | DE44: 0 | DF44: 0 | DG44: 0 | DH44: 0 | DI44: 0 | DJ44: 0 | DK44: 0 | DL44: 0 | DM44: 0 | DN44: 14.73333333 | DO44: 15 | DP44: 7 | DQ44: 24.7 | DR44: 8 | DS44: 4 | DT44: 0 | DU44: 0 | DV44: 0 | DW44: 12 | DX44: 2 | DY44: 3 | DZ44: 1 | EA44: 0 | EB44: 0 | EC44: 6 | ED44: 10 | EE44: 7 | EF44: 1 | EG44: 0 | EH44: 0 | EI44: 18 | EJ44: 12 | EK44: 18 | EL44: 10 | EM44: 17 | EN44: 5 | EO44: 12 | EP44: 4 | EQ44: 6 | ER44: 5 | ES44: 3 | ET44: 2 | EU44: 7 | EV44: 6 | EW44: 2 | EX44: 18 | EY44: 23 | EZ44: 13 | FA44: 19 | FB44: 12 | FC44: 18 | FD44: 6
A45: 1 | B45: =OFFSET(Input_Details!$Q$4,MATCH($A45, Input_Details!$J$5:$J$24, 0), 0) -> 2017-11-20 | C45: =INDEX(Input_Details!$H$5:$H$24, MATCH($A45, Input_Details!$J$5:$J$24, 0), 0) -> Meadow Street | D45: =INDEX(Input_Details!$I$5:$I$24, MATCH($A45, Input_Details!$J$5:$J$24, 0), 0) -> 51.49499,-0.09696 | E45: =INDEX(Input_Details!$K$5:$K$24, MATCH($A45, Input_Details!$J$5:$J$24, 0), 0) -> Northbound | F45: Mon | G45: 10:15:00 | H45: 6 | I45: 2 | J45: 0 | K45: 1 | L45: 0 | M45: 0 | N45: 0 | O45: 0 | P45: 0 | Q45: 0 | R45: 0 | S45: 0 | T45: 0 | U45: 8 | V45: 1 | W45: 0 | X45: 0 | Y45: 0 | Z45: 0 | AA45: 0 | AB45: 0 | AC45: 0 | AD45: 0 | AE45: 0 | AF45: 0 | AG45: 0 | AH45: 0 | AI45: 0 | AJ45: 0 | AK45: 0 | AL45: 0 | AM45: 0 | AN45: 14 | AO45: - | AP45: 11.6 | AQ45: 19.4 | AR45: =INDEX(Input_Details!$L$5:$L$24, MATCH($A45, Input_Details!$J$5:$J$24, 0), 0) -> Southbound | AS45: Mon | AT45: 10:15:00 | AU45: 1 | AV45: 3 | AW45: 0 | AX45: 0 | AY45: 0 | AZ45: 0 | BA45: 0 | BB45: 0 | BC45: 0 | BD45: 0 | BE45: 0 | BF45: 0 | BG45: 0 | BH45: 1 | BI45: 1 | BJ45: 2 | BK45: 0 | BL45: 0 | BM45: 0 | BN45: 0 | BO45: 0 | BP45: 0 | BQ45: 0 | BR45: 0 | BS45: 0 | BT45: 0 | BU45: 0 | BV45: 0 | BW45: 0 | BX45: 0 | BY45: 0 | BZ45: 0 | CA45: 18.1 | CB45: - | CC45: 13.8 | CD45: 21.2 | CF45: Mon | CG45: 10:15:00 | CH45: 7 | CI45: 5 | CJ45: 0 | CK45: 1 | CL45: 0 | CM45: 0 | CN45: 0 | CO45: 0 | CP45: 0 | CQ45: 0 | CR45: 0 | CS45: 0 | CT45: 0 | CU45: 9 | CV45: 2 | CW45: 2 | CX45: 0 | CY45: 0 | CZ45: 0 | DA45: 0 | DB45: 0 | DC45: 0 | DD45: 0 | DE45: 0 | DF45: 0 | DG45: 0 | DH45: 0 | DI45: 0 | DJ45: 0 | DK45: 0 | DL45: 0 | DM45: 0 | DN45: 15.26153846 | DO45: - | DP45: 11.6 | DQ45: 21.2 | DR45: 6 | DS45: 2 | DT45: 1 | DU45: 0 | DV45: 0 | DW45: 9 | DX45: 1 | DY45: 3 | DZ45: 0 | EA45: 0 | EB45: 0 | EC45: 4 | ED45: 7 | EE45: 5 | EF45: 1 | EG45: 0 | EH45: 0 | EI45: 13 | EJ45: 9 | EK45: 9 | EL45: 4 | EM45: 3 | EN45: 6 | EO45: 15 | EP45: 4 | EQ45: 4 | ER45: 8 | ES45: 5 | ET45: 7 | EU45: 7 | EV45: 4 | EW45: 4 | EX45: 13 | EY45: 17 | EZ45: 9 | FA45: 10 | FB45: 13 | FC45: 19 | FD45: 8
A46: 1 | B46: =OFFSET(Input_Details!$Q$4,MATCH($A46, Input_Details!$J$5:$J$24, 0), 0) -> 2017-11-20 | C46: =INDEX(Input_Details!$H$5:$H$24, MATCH($A46, Input_Details!$J$5:$J$24, 0), 0) -> Meadow Street | D46: =INDEX(Input_Details!$I$5:$I$24, MATCH($A46, Input_Details!$J$5:$J$24, 0), 0) -> 51.49499,-0.09696 | E46: =INDEX(Input_Details!$K$5:$K$24, MATCH($A46, Input_Details!$J$5:$J$24, 0), 0) -> Northbound | F46: Mon | G46: 10:30:00 | H46: 4 | I46: 2 | J46: 0 | K46: 2 | L46: 0 | M46: 0 | N46: 0 | O46: 0 | P46: 0 | Q46: 0 | R46: 0 | S46: 0 | T46: 0 | U46: 4 | V46: 4 | W46: 0 | X46: 0 | Y46: 0 | Z46: 0 | AA46: 0 | AB46: 0 | AC46: 0 | AD46: 0 | AE46: 0 | AF46: 0 | AG46: 0 | AH46: 0 | AI46: 0 | AJ46: 0 | AK46: 0 | AL46: 0 | AM46: 0 | AN46: 15.1 | AO46: - | AP46: 12.5 | AQ46: 19.4 | AR46: =INDEX(Input_Details!$L$5:$L$24, MATCH($A46, Input_Details!$J$5:$J$24, 0), 0) -> Southbound | AS46: Mon | AT46: 10:30:00 | AU46: 0 | AV46: 3 | AW46: 0 | AX46: 0 | AY46: 0 | AZ46: 0 | BA46: 0 | BB46: 0 | BC46: 0 | BD46: 0 | BE46: 0 | BF46: 0 | BG46: 1 | BH46: 0 | BI46: 2 | BJ46: 0 | BK46: 0 | BL46: 0 | BM46: 0 | BN46: 0 | BO46: 0 | BP46: 0 | BQ46: 0 | BR46: 0 | BS46: 0 | BT46: 0 | BU46: 0 | BV46: 0 | BW46: 0 | BX46: 0 | BY46: 0 | BZ46: 0 | CA46: 14.5 | CB46: - | CC46: 7.6 | CD46: 18.3 | CF46: Mon | CG46: 10:30:00 | CH46: 4 | CI46: 5 | CJ46: 0 | CK46: 2 | CL46: 0 | CM46: 0 | CN46: 0 | CO46: 0 | CP46: 0 | CQ46: 0 | CR46: 0 | CS46: 0 | CT46: 1 | CU46: 4 | CV46: 6 | CW46: 0 | CX46: 0 | CY46: 0 | CZ46: 0 | DA46: 0 | DB46: 0 | DC46: 0 | DD46: 0 | DE46: 0 | DF46: 0 | DG46: 0 | DH46: 0 | DI46: 0 | DJ46: 0 | DK46: 0 | DL46: 0 | DM46: 0 | DN46: 14.93636364 | DO46: - | DP46: 7.6 | DQ46: 19.4 | DR46: 4 | DS46: 2 | DT46: 2 | DU46: 0 | DV46: 0 | DW46: 8 | DX46: 0 | DY46: 3 | DZ46: 0 | EA46: 0 | EB46: 0 | EC46: 3 | ED46: 4 | EE46: 5 | EF46: 2 | EG46: 0 | EH46: 0 | EI46: 11 | EJ46: 8 | EK46: 9 | EL46: 7 | EM46: 10 | EN46: 8 | EO46: 4 | EP46: 4 | EQ46: 3 | ER46: 3 | ES46: 5 | ET46: 5 | EU46: 4 | EV46: 3 | EW46: 0 | EX46: 11 | EY46: 12 | EZ46: 12 | FA46: 15 | FB46: 12 | FC46: 7 | FD46: 4
A47: 1 | B47: =OFFSET(Input_Details!$Q$4,MATCH($A47, Input_Details!$J$5:$J$24, 0), 0) -> 2017-11-20 | C47: =INDEX(Input_Details!$H$5:$H$24, MATCH($A47, Input_Details!$J$5:$J$24, 0), 0) -> Meadow Street | D47: =INDEX(Input_Details!$I$5:$I$24, MATCH($A47, Input_Details!$J$5:$J$24, 0), 0) -> 51.49499,-0.09696 | E47: =INDEX(Input_Details!$K$5:$K$24, MATCH($A47, Input_Details!$J$5:$J$24, 0), 0) -> Northbound | F47: Mon | G47: 10:45:00 | H47: 5 | I47: 0 | J47: 0 | K47: 0 | L47: 0 | M47: 0 | N47: 0 | O47: 0 | P47: 0 | Q47: 0 | R47: 0 | S47: 0 | T47: 1 | U47: 3 | V47: 1 | W47: 0 | X47: 0 | Y47: 0 | Z47: 0 | AA47: 0 | AB47: 0 | AC47: 0 | AD47: 0 | AE47: 0 | AF47: 0 | AG47: 0 | AH47: 0 | AI47: 0 | AJ47: 0 | AK47: 0 | AL47: 0 | AM47: 0 | AN47: 12.5 | AO47: - | AP47: 9.3 | AQ47: 15.5 | AR47: =INDEX(Input_Details!$L$5:$L$24, MATCH($A47, Input_Details!$J$5:$J$24, 0), 0) -> Southbound | AS47: Mon | AT47: 10:45:00 | AU47: 3 | AV47: 4 | AW47: 0 | AX47: 0 | AY47: 0 | AZ47: 0 | BA47: 0 | BB47: 0 | BC47: 0 | BD47: 0 | BE47: 0 | BF47: 0 | BG47: 1 | BH47: 4 | BI47: 1 | BJ47: 1 | BK47: 0 | BL47: 0 | BM47: 0 | BN47: 0 | BO47: 0 | BP47: 0 | BQ47: 0 | BR47: 0 | BS47: 0 | BT47: 0 | BU47: 0 | BV47: 0 | BW47: 0 | BX47: 0 | BY47: 0 | BZ47: 0 | CA47: 13.7 | CB47: - | CC47: 8.9 | CD47: 20.4 | CF47: Mon | CG47: 10:45:00 | CH47: 8 | CI47: 4 | CJ47: 0 | CK47: 0 | CL47: 0 | CM47: 0 | CN47: 0 | CO47: 0 | CP47: 0 | CQ47: 0 | CR47: 0 | CS47: 0 | CT47: 2 | CU47: 7 | CV47: 2 | CW47: 1 | CX47: 0 | CY47: 0 | CZ47: 0 | DA47: 0 | DB47: 0 | DC47: 0 | DD47: 0 | DE47: 0 | DF47: 0 | DG47: 0 | DH47: 0 | DI47: 0 | DJ47: 0 | DK47: 0 | DL47: 0 | DM47: 0 | DN47: 13.2 | DO47: - | DP47: 8.9 | DQ47: 20.4 | DR47: 5 | DS47: 0 | DT47: 0 | DU47: 0 | DV47: 0 | DW47: 5 | DX47: 3 | DY47: 4 | DZ47: 0 | EA47: 0 | EB47: 0 | EC47: 7 | ED47: 8 | EE47: 4 | EF47: 0 | EG47: 0 | EH47: 0 | EI47: 12 | EJ47: 5 | EK47: 5 | EL47: 11 | EM47: 4 | EN47: 11 | EO47: 9 | EP47: 5 | EQ47: 7 | ER47: 5 | ES47: 6 | ET47: 6 | EU47: 5 | EV47: 2 | EW47: 5 | EX47: 12 | EY47: 10 | EZ47: 17 | FA47: 10 | FB47: 16 | FC47: 11 | FD47: 10
A48: 1 | B48: =OFFSET(Input_Details!$Q$4,MATCH($A48, Input_Details!$J$5:$J$24, 0), 0) -> 2017-11-20 | C48: =INDEX(Input_Details!$H$5:$H$24, MATCH($A48, Input_Details!$J$5:$J$24, 0), 0) -> Meadow Street | D48: =INDEX(Input_Details!$I$5:$I$24, MATCH($A48, Input_Details!$J$5:$J$24, 0), 0) -> 51.49499,-0.09696 | E48: =INDEX(Input_Details!$K$5:$K$24, MATCH($A48, Input_Details!$J$5:$J$24, 0), 0) -> Northbound | F48: Mon | G48: 11:00:00 | H48: 2 | I48: 2 | J48: 0 | K48: 0 | L48: 0 | M48: 0 | N48: 0 | O48: 0 | P48: 0 | Q48: 0 | R48: 0 | S48: 0 | T48: 1 | U48: 2 | V48: 1 | W48: 0 | X48: 0 | Y48: 0 | Z48: 0 | AA48: 0 | AB48: 0 | AC48: 0 | AD48: 0 | AE48: 0 | AF48: 0 | AG48: 0 | AH48: 0 | AI48: 0 | AJ48: 0 | AK48: 0 | AL48: 0 | AM48: 0 | AN48: 12.6 | AO48: - | AP48: 8.2 | AQ48: 19 | AR48: =INDEX(Input_Details!$L$5:$L$24, MATCH($A48, Input_Details!$J$5:$J$24, 0), 0) -> Southbound | AS48: Mon | AT48: 11:00:00 | AU48: 3 | AV48: 3 | AW48: 0 | AX48: 1 | AY48: 0 | AZ48: 0 | BA48: 0 | BB48: 0 | BC48: 0 | BD48: 0 | BE48: 0 | BF48: 0 | BG48: 2 | BH48: 1 | BI48: 2 | BJ48: 2 | BK48: 0 | BL48: 0 | BM48: 0 | BN48: 0 | BO48: 0 | BP48: 0 | BQ48: 0 | BR48: 0 | BS48: 0 | BT48: 0 | BU48: 0 | BV48: 0 | BW48: 0 | BX48: 0 | BY48: 0 | BZ48: 0 | CA48: 16.1 | CB48: - | CC48: 8.5 | CD48: 23.3 | CF48: Mon | CG48: 11:00:00 | CH48: 5 | CI48: 5 | CJ48: 0 | CK48: 1 | CL48: 0 | CM48: 0 | CN48: 0 | CO48: 0 | CP48: 0 | CQ48: 0 | CR48: 0 | CS48: 0 | CT48: 3 | CU48: 3 | CV48: 3 | CW48: 2 | CX48: 0 | CY48: 0 | CZ48: 0 | DA48: 0 | DB48: 0 | DC48: 0 | DD48: 0 | DE48: 0 | DF48: 0 | DG48: 0 | DH48: 0 | DI48: 0 | DJ48: 0 | DK48: 0 | DL48: 0 | DM48: 0 | DN48: 14.82727273 | DO48: - | DP48: 8.2 | DQ48: 23.3 | DR48: 2 | DS48: 2 | DT48: 0 | DU48: 0 | DV48: 0 | DW48: 4 | DX48: 3 | DY48: 3 | DZ48: 1 | EA48: 0 | EB48: 0 | EC48: 7 | ED48: 5 | EE48: 5 | EF48: 1 | EG48: 0 | EH48: 0 | EI48: 11 | EJ48: 4 | EK48: 4 | EL48: 9 | EM48: 15 | EN48: 9 | EO48: 8 | EP48: 5 | EQ48: 7 | ER48: 7 | ES48: 8 | ET48: 7 | EU48: 4 | EV48: 5 | EW48: 5 | EX48: 11 | EY48: 11 | EZ48: 17 | FA48: 22 | FB48: 13 | FC48: 13 | FD48: 10
A49: 1 | B49: =OFFSET(Input_Details!$Q$4,MATCH($A49, Input_Details!$J$5:$J$24, 0), 0) -> 2017-11-20 | C49: =INDEX(Input_Details!$H$5:$H$24, MATCH($A49, Input_Details!$J$5:$J$24, 0), 0) -> Meadow Street | D49: =INDEX(Input_Details!$I$5:$I$24, MATCH($A49, Input_Details!$J$5:$J$24, 0), 0) -> 51.49499,-0.09696 | E49: =INDEX(Input_Details!$K$5:$K$24, MATCH($A49, Input_Details!$J$5:$J$24, 0), 0) -> Northbound | F49: Mon | G49: 11:15:00 | H49: 1 | I49: 3 | J49: 0 | K49: 0 | L49: 0 | M49: 0 | N49: 0 | O49: 0 | P49: 0 | Q49: 0 | R49: 0 | S49: 0 | T49: 1 | U49: 2 | V49: 0 | W49: 0 | X49: 1 | Y49: 0 | Z49: 0 | AA49: 0 | AB49: 0 | AC49: 0 | AD49: 0 | AE49: 0 | AF49: 0 | AG49: 0 | AH49: 0 | AI49: 0 | AJ49: 0 | AK49: 0 | AL49: 0 | AM49: 0 | AN49: 15 | AO49: - | AP49: 9 | AQ49: 25.4 | AR49: =INDEX(Input_Details!$L$5:$L$24, MATCH($A49, Input_Details!$J$5:$J$24, 0), 0) -> Southbound | AS49: Mon | AT49: 11:15:00 | AU49: 0 | AV49: 2 | AW49: 0 | AX49: 0 | AY49: 0 | AZ49: 0 | BA49: 0 | BB49: 0 | BC49: 0 | BD49: 0 | BE49: 0 | BF49: 0 | BG49: 1 | BH49: 0 | BI49: 1 | BJ49: 0 | BK49: 0 | BL49: 0 | BM49: 0 | BN49: 0 | BO49: 0 | BP49: 0 | BQ49: 0 | BR49: 0 | BS49: 0 | BT49: 0 | BU49: 0 | BV49: 0 | BW49: 0 | BX49: 0 | BY49: 0 | BZ49: 0 | CA49: 9.9 | CB49: - | CC49: 4.6 | CD49: 15.1 | CF49: Mon | CG49: 11:15:00 | CH49: 1 | CI49: 5 | CJ49: 0 | CK49: 0 | CL49: 0 | CM49: 0 | CN49: 0 | CO49: 0 | CP49: 0 | CQ49: 0 | CR49: 0 | CS49: 0 | CT49: 2 | CU49: 2 | CV49: 1 | CW49: 0 | CX49: 1 | CY49: 0 | CZ49: 0 | DA49: 0 | DB49: 0 | DC49: 0 | DD49: 0 | DE49: 0 | DF49: 0 | DG49: 0 | DH49: 0 | DI49: 0 | DJ49: 0 | DK49: 0 | DL49: 0 | DM49: 0 | DN49: 13.3 | DO49: - | DP49: 4.6 | DQ49: 25.4 | DR49: 1 | DS49: 3 | DT49: 0 | DU49: 0 | DV49: 0 | DW49: 4 | DX49: 0 | DY49: 2 | DZ49: 0 | EA49: 0 | EB49: 0 | EC49: 2 | ED49: 1 | EE49: 5 | EF49: 0 | EG49: 0 | EH49: 0 | EI49: 6 | EJ49: 4 | EK49: 6 | EL49: 14 | EM49: 1 | EN49: 5 | EO49: 7 | EP49: 3 | EQ49: 2 | ER49: 5 | ES49: 1 | ET49: 7 | EU49: 5 | EV49: 6 | EW49: 5 | EX49: 6 | EY49: 11 | EZ49: 15 | FA49: 8 | FB49: 10 | FC49: 13 | FD49: 8
A50: 1 | B50: =OFFSET(Input_Details!$Q$4,MATCH($A50, Input_Details!$J$5:$J$24, 0), 0) -> 2017-11-20 | C50: =INDEX(Input_Details!$H$5:$H$24, MATCH($A50, Input_Details!$J$5:$J$24, 0), 0) -> Meadow Street | D50: =INDEX(Input_Details!$I$5:$I$24, MATCH($A50, Input_Details!$J$5:$J$24, 0), 0) -> 51.49499,-0.09696 | E50: =INDEX(Input_Details!$K$5:$K$24, MATCH($A50, Input_Details!$J$5:$J$24, 0), 0) -> Northbound | F50: Mon | G50: 11:30:00 | H50: 2 | I50: 4 | J50: 0 | K50: 2 | L50: 0 | M50: 0 | N50: 0 | O50: 0 | P50: 0 | Q50: 0 | R50: 0 | S50: 0 | T50: 0 | U50: 5 | V50: 3 | W50: 0 | X50: 0 | Y50: 0 | Z50: 0 | AA50: 0 | AB50: 0 | AC50: 0 | AD50: 0 | AE50: 0 | AF50: 0 | AG50: 0 | AH50: 0 | AI50: 0 | AJ50: 0 | AK50: 0 | AL50: 0 | AM50: 0 | AN50: 14.7 | AO50: - | AP50: 11.3 | AQ50: 17.6 | AR50: =INDEX(Input_Details!$L$5:$L$24, MATCH($A50, Input_Details!$J$5:$J$24, 0), 0) -> Southbound | AS50: Mon | AT50: 11:30:00 | AU50: 4 | AV50: 6 | AW50: 0 | AX50: 0 | AY50: 0 | AZ50: 0 | BA50: 0 | BB50: 0 | BC50: 0 | BD50: 0 | BE50: 0 | BF50: 0 | BG50: 1 | BH50: 5 | BI50: 3 | BJ50: 1 | BK50: 0 | BL50: 0 | BM50: 0 | BN50: 0 | BO50: 0 | BP50: 0 | BQ50: 0 | BR50: 0 | BS50: 0 | BT50: 0 | BU50: 0 | BV50: 0 | BW50: 0 | BX50: 0 | BY50: 0 | BZ50: 0 | CA50: 14.2 | CB50: - | CC50: 8.7 | CD50: 22.2 | CF50: Mon | CG50: 11:30:00 | CH50: 6 | CI50: 10 | CJ50: 0 | CK50: 2 | CL50: 0 | CM50: 0 | CN50: 0 | CO50: 0 | CP50: 0 | CQ50: 0 | CR50: 0 | CS50: 0 | CT50: 1 | CU50: 10 | CV50: 6 | CW50: 1 | CX50: 0 | CY50: 0 | CZ50: 0 | DA50: 0 | DB50: 0 | DC50: 0 | DD50: 0 | DE50: 0 | DF50: 0 | DG50: 0 | DH50: 0 | DI50: 0 | DJ50: 0 | DK50: 0 | DL50: 0 | DM50: 0 | DN50: 14.42222222 | DO50: - | DP50: 8.7 | DQ50: 22.2 | DR50: 2 | DS50: 4 | DT50: 2 | DU50: 0 | DV50: 0 | DW50: 8 | DX50: 4 | DY50: 6 | DZ50: 0 | EA50: 0 | EB50: 0 | EC50: 10 | ED50: 6 | EE50: 10 | EF50: 2 | EG50: 0 | EH50: 0 | EI50: 18 | EJ50: 8 | EK50: 7 | EL50: 9 | EM50: 4 | EN50: 6 | EO50: 8 | EP50: 10 | EQ50: 10 | ER50: 4 | ES50: 4 | ET50: 8 | EU50: 7 | EV50: 4 | EW50: 7 | EX50: 18 | EY50: 11 | EZ50: 13 | FA50: 12 | FB50: 13 | FC50: 12 | FD50: 17
A51: 1 | B51: =OFFSET(Input_Details!$Q$4,MATCH($A51, Input_Details!$J$5:$J$24, 0), 0) -> 2017-11-20 | C51: =INDEX(Input_Details!$H$5:$H$24, MATCH($A51, Input_Details!$J$5:$J$24, 0), 0) -> Meadow Street | D51: =INDEX(Input_Details!$I$5:$I$24, MATCH($A51, Input_Details!$J$5:$J$24, 0), 0) -> 51.49499,-0.09696 | E51: =INDEX(Input_Details!$K$5:$K$24, MATCH($A51, Input_Details!$J$5:$J$24, 0), 0) -> Northbound | F51: Mon | G51: 11:45:00 | H51: 2 | I51: 3 | J51: 0 | K51: 0 | L51: 0 | M51: 0 | N51: 0 | O51: 0 | P51: 0 | Q51: 0 | R51: 0 | S51: 0 | T51: 0 | U51: 3 | V51: 2 | W51: 0 | X51: 0 | Y51: 0 | Z51: 0 | AA51: 0 | AB51: 0 | AC51: 0 | AD51: 0 | AE51: 0 | AF51: 0 | AG51: 0 | AH51: 0 | AI51: 0 | AJ51: 0 | AK51: 0 | AL51: 0 | AM51: 0 | AN51: 14.4 | AO51: - | AP51: 12.9 | AQ51: 15.5 | AR51: =INDEX(Input_Details!$L$5:$L$24, MATCH($A51, Input_Details!$J$5:$J$24, 0), 0) -> Southbound | AS51: Mon | AT51: 11:45:00 | AU51: 0 | AV51: 2 | AW51: 0 | AX51: 0 | AY51: 0 | AZ51: 0 | BA51: 0 | BB51: 0 | BC51: 0 | BD51: 0 | BE51: 0 | BF51: 0 | BG51: 0 | BH51: 0 | BI51: 1 | BJ51: 1 | BK51: 0 | BL51: 0 | BM51: 0 | BN51: 0 | BO51: 0 | BP51: 0 | BQ51: 0 | BR51: 0 | BS51: 0 | BT51: 0 | BU51: 0 | BV51: 0 | BW51: 0 | BX51: 0 | BY51: 0 | BZ51: 0 | CA51: 18.6 | CB51: - | CC51: 16.6 | CD51: 20.5 | CF51: Mon | CG51: 11:45:00 | CH51: 2 | CI51: 5 | CJ51: 0 | CK51: 0 | CL51: 0 | CM51: 0 | CN51: 0 | CO51: 0 | CP51: 0 | CQ51: 0 | CR51: 0 | CS51: 0 | CT51: 0 | CU51: 3 | CV51: 3 | CW51: 1 | CX51: 0 | CY51: 0 | CZ51: 0 | DA51: 0 | DB51: 0 | DC51: 0 | DD51: 0 | DE51: 0 | DF51: 0 | DG51: 0 | DH51: 0 | DI51: 0 | DJ51: 0 | DK51: 0 | DL51: 0 | DM51: 0 | DN51: 15.6 | DO51: - | DP51: 12.9 | DQ51: 20.5 | DR51: 2 | DS51: 3 | DT51: 0 | DU51: 0 | DV51: 0 | DW51: 5 | DX51: 0 | DY51: 2 | DZ51: 0 | EA51: 0 | EB51: 0 | EC51: 2 | ED51: 2 | EE51: 5 | EF51: 0 | EG51: 0 | EH51: 0 | EI51: 7 | EJ51: 5 | EK51: 4 | EL51: 5 | EM51: 9 | EN51: 6 | EO51: 7 | EP51: 7 | EQ51: 2 | ER51: 4 | ES51: 7 | ET51: 9 | EU51: 3 | EV51: 9 | EW51: 2 | EX51: 7 | EY51: 8 | EZ51: 12 | FA51: 18 | FB51: 9 | FC51: 16 | FD51: 9
A52: 1 | B52: =OFFSET(Input_Details!$Q$4,MATCH($A52, Input_Details!$J$5:$J$24, 0), 0) -> 2017-11-20 | C52: =INDEX(Input_Details!$H$5:$H$24, MATCH($A52, Input_Details!$J$5:$J$24, 0), 0) -> Meadow Street | D52: =INDEX(Input_Details!$I$5:$I$24, MATCH($A52, Input_Details!$J$5:$J$24, 0), 0) -> 51.49499,-0.09696 | E52: =INDEX(Input_Details!$K$5:$K$24, MATCH($A52, Input_Details!$J$5:$J$24, 0), 0) -> Northbound | F52: Mon | G52: 12:00:00 | H52: 0 | I52: 5 | J52: 0 | K52: 4 | L52: 0 | M52: 1 | N52: 0 | O52: 0 | P52: 0 | Q52: 0 | R52: 0 | S52: 0 | T52: 2 | U52: 4 | V52: 2 | W52: 2 | X52: 0 | Y52: 0 | Z52: 0 | AA52: 0 | AB52: 0 | AC52: 0 | AD52: 0 | AE52: 0 | AF52: 0 | AG52: 0 | AH52: 0 | AI52: 0 | AJ52: 0 | AK52: 0 | AL52: 0 | AM52: 0 | AN52: 14.6 | AO52: - | AP52: 6 | AQ52: 21.9 | AR52: =INDEX(Input_Details!$L$5:$L$24, MATCH($A52, Input_Details!$J$5:$J$24, 0), 0) -> Southbound | AS52: Mon | AT52: 12:00:00 | AU52: 1 | AV52: 3 | AW52: 0 | AX52: 0 | AY52: 0 | AZ52: 0 | BA52: 0 | BB52: 0 | BC52: 0 | BD52: 0 | BE52: 0 | BF52: 0 | BG52: 0 | BH52: 1 | BI52: 3 | BJ52: 0 | BK52: 0 | BL52: 0 | BM52: 0 | BN52: 0 | BO52: 0 | BP52: 0 | BQ52: 0 | BR52: 0 | BS52: 0 | BT52: 0 | BU52: 0 | BV52: 0 | BW52: 0 | BX52: 0 | BY52: 0 | BZ52: 0 | CA52: 16.3 | CB52: - | CC52: 13.7 | CD52: 19.7 | CF52: Mon | CG52: 12:00:00 | CH52: 1 | CI52: 8 | CJ52: 0 | CK52: 4 | CL52: 0 | CM52: 1 | CN52: 0 | CO52: 0 | CP52: 0 | CQ52: 0 | CR52: 0 | CS52: 0 | CT52: 2 | CU52: 5 | CV52: 5 | CW52: 2 | CX52: 0 | CY52: 0 | CZ52: 0 | DA52: 0 | DB52: 0 | DC52: 0 | DD52: 0 | DE52: 0 | DF52: 0 | DG52: 0 | DH52: 0 | DI52: 0 | DJ52: 0 | DK52: 0 | DL52: 0 | DM52: 0 | DN52: 15.08571429 | DO52: - | DP52: 6 | DQ52: 21.9 | DR52: 0 | DS52: 5 | DT52: 4 | DU52: 0 | DV52: 1 | DW52: 10 | DX52: 1 | DY52: 3 | DZ52: 0 | EA52: 0 | EB52: 0 | EC52: 4 | ED52: 1 | EE52: 8 | EF52: 4 | EG52: 0 | EH52: 1 | EI52: 14 | EJ52: 10 | EK52: 5 | EL52: 5 | EM52: 4 | EN52: 9 | EO52: 8 | EP52: 8 | EQ52: 4 | ER52: 1 | ES52: 8 | ET52: 1 | EU52: 9 | EV52: 4 | EW52: 5 | EX52: 14 | EY52: 6 | EZ52: 13 | FA52: 5 | FB52: 18 | FC52: 12 | FD52: 13
A53: 1 | B53: =OFFSET(Input_Details!$Q$4,MATCH($A53, Input_Details!$J$5:$J$24, 0), 0) -> 2017-11-20 | C53: =INDEX(Input_Details!$H$5:$H$24, MATCH($A53, Input_Details!$J$5:$J$24, 0), 0) -> Meadow Street | D53: =INDEX(Input_Details!$I$5:$I$24, MATCH($A53, Input_Details!$J$5:$J$24, 0), 0) -> 51.49499,-0.09696 | E53: =INDEX(Input_Details!$K$5:$K$24, MATCH($A53, Input_Details!$J$5:$J$24, 0), 0) -> Northbound | F53: Mon | G53: 12:15:00 | H53: 4 | I53: 3 | J53: 0 | K53: 2 | L53: 0 | M53: 0 | N53: 0 | O53: 0 | P53: 0 | Q53: 0 | R53: 0 | S53: 0 | T53: 1 | U53: 6 | V53: 1 | W53: 1 | X53: 0 | Y53: 0 | Z53: 0 | AA53: 0 | AB53: 0 | AC53: 0 | AD53: 0 | AE53: 0 | AF53: 0 | AG53: 0 | AH53: 0 | AI53: 0 | AJ53: 0 | AK53: 0 | AL53: 0 | AM53: 0 | AN53: 13.2 | AO53: - | AP53: 6.2 | AQ53: 20.3 | AR53: =INDEX(Input_Details!$L$5:$L$24, MATCH($A53, Input_Details!$J$5:$J$24, 0), 0) -> Southbound | AS53: Mon | AT53: 12:15:00 | AU53: 1 | AV53: 2 | AW53: 0 | AX53: 1 | AY53: 0 | AZ53: 0 | BA53: 0 | BB53: 0 | BC53: 0 | BD53: 0 | BE53: 0 | BF53: 0 | BG53: 0 | BH53: 2 | BI53: 2 | BJ53: 0 | BK53: 0 | BL53: 0 | BM53: 0 | BN53: 0 | BO53: 0 | BP53: 0 | BQ53: 0 | BR53: 0 | BS53: 0 | BT53: 0 | BU53: 0 | BV53: 0 | BW53: 0 | BX53: 0 | BY53: 0 | BZ53: 0 | CA53: 13.9 | CB53: - | CC53: 10.5 | CD53: 16.7 | CF53: Mon | CG53: 12:15:00 | CH53: 5 | CI53: 5 | CJ53: 0 | CK53: 3 | CL53: 0 | CM53: 0 | CN53: 0 | CO53: 0 | CP53: 0 | CQ53: 0 | CR53: 0 | CS53: 0 | CT53: 1 | CU53: 8 | CV53: 3 | CW53: 1 | CX53: 0 | CY53: 0 | CZ53: 0 | DA53: 0 | DB53: 0 | DC53: 0 | DD53: 0 | DE53: 0 | DF53: 0 | DG53: 0 | DH53: 0 | DI53: 0 | DJ53: 0 | DK53: 0 | DL53: 0 | DM53: 0 | DN53: 13.41538462 | DO53: - | DP53: 6.2 | DQ53: 20.3 | DR53: 4 | DS53: 3 | DT53: 2 | DU53: 0 | DV53: 0 | DW53: 9 | DX53: 1 | DY53: 2 | DZ53: 1 | EA53: 0 | EB53: 0 | EC53: 4 | ED53: 5 | EE53: 5 | EF53: 3 | EG53: 0 | EH53: 0 | EI53: 13 | EJ53: 9 | EK53: 4 | EL53: 9 | EM53: 7 | EN53: 8 | EO53: 6 | EP53: 5 | EQ53: 4 | ER53: 7 | ES53: 7 | ET53: 3 | EU53: 3 | EV53: 3 | EW53: 3 | EX53: 13 | EY53: 11 | EZ53: 16 | FA53: 10 | FB53: 11 | FC53: 9 | FD53: 8
A54: 1 | B54: =OFFSET(Input_Details!$Q$4,MATCH($A54, Input_Details!$J$5:$J$24, 0), 0) -> 2017-11-20 | C54: =INDEX(Input_Details!$H$5:$H$24, MATCH($A54, Input_Details!$J$5:$J$24, 0), 0) -> Meadow Street | D54: =INDEX(Input_Details!$I$5:$I$24, MATCH($A54, Input_Details!$J$5:$J$24, 0), 0) -> 51.49499,-0.09696 | E54: =INDEX(Input_Details!$K$5:$K$24, MATCH($A54, Input_Details!$J$5:$J$24, 0), 0) -> Northbound | F54: Mon | G54: 12:30:00 | H54: 2 | I54: 4 | J54: 0 | K54: 2 | L54: 0 | M54: 0 | N54: 0 | O54: 0 | P54: 0 | Q54: 0 | R54: 0 | S54: 0 | T54: 1 | U54: 5 | V54: 1 | W54: 1 | X54: 0 | Y54: 0 | Z54: 0 | AA54: 0 | AB54: 0 | AC54: 0 | AD54: 0 | AE54: 0 | AF54: 0 | AG54: 0 | AH54: 0 | AI54: 0 | AJ54: 0 | AK54: 0 | AL54: 0 | AM54: 0 | AN54: 12.8 | AO54: - | AP54: 6.5 | AQ54: 20.6 | AR54: =INDEX(Input_Details!$L$5:$L$24, MATCH($A54, Input_Details!$J$5:$J$24, 0), 0) -> Southbound | AS54: Mon | AT54: 12:30:00 | AU54: 2 | AV54: 3 | AW54: 0 | AX54: 2 | AY54: 0 | AZ54: 0 | BA54: 0 | BB54: 0 | BC54: 0 | BD54: 0 | BE54: 0 | BF54: 0 | BG54: 2 | BH54: 4 | BI54: 0 | BJ54: 1 | BK54: 0 | BL54: 0 | BM54: 0 | BN54: 0 | BO54: 0 | BP54: 0 | BQ54: 0 | BR54: 0 | BS54: 0 | BT54: 0 | BU54: 0 | BV54: 0 | BW54: 0 | BX54: 0 | BY54: 0 | BZ54: 0 | CA54: 13.9 | CB54: - | CC54: 9.3 | CD54: 22 | CF54: Mon | CG54: 12:30:00 | CH54: 4 | CI54: 7 | CJ54: 0 | CK54: 4 | CL54: 0 | CM54: 0 | CN54: 0 | CO54: 0 | CP54: 0 | CQ54: 0 | CR54: 0 | CS54: 0 | CT54: 3 | CU54: 9 | CV54: 1 | CW54: 2 | CX54: 0 | CY54: 0 | CZ54: 0 | DA54: 0 | DB54: 0 | DC54: 0 | DD54: 0 | DE54: 0 | DF54: 0 | DG54: 0 | DH54: 0 | DI54: 0 | DJ54: 0 | DK54: 0 | DL54: 0 | DM54: 0 | DN54: 13.31333333 | DO54: - | DP54: 6.5 | DQ54: 22 | DR54: 2 | DS54: 4 | DT54: 2 | DU54: 0 | DV54: 0 | DW54: 8 | DX54: 2 | DY54: 3 | DZ54: 2 | EA54: 0 | EB54: 0 | EC54: 7 | ED54: 4 | EE54: 7 | EF54: 4 | EG54: 0 | EH54: 0 | EI54: 15 | EJ54: 8 | EK54: 4 | EL54: 4 | EM54: 6 | EN54: 8 | EO54: 9 | EP54: 6 | EQ54: 7 | ER54: 6 | ES54: 8 | ET54: 7 | EU54: 3 | EV54: 1 | EW54: 3 | EX54: 15 | EY54: 10 | EZ54: 12 | FA54: 13 | FB54: 11 | FC54: 10 | FD54: 9
A55: 1 | B55: =OFFSET(Input_Details!$Q$4,MATCH($A55, Input_Details!$J$5:$J$24, 0), 0) -> 2017-11-20 | C55: =INDEX(Input_Details!$H$5:$H$24, MATCH($A55, Input_Details!$J$5:$J$24, 0), 0) -> Meadow Street | D55: =INDEX(Input_Details!$I$5:$I$24, MATCH($A55, Input_Details!$J$5:$J$24, 0), 0) -> 51.49499,-0.09696 | E55: =INDEX(Input_Details!$K$5:$K$24, MATCH($A55, Input_Details!$J$5:$J$24, 0), 0) -> Northbound | F55: Mon | G55: 12:45:00 | H55: 2 | I55: 5 | J55: 0 | K55: 0 | L55: 0 | M55: 0 | N55: 0 | O55: 0 | P55: 0 | Q55: 0 | R55: 0 | S55: 0 | T55: 0 | U55: 4 | V55: 2 | W55: 1 | X55: 0 | Y55: 0 | Z55: 0 | AA55: 0 | AB55: 0 | AC55: 0 | AD55: 0 | AE55: 0 | AF55: 0 | AG55: 0 | AH55: 0 | AI55: 0 | AJ55: 0 | AK55: 0 | AL55: 0 | AM55: 0 | AN55: 15.2 | AO55: - | AP55: 10.2 | AQ55: 24.5 | AR55: =INDEX(Input_Details!$L$5:$L$24, MATCH($A55, Input_Details!$J$5:$J$24, 0), 0) -> Southbound | AS55: Mon | AT55: 12:45:00 | AU55: 0 | AV55: 4 | AW55: 0 | AX55: 1 | AY55: 0 | AZ55: 0 | BA55: 0 | BB55: 0 | BC55: 0 | BD55: 0 | BE55: 0 | BF55: 0 | BG55: 0 | BH55: 2 | BI55: 2 | BJ55: 1 | BK55: 0 | BL55: 0 | BM55: 0 | BN55: 0 | BO55: 0 | BP55: 0 | BQ55: 0 | BR55: 0 | BS55: 0 | BT55: 0 | BU55: 0 | BV55: 0 | BW55: 0 | BX55: 0 | BY55: 0 | BZ55: 0 | CA55: 17.2 | CB55: - | CC55: 13.9 | CD55: 21.9 | CF55: Mon | CG55: 12:45:00 | CH55: 2 | CI55: 9 | CJ55: 0 | CK55: 1 | CL55: 0 | CM55: 0 | CN55: 0 | CO55: 0 | CP55: 0 | CQ55: 0 | CR55: 0 | CS55: 0 | CT55: 0 | CU55: 6 | CV55: 4 | CW55: 2 | CX55: 0 | CY55: 0 | CZ55: 0 | DA55: 0 | DB55: 0 | DC55: 0 | DD55: 0 | DE55: 0 | DF55: 0 | DG55: 0 | DH55: 0 | DI55: 0 | DJ55: 0 | DK55: 0 | DL55: 0 | DM55: 0 | DN55: 16.03333333 | DO55: - | DP55: 10.2 | DQ55: 24.5 | DR55: 2 | DS55: 5 | DT55: 0 | DU55: 0 | DV55: 0 | DW55: 7 | DX55: 0 | DY55: 4 | DZ55: 1 | EA55: 0 | EB55: 0 | EC55: 5 | ED55: 2 | EE55: 9 | EF55: 1 | EG55: 0 | EH55: 0 | EI55: 12 | EJ55: 7 | EK55: 7 | EL55: 4 | EM55: 7 | EN55: 14 | EO55: 12 | EP55: 10 | EQ55: 5 | ER55: 6 | ES55: 5 | ET55: 5 | EU55: 5 | EV55: 9 | EW55: 3 | EX55: 12 | EY55: 13 | EZ55: 9 | FA55: 12 | FB55: 19 | FC55: 21 | FD55: 13
A56: 1 | B56: =OFFSET(Input_Details!$Q$4,MATCH($A56, Input_Details!$J$5:$J$24, 0), 0) -> 2017-11-20 | C56: =INDEX(Input_Details!$H$5:$H$24, MATCH($A56, Input_Details!$J$5:$J$24, 0), 0) -> Meadow Street | D56: =INDEX(Input_Details!$I$5:$I$24, MATCH($A56, Input_Details!$J$5:$J$24, 0), 0) -> 51.49499,-0.09696 | E56: =INDEX(Input_Details!$K$5:$K$24, MATCH($A56, Input_Details!$J$5:$J$24, 0), 0) -> Northbound | F56: Mon | G56: 13:00:00 | H56: 1 | I56: 6 | J56: 0 | K56: 1 | L56: 0 | M56: 0 | N56: 0 | O56: 0 | P56: 0 | Q56: 0 | R56: 0 | S56: 0 | T56: 2 | U56: 1 | V56: 5 | W56: 0 | X56: 0 | Y56: 0 | Z56: 0 | AA56: 0 | AB56: 0 | AC56: 0 | AD56: 0 | AE56: 0 | AF56: 0 | AG56: 0 | AH56: 0 | AI56: 0 | AJ56: 0 | AK56: 0 | AL56: 0 | AM56: 0 | AN56: 14.4 | AO56: - | AP56: 6.7 | AQ56: 19 | AR56: =INDEX(Input_Details!$L$5:$L$24, MATCH($A56, Input_Details!$J$5:$J$24, 0), 0) -> Southbound | AS56: Mon | AT56: 13:00:00 | AU56: 2 | AV56: 2 | AW56: 0 | AX56: 1 | AY56: 0 | AZ56: 0 | BA56: 0 | BB56: 0 | BC56: 0 | BD56: 0 | BE56: 0 | BF56: 0 | BG56: 1 | BH56: 2 | BI56: 2 | BJ56: 0 | BK56: 0 | BL56: 0 | BM56: 0 | BN56: 0 | BO56: 0 | BP56: 0 | BQ56: 0 | BR56: 0 | BS56: 0 | BT56: 0 | BU56: 0 | BV56: 0 | BW56: 0 | BX56: 0 | BY56: 0 | BZ56: 0 | CA56: 13.7 | CB56: - | CC56: 7.6 | CD56: 17.8 | CF56: Mon | CG56: 13:00:00 | CH56: 3 | CI56: 8 | CJ56: 0 | CK56: 2 | CL56: 0 | CM56: 0 | CN56: 0 | CO56: 0 | CP56: 0 | CQ56: 0 | CR56: 0 | CS56: 0 | CT56: 3 | CU56: 3 | CV56: 7 | CW56: 0 | CX56: 0 | CY56: 0 | CZ56: 0 | DA56: 0 | DB56: 0 | DC56: 0 | DD56: 0 | DE56: 0 | DF56: 0 | DG56: 0 | DH56: 0 | DI56: 0 | DJ56: 0 | DK56: 0 | DL56: 0 | DM56: 0 | DN56: 14.13076923 | DO56: - | DP56: 6.7 | DQ56: 19 | DR56: 1 | DS56: 6 | DT56: 1 | DU56: 0 | DV56: 0 | DW56: 8 | DX56: 2 | DY56: 2 | DZ56: 1 | EA56: 0 | EB56: 0 | EC56: 5 | ED56: 3 | EE56: 8 | EF56: 2 | EG56: 0 | EH56: 0 | EI56: 13 | EJ56: 8 | EK56: 7 | EL56: 9 | EM56: 8 | EN56: 17 | EO56: 8 | EP56: 5 | EQ56: 5 | ER56: 5 | ES56: 5 | ET56: 9 | EU56: 5 | EV56: 4 | EW56: 8 | EX56: 13 | EY56: 12 | EZ56: 14 | FA56: 17 | FB56: 22 | FC56: 12 | FD56: 13
A57: 1 | B57: =OFFSET(Input_Details!$Q$4,MATCH($A57, Input_Details!$J$5:$J$24, 0), 0) -> 2017-11-20 | C57: =INDEX(Input_Details!$H$5:$H$24, MATCH($A57, Input_Details!$J$5:$J$24, 0), 0) -> Meadow Street | D57: =INDEX(Input_Details!$I$5:$I$24, MATCH($A57, Input_Details!$J$5:$J$24, 0), 0) -> 51.49499,-0.09696 | E57: =INDEX(Input_Details!$K$5:$K$24, MATCH($A57, Input_Details!$J$5:$J$24, 0), 0) -> Northbound | F57: Mon | G57: 13:15:00 | H57: 2 | I57: 7 | J57: 0 | K57: 0 | L57: 0 | M57: 0 | N57: 0 | O57: 0 | P57: 0 | Q57: 0 | R57: 0 | S57: 0 | T57: 0 | U57: 5 | V57: 2 | W57: 1 | X57: 1 | Y57: 0 | Z57: 0 | AA57: 0 | AB57: 0 | AC57: 0 | AD57: 0 | AE57: 0 | AF57: 0 | AG57: 0 | AH57: 0 | AI57: 0 | AJ57: 0 | AK57: 0 | AL57: 0 | AM57: 0 | AN57: 16.7 | AO57: - | AP57: 11.2 | AQ57: 26.3 | AR57: =INDEX(Input_Details!$L$5:$L$24, MATCH($A57, Input_Details!$J$5:$J$24, 0), 0) -> Southbound | AS57: Mon | AT57: 13:15:00 | AU57: 2 | AV57: 3 | AW57: 0 | AX57: 1 | AY57: 1 | AZ57: 0 | BA57: 0 | BB57: 0 | BC57: 0 | BD57: 0 | BE57: 0 | BF57: 0 | BG57: 1 | BH57: 4 | BI57: 1 | BJ57: 1 | BK57: 0 | BL57: 0 | BM57: 0 | BN57: 0 | BO57: 0 | BP57: 0 | BQ57: 0 | BR57: 0 | BS57: 0 | BT57: 0 | BU57: 0 | BV57: 0 | BW57: 0 | BX57: 0 | BY57: 0 | BZ57: 0 | CA57: 13.9 | CB57: - | CC57: 9.6 | CD57: 20.4 | CF57: Mon | CG57: 13:15:00 | CH57: 4 | CI57: 10 | CJ57: 0 | CK57: 1 | CL57: 1 | CM57: 0 | CN57: 0 | CO57: 0 | CP57: 0 | CQ57: 0 | CR57: 0 | CS57: 0 | CT57: 1 | CU57: 9 | CV57: 3 | CW57: 2 | CX57: 1 | CY57: 0 | CZ57: 0 | DA57: 0 | DB57: 0 | DC57: 0 | DD57: 0 | DE57: 0 | DF57: 0 | DG57: 0 | DH57: 0 | DI57: 0 | DJ57: 0 | DK57: 0 | DL57: 0 | DM57: 0 | DN57: 15.475 | DO57: - | DP57: 9.6 | DQ57: 26.3 | DR57: 2 | DS57: 7 | DT57: 0 | DU57: 0 | DV57: 0 | DW57: 9 | DX57: 2 | DY57: 3 | DZ57: 1 | EA57: 1 | EB57: 0 | EC57: 7 | ED57: 4 | EE57: 10 | EF57: 1 | EG57: 1 | EH57: 0 | EI57: 16 | EJ57: 9 | EK57: 5 | EL57: 6 | EM57: 7 | EN57: 10 | EO57: 9 | EP57: 11 | EQ57: 7 | ER57: 6 | ES57: 9 | ET57: 7 | EU57: 8 | EV57: 10 | EW57: 7 | EX57: 16 | EY57: 11 | EZ57: 15 | FA57: 14 | FB57: 18 | FC57: 19 | FD57: 18
A58: 1 | B58: =OFFSET(Input_Details!$Q$4,MATCH($A58, Input_Details!$J$5:$J$24, 0), 0) -> 2017-11-20 | C58: =INDEX(Input_Details!$H$5:$H$24, MATCH($A58, Input_Details!$J$5:$J$24, 0), 0) -> Meadow Street | D58: =INDEX(Input_Details!$I$5:$I$24, MATCH($A58, Input_Details!$J$5:$J$24, 0), 0) -> 51.49499,-0.09696 | E58: =INDEX(Input_Details!$K$5:$K$24, MATCH($A58, Input_Details!$J$5:$J$24, 0), 0) -> Northbound | F58: Mon | G58: 13:30:00 | H58: 4 | I58: 3 | J58: 0 | K58: 0 | L58: 0 | M58: 0 | N58: 0 | O58: 0 | P58: 0 | Q58: 0 | R58: 0 | S58: 0 | T58: 0 | U58: 5 | V58: 2 | W58: 0 | X58: 0 | Y58: 0 | Z58: 0 | AA58: 0 | AB58: 0 | AC58: 0 | AD58: 0 | AE58: 0 | AF58: 0 | AG58: 0 | AH58: 0 | AI58: 0 | AJ58: 0 | AK58: 0 | AL58: 0 | AM58: 0 | AN58: 14.2 | AO58: - | AP58: 11.7 | AQ58: 18.1 | AR58: =INDEX(Input_Details!$L$5:$L$24, MATCH($A58, Input_Details!$J$5:$J$24, 0), 0) -> Southbound | AS58: Mon | AT58: 13:30:00 | AU58: 2 | AV58: 1 | AW58: 0 | AX58: 0 | AY58: 0 | AZ58: 0 | BA58: 0 | BB58: 0 | BC58: 0 | BD58: 0 | BE58: 0 | BF58: 0 | BG58: 1 | BH58: 1 | BI58: 1 | BJ58: 0 | BK58: 0 | BL58: 0 | BM58: 0 | BN58: 0 | BO58: 0 | BP58: 0 | BQ58: 0 | BR58: 0 | BS58: 0 | BT58: 0 | BU58: 0 | BV58: 0 | BW58: 0 | BX58: 0 | BY58: 0 | BZ58: 0 | CA58: 12.6 | CB58: - | CC58: 8.9 | CD58: 15.7 | CF58: Mon | CG58: 13:30:00 | CH58: 6 | CI58: 4 | CJ58: 0 | CK58: 0 | CL58: 0 | CM58: 0 | CN58: 0 | CO58: 0 | CP58: 0 | CQ58: 0 | CR58: 0 | CS58: 0 | CT58: 1 | CU58: 6 | CV58: 3 | CW58: 0 | CX58: 0 | CY58: 0 | CZ58: 0 | DA58: 0 | DB58: 0 | DC58: 0 | DD58: 0 | DE58: 0 | DF58: 0 | DG58: 0 | DH58: 0 | DI58: 0 | DJ58: 0 | DK58: 0 | DL58: 0 | DM58: 0 | DN58: 13.72 | DO58: - | DP58: 8.9 | DQ58: 18.1 | DR58: 4 | DS58: 3 | DT58: 0 | DU58: 0 | DV58: 0 | DW58: 7 | DX58: 2 | DY58: 1 | DZ58: 0 | EA58: 0 | EB58: 0 | EC58: 3 | ED58: 6 | EE58: 4 | EF58: 0 | EG58: 0 | EH58: 0 | EI58: 10 | EJ58: 7 | EK58: 5 | EL58: 8 | EM58: 5 | EN58: 8 | EO58: 9 | EP58: 11 | EQ58: 3 | ER58: 11 | ES58: 8 | ET58: 10 | EU58: 18 | EV58: 8 | EW58: 11 | EX58: 10 | EY58: 16 | EZ58: 16 | FA58: 15 | FB58: 26 | FC58: 17 | FD58: 22
A59: 1 | B59: =OFFSET(Input_Details!$Q$4,MATCH($A59, Input_Details!$J$5:$J$24, 0), 0) -> 2017-11-20 | C59: =INDEX(Input_Details!$H$5:$H$24, MATCH($A59, Input_Details!$J$5:$J$24, 0), 0) -> Meadow Street | D59: =INDEX(Input_Details!$I$5:$I$24, MATCH($A59, Input_Details!$J$5:$J$24, 0), 0) -> 51.49499,-0.09696 | E59: =INDEX(Input_Details!$K$5:$K$24, MATCH($A59, Input_Details!$J$5:$J$24, 0), 0) -> Northbound | F59: Mon | G59: 13:45:00 | H59: 0 | I59: 2 | J59: 0 | K59: 2 | L59: 0 | M59: 0 | N59: 0 | O59: 0 | P59: 0 | Q59: 0 | R59: 0 | S59: 0 | T59: 1 | U59: 1 | V59: 1 | W59: 0 | X59: 1 | Y59: 0 | Z59: 0 | AA59: 0 | AB59: 0 | AC59: 0 | AD59: 0 | AE59: 0 | AF59: 0 | AG59: 0 | AH59: 0 | AI59: 0 | AJ59: 0 | AK59: 0 | AL59: 0 | AM59: 0 | AN59: 16.4 | AO59: - | AP59: 6.8 | AQ59: 26.2 | AR59: =INDEX(Input_Details!$L$5:$L$24, MATCH($A59, Input_Details!$J$5:$J$24, 0), 0) -> Southbound | AS59: Mon | AT59: 13:45:00 | AU59: 2 | AV59: 1 | AW59: 0 | AX59: 0 | AY59: 0 | AZ59: 0 | BA59: 0 | BB59: 0 | BC59: 0 | BD59: 0 | BE59: 0 | BF59: 0 | BG59: 1 | BH59: 1 | BI59: 1 | BJ59: 0 | BK59: 0 | BL59: 0 | BM59: 0 | BN59: 0 | BO59: 0 | BP59: 0 | BQ59: 0 | BR59: 0 | BS59: 0 | BT59: 0 | BU59: 0 | BV59: 0 | BW59: 0 | BX59: 0 | BY59: 0 | BZ59: 0 | CA59: 12.9 | CB59: - | CC59: 9.9 | CD59: 16.5 | CF59: Mon | CG59: 13:45:00 | CH59: 2 | CI59: 3 | CJ59: 0 | CK59: 2 | CL59: 0 | CM59: 0 | CN59: 0 | CO59: 0 | CP59: 0 | CQ59: 0 | CR59: 0 | CS59: 0 | CT59: 2 | CU59: 2 | CV59: 2 | CW59: 0 | CX59: 1 | CY59: 0 | CZ59: 0 | DA59: 0 | DB59: 0 | DC59: 0 | DD59: 0 | DE59: 0 | DF59: 0 | DG59: 0 | DH59: 0 | DI59: 0 | DJ59: 0 | DK59: 0 | DL59: 0 | DM59: 0 | DN59: 14.9 | DO59: - | DP59: 6.8 | DQ59: 26.2 | DR59: 0 | DS59: 2 | DT59: 2 | DU59: 0 | DV59: 0 | DW59: 4 | DX59: 2 | DY59: 1 | DZ59: 0 | EA59: 0 | EB59: 0 | EC59: 3 | ED59: 2 | EE59: 3 | EF59: 2 | EG59: 0 | EH59: 0 | EI59: 7 | EJ59: 4 | EK59: 8 | EL59: 5 | EM59: 6 | EN59: 5 | EO59: 8 | EP59: 11 | EQ59: 3 | ER59: 6 | ES59: 6 | ET59: 4 | EU59: 7 | EV59: 4 | EW59: 12 | EX59: 7 | EY59: 14 | EZ59: 11 | FA59: 10 | FB59: 12 | FC59: 12 | FD59: 23
A60: 1 | B60: =OFFSET(Input_Details!$Q$4,MATCH($A60, Input_Details!$J$5:$J$24, 0), 0) -> 2017-11-20 | C60: =INDEX(Input_Details!$H$5:$H$24, MATCH($A60, Input_Details!$J$5:$J$24, 0), 0) -> Meadow Street | D60: =INDEX(Input_Details!$I$5:$I$24, MATCH($A60, Input_Details!$J$5:$J$24, 0), 0) -> 51.49499,-0.09696 | E60: =INDEX(Input_Details!$K$5:$K$24, MATCH($A60, Input_Details!$J$5:$J$24, 0), 0) -> Northbound | F60: Mon | G60: 14:00:00 | H60: 1 | I60: 3 | J60: 0 | K60: 0 | L60: 0 | M60: 0 | N60: 0 | O60: 0 | P60: 0 | Q60: 0 | R60: 0 | S60: 0 | T60: 0 | U60: 2 | V60: 2 | W60: 0 | X60: 0 | Y60: 0 | Z60: 0 | AA60: 0 | AB60: 0 | AC60: 0 | AD60: 0 | AE60: 0 | AF60: 0 | AG60: 0 | AH60: 0 | AI60: 0 | AJ60: 0 | AK60: 0 | AL60: 0 | AM60: 0 | AN60: 14.7 | AO60: - | AP60: 11.5 | AQ60: 16.9 | AR60: =INDEX(Input_Details!$L$5:$L$24, MATCH($A60, Input_Details!$J$5:$J$24, 0), 0) -> Southbound | AS60: Mon | AT60: 14:00:00 | AU60: 0 | AV60: 7 | AW60: 0 | AX60: 1 | AY60: 0 | AZ60: 0 | BA60: 0 | BB60: 0 | BC60: 0 | BD60: 0 | BE60: 0 | BF60: 0 | BG60: 1 | BH60: 2 | BI60: 4 | BJ60: 1 | BK60: 0 | BL60: 0 | BM60: 0 | BN60: 0 | BO60: 0 | BP60: 0 | BQ60: 0 | BR60: 0 | BS60: 0 | BT60: 0 | BU60: 0 | BV60: 0 | BW60: 0 | BX60: 0 | BY60: 0 | BZ60: 0 | CA60: 15.3 | CB60: - | CC60: 7.6 | CD60: 20.4 | CF60: Mon | CG60: 14:00:00 | CH60: 1 | CI60: 10 | CJ60: 0 | CK60: 1 | CL60: 0 | CM60: 0 | CN60: 0 | CO60: 0 | CP60: 0 | CQ60: 0 | CR60: 0 | CS60: 0 | CT60: 1 | CU60: 4 | CV60: 6 | CW60: 1 | CX60: 0 | CY60: 0 | CZ60: 0 | DA60: 0 | DB60: 0 | DC60: 0 | DD60: 0 | DE60: 0 | DF60: 0 | DG60: 0 | DH60: 0 | DI60: 0 | DJ60: 0 | DK60: 0 | DL60: 0 | DM60: 0 | DN60: 15.1 | DO60: - | DP60: 7.6 | DQ60: 20.4 | DR60: 1 | DS60: 3 | DT60: 0 | DU60: 0 | DV60: 0 | DW60: 4 | DX60: 0 | DY60: 7 | DZ60: 1 | EA60: 0 | EB60: 0 | EC60: 8 | ED60: 1 | EE60: 10 | EF60: 1 | EG60: 0 | EH60: 0 | EI60: 12 | EJ60: 4 | EK60: 4 | EL60: 4 | EM60: 3 | EN60: 5 | EO60: 9 | EP60: 12 | EQ60: 8 | ER60: 6 | ES60: 4 | ET60: 4 | EU60: 13 | EV60: 9 | EW60: 8 | EX60: 12 | EY60: 10 | EZ60: 8 | FA60: 7 | FB60: 18 | FC60: 18 | FD60: 20
A61: 1 | B61: =OFFSET(Input_Details!$Q$4,MATCH($A61, Input_Details!$J$5:$J$24, 0), 0) -> 2017-11-20 | C61: =INDEX(Input_Details!$H$5:$H$24, MATCH($A61, Input_Details!$J$5:$J$24, 0), 0) -> Meadow Street | D61: =INDEX(Input_Details!$I$5:$I$24, MATCH($A61, Input_Details!$J$5:$J$24, 0), 0) -> 51.49499,-0.09696 | E61: =INDEX(Input_Details!$K$5:$K$24, MATCH($A61, Input_Details!$J$5:$J$24, 0), 0) -> Northbound | F61: Mon | G61: 14:15:00 | H61: 0 | I61: 4 | J61: 0 | K61: 2 | L61: 0 | M61: 0 | N61: 0 | O61: 0 | P61: 0 | Q61: 0 | R61: 0 | S61: 0 | T61: 3 | U61: 1 | V61: 1 | W61: 1 | X61: 0 | Y61: 0 | Z61: 0 | AA61: 0 | AB61: 0 | AC61: 0 | AD61: 0 | AE61: 0 | AF61: 0 | AG61: 0 | AH61: 0 | AI61: 0 | AJ61: 0 | AK61: 0 | AL61: 0 | AM61: 0 | AN61: 12.9 | AO61: - | AP61: 6.4 | AQ61: 23.2 | AR61: =INDEX(Input_Details!$L$5:$L$24, MATCH($A61, Input_Details!$J$5:$J$24, 0), 0) -> Southbound | AS61: Mon | AT61: 14:15:00 | AU61: 1 | AV61: 3 | AW61: 0 | AX61: 0 | AY61: 0 | AZ61: 0 | BA61: 0 | BB61: 0 | BC61: 0 | BD61: 0 | BE61: 0 | BF61: 0 | BG61: 1 | BH61: 2 | BI61: 1 | BJ61: 0 | BK61: 0 | BL61: 0 | BM61: 0 | BN61: 0 | BO61: 0 | BP61: 0 | BQ61: 0 | BR61: 0 | BS61: 0 | BT61: 0 | BU61: 0 | BV61: 0 | BW61: 0 | BX61: 0 | BY61: 0 | BZ61: 0 | CA61: 13.6 | CB61: - | CC61: 10 | CD61: 18.6 | CF61: Mon | CG61: 14:15:00 | CH61: 1 | CI61: 7 | CJ61: 0 | CK61: 2 | CL61: 0 | CM61: 0 | CN61: 0 | CO61: 0 | CP61: 0 | CQ61: 0 | CR61: 0 | CS61: 0 | CT61: 4 | CU61: 3 | CV61: 2 | CW61: 1 | CX61: 0 | CY61: 0 | CZ61: 0 | DA61: 0 | DB61: 0 | DC61: 0 | DD61: 0 | DE61: 0 | DF61: 0 | DG61: 0 | DH61: 0 | DI61: 0 | DJ61: 0 | DK61: 0 | DL61: 0 | DM61: 0 | DN61: 13.18 | DO61: - | DP61: 6.4 | DQ61: 23.2 | DR61: 0 | DS61: 4 | DT61: 2 | DU61: 0 | DV61: 0 | DW61: 6 | DX61: 1 | DY61: 3 | DZ61: 0 | EA61: 0 | EB61: 0 | EC61: 4 | ED61: 1 | EE61: 7 | EF61: 2 | EG61: 0 | EH61: 0 | EI61: 10 | EJ61: 6 | EK61: 4 | EL61: 6 | EM61: 4 | EN61: 5 | EO61: 7 | EP61: 6 | EQ61: 4 | ER61: 6 | ES61: 11 | ET61: 4 | EU61: 16 | EV61: 4 | EW61: 7 | EX61: 10 | EY61: 10 | EZ61: 17 | FA61: 8 | FB61: 21 | FC61: 11 | FD61: 13
A62: 1 | B62: =OFFSET(Input_Details!$Q$4,MATCH($A62, Input_Details!$J$5:$J$24, 0), 0) -> 2017-11-20 | C62: =INDEX(Input_Details!$H$5:$H$24, MATCH($A62, Input_Details!$J$5:$J$24, 0), 0) -> Meadow Street | D62: =INDEX(Input_Details!$I$5:$I$24, MATCH($A62, Input_Details!$J$5:$J$24, 0), 0) -> 51.49499,-0.09696 | E62: =INDEX(Input_Details!$K$5:$K$24, MATCH($A62, Input_Details!$J$5:$J$24, 0), 0) -> Northbound | F62: Mon | G62: 14:30:00 | H62: 2 | I62: 4 | J62: 0 | K62: 0 | L62: 0 | M62: 0 | N62: 0 | O62: 0 | P62: 0 | Q62: 0 | R62: 0 | S62: 0 | T62: 0 | U62: 2 | V62: 1 | W62: 2 | X62: 1 | Y62: 0 | Z62: 0 | AA62: 0 | AB62: 0 | AC62: 0 | AD62: 0 | AE62: 0 | AF62: 0 | AG62: 0 | AH62: 0 | AI62: 0 | AJ62: 0 | AK62: 0 | AL62: 0 | AM62: 0 | AN62: 19.1 | AO62: - | AP62: 11.3 | AQ62: 25.6 | AR62: =INDEX(Input_Details!$L$5:$L$24, MATCH($A62, Input_Details!$J$5:$J$24, 0), 0) -> Southbound | AS62: Mon | AT62: 14:30:00 | AU62: 3 | AV62: 5 | AW62: 0 | AX62: 2 | AY62: 0 | AZ62: 0 | BA62: 0 | BB62: 0 | BC62: 0 | BD62: 0 | BE62: 0 | BF62: 0 | BG62: 1 | BH62: 4 | BI62: 2 | BJ62: 3 | BK62: 0 | BL62: 0 | BM62: 0 | BN62: 0 | BO62: 0 | BP62: 0 | BQ62: 0 | BR62: 0 | BS62: 0 | BT62: 0 | BU62: 0 | BV62: 0 | BW62: 0 | BX62: 0 | BY62: 0 | BZ62: 0 | CA62: 15.6 | CB62: - | CC62: 9.8 | CD62: 22.7 | CF62: Mon | CG62: 14:30:00 | CH62: 5 | CI62: 9 | CJ62: 0 | CK62: 2 | CL62: 0 | CM62: 0 | CN62: 0 | CO62: 0 | CP62: 0 | CQ62: 0 | CR62: 0 | CS62: 0 | CT62: 1 | CU62: 6 | CV62: 3 | CW62: 5 | CX62: 1 | CY62: 0 | CZ62: 0 | DA62: 0 | DB62: 0 | DC62: 0 | DD62: 0 | DE62: 0 | DF62: 0 | DG62: 0 | DH62: 0 | DI62: 0 | DJ62: 0 | DK62: 0 | DL62: 0 | DM62: 0 | DN62: 16.9125 | DO62: - | DP62: 9.8 | DQ62: 25.6 | DR62: 2 | DS62: 4 | DT62: 0 | DU62: 0 | DV62: 0 | DW62: 6 | DX62: 3 | DY62: 5 | DZ62: 2 | EA62: 0 | EB62: 0 | EC62: 10 | ED62: 5 | EE62: 9 | EF62: 2 | EG62: 0 | EH62: 0 | EI62: 16 | EJ62: 6 | EK62: 6 | EL62: 8 | EM62: 2 | EN62: 7 | EO62: 8 | EP62: 10 | EQ62: 10 | ER62: 13 | ES62: 5 | ET62: 7 | EU62: 13 | EV62: 5 | EW62: 13 | EX62: 16 | EY62: 19 | EZ62: 13 | FA62: 9 | FB62: 20 | FC62: 13 | FD62: 23
A63: 1 | B63: =OFFSET(Input_Details!$Q$4,MATCH($A63, Input_Details!$J$5:$J$24, 0), 0) -> 2017-11-20 | C63: =INDEX(Input_Details!$H$5:$H$24, MATCH($A63, Input_Details!$J$5:$J$24, 0), 0) -> Meadow Street | D63: =INDEX(Input_Details!$I$5:$I$24, MATCH($A63, Input_Details!$J$5:$J$24, 0), 0) -> 51.49499,-0.09696 | E63: =INDEX(Input_Details!$K$5:$K$24, MATCH($A63, Input_Details!$J$5:$J$24, 0), 0) -> Northbound | F63: Mon | G63: 14:45:00 | H63: 2 | I63: 6 | J63: 0 | K63: 2 | L63: 0 | M63: 0 | N63: 0 | O63: 0 | P63: 0 | Q63: 0 | R63: 0 | S63: 0 | T63: 0 | U63: 6 | V63: 3 | W63: 1 | X63: 0 | Y63: 0 | Z63: 0 | AA63: 0 | AB63: 0 | AC63: 0 | AD63: 0 | AE63: 0 | AF63: 0 | AG63: 0 | AH63: 0 | AI63: 0 | AJ63: 0 | AK63: 0 | AL63: 0 | AM63: 0 | AN63: 14.8 | AO63: - | AP63: 10.2 | AQ63: 21.5 | AR63: =INDEX(Input_Details!$L$5:$L$24, MATCH($A63, Input_Details!$J$5:$J$24, 0), 0) -> Southbound | AS63: Mon | AT63: 14:45:00 | AU63: 0 | AV63: 5 | AW63: 0 | AX63: 0 | AY63: 0 | AZ63: 0 | BA63: 0 | BB63: 0 | BC63: 0 | BD63: 0 | BE63: 0 | BF63: 0 | BG63: 0 | BH63: 3 | BI63: 1 | BJ63: 1 | BK63: 0 | BL63: 0 | BM63: 0 | BN63: 0 | BO63: 0 | BP63: 0 | BQ63: 0 | BR63: 0 | BS63: 0 | BT63: 0 | BU63: 0 | BV63: 0 | BW63: 0 | BX63: 0 | BY63: 0 | BZ63: 0 | CA63: 14.8 | CB63: - | CC63: 10 | CD63: 20.5 | CF63: Mon | CG63: 14:45:00 | CH63: 2 | CI63: 11 | CJ63: 0 | CK63: 2 | CL63: 0 | CM63: 0 | CN63: 0 | CO63: 0 | CP63: 0 | CQ63: 0 | CR63: 0 | CS63: 0 | CT63: 0 | CU63: 9 | CV63: 4 | CW63: 2 | CX63: 0 | CY63: 0 | CZ63: 0 | DA63: 0 | DB63: 0 | DC63: 0 | DD63: 0 | DE63: 0 | DF63: 0 | DG63: 0 | DH63: 0 | DI63: 0 | DJ63: 0 | DK63: 0 | DL63: 0 | DM63: 0 | DN63: 14.8 | DO63: - | DP63: 10 | DQ63: 21.5 | DR63: 2 | DS63: 6 | DT63: 2 | DU63: 0 | DV63: 0 | DW63: 10 | DX63: 0 | DY63: 5 | DZ63: 0 | EA63: 0 | EB63: 0 | EC63: 5 | ED63: 2 | EE63: 11 | EF63: 2 | EG63: 0 | EH63: 0 | EI63: 15 | EJ63: 10 | EK63: 7 | EL63: 0 | EM63: 3 | EN63: 3 | EO63: 10 | EP63: 5 | EQ63: 5 | ER63: 11 | ES63: 11 | ET63: 5 | EU63: 13 | EV63: 9 | EW63: 6 | EX63: 15 | EY63: 18 | EZ63: 11 | FA63: 8 | FB63: 16 | FC63: 19 | FD63: 11
A64: 1 | B64: =OFFSET(Input_Details!$Q$4,MATCH($A64, Input_Details!$J$5:$J$24, 0), 0) -> 2017-11-20 | C64: =INDEX(Input_Details!$H$5:$H$24, MATCH($A64, Input_Details!$J$5:$J$24, 0), 0) -> Meadow Street | D64: =INDEX(Input_Details!$I$5:$I$24, MATCH($A64, Input_Details!$J$5:$J$24, 0), 0) -> 51.49499,-0.09696 | E64: =INDEX(Input_Details!$K$5:$K$24, MATCH($A64, Input_Details!$J$5:$J$24, 0), 0) -> Northbound | F64: Mon | G64: 15:00:00 | H64: 1 | I64: 3 | J64: 0 | K64: 1 | L64: 0 | M64: 0 | N64: 0 | O64: 0 | P64: 0 | Q64: 0 | R64: 0 | S64: 0 | T64: 3 | U64: 0 | V64: 2 | W64: 0 | X64: 0 | Y64: 0 | Z64: 0 | AA64: 0 | AB64: 0 | AC64: 0 | AD64: 0 | AE64: 0 | AF64: 0 | AG64: 0 | AH64: 0 | AI64: 0 | AJ64: 0 | AK64: 0 | AL64: 0 | AM64: 0 | AN64: 12.5 | AO64: - | AP64: 9.2 | AQ64: 18.5 | AR64: =INDEX(Input_Details!$L$5:$L$24, MATCH($A64, Input_Details!$J$5:$J$24, 0), 0) -> Southbound | AS64: Mon | AT64: 15:00:00 | AU64: 3 | AV64: 9 | AW64: 0 | AX64: 1 | AY64: 0 | AZ64: 0 | BA64: 0 | BB64: 0 | BC64: 0 | BD64: 0 | BE64: 0 | BF64: 0 | BG64: 1 | BH64: 4 | BI64: 7 | BJ64: 1 | BK64: 0 | BL64: 0 | BM64: 0 | BN64: 0 | BO64: 0 | BP64: 0 | BQ64: 0 | BR64: 0 | BS64: 0 | BT64: 0 | BU64: 0 | BV64: 0 | BW64: 0 | BX64: 0 | BY64: 0 | BZ64: 0 | CA64: 15.5 | CB64: 17.9 | CC64: 6.7 | CD64: 23.1 | CF64: Mon | CG64: 15:00:00 | CH64: 4 | CI64: 12 | CJ64: 0 | CK64: 2 | CL64: 0 | CM64: 0 | CN64: 0 | CO64: 0 | CP64: 0 | CQ64: 0 | CR64: 0 | CS64: 0 | CT64: 4 | CU64: 4 | CV64: 9 | CW64: 1 | CX64: 0 | CY64: 0 | CZ64: 0 | DA64: 0 | DB64: 0 | DC64: 0 | DD64: 0 | DE64: 0 | DF64: 0 | DG64: 0 | DH64: 0 | DI64: 0 | DJ64: 0 | DK64: 0 | DL64: 0 | DM64: 0 | DN64: 14.66666667 | DO64: 17.9 | DP64: 6.7 | DQ64: 23.1 | DR64: 1 | DS64: 3 | DT64: 1 | DU64: 0 | DV64: 0 | DW64: 5 | DX64: 3 | DY64: 9 | DZ64: 1 | EA64: 0 | EB64: 0 | EC64: 13 | ED64: 4 | EE64: 12 | EF64: 2 | EG64: 0 | EH64: 0 | EI64: 18 | EJ64: 5 | EK64: 3 | EL64: 6 | EM64: 5 | EN64: 5 | EO64: 5 | EP64: 12 | EQ64: 13 | ER64: 10 | ES64: 17 | ET64: 14 | EU64: 9 | EV64: 10 | EW64: 2 | EX64: 18 | EY64: 13 | EZ64: 23 | FA64: 19 | FB64: 14 | FC64: 15 | FD64: 14
A65: 1 | B65: =OFFSET(Input_Details!$Q$4,MATCH($A65, Input_Details!$J$5:$J$24, 0), 0) -> 2017-11-20 | C65: =INDEX(Input_Details!$H$5:$H$24, MATCH($A65, Input_Details!$J$5:$J$24, 0), 0) -> Meadow Street | D65: =INDEX(Input_Details!$I$5:$I$24, MATCH($A65, Input_Details!$J$5:$J$24, 0), 0) -> 51.49499,-0.09696 | E65: =INDEX(Input_Details!$K$5:$K$24, MATCH($A65, Input_Details!$J$5:$J$24, 0), 0) -> Northbound | F65: Mon | G65: 15:15:00 | H65: 0 | I65: 5 | J65: 0 | K65: 2 | L65: 0 | M65: 0 | N65: 0 | O65: 0 | P65: 0 | Q65: 0 | R65: 0 | S65: 0 | T65: 1 | U65: 2 | V65: 4 | W65: 0 | X65: 0 | Y65: 0 | Z65: 0 | AA65: 0 | AB65: 0 | AC65: 0 | AD65: 0 | AE65: 0 | AF65: 0 | AG65: 0 | AH65: 0 | AI65: 0 | AJ65: 0 | AK65: 0 | AL65: 0 | AM65: 0 | AN65: 14.2 | AO65: - | AP65: 8.3 | AQ65: 17.6 | AR65: =INDEX(Input_Details!$L$5:$L$24, MATCH($A65, Input_Details!$J$5:$J$24, 0), 0) -> Southbound | AS65: Mon | AT65: 15:15:00 | AU65: 3 | AV65: 5 | AW65: 0 | AX65: 1 | AY65: 0 | AZ65: 0 | BA65: 0 | BB65: 0 | BC65: 0 | BD65: 0 | BE65: 0 | BF65: 0 | BG65: 0 | BH65: 4 | BI65: 5 | BJ65: 0 | BK65: 0 | BL65: 0 | BM65: 0 | BN65: 0 | BO65: 0 | BP65: 0 | BQ65: 0 | BR65: 0 | BS65: 0 | BT65: 0 | BU65: 0 | BV65: 0 | BW65: 0 | BX65: 0 | BY65: 0 | BZ65: 0 | CA65: 15 | CB65: - | CC65: 10.8 | CD65: 17.6 | CF65: Mon | CG65: 15:15:00 | CH65: 3 | CI65: 10 | CJ65: 0 | CK65: 3 | CL65: 0 | CM65: 0 | CN65: 0 | CO65: 0 | CP65: 0 | CQ65: 0 | CR65: 0 | CS65: 0 | CT65: 1 | CU65: 6 | CV65: 9 | CW65: 0 | CX65: 0 | CY65: 0 | CZ65: 0 | DA65: 0 | DB65: 0 | DC65: 0 | DD65: 0 | DE65: 0 | DF65: 0 | DG65: 0 | DH65: 0 | DI65: 0 | DJ65: 0 | DK65: 0 | DL65: 0 | DM65: 0 | DN65: 14.65 | DO65: - | DP65: 8.3 | DQ65: 17.6 | DR65: 0 | DS65: 5 | DT65: 2 | DU65: 0 | DV65: 0 | DW65: 7 | DX65: 3 | DY65: 5 | DZ65: 1 | EA65: 0 | EB65: 0 | EC65: 9 | ED65: 3 | EE65: 10 | EF65: 3 | EG65: 0 | EH65: 0 | EI65: 16 | EJ65: 7 | EK65: 5 | EL65: 5 | EM65: 6 | EN65: 5 | EO65: 2 | EP65: 9 | EQ65: 9 | ER65: 2 | ES65: 9 | ET65: 10 | EU65: 9 | EV65: 2 | EW65: 9 | EX65: 16 | EY65: 7 | EZ65: 14 | FA65: 16 | FB65: 14 | FC65: 4 | FD65: 18
A66: 1 | B66: =OFFSET(Input_Details!$Q$4,MATCH($A66, Input_Details!$J$5:$J$24, 0), 0) -> 2017-11-20 | C66: =INDEX(Input_Details!$H$5:$H$24, MATCH($A66, Input_Details!$J$5:$J$24, 0), 0) -> Meadow Street | D66: =INDEX(Input_Details!$I$5:$I$24, MATCH($A66, Input_Details!$J$5:$J$24, 0), 0) -> 51.49499,-0.09696 | E66: =INDEX(Input_Details!$K$5:$K$24, MATCH($A66, Input_Details!$J$5:$J$24, 0), 0) -> Northbound | F66: Mon | G66: 15:30:00 | H66: 3 | I66: 4 | J66: 0 | K66: 0 | L66: 0 | M66: 0 | N66: 0 | O66: 0 | P66: 0 | Q66: 0 | R66: 0 | S66: 0 | T66: 0 | U66: 5 | V66: 1 | W66: 1 | X66: 0 | Y66: 0 | Z66: 0 | AA66: 0 | AB66: 0 | AC66: 0 | AD66: 0 | AE66: 0 | AF66: 0 | AG66: 0 | AH66: 0 | AI66: 0 | AJ66: 0 | AK66: 0 | AL66: 0 | AM66: 0 | AN66: 13.5 | AO66: - | AP66: 11.1 | AQ66: 21.5 | AR66: =INDEX(Input_Details!$L$5:$L$24, MATCH($A66, Input_Details!$J$5:$J$24, 0), 0) -> Southbound | AS66: Mon | AT66: 15:30:00 | AU66: 9 | AV66: 7 | AW66: 0 | AX66: 2 | AY66: 0 | AZ66: 0 | BA66: 0 | BB66: 0 | BC66: 0 | BD66: 0 | BE66: 0 | BF66: 0 | BG66: 1 | BH66: 14 | BI66: 3 | BJ66: 0 | BK66: 0 | BL66: 0 | BM66: 0 | BN66: 0 | BO66: 0 | BP66: 0 | BQ66: 0 | BR66: 0 | BS66: 0 | BT66: 0 | BU66: 0 | BV66: 0 | BW66: 0 | BX66: 0 | BY66: 0 | BZ66: 0 | CA66: 13 | CB66: 13.9 | CC66: 8.7 | CD66: 19.8 | CF66: Mon | CG66: 15:30:00 | CH66: 12 | CI66: 11 | CJ66: 0 | CK66: 2 | CL66: 0 | CM66: 0 | CN66: 0 | CO66: 0 | CP66: 0 | CQ66: 0 | CR66: 0 | CS66: 0 | CT66: 1 | CU66: 19 | CV66: 4 | CW66: 1 | CX66: 0 | CY66: 0 | CZ66: 0 | DA66: 0 | DB66: 0 | DC66: 0 | DD66: 0 | DE66: 0 | DF66: 0 | DG66: 0 | DH66: 0 | DI66: 0 | DJ66: 0 | DK66: 0 | DL66: 0 | DM66: 0 | DN66: 13.14 | DO66: 13.9 | DP66: 8.7 | DQ66: 21.5 | DR66: 3 | DS66: 4 | DT66: 0 | DU66: 0 | DV66: 0 | DW66: 7 | DX66: 9 | DY66: 7 | DZ66: 2 | EA66: 0 | EB66: 0 | EC66: 18 | ED66: 12 | EE66: 11 | EF66: 2 | EG66: 0 | EH66: 0 | EI66: 25 | EJ66: 7 | EK66: 7 | EL66: 5 | EM66: 7 | EN66: 4 | EO66: 10 | EP66: 6 | EQ66: 18 | ER66: 7 | ES66: 4 | ET66: 6 | EU66: 7 | EV66: 7 | EW66: 8 | EX66: 25 | EY66: 14 | EZ66: 9 | FA66: 13 | FB66: 11 | FC66: 17 | FD66: 14
A67: 1 | B67: =OFFSET(Input_Details!$Q$4,MATCH($A67, Input_Details!$J$5:$J$24, 0), 0) -> 2017-11-20 | C67: =INDEX(Input_Details!$H$5:$H$24, MATCH($A67, Input_Details!$J$5:$J$24, 0), 0) -> Meadow Street | D67: =INDEX(Input_Details!$I$5:$I$24, MATCH($A67, Input_Details!$J$5:$J$24, 0), 0) -> 51.49499,-0.09696 | E67: =INDEX(Input_Details!$K$5:$K$24, MATCH($A67, Input_Details!$J$5:$J$24, 0), 0) -> Northbound | F67: Mon | G67: 15:45:00 | H67: 5 | I67: 2 | J67: 0 | K67: 2 | L67: 0 | M67: 0 | N67: 0 | O67: 0 | P67: 0 | Q67: 0 | R67: 0 | S67: 0 | T67: 0 | U67: 4 | V67: 4 | W67: 1 | X67: 0 | Y67: 0 | Z67: 0 | AA67: 0 | AB67: 0 | AC67: 0 | AD67: 0 | AE67: 0 | AF67: 0 | AG67: 0 | AH67: 0 | AI67: 0 | AJ67: 0 | AK67: 0 | AL67: 0 | AM67: 0 | AN67: 15.6 | AO67: - | AP67: 10.4 | AQ67: 20.2 | AR67: =INDEX(Input_Details!$L$5:$L$24, MATCH($A67, Input_Details!$J$5:$J$24, 0), 0) -> Southbound | AS67: Mon | AT67: 15:45:00 | AU67: 6 | AV67: 5 | AW67: 0 | AX67: 1 | AY67: 0 | AZ67: 0 | BA67: 0 | BB67: 0 | BC67: 0 | BD67: 0 | BE67: 0 | BF67: 0 | BG67: 0 | BH67: 6 | BI67: 4 | BJ67: 2 | BK67: 0 | BL67: 0 | BM67: 0 | BN67: 0 | BO67: 0 | BP67: 0 | BQ67: 0 | BR67: 0 | BS67: 0 | BT67: 0 | BU67: 0 | BV67: 0 | BW67: 0 | BX67: 0 | BY67: 0 | BZ67: 0 | CA67: 15.9 | CB67: 19.5 | CC67: 10.7 | CD67: 21.7 | CF67: Mon | CG67: 15:45:00 | CH67: 11 | CI67: 7 | CJ67: 0 | CK67: 3 | CL67: 0 | CM67: 0 | CN67: 0 | CO67: 0 | CP67: 0 | CQ67: 0 | CR67: 0 | CS67: 0 | CT67: 0 | CU67: 10 | CV67: 8 | CW67: 3 | CX67: 0 | CY67: 0 | CZ67: 0 | DA67: 0 | DB67: 0 | DC67: 0 | DD67: 0 | DE67: 0 | DF67: 0 | DG67: 0 | DH67: 0 | DI67: 0 | DJ67: 0 | DK67: 0 | DL67: 0 | DM67: 0 | DN67: 15.77142857 | DO67: 19.5 | DP67: 10.4 | DQ67: 21.7 | DR67: 5 | DS67: 2 | DT67: 2 | DU67: 0 | DV67: 0 | DW67: 9 | DX67: 6 | DY67: 5 | DZ67: 1 | EA67: 0 | EB67: 0 | EC67: 12 | ED67: 11 | EE67: 7 | EF67: 3 | EG67: 0 | EH67: 0 | EI67: 21 | EJ67: 9 | EK67: 6 | EL67: 6 | EM67: 5 | EN67: 9 | EO67: 4 | EP67: 10 | EQ67: 12 | ER67: 9 | ES67: 5 | ET67: 8 | EU67: 10 | EV67: 9 | EW67: 7 | EX67: 21 | EY67: 15 | EZ67: 11 | FA67: 13 | FB67: 19 | FC67: 13 | FD67: 17
A68: 1 | B68: =OFFSET(Input_Details!$Q$4,MATCH($A68, Input_Details!$J$5:$J$24, 0), 0) -> 2017-11-20 | C68: =INDEX(Input_Details!$H$5:$H$24, MATCH($A68, Input_Details!$J$5:$J$24, 0), 0) -> Meadow Street | D68: =INDEX(Input_Details!$I$5:$I$24, MATCH($A68, Input_Details!$J$5:$J$24, 0), 0) -> 51.49499,-0.09696 | E68: =INDEX(Input_Details!$K$5:$K$24, MATCH($A68, Input_Details!$J$5:$J$24, 0), 0) -> Northbound | F68: Mon | G68: 16:00:00 | H68: 0 | I68: 5 | J68: 0 | K68: 1 | L68: 0 | M68: 0 | N68: 0 | O68: 0 | P68: 0 | Q68: 0 | R68: 0 | S68: 0 | T68: 1 | U68: 3 | V68: 2 | W68: 0 | X68: 0 | Y68: 0 | Z68: 0 | AA68: 0 | AB68: 0 | AC68: 0 | AD68: 0 | AE68: 0 | AF68: 0 | AG68: 0 | AH68: 0 | AI68: 0 | AJ68: 0 | AK68: 0 | AL68: 0 | AM68: 0 | AN68: 13.3 | AO68: - | AP68: 6.8 | AQ68: 18.1 | AR68: =INDEX(Input_Details!$L$5:$L$24, MATCH($A68, Input_Details!$J$5:$J$24, 0), 0) -> Southbound | AS68: Mon | AT68: 16:00:00 | AU68: 4 | AV68: 10 | AW68: 0 | AX68: 2 | AY68: 0 | AZ68: 0 | BA68: 0 | BB68: 0 | BC68: 0 | BD68: 0 | BE68: 0 | BF68: 0 | BG68: 3 | BH68: 5 | BI68: 7 | BJ68: 1 | BK68: 0 | BL68: 0 | BM68: 0 | BN68: 0 | BO68: 0 | BP68: 0 | BQ68: 0 | BR68: 0 | BS68: 0 | BT68: 0 | BU68: 0 | BV68: 0 | BW68: 0 | BX68: 0 | BY68: 0 | BZ68: 0 | CA68: 14.7 | CB68: 19.5 | CC68: 7.9 | CD68: 20.9 | CF68: Mon | CG68: 16:00:00 | CH68: 4 | CI68: =IF(OR(I68="", AV68=""), "-",SUM(I68+AV68)) -> 15 | CJ68: =IF(OR(J68="", AW68=""), "-",SUM(J68+AW68)) -> 0 | CK68: =IF(OR(K68="", AX68=""), "-",SUM(K68+AX68)) -> 3 | CL68: =IF(OR(L68="", AY68=""), "-",SUM(L68+AY68)) -> 0 | CM68: =IF(OR(M68="", AZ68=""), "-",SUM(M68+AZ68)) -> 0 | CN68: =IF(OR(N68="", BA68=""), "-",SUM(N68+BA68)) -> 0 | CO68: =IF(OR(O68="", BB68=""), "-",SUM(O68+BB68)) -> 0 | CP68: =IF(OR(P68="", BC68=""), "-",SUM(P68+BC68)) -> 0 | CQ68: =IF(OR(Q68="", BD68=""), "-",SUM(Q68+BD68)) -> 0 | CR68: =IF(OR(R68="", BE68=""), "-",SUM(R68+BE68)) -> 0 | CS68: =IF(OR(S68="", BF68=""), "-",SUM(S68+BF68)) -> 0 | CT68: =IF(OR(T68="", BG68=""), "-",SUM(T68+BG68)) -> 4 | CU68: =IF(OR(U68="", BH68=""), "-",SUM(U68+BH68)) -> 8 | CV68: =IF(OR(V68="", BI68=""), "-",SUM(V68+BI68)) -> 9 | CW68: =IF(OR(W68="", BJ68=""), "-",SUM(W68+BJ68)) -> 1 | CX68: =IF(OR(X68="", BK68=""), "-",SUM(X68+BK68)) -> 0 | CY68: =IF(OR(Y68="", BL68=""), "-",SUM(Y68+BL68)) -> 0 | CZ68: =IF(OR(Z68="", BM68=""), "-",SUM(Z68+BM68)) -> 0 | DA68: =IF(OR(AA68="", BN68=""), "-",SUM(AA68+BN68)) -> 0 | DB68: =IF(OR(AB68="", BO68=""), "-",SUM(AB68+BO68)) -> 0 | DC68: =IF(OR(AC68="", BP68=""), "-",SUM(AC68+BP68)) -> 0 | DD68: =IF(OR(AD68="", BQ68=""), "-",SUM(AD68+BQ68)) -> 0 | DE68: =IF(OR(AE68="", BR68=""), "-",SUM(AE68+BR68)) -> 0 | DF68: =IF(OR(AF68="", BS68=""), "-",SUM(AF68+BS68)) -> 0 | DG68: =IF(OR(AG68="", BT68=""), "-",SUM(AG68+BT68)) -> 0 | DH68: =IF(OR(AH68="", BU68=""), "-",SUM(AH68+BU68)) -> 0 | DI68: =IF(OR(AI68="", BV68=""), "-",SUM(AI68+BV68)) -> 0 | DJ68: =IF(OR(AJ68="", BW68=""), "-",SUM(AJ68+BW68)) -> 0 | DK68: =IF(OR(AK68="", BX68=""), "-",SUM(AK68+BX68)) -> 0 | DL68: =IF(OR(AL68="", BY68=""), "-",SUM(AL68+BY68)) -> 0 | DM68: =IF(OR(AM68="", BZ68=""), "-",SUM(AM68+BZ68)) -> 0 | DN68: 14.31818182 | DO68: 19.5 | DP68: 6.8 | DQ68: 20.9 | DR68: =IF(H68="", "-", H68) -> 0 | DS68: =IF(DR68="-", "-", SUM(I68:J68)) -> 5 | DT68: =IF(DR68="-", "-", K68) -> 1 | DU68: =IF(DR68="-", "-", L68) -> 0 | DV68: =IF(DR68="-", "-", SUM(M68:S68)) -> 0 | DW68: =IF(DR68="-", "-", SUM(H68:S68)) -> 6 | DX68: 4 | DY68: 10 | DZ68: 2 | EA68: 0 | EB68: 0 | EC68: 16 | ED68: 4 | EE68: =IF(OR(DS68="-", DY68="-"), "-", SUM(DS68,DY68)) -> 15 | EF68: =IF(OR(DT68="-", DZ68="-"), "-", SUM(DT68,DZ68)) -> 3 | EG68: =IF(OR(DU68="-", EA68="-"), "-", SUM(DU68,EA68)) -> 0 | EH68: =IF(OR(DV68="-", EB68="-"), "-", SUM(DV68,EB68)) -> 0 | EI68: =IF(OR(DW68="-", EC68="-"), "-", SUM(DW68,EC68)) -> 22 | EJ68: 6 | EK68: 5 | EL68: 3 | EM68: 3 | EN68: 4 | EO68: 4 | EP68: 13 | EQ68: 16 | ER68: 10 | ES68: 11 | ET68: 9 | EU68: 8 | EV68: 4 | EW68: 7 | EX68: 22 | EY68: =IF(OR(EK68="-", ER68="-"), "-", SUM(EK68,ER68)) -> 15 | EZ68: =IF(OR(EL68="-", ES68="-"), "-", SUM(EL68,ES68)) -> 14 | FA68: =IF(OR(EM68="-", ET68="-"), "-", SUM(EM68,ET68)) -> 12 | FB68: =IF(OR(EN68="-", EU68="-"), "-", SUM(EN68,EU68)) -> 12 | FC68: =IF(OR(EO68="-", EV68="-"), "-", SUM(EO68,EV68)) -> 8 | FD68: =IF(OR(EP68="-", EW68="-"), "-", SUM(EP68,EW68)) -> 20
A69: =A68 -> 1 | B69: =OFFSET(Input_Details!$Q$4,MATCH($A69, Input_Details!$J$5:$J$24, 0), 0) -> 2017-11-20 | C69: =INDEX(Input_Details!$H$5:$H$24, MATCH($A69, Input_Details!$J$5:$J$24, 0), 0) -> Meadow Street | D69: =INDEX(Input_Details!$I$5:$I$24, MATCH($A69, Input_Details!$J$5:$J$24, 0), 0) -> 51.49499,-0.09696 | E69: =INDEX(Input_Details!$K$5:$K$24, MATCH($A69, Input_Details!$J$5:$J$24, 0), 0) -> Northbound | F69: =+F68 -> Mon | G69: 16:15:00 | H69: 3 | I69: 3 | J69: 0 | K69: 0 | L69: 0 | M69: 0 | N69: 0 | O69: 0 | P69: 0 | Q69: 0 | R69: 0 | S69: 0 | T69: 1 | U69: 3 | V69: 1 | W69: 1 | X69: 0 | Y69: 0 | Z69: 0 | AA69: 0 | AB69: 0 | AC69: 0 | AD69: 0 | AE69: 0 | AF69: 0 | AG69: 0 | AH69: 0 | AI69: 0 | AJ69: 0 | AK69: 0 | AL69: 0 | AM69: 0 | AN69: 13.7 | AO69: - | AP69: 9.1 | AQ69: 20.1 | AR69: =INDEX(Input_Details!$L$5:$L$24, MATCH($A69, Input_Details!$J$5:$J$24, 0), 0) -> Southbound | AS69: Mon | AT69: 16:15:00 | AU69: 1 | AV69: 4 | AW69: 0 | AX69: 0 | AY69: 0 | AZ69: 0 | BA69: 0 | BB69: 0 | BC69: 0 | BD69: 0 | BE69: 0 | BF69: 0 | BG69: 2 | BH69: 1 | BI69: 2 | BJ69: 0 | BK69: 0 | BL69: 0 | BM69: 0 | BN69: 0 | BO69: 0 | BP69: 0 | BQ69: 0 | BR69: 0 | BS69: 0 | BT69: 0 | BU69: 0 | BV69: 0 | BW69: 0 | BX69: 0 | BY69: 0 | BZ69: 0 | CA69: 12.7 | CB69: - | CC69: 6.6 | CD69: 19.8 | CF69: Mon | CG69: 16:15:00 | CH69: =IF(OR(H69="", AU69=""), "-",SUM(H69+AU69)) -> 4 | CI69: 7 | CJ69: 0 | CK69: 0 | CL69: 0 | CM69: 0 | CN69: 0 | CO69: 0 | CP69: 0 | CQ69: 0 | CR69: 0 | CS69: 0 | CT69: 3 | CU69: 4 | CV69: 3 | CW69: 1 | CX69: 0 | CY69: 0 | CZ69: 0 | DA69: 0 | DB69: 0 | DC69: 0 | DD69: 0 | DE69: 0 | DF69: 0 | DG69: 0 | DH69: 0 | DI69: 0 | DJ69: 0 | DK69: 0 | DL69: 0 | DM69: 0 | DN69: =IF(OR(DW69="-", EC69="-", EI69="-", EI69=0),"-",IF(OR(DW69="-", DW69=0),CA69,IF(EC69=0,AN69,SUM((AN69*DW69),(CA69*EC69))/EI69))) -> 13.24545455 | DO69: =IFERROR(IF(OR(DW69="-", EC69="-", EI69="-", EI69=0), "-", IF(AO69="-", CB69, AVERAGE(AO69,CB69))), "-") -> - | DP69: =IF(OR(DW69="-", EC69="-",EI69="-", EI69=0),"-",MIN(AP69,CC69)) -> 6.6 | DQ69: =IF(OR(DW69="-", EC69="-",EI69="-", EI69=0),"-",MAX(AQ69,CD69)) -> 20.1 | DR69: 3 | DS69: 3 | DT69: 0 | DU69: 0 | DV69: 0 | DW69: 6 | DX69: =IF(AU69="", "-", AU69) -> 1 | DY69: =IF(DX69="-", "-", SUM(AV69:AW69)) -> 4 | DZ69: =IF(DX69="-", "-", AX69) -> 0 | EA69: =IF(DX69="-", "-", AY69) -> 0 | EB69: =IF(DX69="-", "-", SUM(AZ69:BF69)) -> 0 | EC69: =IF(DX69="-", "-", SUM(AU69:BF69)) -> 5 | ED69: =IF(OR(DR69="-", DX69="-"), "-", SUM(DR69,DX69)) -> 4 | EE69: 7 | EF69: 0 | EG69: 0 | EH69: 0 | EI69: 11 | EJ69: =+DW69 -> 6 | EK69: =+DW165 -> - | EL69: =+DW261 -> 5 | EM69: =+DW357 -> 4 | EN69: =+DW453 -> 7 | EO69: =+DW549 -> 9 | EP69: =+DW645 -> 8 | EQ69: =+EC69 -> 5 | ER69: =+EC165 -> - | ES69: =+EC261 -> 8 | ET69: =+EC357 -> 10 | EU69: =+EC453 -> 15 | EV69: =+EC549 -> 8 | EW69: =+EC645 -> 10 | EX69: =IF(OR(EJ69="-", EQ69="-"), "-", SUM(EJ69,EQ69)) -> 11 | EY69: - | EZ69: 13 | FA69: 14 | FB69: 22 | FC69: 17 | FD69: 18
A70: 1 | B70: =OFFSET(Input_Details!$Q$4,MATCH($A70, Input_Details!$J$5:$J$24, 0), 0) -> 2017-11-20 | C70: =INDEX(Input_Details!$H$5:$H$24, MATCH($A70, Input_Details!$J$5:$J$24, 0), 0) -> Meadow Street | D70: =INDEX(Input_Details!$I$5:$I$24, MATCH($A70, Input_Details!$J$5:$J$24, 0), 0) -> 51.49499,-0.09696 | E70: =INDEX(Input_Details!$K$5:$K$24, MATCH($A70, Input_Details!$J$5:$J$24, 0), 0) -> Northbound | F70: Mon | G70: 16:30:00 | H70: 2 | I70: 3 | J70: 0 | K70: 3 | L70: 0 | M70: 0 | N70: 0 | O70: 0 | P70: 0 | Q70: 0 | R70: 0 | S70: 0 | T70: 0 | U70: 1 | V70: 5 | W70: 2 | X70: 0 | Y70: 0 | Z70: 0 | AA70: 0 | AB70: 0 | AC70: 0 | AD70: 0 | AE70: 0 | AF70: 0 | AG70: 0 | AH70: 0 | AI70: 0 | AJ70: 0 | AK70: 0 | AL70: 0 | AM70: 0 | AN70: 17 | AO70: - | AP70: 11.2 | AQ70: 20.4 | AR70: =INDEX(Input_Details!$L$5:$L$24, MATCH($A70, Input_Details!$J$5:$J$24, 0), 0) -> Southbound | AS70: Mon | AT70: 16:30:00 | AU70: 14 | AV70: 3 | AW70: 0 | AX70: 1 | AY70: 0 | AZ70: 1 | BA70: 0 | BB70: 0 | BC70: 0 | BD70: 0 | BE70: 0 | BF70: 0 | BG70: 3 | BH70: 9 | BI70: 6 | BJ70: 0 | BK70: 1 | BL70: 0 | BM70: 0 | BN70: 0 | BO70: 0 | BP70: 0 | BQ70: 0 | BR70: 0 | BS70: 0 | BT70: 0 | BU70: 0 | BV70: 0 | BW70: 0 | BX70: 0 | BY70: 0 | BZ70: 0 | CA70: 13.9 | CB70: 16.1 | CC70: 7.8 | CD70: 28.9 | CF70: Mon | CG70: 16:30:00 | CH70: 16 | CI70: 6 | CJ70: 0 | CK70: 4 | CL70: 0 | CM70: 1 | CN70: 0 | CO70: 0 | CP70: 0 | CQ70: 0 | CR70: 0 | CS70: 0 | CT70: 3 | CU70: 10 | CV70: 11 | CW70: 2 | CX70: 1 | CY70: 0 | CZ70: 0 | DA70: 0 | DB70: 0 | DC70: 0 | DD70: 0 | DE70: 0 | DF70: 0 | DG70: 0 | DH70: 0 | DI70: 0 | DJ70: 0 | DK70: 0 | DL70: 0 | DM70: 0 | DN70: 14.81851852 | DO70: 16.1 | DP70: 7.8 | DQ70: 28.9 | DR70: 2 | DS70: 3 | DT70: 3 | DU70: 0 | DV70: 0 | DW70: 8 | DX70: 14 | DY70: 3 | DZ70: 1 | EA70: 0 | EB70: 1 | EC70: 19 | ED70: 16 | EE70: 6 | EF70: 4 | EG70: 0 | EH70: 1 | EI70: 27 | EJ70: 8 | EK70: 3 | EL70: 9 | EM70: 8 | EN70: 7 | EO70: 9 | EP70: 12 | EQ70: 19 | ER70: 9 | ES70: 18 | ET70: 13 | EU70: 15 | EV70: 8 | EW70: 8 | EX70: 27 | EY70: 12 | EZ70: 27 | FA70: 21 | FB70: 22 | FC70: 17 | FD70: 20
A71: 1 | B71: =OFFSET(Input_Details!$Q$4,MATCH($A71, Input_Details!$J$5:$J$24, 0), 0) -> 2017-11-20 | C71: =INDEX(Input_Details!$H$5:$H$24, MATCH($A71, Input_Details!$J$5:$J$24, 0), 0) -> Meadow Street | D71: =INDEX(Input_Details!$I$5:$I$24, MATCH($A71, Input_Details!$J$5:$J$24, 0), 0) -> 51.49499,-0.09696 | E71: =INDEX(Input_Details!$K$5:$K$24, MATCH($A71, Input_Details!$J$5:$J$24, 0), 0) -> Northbound | F71: Mon | G71: 16:45:00 | H71: 2 | I71: 5 | J71: 0 | K71: 0 | L71: 0 | M71: 0 | N71: 0 | O71: 0 | P71: 0 | Q71: 0 | R71: 0 | S71: 0 | T71: 0 | U71: 1 | V71: 4 | W71: 1 | X71: 1 | Y71: 0 | Z71: 0 | AA71: 0 | AB71: 0 | AC71: 0 | AD71: 0 | AE71: 0 | AF71: 0 | AG71: 0 | AH71: 0 | AI71: 0 | AJ71: 0 | AK71: 0 | AL71: 0 | AM71: 0 | AN71: 18.4 | AO71: - | AP71: 11.9 | AQ71: 26.1 | AR71: =INDEX(Input_Details!$L$5:$L$24, MATCH($A71, Input_Details!$J$5:$J$24, 0), 0) -> Southbound | AS71: Mon | AT71: 16:45:00 | AU71: 4 | AV71: 5 | AW71: 0 | AX71: 1 | AY71: 0 | AZ71: 0 | BA71: 0 | BB71: 0 | BC71: 0 | BD71: 0 | BE71: 0 | BF71: 0 | BG71: 3 | BH71: 2 | BI71: 5 | BJ71: 0 | BK71: 0 | BL71: 0 | BM71: 0 | BN71: 0 | BO71: 0 | BP71: 0 | BQ71: 0 | BR71: 0 | BS71: 0 | BT71: 0 | BU71: 0 | BV71: 0 | BW71: 0 | BX71: 0 | BY71: 0 | BZ71: 0 | CA71: 13.5 | CB71: - | CC71: 8.6 | CD71: 18.3 | CF71: Mon | CG71: 16:45:00 | CH71: 6 | CI71: 10 | CJ71: 0 | CK71: 1 | CL71: 0 | CM71: 0 | CN71: 0 | CO71: 0 | CP71: 0 | CQ71: 0 | CR71: 0 | CS71: 0 | CT71: 3 | CU71: 3 | CV71: 9 | CW71: 1 | CX71: 1 | CY71: 0 | CZ71: 0 | DA71: 0 | DB71: 0 | DC71: 0 | DD71: 0 | DE71: 0 | DF71: 0 | DG71: 0 | DH71: 0 | DI71: 0 | DJ71: 0 | DK71: 0 | DL71: 0 | DM71: 0 | DN71: 15.51764706 | DO71: - | DP71: 8.6 | DQ71: 26.1 | DR71: 2 | DS71: 5 | DT71: 0 | DU71: 0 | DV71: 0 | DW71: 7 | DX71: 4 | DY71: 5 | DZ71: 1 | EA71: 0 | EB71: 0 | EC71: 10 | ED71: 6 | EE71: 10 | EF71: 1 | EG71: 0 | EH71: 0 | EI71: 17 | EJ71: 7 | EK71: 10 | EL71: 2 | EM71: 12 | EN71: 4 | EO71: 8 | EP71: 8 | EQ71: 10 | ER71: 19 | ES71: 14 | ET71: 28 | EU71: 16 | EV71: 7 | EW71: 11 | EX71: 17 | EY71: 29 | EZ71: 16 | FA71: 40 | FB71: 20 | FC71: 15 | FD71: 19
A72: 1 | B72: =OFFSET(Input_Details!$Q$4,MATCH($A72, Input_Details!$J$5:$J$24, 0), 0) -> 2017-11-20 | C72: =INDEX(Input_Details!$H$5:$H$24, MATCH($A72, Input_Details!$J$5:$J$24, 0), 0) -> Meadow Street | D72: =INDEX(Input_Details!$I$5:$I$24, MATCH($A72, Input_Details!$J$5:$J$24, 0), 0) -> 51.49499,-0.09696 | E72: =INDEX(Input_Details!$K$5:$K$24, MATCH($A72, Input_Details!$J$5:$J$24, 0), 0) -> Northbound | F72: Mon | G72: 17:00:00 | H72: 3 | I72: 2 | J72: 0 | K72: 0 | L72: 0 | M72: 0 | N72: 0 | O72: 0 | P72: 0 | Q72: 0 | R72: 0 | S72: 0 | T72: 0 | U72: 5 | V72: 0 | W72: 0 | X72: 0 | Y72: 0 | Z72: 0 | AA72: 0 | AB72: 0 | AC72: 0 | AD72: 0 | AE72: 0 | AF72: 0 | AG72: 0 | AH72: 0 | AI72: 0 | AJ72: 0 | AK72: 0 | AL72: 0 | AM72: 0 | AN72: 11.9 | AO72: - | AP72: 10.7 | AQ72: 13.6 | AR72: =INDEX(Input_Details!$L$5:$L$24, MATCH($A72, Input_Details!$J$5:$J$24, 0), 0) -> Southbound | AS72: Mon | AT72: 17:00:00 | AU72: 6 | AV72: 5 | AW72: 0 | AX72: 0 | AY72: 0 | AZ72: 0 | BA72: 0 | BB72: 0 | BC72: 0 | BD72: 0 | BE72: 0 | BF72: 0 | BG72: 0 | BH72: 10 | BI72: 1 | BJ72: 0 | BK72: 0 | BL72: 0 | BM72: 0 | BN72: 0 | BO72: 0 | BP72: 0 | BQ72: 0 | BR72: 0 | BS72: 0 | BT72: 0 | BU72: 0 | BV72: 0 | BW72: 0 | BX72: 0 | BY72: 0 | BZ72: 0 | CA72: 12.1 | CB72: 12.8 | CC72: 10.6 | CD72: 16.3 | CF72: Mon | CG72: 17:00:00 | CH72: 9 | CI72: 7 | CJ72: 0 | CK72: 0 | CL72: 0 | CM72: 0 | CN72: 0 | CO72: 0 | CP72: 0 | CQ72: 0 | CR72: 0 | CS72: 0 | CT72: 0 | CU72: 15 | CV72: 1 | CW72: 0 | CX72: 0 | CY72: 0 | CZ72: 0 | DA72: 0 | DB72: 0 | DC72: 0 | DD72: 0 | DE72: 0 | DF72: 0 | DG72: 0 | DH72: 0 | DI72: 0 | DJ72: 0 | DK72: 0 | DL72: 0 | DM72: 0 | DN72: 12.0375 | DO72: 12.8 | DP72: 10.6 | DQ72: 16.3 | DR72: 3 | DS72: 2 | DT72: 0 | DU72: 0 | DV72: 0 | DW72: 5 | DX72: 6 | DY72: 5 | DZ72: 0 | EA72: 0 | EB72: 0 | EC72: 11 | ED72: 9 | EE72: 7 | EF72: 0 | EG72: 0 | EH72: 0 | EI72: 16 | EJ72: 5 | EK72: 4 | EL72: 4 | EM72: 12 | EN72: 3 | EO72: 12 | EP72: 7 | EQ72: 11 | ER72: 16 | ES72: 22 | ET72: 19 | EU72: 12 | EV72: 9 | EW72: 13 | EX72: 16 | EY72: 20 | EZ72: 26 | FA72: 31 | FB72: 15 | FC72: 21 | FD72: 20
A73: 1 | B73: =OFFSET(Input_Details!$Q$4,MATCH($A73, Input_Details!$J$5:$J$24, 0), 0) -> 2017-11-20 | C73: =INDEX(Input_Details!$H$5:$H$24, MATCH($A73, Input_Details!$J$5:$J$24, 0), 0) -> Meadow Street | D73: =INDEX(Input_Details!$I$5:$I$24, MATCH($A73, Input_Details!$J$5:$J$24, 0), 0) -> 51.49499,-0.09696 | E73: =INDEX(Input_Details!$K$5:$K$24, MATCH($A73, Input_Details!$J$5:$J$24, 0), 0) -> Northbound | F73: Mon | G73: 17:15:00 | H73: 4 | I73: 3 | J73: 0 | K73: 0 | L73: 0 | M73: 0 | N73: 0 | O73: 0 | P73: 0 | Q73: 0 | R73: 0 | S73: 0 | T73: 0 | U73: 7 | V73: 0 | W73: 0 | X73: 0 | Y73: 0 | Z73: 0 | AA73: 0 | AB73: 0 | AC73: 0 | AD73: 0 | AE73: 0 | AF73: 0 | AG73: 0 | AH73: 0 | AI73: 0 | AJ73: 0 | AK73: 0 | AL73: 0 | AM73: 0 | AN73: 12 | AO73: - | AP73: 10.2 | AQ73: 14.1 | AR73: =INDEX(Input_Details!$L$5:$L$24, MATCH($A73, Input_Details!$J$5:$J$24, 0), 0) -> Southbound | AS73: Mon | AT73: 17:15:00 | AU73: 17 | AV73: 8 | AW73: 0 | AX73: 0 | AY73: 0 | AZ73: 2 | BA73: 0 | BB73: 0 | BC73: 0 | BD73: 0 | BE73: 0 | BF73: 0 | BG73: 5 | BH73: 18 | BI73: 4 | BJ73: 0 | BK73: 0 | BL73: 0 | BM73: 0 | BN73: 0 | BO73: 0 | BP73: 0 | BQ73: 0 | BR73: 0 | BS73: 0 | BT73: 0 | BU73: 0 | BV73: 0 | BW73: 0 | BX73: 0 | BY73: 0 | BZ73: 0 | CA73: 12.4 | CB73: 14.8 | CC73: 8.5 | CD73: 17 | CF73: Mon | CG73: 17:15:00 | CH73: 21 | CI73: 11 | CJ73: 0 | CK73: 0 | CL73: 0 | CM73: 2 | CN73: 0 | CO73: 0 | CP73: 0 | CQ73: 0 | CR73: 0 | CS73: 0 | CT73: 5 | CU73: 25 | CV73: 4 | CW73: 0 | CX73: 0 | CY73: 0 | CZ73: 0 | DA73: 0 | DB73: 0 | DC73: 0 | DD73: 0 | DE73: 0 | DF73: 0 | DG73: 0 | DH73: 0 | DI73: 0 | DJ73: 0 | DK73: 0 | DL73: 0 | DM73: 0 | DN73: 12.31764706 | DO73: 14.8 | DP73: 8.5 | DQ73: 17 | DR73: 4 | DS73: 3 | DT73: 0 | DU73: 0 | DV73: 0 | DW73: 7 | DX73: 17 | DY73: 8 | DZ73: 0 | EA73: 0 | EB73: 2 | EC73: 27 | ED73: 21 | EE73: 11 | EF73: 0 | EG73: 0 | EH73: 2 | EI73: 34 | EJ73: 7 | EK73: 5 | EL73: 3 | EM73: 2 | EN73: 2 | EO73: 8 | EP73: 5 | EQ73: 27 | ER73: 26 | ES73: 20 | ET73: 23 | EU73: 21 | EV73: 13 | EW73: 13 | EX73: 34 | EY73: 31 | EZ73: 23 | FA73: 25 | FB73: 23 | FC73: 21 | FD73: 18
A74: 1 | B74: =OFFSET(Input_Details!$Q$4,MATCH($A74, Input_Details!$J$5:$J$24, 0), 0) -> 2017-11-20 | C74: =INDEX(Input_Details!$H$5:$H$24, MATCH($A74, Input_Details!$J$5:$J$24, 0), 0) -> Meadow Street | D74: =INDEX(Input_Details!$I$5:$I$24, MATCH($A74, Input_Details!$J$5:$J$24, 0), 0) -> 51.49499,-0.09696 | E74: =INDEX(Input_Details!$K$5:$K$24, MATCH($A74, Input_Details!$J$5:$J$24, 0), 0) -> Northbound | F74: Mon | G74: 17:30:00 | H74: 5 | I74: 4 | J74: 0 | K74: 1 | L74: 0 | M74: 0 | N74: 0 | O74: 0 | P74: 0 | Q74: 0 | R74: 0 | S74: 0 | T74: 3 | U74: 4 | V74: 2 | W74: 1 | X74: 0 | Y74: 0 | Z74: 0 | AA74: 0 | AB74: 0 | AC74: 0 | AD74: 0 | AE74: 0 | AF74: 0 | AG74: 0 | AH74: 0 | AI74: 0 | AJ74: 0 | AK74: 0 | AL74: 0 | AM74: 0 | AN74: 12.7 | AO74: - | AP74: 8.6 | AQ74: 20.4 | AR74: =INDEX(Input_Details!$L$5:$L$24, MATCH($A74, Input_Details!$J$5:$J$24, 0), 0) -> Southbound | AS74: Mon | AT74: 17:30:00 | AU74: 17 | AV74: 7 | AW74: 0 | AX74: 0 | AY74: 0 | AZ74: 2 | BA74: 0 | BB74: 0 | BC74: 0 | BD74: 1 | BE74: 0 | BF74: 0 | BG74: 6 | BH74: 19 | BI74: 2 | BJ74: 0 | BK74: 0 | BL74: 0 | BM74: 0 | BN74: 0 | BO74: 0 | BP74: 0 | BQ74: 0 | BR74: 0 | BS74: 0 | BT74: 0 | BU74: 0 | BV74: 0 | BW74: 0 | BX74: 0 | BY74: 0 | BZ74: 0 | CA74: 12.1 | CB74: 14.1 | CC74: 9.1 | CD74: 18.1 | CF74: Mon | CG74: 17:30:00 | CH74: 22 | CI74: 11 | CJ74: 0 | CK74: 1 | CL74: 0 | CM74: 2 | CN74: 0 | CO74: 0 | CP74: 0 | CQ74: 1 | CR74: 0 | CS74: 0 | CT74: 9 | CU74: 23 | CV74: 4 | CW74: 1 | CX74: 0 | CY74: 0 | CZ74: 0 | DA74: 0 | DB74: 0 | DC74: 0 | DD74: 0 | DE74: 0 | DF74: 0 | DG74: 0 | DH74: 0 | DI74: 0 | DJ74: 0 | DK74: 0 | DL74: 0 | DM74: 0 | DN74: 12.26216216 | DO74: 14.1 | DP74: 8.6 | DQ74: 20.4 | DR74: 5 | DS74: 4 | DT74: 1 | DU74: 0 | DV74: 0 | DW74: 10 | DX74: 17 | DY74: 7 | DZ74: 0 | EA74: 0 | EB74: 3 | EC74: 27 | ED74: 22 | EE74: 11 | EF74: 1 | EG74: 0 | EH74: 3 | EI74: 37 | EJ74: 10 | EK74: 9 | EL74: 7 | EM74: 5 | EN74: 7 | EO74: 7 | EP74: 6 | EQ74: 27 | ER74: 24 | ES74: 31 | ET74: 34 | EU74: 29 | EV74: 10 | EW74: 7 | EX74: 37 | EY74: 33 | EZ74: 38 | FA74: 39 | FB74: 36 | FC74: 17 | FD74: 13
A75: 1 | B75: =OFFSET(Input_Details!$Q$4,MATCH($A75, Input_Details!$J$5:$J$24, 0), 0) -> 2017-11-20 | C75: =INDEX(Input_Details!$H$5:$H$24, MATCH($A75, Input_Details!$J$5:$J$24, 0), 0) -> Meadow Street | D75: =INDEX(Input_Details!$I$5:$I$24, MATCH($A75, Input_Details!$J$5:$J$24, 0), 0) -> 51.49499,-0.09696 | E75: =INDEX(Input_Details!$K$5:$K$24, MATCH($A75, Input_Details!$J$5:$J$24, 0), 0) -> Northbound | F75: Mon | G75: 17:45:00 | H75: 3 | I75: 3 | J75: 0 | K75: 0 | L75: 0 | M75: 0 | N75: 0 | O75: 0 | P75: 0 | Q75: 0 | R75: 0 | S75: 0 | T75: 0 | U75: 4 | V75: 1 | W75: 1 | X75: 0 | Y75: 0 | Z75: 0 | AA75: 0 | AB75: 0 | AC75: 0 | AD75: 0 | AE75: 0 | AF75: 0 | AG75: 0 | AH75: 0 | AI75: 0 | AJ75: 0 | AK75: 0 | AL75: 0 | AM75: 0 | AN75: 15.1 | AO75: - | AP75: 11.9 | AQ75: 21.5 | AR75: =INDEX(Input_Details!$L$5:$L$24, MATCH($A75, Input_Details!$J$5:$J$24, 0), 0) -> Southbound | AS75: Mon | AT75: 17:45:00 | AU75: 26 | AV75: 6 | AW75: 0 | AX75: 0 | AY75: 0 | AZ75: 0 | BA75: 0 | BB75: 0 | BC75: 0 | BD75: 0 | BE75: 0 | BF75: 0 | BG75: 0 | BH75: 25 | BI75: 5 | BJ75: 1 | BK75: 1 | BL75: 0 | BM75: 0 | BN75: 0 | BO75: 0 | BP75: 0 | BQ75: 0 | BR75: 0 | BS75: 0 | BT75: 0 | BU75: 0 | BV75: 0 | BW75: 0 | BX75: 0 | BY75: 0 | BZ75: 0 | CA75: 14.2 | CB75: 15.4 | CC75: 10.4 | CD75: 27.9 | CF75: Mon | CG75: 17:45:00 | CH75: 29 | CI75: 9 | CJ75: 0 | CK75: 0 | CL75: 0 | CM75: 0 | CN75: 0 | CO75: 0 | CP75: 0 | CQ75: 0 | CR75: 0 | CS75: 0 | CT75: 0 | CU75: 29 | CV75: 6 | CW75: 2 | CX75: 1 | CY75: 0 | CZ75: 0 | DA75: 0 | DB75: 0 | DC75: 0 | DD75: 0 | DE75: 0 | DF75: 0 | DG75: 0 | DH75: 0 | DI75: 0 | DJ75: 0 | DK75: 0 | DL75: 0 | DM75: 0 | DN75: 14.34210526 | DO75: 15.4 | DP75: 10.4 | DQ75: 27.9 | DR75: 3 | DS75: 3 | DT75: 0 | DU75: 0 | DV75: 0 | DW75: 6 | DX75: 26 | DY75: 6 | DZ75: 0 | EA75: 0 | EB75: 0 | EC75: 32 | ED75: 29 | EE75: 9 | EF75: 0 | EG75: 0 | EH75: 0 | EI75: 38 | EJ75: 6 | EK75: 10 | EL75: 11 | EM75: 4 | EN75: 4 | EO75: 6 | EP75: 5 | EQ75: 32 | ER75: 41 | ES75: 36 | ET75: 29 | EU75: 26 | EV75: 8 | EW75: 12 | EX75: 38 | EY75: 51 | EZ75: 47 | FA75: 33 | FB75: 30 | FC75: 14 | FD75: 17
A76: 1 | B76: =OFFSET(Input_Details!$Q$4,MATCH($A76, Input_Details!$J$5:$J$24, 0), 0) -> 2017-11-20 | C76: =INDEX(Input_Details!$H$5:$H$24, MATCH($A76, Input_Details!$J$5:$J$24, 0), 0) -> Meadow Street | D76: =INDEX(Input_Details!$I$5:$I$24, MATCH($A76, Input_Details!$J$5:$J$24, 0), 0) -> 51.49499,-0.09696 | E76: =INDEX(Input_Details!$K$5:$K$24, MATCH($A76, Input_Details!$J$5:$J$24, 0), 0) -> Northbound | F76: Mon | G76: 18:00:00 | H76: 2 | I76: 2 | J76: 0 | K76: 0 | L76: 0 | M76: 0 | N76: 0 | O76: 0 | P76: 0 | Q76: 0 | R76: 0 | S76: 0 | T76: 0 | U76: 2 | V76: 2 | W76: 0 | X76: 0 | Y76: 0 | Z76: 0 | AA76: 0 | AB76: 0 | AC76: 0 | AD76: 0 | AE76: 0 | AF76: 0 | AG76: 0 | AH76: 0 | AI76: 0 | AJ76: 0 | AK76: 0 | AL76: 0 | AM76: 0 | AN76: 15.2 | AO76: - | AP76: 11.1 | AQ76: 19.7 | AR76: =INDEX(Input_Details!$L$5:$L$24, MATCH($A76, Input_Details!$J$5:$J$24, 0), 0) -> Southbound | AS76: Mon | AT76: 18:00:00 | AU76: 27 | AV76: 2 | AW76: 0 | AX76: 0 | AY76: 0 | AZ76: 2 | BA76: 0 | BB76: 0 | BC76: 0 | BD76: 3 | BE76: 1 | BF76: 0 | BG76: 4 | BH76: 25 | BI76: 6 | BJ76: 0 | BK76: 0 | BL76: 0 | BM76: 0 | BN76: 0 | BO76: 0 | BP76: 0 | BQ76: 0 | BR76: 0 | BS76: 0 | BT76: 0 | BU76: 0 | BV76: 0 | BW76: 0 | BX76: 0 | BY76: 0 | BZ76: 0 | CA76: 12.7 | CB76: 15.2 | CC76: 8.1 | CD76: 18.4 | CF76: Mon | CG76: 18:00:00 | CH76: 29 | CI76: 4 | CJ76: 0 | CK76: 0 | CL76: 0 | CM76: 2 | CN76: 0 | CO76: 0 | CP76: 0 | CQ76: 3 | CR76: 1 | CS76: 0 | CT76: 4 | CU76: 27 | CV76: 8 | CW76: 0 | CX76: 0 | CY76: 0 | CZ76: 0 | DA76: 0 | DB76: 0 | DC76: 0 | DD76: 0 | DE76: 0 | DF76: 0 | DG76: 0 | DH76: 0 | DI76: 0 | DJ76: 0 | DK76: 0 | DL76: 0 | DM76: 0 | DN76: 12.95641026 | DO76: 15.2 | DP76: 8.1 | DQ76: 19.7 | DR76: 2 | DS76: 2 | DT76: 0 | DU76: 0 | DV76: 0 | DW76: 4 | DX76: 27 | DY76: 2 | DZ76: 0 | EA76: 0 | EB76: 6 | EC76: 35 | ED76: 29 | EE76: 4 | EF76: 0 | EG76: 0 | EH76: 6 | EI76: 39 | EJ76: 4 | EK76: 12 | EL76: 5 | EM76: 9 | EN76: 13 | EO76: 3 | EP76: 12 | EQ76: 35 | ER76: 48 | ES76: 31 | ET76: 49 | EU76: 26 | EV76: 10 | EW76: 12 | EX76: 39 | EY76: 60 | EZ76: 36 | FA76: 58 | FB76: 39 | FC76: 13 | FD76: 24
A77: 1 | B77: =OFFSET(Input_Details!$Q$4,MATCH($A77, Input_Details!$J$5:$J$24, 0), 0) -> 2017-11-20 | C77: =INDEX(Input_Details!$H$5:$H$24, MATCH($A77, Input_Details!$J$5:$J$24, 0), 0) -> Meadow Street | D77: =INDEX(Input_Details!$I$5:$I$24, MATCH($A77, Input_Details!$J$5:$J$24, 0), 0) -> 51.49499,-0.09696 | E77: =INDEX(Input_Details!$K$5:$K$24, MATCH($A77, Input_Details!$J$5:$J$24, 0), 0) -> Northbound | F77: Mon | G77: 18:15:00 | H77: 5 | I77: 5 | J77: 0 | K77: 0 | L77: 0 | M77: 0 | N77: 0 | O77: 0 | P77: 0 | Q77: 0 | R77: 0 | S77: 0 | T77: 2 | U77: 4 | V77: 2 | W77: 2 | X77: 0 | Y77: 0 | Z77: 0 | AA77: 0 | AB77: 0 | AC77: 0 | AD77: 0 | AE77: 0 | AF77: 0 | AG77: 0 | AH77: 0 | AI77: 0 | AJ77: 0 | AK77: 0 | AL77: 0 | AM77: 0 | AN77: 15 | AO77: - | AP77: 7.9 | AQ77: 23.5 | AR77: =INDEX(Input_Details!$L$5:$L$24, MATCH($A77, Input_Details!$J$5:$J$24, 0), 0) -> Southbound | AS77: Mon | AT77: 18:15:00 | AU77: 17 | AV77: 9 | AW77: 0 | AX77: 0 | AY77: 0 | AZ77: 4 | BA77: 0 | BB77: 0 | BC77: 0 | BD77: 1 | BE77: 2 | BF77: 0 | BG77: 4 | BH77: 22 | BI77: 7 | BJ77: 0 | BK77: 0 | BL77: 0 | BM77: 0 | BN77: 0 | BO77: 0 | BP77: 0 | BQ77: 0 | BR77: 0 | BS77: 0 | BT77: 0 | BU77: 0 | BV77: 0 | BW77: 0 | BX77: 0 | BY77: 0 | BZ77: 0 | CA77: 12.9 | CB77: 15 | CC77: 7.1 | CD77: 19.1 | CF77: Mon | CG77: 18:15:00 | CH77: 22 | CI77: 14 | CJ77: 0 | CK77: 0 | CL77: 0 | CM77: 4 | CN77: 0 | CO77: 0 | CP77: 0 | CQ77: 1 | CR77: 2 | CS77: 0 | CT77: 6 | CU77: 26 | CV77: 9 | CW77: 2 | CX77: 0 | CY77: 0 | CZ77: 0 | DA77: 0 | DB77: 0 | DC77: 0 | DD77: 0 | DE77: 0 | DF77: 0 | DG77: 0 | DH77: 0 | DI77: 0 | DJ77: 0 | DK77: 0 | DL77: 0 | DM77: 0 | DN77: 13.38837209 | DO77: 15 | DP77: 7.1 | DQ77: 23.5 | DR77: 5 | DS77: 5 | DT77: 0 | DU77: 0 | DV77: 0 | DW77: 10 | DX77: 17 | DY77: 9 | DZ77: 0 | EA77: 0 | EB77: 7 | EC77: 33 | ED77: 22 | EE77: 14 | EF77: 0 | EG77: 0 | EH77: 7 | EI77: 43 | EJ77: 10 | EK77: 8 | EL77: 7 | EM77: 2 | EN77: 7 | EO77: 13 | EP77: 5 | EQ77: 33 | ER77: 41 | ES77: 45 | ET77: 41 | EU77: 35 | EV77: 14 | EW77: 3 | EX77: 43 | EY77: 49 | EZ77: 52 | FA77: 43 | FB77: 42 | FC77: 27 | FD77: 8
A78: 1 | B78: =OFFSET(Input_Details!$Q$4,MATCH($A78, Input_Details!$J$5:$J$24, 0), 0) -> 2017-11-20 | C78: =INDEX(Input_Details!$H$5:$H$24, MATCH($A78, Input_Details!$J$5:$J$24, 0), 0) -> Meadow Street | D78: =INDEX(Input_Details!$I$5:$I$24, MATCH($A78, Input_Details!$J$5:$J$24, 0), 0) -> 51.49499,-0.09696 | E78: =INDEX(Input_Details!$K$5:$K$24, MATCH($A78, Input_Details!$J$5:$J$24, 0), 0) -> Northbound | F78: Mon | G78: 18:30:00 | H78: 2 | I78: 4 | J78: 0 | K78: 0 | L78: 0 | M78: 0 | N78: 0 | O78: 0 | P78: 0 | Q78: 0 | R78: 0 | S78: 0 | T78: 1 | U78: 1 | V78: 4 | W78: 0 | X78: 0 | Y78: 0 | Z78: 0 | AA78: 0 | AB78: 0 | AC78: 0 | AD78: 0 | AE78: 0 | AF78: 0 | AG78: 0 | AH78: 0 | AI78: 0 | AJ78: 0 | AK78: 0 | AL78: 0 | AM78: 0 | AN78: 15.1 | AO78: - | AP78: 9.5 | AQ78: 17.8 | AR78: =INDEX(Input_Details!$L$5:$L$24, MATCH($A78, Input_Details!$J$5:$J$24, 0), 0) -> Southbound | AS78: Mon | AT78: 18:30:00 | AU78: 20 | AV78: 5 | AW78: 0 | AX78: 0 | AY78: 1 | AZ78: 6 | BA78: 0 | BB78: 0 | BC78: 0 | BD78: 3 | BE78: 2 | BF78: 1 | BG78: 3 | BH78: 30 | BI78: 4 | BJ78: 0 | BK78: 1 | BL78: 0 | BM78: 0 | BN78: 0 | BO78: 0 | BP78: 0 | BQ78: 0 | BR78: 0 | BS78: 0 | BT78: 0 | BU78: 0 | BV78: 0 | BW78: 0 | BX78: 0 | BY78: 0 | BZ78: 0 | CA78: 12.8 | CB78: 14.1 | CC78: 4.5 | CD78: 27.5 | CF78: Mon | CG78: 18:30:00 | CH78: 22 | CI78: 9 | CJ78: 0 | CK78: 0 | CL78: 1 | CM78: 6 | CN78: 0 | CO78: 0 | CP78: 0 | CQ78: 3 | CR78: 2 | CS78: 1 | CT78: 4 | CU78: 31 | CV78: 8 | CW78: 0 | CX78: 1 | CY78: 0 | CZ78: 0 | DA78: 0 | DB78: 0 | DC78: 0 | DD78: 0 | DE78: 0 | DF78: 0 | DG78: 0 | DH78: 0 | DI78: 0 | DJ78: 0 | DK78: 0 | DL78: 0 | DM78: 0 | DN78: 13.11363636 | DO78: 14.1 | DP78: 4.5 | DQ78: 27.5 | DR78: 2 | DS78: 4 | DT78: 0 | DU78: 0 | DV78: 0 | DW78: 6 | DX78: 20 | DY78: 5 | DZ78: 0 | EA78: 1 | EB78: 12 | EC78: 38 | ED78: 22 | EE78: 9 | EF78: 0 | EG78: 1 | EH78: 12 | EI78: 44 | EJ78: 6 | EK78: 8 | EL78: 6 | EM78: 5 | EN78: 13 | EO78: 15 | EP78: 13 | EQ78: 38 | ER78: 38 | ES78: 26 | ET78: 46 | EU78: 29 | EV78: 11 | EW78: 8 | EX78: 44 | EY78: 46 | EZ78: 32 | FA78: 51 | FB78: 42 | FC78: 26 | FD78: 21
A79: 1 | B79: =OFFSET(Input_Details!$Q$4,MATCH($A79, Input_Details!$J$5:$J$24, 0), 0) -> 2017-11-20 | C79: =INDEX(Input_Details!$H$5:$H$24, MATCH($A79, Input_Details!$J$5:$J$24, 0), 0) -> Meadow Street | D79: =INDEX(Input_Details!$I$5:$I$24, MATCH($A79, Input_Details!$J$5:$J$24, 0), 0) -> 51.49499,-0.09696 | E79: =INDEX(Input_Details!$K$5:$K$24, MATCH($A79, Input_Details!$J$5:$J$24, 0), 0) -> Northbound | F79: Mon | G79: 18:45:00 | H79: 1 | I79: 3 | J79: 0 | K79: 0 | L79: 0 | M79: 1 | N79: 0 | O79: 0 | P79: 0 | Q79: 0 | R79: 0 | S79: 0 | T79: 0 | U79: 5 | V79: 0 | W79: 0 | X79: 0 | Y79: 0 | Z79: 0 | AA79: 0 | AB79: 0 | AC79: 0 | AD79: 0 | AE79: 0 | AF79: 0 | AG79: 0 | AH79: 0 | AI79: 0 | AJ79: 0 | AK79: 0 | AL79: 0 | AM79: 0 | AN79: 11.6 | AO79: - | AP79: 10.6 | AQ79: 12.9 | AR79: =INDEX(Input_Details!$L$5:$L$24, MATCH($A79, Input_Details!$J$5:$J$24, 0), 0) -> Southbound | AS79: Mon | AT79: 18:45:00 | AU79: 27 | AV79: 4 | AW79: 0 | AX79: 0 | AY79: 0 | AZ79: 5 | BA79: 0 | BB79: 0 | BC79: 0 | BD79: 0 | BE79: 0 | BF79: 0 | BG79: 4 | BH79: 26 | BI79: 6 | BJ79: 0 | BK79: 0 | BL79: 0 | BM79: 0 | BN79: 0 | BO79: 0 | BP79: 0 | BQ79: 0 | BR79: 0 | BS79: 0 | BT79: 0 | BU79: 0 | BV79: 0 | BW79: 0 | BX79: 0 | BY79: 0 | BZ79: 0 | CA79: 12.7 | CB79: 15 | CC79: 9.5 | CD79: 17.9 | CF79: Mon | CG79: 18:45:00 | CH79: 28 | CI79: 7 | CJ79: 0 | CK79: 0 | CL79: 0 | CM79: 6 | CN79: 0 | CO79: 0 | CP79: 0 | CQ79: 0 | CR79: 0 | CS79: 0 | CT79: 4 | CU79: 31 | CV79: 6 | CW79: 0 | CX79: 0 | CY79: 0 | CZ79: 0 | DA79: 0 | DB79: 0 | DC79: 0 | DD79: 0 | DE79: 0 | DF79: 0 | DG79: 0 | DH79: 0 | DI79: 0 | DJ79: 0 | DK79: 0 | DL79: 0 | DM79: 0 | DN79: 12.56585366 | DO79: 15 | DP79: 9.5 | DQ79: 17.9 | DR79: 1 | DS79: 3 | DT79: 0 | DU79: 0 | DV79: 1 | DW79: 5 | DX79: 27 | DY79: 4 | DZ79: 0 | EA79: 0 | EB79: 5 | EC79: 36 | ED79: 28 | EE79: 7 | EF79: 0 | EG79: 0 | EH79: 6 | EI79: 41 | EJ79: 5 | EK79: 13 | EL79: 4 | EM79: 7 | EN79: 10 | EO79: 11 | EP79: 11 | EQ79: 36 | ER79: 33 | ES79: 32 | ET79: 40 | EU79: 22 | EV79: 9 | EW79: 6 | EX79: 41 | EY79: 46 | EZ79: 36 | FA79: 47 | FB79: 32 | FC79: 20 | FD79: 17
A80: 1 | B80: =OFFSET(Input_Details!$Q$4,MATCH($A80, Input_Details!$J$5:$J$24, 0), 0) -> 2017-11-20 | C80: =INDEX(Input_Details!$H$5:$H$24, MATCH($A80, Input_Details!$J$5:$J$24, 0), 0) -> Meadow Street | D80: =INDEX(Input_Details!$I$5:$I$24, MATCH($A80, Input_Details!$J$5:$J$24, 0), 0) -> 51.49499,-0.09696 | E80: =INDEX(Input_Details!$K$5:$K$24, MATCH($A80, Input_Details!$J$5:$J$24, 0), 0) -> Northbound | F80: Mon | G80: 19:00:00 | H80: 2 | I80: 6 | J80: 0 | K80: 1 | L80: 0 | M80: 0 | N80: 0 | O80: 0 | P80: 0 | Q80: 0 | R80: 0 | S80: 0 | T80: 1 | U80: 6 | V80: 2 | W80: 0 | X80: 0 | Y80: 0 | Z80: 0 | AA80: 0 | AB80: 0 | AC80: 0 | AD80: 0 | AE80: 0 | AF80: 0 | AG80: 0 | AH80: 0 | AI80: 0 | AJ80: 0 | AK80: 0 | AL80: 0 | AM80: 0 | AN80: 13.2 | AO80: - | AP80: 4.7 | AQ80: 16.7 | AR80: =INDEX(Input_Details!$L$5:$L$24, MATCH($A80, Input_Details!$J$5:$J$24, 0), 0) -> Southbound | AS80: Mon | AT80: 19:00:00 | AU80: 17 | AV80: 7 | AW80: 0 | AX80: 0 | AY80: 1 | AZ80: 3 | BA80: 0 | BB80: 0 | BC80: 0 | BD80: 0 | BE80: 0 | BF80: 0 | BG80: 3 | BH80: 18 | BI80: 7 | BJ80: 0 | BK80: 0 | BL80: 0 | BM80: 0 | BN80: 0 | BO80: 0 | BP80: 0 | BQ80: 0 | BR80: 0 | BS80: 0 | BT80: 0 | BU80: 0 | BV80: 0 | BW80: 0 | BX80: 0 | BY80: 0 | BZ80: 0 | CA80: 13.5 | CB80: 16.1 | CC80: 4.7 | CD80: 19.5 | CF80: Mon | CG80: 19:00:00 | CH80: 19 | CI80: 13 | CJ80: 0 | CK80: 1 | CL80: 1 | CM80: 3 | CN80: 0 | CO80: 0 | CP80: 0 | CQ80: 0 | CR80: 0 | CS80: 0 | CT80: 4 | CU80: 24 | CV80: 9 | CW80: 0 | CX80: 0 | CY80: 0 | CZ80: 0 | DA80: 0 | DB80: 0 | DC80: 0 | DD80: 0 | DE80: 0 | DF80: 0 | DG80: 0 | DH80: 0 | DI80: 0 | DJ80: 0 | DK80: 0 | DL80: 0 | DM80: 0 | DN80: 13.42702703 | DO80: 16.1 | DP80: 4.7 | DQ80: 19.5 | DR80: 2 | DS80: 6 | DT80: 1 | DU80: 0 | DV80: 0 | DW80: 9 | DX80: 17 | DY80: 7 | DZ80: 0 | EA80: 1 | EB80: 3 | EC80: 28 | ED80: 19 | EE80: 13 | EF80: 1 | EG80: 1 | EH80: 3 | EI80: 37 | EJ80: 9 | EK80: 5 | EL80: 11 | EM80: 4 | EN80: 5 | EO80: 13 | EP80: 13 | EQ80: 28 | ER80: 26 | ES80: 21 | ET80: 39 | EU80: 23 | EV80: 7 | EW80: 16 | EX80: 37 | EY80: 31 | EZ80: 32 | FA80: 43 | FB80: 28 | FC80: 20 | FD80: 29
A81: 1 | B81: =OFFSET(Input_Details!$Q$4,MATCH($A81, Input_Details!$J$5:$J$24, 0), 0) -> 2017-11-20 | C81: =INDEX(Input_Details!$H$5:$H$24, MATCH($A81, Input_Details!$J$5:$J$24, 0), 0) -> Meadow Street | D81: =INDEX(Input_Details!$I$5:$I$24, MATCH($A81, Input_Details!$J$5:$J$24, 0), 0) -> 51.49499,-0.09696 | E81: =INDEX(Input_Details!$K$5:$K$24, MATCH($A81, Input_Details!$J$5:$J$24, 0), 0) -> Northbound | F81: Mon | G81: 19:15:00 | H81: 0 | I81: 9 | J81: 0 | K81: 0 | L81: 0 | M81: 0 | N81: 0 | O81: 0 | P81: 0 | Q81: 0 | R81: 0 | S81: 0 | T81: 1 | U81: 5 | V81: 3 | W81: 0 | X81: 0 | Y81: 0 | Z81: 0 | AA81: 0 | AB81: 0 | AC81: 0 | AD81: 0 | AE81: 0 | AF81: 0 | AG81: 0 | AH81: 0 | AI81: 0 | AJ81: 0 | AK81: 0 | AL81: 0 | AM81: 0 | AN81: 13.8 | AO81: - | AP81: 9.7 | AQ81: 18.6 | AR81: =INDEX(Input_Details!$L$5:$L$24, MATCH($A81, Input_Details!$J$5:$J$24, 0), 0) -> Southbound | AS81: Mon | AT81: 19:15:00 | AU81: 18 | AV81: 5 | AW81: 0 | AX81: 0 | AY81: 0 | AZ81: 1 | BA81: 0 | BB81: 0 | BC81: 0 | BD81: 1 | BE81: 0 | BF81: 0 | BG81: 0 | BH81: 17 | BI81: 7 | BJ81: 1 | BK81: 0 | BL81: 0 | BM81: 0 | BN81: 0 | BO81: 0 | BP81: 0 | BQ81: 0 | BR81: 0 | BS81: 0 | BT81: 0 | BU81: 0 | BV81: 0 | BW81: 0 | BX81: 0 | BY81: 0 | BZ81: 0 | CA81: 14.1 | CB81: 15.9 | CC81: 10.4 | CD81: 24.9 | CF81: Mon | CG81: 19:15:00 | CH81: 18 | CI81: 14 | CJ81: 0 | CK81: 0 | CL81: 0 | CM81: 1 | CN81: 0 | CO81: 0 | CP81: 0 | CQ81: 1 | CR81: 0 | CS81: 0 | CT81: 1 | CU81: 22 | CV81: 10 | CW81: 1 | CX81: 0 | CY81: 0 | CZ81: 0 | DA81: 0 | DB81: 0 | DC81: 0 | DD81: 0 | DE81: 0 | DF81: 0 | DG81: 0 | DH81: 0 | DI81: 0 | DJ81: 0 | DK81: 0 | DL81: 0 | DM81: 0 | DN81: 14.02058824 | DO81: 15.9 | DP81: 9.7 | DQ81: 24.9 | DR81: 0 | DS81: 9 | DT81: 0 | DU81: 0 | DV81: 0 | DW81: 9 | DX81: 18 | DY81: 5 | DZ81: 0 | EA81: 0 | EB81: 2 | EC81: 25 | ED81: 18 | EE81: 14 | EF81: 0 | EG81: 0 | EH81: 2 | EI81: 34 | EJ81: 9 | EK81: 9 | EL81: 12 | EM81: 1 | EN81: 10 | EO81: 6 | EP81: 9 | EQ81: 25 | ER81: 27 | ES81: 18 | ET81: 33 | EU81: 17 | EV81: 8 | EW81: 10 | EX81: 34 | EY81: 36 | EZ81: 30 | FA81: 34 | FB81: 27 | FC81: 14 | FD81: 19
A82: 1 | B82: =OFFSET(Input_Details!$Q$4,MATCH($A82, Input_Details!$J$5:$J$24, 0), 0) -> 2017-11-20 | C82: =INDEX(Input_Details!$H$5:$H$24, MATCH($A82, Input_Details!$J$5:$J$24, 0), 0) -> Meadow Street | D82: =INDEX(Input_Details!$I$5:$I$24, MATCH($A82, Input_Details!$J$5:$J$24, 0), 0) -> 51.49499,-0.09696 | E82: =INDEX(Input_Details!$K$5:$K$24, MATCH($A82, Input_Details!$J$5:$J$24, 0), 0) -> Northbound | F82: Mon | G82: 19:30:00 | H82: 0 | I82: 7 | J82: 0 | K82: 0 | L82: 0 | M82: 0 | N82: 0 | O82: 0 | P82: 0 | Q82: 0 | R82: 0 | S82: 0 | T82: 2 | U82: 3 | V82: 2 | W82: 0 | X82: 0 | Y82: 0 | Z82: 0 | AA82: 0 | AB82: 0 | AC82: 0 | AD82: 0 | AE82: 0 | AF82: 0 | AG82: 0 | AH82: 0 | AI82: 0 | AJ82: 0 | AK82: 0 | AL82: 0 | AM82: 0 | AN82: 12.8 | AO82: - | AP82: 4.2 | AQ82: 18.6 | AR82: =INDEX(Input_Details!$L$5:$L$24, MATCH($A82, Input_Details!$J$5:$J$24, 0), 0) -> Southbound | AS82: Mon | AT82: 19:30:00 | AU82: 22 | AV82: 4 | AW82: 0 | AX82: 0 | AY82: 0 | AZ82: 0 | BA82: 0 | BB82: 0 | BC82: 0 | BD82: 0 | BE82: 0 | BF82: 0 | BG82: 2 | BH82: 23 | BI82: 1 | BJ82: 0 | BK82: 0 | BL82: 0 | BM82: 0 | BN82: 0 | BO82: 0 | BP82: 0 | BQ82: 0 | BR82: 0 | BS82: 0 | BT82: 0 | BU82: 0 | BV82: 0 | BW82: 0 | BX82: 0 | BY82: 0 | BZ82: 0 | CA82: 12.1 | CB82: 13.6 | CC82: 4.2 | CD82: 16.4 | CF82: Mon | CG82: 19:30:00 | CH82: 22 | CI82: 11 | CJ82: 0 | CK82: 0 | CL82: 0 | CM82: 0 | CN82: 0 | CO82: 0 | CP82: 0 | CQ82: 0 | CR82: 0 | CS82: 0 | CT82: 4 | CU82: 26 | CV82: 3 | CW82: 0 | CX82: 0 | CY82: 0 | CZ82: 0 | DA82: 0 | DB82: 0 | DC82: 0 | DD82: 0 | DE82: 0 | DF82: 0 | DG82: 0 | DH82: 0 | DI82: 0 | DJ82: 0 | DK82: 0 | DL82: 0 | DM82: 0 | DN82: 12.24848485 | DO82: 13.6 | DP82: 4.2 | DQ82: 18.6 | DR82: 0 | DS82: 7 | DT82: 0 | DU82: 0 | DV82: 0 | DW82: 7 | DX82: 22 | DY82: 4 | DZ82: 0 | EA82: 0 | EB82: 0 | EC82: 26 | ED82: 22 | EE82: 11 | EF82: 0 | EG82: 0 | EH82: 0 | EI82: 33 | EJ82: 7 | EK82: 8 | EL82: 3 | EM82: 4 | EN82: 8 | EO82: 9 | EP82: 11 | EQ82: 26 | ER82: 25 | ES82: 22 | ET82: 33 | EU82: 22 | EV82: 3 | EW82: 6 | EX82: 33 | EY82: 33 | EZ82: 25 | FA82: 37 | FB82: 30 | FC82: 12 | FD82: 17
A83: 1 | B83: =OFFSET(Input_Details!$Q$4,MATCH($A83, Input_Details!$J$5:$J$24, 0), 0) -> 2017-11-20 | C83: =INDEX(Input_Details!$H$5:$H$24, MATCH($A83, Input_Details!$J$5:$J$24, 0), 0) -> Meadow Street | D83: =INDEX(Input_Details!$I$5:$I$24, MATCH($A83, Input_Details!$J$5:$J$24, 0), 0) -> 51.49499,-0.09696 | E83: =INDEX(Input_Details!$K$5:$K$24, MATCH($A83, Input_Details!$J$5:$J$24, 0), 0) -> Northbound | F83: Mon | G83: 19:45:00 | H83: 0 | I83: 11 | J83: 0 | K83: 1 | L83: 0 | M83: 0 | N83: 0 | O83: 0 | P83: 0 | Q83: 0 | R83: 0 | S83: 0 | T83: 3 | U83: 6 | V83: 1 | W83: 2 | X83: 0 | Y83: 0 | Z83: 0 | AA83: 0 | AB83: 0 | AC83: 0 | AD83: 0 | AE83: 0 | AF83: 0 | AG83: 0 | AH83: 0 | AI83: 0 | AJ83: 0 | AK83: 0 | AL83: 0 | AM83: 0 | AN83: 13.2 | AO83: 17.7 | AP83: 4.5 | AQ83: 24.1 | AR83: =INDEX(Input_Details!$L$5:$L$24, MATCH($A83, Input_Details!$J$5:$J$24, 0), 0) -> Southbound | AS83: Mon | AT83: 19:45:00 | AU83: 11 | AV83: 9 | AW83: 0 | AX83: 0 | AY83: 0 | AZ83: 2 | BA83: 0 | BB83: 0 | BC83: 0 | BD83: 1 | BE83: 0 | BF83: 0 | BG83: 3 | BH83: 18 | BI83: 2 | BJ83: 0 | BK83: 0 | BL83: 0 | BM83: 0 | BN83: 0 | BO83: 0 | BP83: 0 | BQ83: 0 | BR83: 0 | BS83: 0 | BT83: 0 | BU83: 0 | BV83: 0 | BW83: 0 | BX83: 0 | BY83: 0 | BZ83: 0 | CA83: 12.5 | CB83: 14.3 | CC83: 8.9 | CD83: 15.6 | CF83: Mon | CG83: 19:45:00 | CH83: 11 | CI83: 20 | CJ83: 0 | CK83: 1 | CL83: 0 | CM83: 2 | CN83: 0 | CO83: 0 | CP83: 0 | CQ83: 1 | CR83: 0 | CS83: 0 | CT83: 6 | CU83: 24 | CV83: 3 | CW83: 2 | CX83: 0 | CY83: 0 | CZ83: 0 | DA83: 0 | DB83: 0 | DC83: 0 | DD83: 0 | DE83: 0 | DF83: 0 | DG83: 0 | DH83: 0 | DI83: 0 | DJ83: 0 | DK83: 0 | DL83: 0 | DM83: 0 | DN83: 12.74 | DO83: 16 | DP83: 4.5 | DQ83: 24.1 | DR83: 0 | DS83: 11 | DT83: 1 | DU83: 0 | DV83: 0 | DW83: 12 | DX83: 11 | DY83: 9 | DZ83: 0 | EA83: 0 | EB83: 3 | EC83: 23 | ED83: 11 | EE83: 20 | EF83: 1 | EG83: 0 | EH83: 3 | EI83: 35 | EJ83: 12 | EK83: 9 | EL83: 8 | EM83: 3 | EN83: 6 | EO83: 9 | EP83: 13 | EQ83: 23 | ER83: 20 | ES83: 19 | ET83: 19 | EU83: 14 | EV83: 6 | EW83: 14 | EX83: 35 | EY83: 29 | EZ83: 27 | FA83: 22 | FB83: 20 | FC83: 15 | FD83: 27
A84: 1 | B84: =OFFSET(Input_Details!$Q$4,MATCH($A84, Input_Details!$J$5:$J$24, 0), 0) -> 2017-11-20 | C84: =INDEX(Input_Details!$H$5:$H$24, MATCH($A84, Input_Details!$J$5:$J$24, 0), 0) -> Meadow Street | D84: =INDEX(Input_Details!$I$5:$I$24, MATCH($A84, Input_Details!$J$5:$J$24, 0), 0) -> 51.49499,-0.09696 | E84: =INDEX(Input_Details!$K$5:$K$24, MATCH($A84, Input_Details!$J$5:$J$24, 0), 0) -> Northbound | F84: Mon | G84: 20:00:00 | H84: 0 | I84: 4 | J84: 0 | K84: 0 | L84: 0 | M84: 0 | N84: 0 | O84: 0 | P84: 0 | Q84: 0 | R84: 0 | S84: 0 | T84: 0 | U84: 3 | V84: 0 | W84: 1 | X84: 0 | Y84: 0 | Z84: 0 | AA84: 0 | AB84: 0 | AC84: 0 | AD84: 0 | AE84: 0 | AF84: 0 | AG84: 0 | AH84: 0 | AI84: 0 | AJ84: 0 | AK84: 0 | AL84: 0 | AM84: 0 | AN84: 15.7 | AO84: - | AP84: 11.5 | AQ84: 21.7 | AR84: =INDEX(Input_Details!$L$5:$L$24, MATCH($A84, Input_Details!$J$5:$J$24, 0), 0) -> Southbound | AS84: Mon | AT84: 20:00:00 | AU84: 16 | AV84: 6 | AW84: 0 | AX84: 0 | AY84: 0 | AZ84: 0 | BA84: 0 | BB84: 0 | BC84: 0 | BD84: 0 | BE84: 0 | BF84: 0 | BG84: 4 | BH84: 13 | BI84: 3 | BJ84: 2 | BK84: 0 | BL84: 0 | BM84: 0 | BN84: 0 | BO84: 0 | BP84: 0 | BQ84: 0 | BR84: 0 | BS84: 0 | BT84: 0 | BU84: 0 | BV84: 0 | BW84: 0 | BX84: 0 | BY84: 0 | BZ84: 0 | CA84: 12.8 | CB84: 15.4 | CC84: 8.4 | CD84: 20.7 | CF84: Mon | CG84: 20:00:00 | CH84: 16 | CI84: 10 | CJ84: 0 | CK84: 0 | CL84: 0 | CM84: 0 | CN84: 0 | CO84: 0 | CP84: 0 | CQ84: 0 | CR84: 0 | CS84: 0 | CT84: 4 | CU84: 16 | CV84: 3 | CW84: 3 | CX84: 0 | CY84: 0 | CZ84: 0 | DA84: 0 | DB84: 0 | DC84: 0 | DD84: 0 | DE84: 0 | DF84: 0 | DG84: 0 | DH84: 0 | DI84: 0 | DJ84: 0 | DK84: 0 | DL84: 0 | DM84: 0 | DN84: 13.24615385 | DO84: 15.4 | DP84: 8.4 | DQ84: 21.7 | DR84: 0 | DS84: 4 | DT84: 0 | DU84: 0 | DV84: 0 | DW84: 4 | DX84: 16 | DY84: 6 | DZ84: 0 | EA84: 0 | EB84: 0 | EC84: 22 | ED84: 16 | EE84: 10 | EF84: 0 | EG84: 0 | EH84: 0 | EI84: 26 | EJ84: 4 | EK84: 6 | EL84: 2 | EM84: 2 | EN84: 9 | EO84: 7 | EP84: 7 | EQ84: 22 | ER84: 21 | ES84: 10 | ET84: 19 | EU84: 17 | EV84: 11 | EW84: 7 | EX84: 26 | EY84: 27 | EZ84: 12 | FA84: 21 | FB84: 26 | FC84: 18 | FD84: 14
A85: 1 | B85: =OFFSET(Input_Details!$Q$4,MATCH($A85, Input_Details!$J$5:$J$24, 0), 0) -> 2017-11-20 | C85: =INDEX(Input_Details!$H$5:$H$24, MATCH($A85, Input_Details!$J$5:$J$24, 0), 0) -> Meadow Street | D85: =INDEX(Input_Details!$I$5:$I$24, MATCH($A85, Input_Details!$J$5:$J$24, 0), 0) -> 51.49499,-0.09696 | E85: =INDEX(Input_Details!$K$5:$K$24, MATCH($A85, Input_Details!$J$5:$J$24, 0), 0) -> Northbound | F85: Mon | G85: 20:15:00 | H85: 1 | I85: 8 | J85: 0 | K85: 0 | L85: 0 | M85: 0 | N85: 0 | O85: 0 | P85: 0 | Q85: 0 | R85: 0 | S85: 0 | T85: 4 | U85: 3 | V85: 1 | W85: 1 | X85: 0 | Y85: 0 | Z85: 0 | AA85: 0 | AB85: 0 | AC85: 0 | AD85: 0 | AE85: 0 | AF85: 0 | AG85: 0 | AH85: 0 | AI85: 0 | AJ85: 0 | AK85: 0 | AL85: 0 | AM85: 0 | AN85: 10.9 | AO85: - | AP85: 4.1 | AQ85: 22.1 | AR85: =INDEX(Input_Details!$L$5:$L$24, MATCH($A85, Input_Details!$J$5:$J$24, 0), 0) -> Southbound | AS85: Mon | AT85: 20:15:00 | AU85: 10 | AV85: 6 | AW85: 0 | AX85: 0 | AY85: 0 | AZ85: 0 | BA85: 0 | BB85: 0 | BC85: 0 | BD85: 0 | BE85: 0 | BF85: 0 | BG85: 6 | BH85: 7 | BI85: 3 | BJ85: 0 | BK85: 0 | BL85: 0 | BM85: 0 | BN85: 0 | BO85: 0 | BP85: 0 | BQ85: 0 | BR85: 0 | BS85: 0 | BT85: 0 | BU85: 0 | BV85: 0 | BW85: 0 | BX85: 0 | BY85: 0 | BZ85: 0 | CA85: 11.7 | CB85: 15.4 | CC85: 4.1 | CD85: 17.9 | CF85: Mon | CG85: 20:15:00 | CH85: 11 | CI85: 14 | CJ85: 0 | CK85: 0 | CL85: 0 | CM85: 0 | CN85: 0 | CO85: 0 | CP85: 0 | CQ85: 0 | CR85: 0 | CS85: 0 | CT85: 10 | CU85: 10 | CV85: 4 | CW85: 1 | CX85: 0 | CY85: 0 | CZ85: 0 | DA85: 0 | DB85: 0 | DC85: 0 | DD85: 0 | DE85: 0 | DF85: 0 | DG85: 0 | DH85: 0 | DI85: 0 | DJ85: 0 | DK85: 0 | DL85: 0 | DM85: 0 | DN85: 11.412 | DO85: 15.4 | DP85: 4.1 | DQ85: 22.1 | DR85: 1 | DS85: 8 | DT85: 0 | DU85: 0 | DV85: 0 | DW85: 9 | DX85: 10 | DY85: 6 | DZ85: 0 | EA85: 0 | EB85: 0 | EC85: 16 | ED85: 11 | EE85: 14 | EF85: 0 | EG85: 0 | EH85: 0 | EI85: 25 | EJ85: 9 | EK85: 3 | EL85: 4 | EM85: 2 | EN85: 9 | EO85: 11 | EP85: 8 | EQ85: 16 | ER85: 4 | ES85: 13 | ET85: 23 | EU85: 8 | EV85: 9 | EW85: 7 | EX85: 25 | EY85: 7 | EZ85: 17 | FA85: 25 | FB85: 17 | FC85: 20 | FD85: 15
A86: 1 | B86: =OFFSET(Input_Details!$Q$4,MATCH($A86, Input_Details!$J$5:$J$24, 0), 0) -> 2017-11-20 | C86: =INDEX(Input_Details!$H$5:$H$24, MATCH($A86, Input_Details!$J$5:$J$24, 0), 0) -> Meadow Street | D86: =INDEX(Input_Details!$I$5:$I$24, MATCH($A86, Input_Details!$J$5:$J$24, 0), 0) -> 51.49499,-0.09696 | E86: =INDEX(Input_Details!$K$5:$K$24, MATCH($A86, Input_Details!$J$5:$J$24, 0), 0) -> Northbound | F86: Mon | G86: 20:30:00 | H86: 2 | I86: 4 | J86: 0 | K86: 0 | L86: 0 | M86: 0 | N86: 0 | O86: 0 | P86: 0 | Q86: 0 | R86: 0 | S86: 0 | T86: 1 | U86: 1 | V86: 1 | W86: 3 | X86: 0 | Y86: 0 | Z86: 0 | AA86: 0 | AB86: 0 | AC86: 0 | AD86: 0 | AE86: 0 | AF86: 0 | AG86: 0 | AH86: 0 | AI86: 0 | AJ86: 0 | AK86: 0 | AL86: 0 | AM86: 0 | AN86: 17.5 | AO86: - | AP86: 8.1 | AQ86: 23.6 | AR86: =INDEX(Input_Details!$L$5:$L$24, MATCH($A86, Input_Details!$J$5:$J$24, 0), 0) -> Southbound | AS86: Mon | AT86: 20:30:00 | AU86: 9 | AV86: 5 | AW86: 0 | AX86: 0 | AY86: 0 | AZ86: 1 | BA86: 0 | BB86: 0 | BC86: 0 | BD86: 0 | BE86: 0 | BF86: 0 | BG86: 3 | BH86: 5 | BI86: 5 | BJ86: 2 | BK86: 0 | BL86: 0 | BM86: 0 | BN86: 0 | BO86: 0 | BP86: 0 | BQ86: 0 | BR86: 0 | BS86: 0 | BT86: 0 | BU86: 0 | BV86: 0 | BW86: 0 | BX86: 0 | BY86: 0 | BZ86: 0 | CA86: 13.7 | CB86: 19.5 | CC86: 8.9 | CD86: 21.4 | CF86: Mon | CG86: 20:30:00 | CH86: 11 | CI86: 9 | CJ86: 0 | CK86: 0 | CL86: 0 | CM86: 1 | CN86: 0 | CO86: 0 | CP86: 0 | CQ86: 0 | CR86: 0 | CS86: 0 | CT86: 4 | CU86: 6 | CV86: 6 | CW86: 5 | CX86: 0 | CY86: 0 | CZ86: 0 | DA86: 0 | DB86: 0 | DC86: 0 | DD86: 0 | DE86: 0 | DF86: 0 | DG86: 0 | DH86: 0 | DI86: 0 | DJ86: 0 | DK86: 0 | DL86: 0 | DM86: 0 | DN86: 14.78571429 | DO86: 19.5 | DP86: 8.1 | DQ86: 23.6 | DR86: 2 | DS86: 4 | DT86: 0 | DU86: 0 | DV86: 0 | DW86: 6 | DX86: 9 | DY86: 5 | DZ86: 0 | EA86: 0 | EB86: 1 | EC86: 15 | ED86: 11 | EE86: 9 | EF86: 0 | EG86: 0 | EH86: 1 | EI86: 21 | EJ86: 6 | EK86: 6 | EL86: 5 | EM86: 2 | EN86: 2 | EO86: 8 | EP86: 6 | EQ86: 15 | ER86: 15 | ES86: 11 | ET86: 29 | EU86: 3 | EV86: 8 | EW86: 7 | EX86: 21 | EY86: 21 | EZ86: 16 | FA86: 31 | FB86: 5 | FC86: 16 | FD86: 13
A87: 1 | B87: =OFFSET(Input_Details!$Q$4,MATCH($A87, Input_Details!$J$5:$J$24, 0), 0) -> 2017-11-20 | C87: =INDEX(Input_Details!$H$5:$H$24, MATCH($A87, Input_Details!$J$5:$J$24, 0), 0) -> Meadow Street | D87: =INDEX(Input_Details!$I$5:$I$24, MATCH($A87, Input_Details!$J$5:$J$24, 0), 0) -> 51.49499,-0.09696 | E87: =INDEX(Input_Details!$K$5:$K$24, MATCH($A87, Input_Details!$J$5:$J$24, 0), 0) -> Northbound | F87: Mon | G87: 20:45:00 | H87: 1 | I87: 3 | J87: 0 | K87: 0 | L87: 0 | M87: 0 | N87: 0 | O87: 0 | P87: 0 | Q87: 0 | R87: 0 | S87: 0 | T87: 0 | U87: 2 | V87: 0 | W87: 1 | X87: 1 | Y87: 0 | Z87: 0 | AA87: 0 | AB87: 0 | AC87: 0 | AD87: 0 | AE87: 0 | AF87: 0 | AG87: 0 | AH87: 0 | AI87: 0 | AJ87: 0 | AK87: 0 | AL87: 0 | AM87: 0 | AN87: 18.1 | AO87: - | AP87: 11.7 | AQ87: 27.5 | AR87: =INDEX(Input_Details!$L$5:$L$24, MATCH($A87, Input_Details!$J$5:$J$24, 0), 0) -> Southbound | AS87: Mon | AT87: 20:45:00 | AU87: 5 | AV87: 2 | AW87: 0 | AX87: 0 | AY87: 0 | AZ87: 1 | BA87: 0 | BB87: 0 | BC87: 0 | BD87: 0 | BE87: 0 | BF87: 0 | BG87: 2 | BH87: 5 | BI87: 1 | BJ87: 0 | BK87: 0 | BL87: 0 | BM87: 0 | BN87: 0 | BO87: 0 | BP87: 0 | BQ87: 0 | BR87: 0 | BS87: 0 | BT87: 0 | BU87: 0 | BV87: 0 | BW87: 0 | BX87: 0 | BY87: 0 | BZ87: 0 | CA87: 12.3 | CB87: - | CC87: 9.2 | CD87: 17.6 | CF87: Mon | CG87: 20:45:00 | CH87: 6 | CI87: 5 | CJ87: 0 | CK87: 0 | CL87: 0 | CM87: 1 | CN87: 0 | CO87: 0 | CP87: 0 | CQ87: 0 | CR87: 0 | CS87: 0 | CT87: 2 | CU87: 7 | CV87: 1 | CW87: 1 | CX87: 1 | CY87: 0 | CZ87: 0 | DA87: 0 | DB87: 0 | DC87: 0 | DD87: 0 | DE87: 0 | DF87: 0 | DG87: 0 | DH87: 0 | DI87: 0 | DJ87: 0 | DK87: 0 | DL87: 0 | DM87: 0 | DN87: 14.23333333 | DO87: - | DP87: 9.2 | DQ87: 27.5 | DR87: 1 | DS87: 3 | DT87: 0 | DU87: 0 | DV87: 0 | DW87: 4 | DX87: 5 | DY87: 2 | DZ87: 0 | EA87: 0 | EB87: 1 | EC87: 8 | ED87: 6 | EE87: 5 | EF87: 0 | EG87: 0 | EH87: 1 | EI87: 12 | EJ87: 4 | EK87: 4 | EL87: 3 | EM87: 4 | EN87: 6 | EO87: 11 | EP87: 11 | EQ87: 8 | ER87: 8 | ES87: 19 | ET87: 26 | EU87: 8 | EV87: 6 | EW87: 9 | EX87: 12 | EY87: 12 | EZ87: 22 | FA87: 30 | FB87: 14 | FC87: 17 | FD87: 20
A88: 1 | B88: =OFFSET(Input_Details!$Q$4,MATCH($A88, Input_Details!$J$5:$J$24, 0), 0) -> 2017-11-20 | C88: =INDEX(Input_Details!$H$5:$H$24, MATCH($A88, Input_Details!$J$5:$J$24, 0), 0) -> Meadow Street | D88: =INDEX(Input_Details!$I$5:$I$24, MATCH($A88, Input_Details!$J$5:$J$24, 0), 0) -> 51.49499,-0.09696 | E88: =INDEX(Input_Details!$K$5:$K$24, MATCH($A88, Input_Details!$J$5:$J$24, 0), 0) -> Northbound | F88: Mon | G88: 21:00:00 | H88: 2 | I88: 4 | J88: 0 | K88: 1 | L88: 0 | M88: 0 | N88: 0 | O88: 0 | P88: 0 | Q88: 0 | R88: 0 | S88: 0 | T88: 1 | U88: 2 | V88: 3 | W88: 1 | X88: 0 | Y88: 0 | Z88: 0 | AA88: 0 | AB88: 0 | AC88: 0 | AD88: 0 | AE88: 0 | AF88: 0 | AG88: 0 | AH88: 0 | AI88: 0 | AJ88: 0 | AK88: 0 | AL88: 0 | AM88: 0 | AN88: 15.2 | AO88: - | AP88: 8.7 | AQ88: 23.6 | AR88: =INDEX(Input_Details!$L$5:$L$24, MATCH($A88, Input_Details!$J$5:$J$24, 0), 0) -> Southbound | AS88: Mon | AT88: 21:00:00 | AU88: 6 | AV88: 6 | AW88: 0 | AX88: 0 | AY88: 0 | AZ88: 0 | BA88: 0 | BB88: 0 | BC88: 0 | BD88: 0 | BE88: 0 | BF88: 0 | BG88: 0 | BH88: 7 | BI88: 3 | BJ88: 1 | BK88: 1 | BL88: 0 | BM88: 0 | BN88: 0 | BO88: 0 | BP88: 0 | BQ88: 0 | BR88: 0 | BS88: 0 | BT88: 0 | BU88: 0 | BV88: 0 | BW88: 0 | BX88: 0 | BY88: 0 | BZ88: 0 | CA88: 14.8 | CB88: 17.2 | CC88: 10.2 | CD88: 26.4 | CF88: Mon | CG88: 21:00:00 | CH88: 8 | CI88: 10 | CJ88: 0 | CK88: 1 | CL88: 0 | CM88: 0 | CN88: 0 | CO88: 0 | CP88: 0 | CQ88: 0 | CR88: 0 | CS88: 0 | CT88: 1 | CU88: 9 | CV88: 6 | CW88: 2 | CX88: 1 | CY88: 0 | CZ88: 0 | DA88: 0 | DB88: 0 | DC88: 0 | DD88: 0 | DE88: 0 | DF88: 0 | DG88: 0 | DH88: 0 | DI88: 0 | DJ88: 0 | DK88: 0 | DL88: 0 | DM88: 0 | DN88: 14.94736842 | DO88: 17.2 | DP88: 8.7 | DQ88: 26.4 | DR88: 2 | DS88: 4 | DT88: 1 | DU88: 0 | DV88: 0 | DW88: 7 | DX88: 6 | DY88: 6 | DZ88: 0 | EA88: 0 | EB88: 0 | EC88: 12 | ED88: 8 | EE88: 10 | EF88: 1 | EG88: 0 | EH88: 0 | EI88: 19 | EJ88: 7 | EK88: 1 | EL88: 6 | EM88: 1 | EN88: 10 | EO88: 11 | EP88: 4 | EQ88: 12 | ER88: 7 | ES88: 12 | ET88: 19 | EU88: 1 | EV88: 13 | EW88: 8 | EX88: 19 | EY88: 8 | EZ88: 18 | FA88: 20 | FB88: 11 | FC88: 24 | FD88: 12
A89: 1 | B89: =OFFSET(Input_Details!$Q$4,MATCH($A89, Input_Details!$J$5:$J$24, 0), 0) -> 2017-11-20 | C89: =INDEX(Input_Details!$H$5:$H$24, MATCH($A89, Input_Details!$J$5:$J$24, 0), 0) -> Meadow Street | D89: =INDEX(Input_Details!$I$5:$I$24, MATCH($A89, Input_Details!$J$5:$J$24, 0), 0) -> 51.49499,-0.09696 | E89: =INDEX(Input_Details!$K$5:$K$24, MATCH($A89, Input_Details!$J$5:$J$24, 0), 0) -> Northbound | F89: Mon | G89: 21:15:00 | H89: 0 | I89: 3 | J89: 0 | K89: 0 | L89: 0 | M89: 0 | N89: 0 | O89: 0 | P89: 0 | Q89: 0 | R89: 0 | S89: 0 | T89: 1 | U89: 2 | V89: 0 | W89: 0 | X89: 0 | Y89: 0 | Z89: 0 | AA89: 0 | AB89: 0 | AC89: 0 | AD89: 0 | AE89: 0 | AF89: 0 | AG89: 0 | AH89: 0 | AI89: 0 | AJ89: 0 | AK89: 0 | AL89: 0 | AM89: 0 | AN89: 10.6 | AO89: - | AP89: 7.8 | AQ89: 13.6 | AR89: =INDEX(Input_Details!$L$5:$L$24, MATCH($A89, Input_Details!$J$5:$J$24, 0), 0) -> Southbound | AS89: Mon | AT89: 21:15:00 | AU89: 5 | AV89: 7 | AW89: 0 | AX89: 0 | AY89: 0 | AZ89: 0 | BA89: 0 | BB89: 0 | BC89: 0 | BD89: 0 | BE89: 0 | BF89: 0 | BG89: 1 | BH89: 7 | BI89: 4 | BJ89: 0 | BK89: 0 | BL89: 0 | BM89: 0 | BN89: 0 | BO89: 0 | BP89: 0 | BQ89: 0 | BR89: 0 | BS89: 0 | BT89: 0 | BU89: 0 | BV89: 0 | BW89: 0 | BX89: 0 | BY89: 0 | BZ89: 0 | CA89: 13.5 | CB89: 15.9 | CC89: 9.2 | CD89: 19 | CF89: Mon | CG89: 21:15:00 | CH89: 5 | CI89: 10 | CJ89: 0 | CK89: 0 | CL89: 0 | CM89: 0 | CN89: 0 | CO89: 0 | CP89: 0 | CQ89: 0 | CR89: 0 | CS89: 0 | CT89: 2 | CU89: 9 | CV89: 4 | CW89: 0 | CX89: 0 | CY89: 0 | CZ89: 0 | DA89: 0 | DB89: 0 | DC89: 0 | DD89: 0 | DE89: 0 | DF89: 0 | DG89: 0 | DH89: 0 | DI89: 0 | DJ89: 0 | DK89: 0 | DL89: 0 | DM89: 0 | DN89: 12.92 | DO89: 15.9 | DP89: 7.8 | DQ89: 19 | DR89: 0 | DS89: 3 | DT89: 0 | DU89: 0 | DV89: 0 | DW89: 3 | DX89: 5 | DY89: 7 | DZ89: 0 | EA89: 0 | EB89: 0 | EC89: 12 | ED89: 5 | EE89: 10 | EF89: 0 | EG89: 0 | EH89: 0 | EI89: 15 | EJ89: 3 | EK89: 8 | EL89: 4 | EM89: 3 | EN89: 9 | EO89: 5 | EP89: 9 | EQ89: 12 | ER89: 7 | ES89: 4 | ET89: 19 | EU89: 9 | EV89: 8 | EW89: 6 | EX89: 15 | EY89: 15 | EZ89: 8 | FA89: 22 | FB89: 18 | FC89: 13 | FD89: 15
A90: 1 | B90: =OFFSET(Input_Details!$Q$4,MATCH($A90, Input_Details!$J$5:$J$24, 0), 0) -> 2017-11-20 | C90: =INDEX(Input_Details!$H$5:$H$24, MATCH($A90, Input_Details!$J$5:$J$24, 0), 0) -> Meadow Street | D90: =INDEX(Input_Details!$I$5:$I$24, MATCH($A90, Input_Details!$J$5:$J$24, 0), 0) -> 51.49499,-0.09696 | E90: =INDEX(Input_Details!$K$5:$K$24, MATCH($A90, Input_Details!$J$5:$J$24, 0), 0) -> Northbound | F90: Mon | G90: 21:30:00 | H90: 0 | I90: 3 | J90: 0 | K90: 0 | L90: 0 | M90: 0 | N90: 0 | O90: 0 | P90: 0 | Q90: 0 | R90: 0 | S90: 0 | T90: 0 | U90: 3 | V90: 0 | W90: 0 | X90: 0 | Y90: 0 | Z90: 0 | AA90: 0 | AB90: 0 | AC90: 0 | AD90: 0 | AE90: 0 | AF90: 0 | AG90: 0 | AH90: 0 | AI90: 0 | AJ90: 0 | AK90: 0 | AL90: 0 | AM90: 0 | AN90: 12.4 | AO90: - | AP90: 10.3 | AQ90: 14 | AR90: =INDEX(Input_Details!$L$5:$L$24, MATCH($A90, Input_Details!$J$5:$J$24, 0), 0) -> Southbound | AS90: Mon | AT90: 21:30:00 | AU90: 5 | AV90: 3 | AW90: 0 | AX90: 0 | AY90: 0 | AZ90: 0 | BA90: 0 | BB90: 0 | BC90: 0 | BD90: 0 | BE90: 0 | BF90: 0 | BG90: 1 | BH90: 5 | BI90: 2 | BJ90: 0 | BK90: 0 | BL90: 0 | BM90: 0 | BN90: 0 | BO90: 0 | BP90: 0 | BQ90: 0 | BR90: 0 | BS90: 0 | BT90: 0 | BU90: 0 | BV90: 0 | BW90: 0 | BX90: 0 | BY90: 0 | BZ90: 0 | CA90: 14.1 | CB90: - | CC90: 10 | CD90: 17.2 | CF90: Mon | CG90: 21:30:00 | CH90: 5 | CI90: 6 | CJ90: 0 | CK90: 0 | CL90: 0 | CM90: 0 | CN90: 0 | CO90: 0 | CP90: 0 | CQ90: 0 | CR90: 0 | CS90: 0 | CT90: 1 | CU90: 8 | CV90: 2 | CW90: 0 | CX90: 0 | CY90: 0 | CZ90: 0 | DA90: 0 | DB90: 0 | DC90: 0 | DD90: 0 | DE90: 0 | DF90: 0 | DG90: 0 | DH90: 0 | DI90: 0 | DJ90: 0 | DK90: 0 | DL90: 0 | DM90: 0 | DN90: 13.63636364 | DO90: - | DP90: 10 | DQ90: 17.2 | DR90: 0 | DS90: 3 | DT90: 0 | DU90: 0 | DV90: 0 | DW90: 3 | DX90: 5 | DY90: 3 | DZ90: 0 | EA90: 0 | EB90: 0 | EC90: 8 | ED90: 5 | EE90: 6 | EF90: 0 | EG90: 0 | EH90: 0 | EI90: 11 | EJ90: 3 | EK90: 4 | EL90: 2 | EM90: 2 | EN90: 6 | EO90: 11 | EP90: 3 | EQ90: 8 | ER90: 13 | ES90: 2 | ET90: 24 | EU90: 12 | EV90: 6 | EW90: 11 | EX90: 11 | EY90: 17 | EZ90: 4 | FA90: 26 | FB90: 18 | FC90: 17 | FD90: 14
A91: 1 | B91: =OFFSET(Input_Details!$Q$4,MATCH($A91, Input_Details!$J$5:$J$24, 0), 0) -> 2017-11-20 | C91: =INDEX(Input_Details!$H$5:$H$24, MATCH($A91, Input_Details!$J$5:$J$24, 0), 0) -> Meadow Street | D91: =INDEX(Input_Details!$I$5:$I$24, MATCH($A91, Input_Details!$J$5:$J$24, 0), 0) -> 51.49499,-0.09696 | E91: =INDEX(Input_Details!$K$5:$K$24, MATCH($A91, Input_Details!$J$5:$J$24, 0), 0) -> Northbound | F91: Mon | G91: 21:45:00 | H91: 1 | I91: 6 | J91: 0 | K91: 0 | L91: 0 | M91: 0 | N91: 0 | O91: 0 | P91: 0 | Q91: 0 | R91: 0 | S91: 0 | T91: 3 | U91: 2 | V91: 2 | W91: 0 | X91: 0 | Y91: 0 | Z91: 0 | AA91: 0 | AB91: 0 | AC91: 0 | AD91: 0 | AE91: 0 | AF91: 0 | AG91: 0 | AH91: 0 | AI91: 0 | AJ91: 0 | AK91: 0 | AL91: 0 | AM91: 0 | AN91: 11.6 | AO91: - | AP91: 3.4 | AQ91: 18.1 | AR91: =INDEX(Input_Details!$L$5:$L$24, MATCH($A91, Input_Details!$J$5:$J$24, 0), 0) -> Southbound | AS91: Mon | AT91: 21:45:00 | AU91: 3 | AV91: 4 | AW91: 0 | AX91: 0 | AY91: 0 | AZ91: 0 | BA91: 0 | BB91: 0 | BC91: 0 | BD91: 0 | BE91: 0 | BF91: 0 | BG91: 2 | BH91: 5 | BI91: 0 | BJ91: 0 | BK91: 0 | BL91: 0 | BM91: 0 | BN91: 0 | BO91: 0 | BP91: 0 | BQ91: 0 | BR91: 0 | BS91: 0 | BT91: 0 | BU91: 0 | BV91: 0 | BW91: 0 | BX91: 0 | BY91: 0 | BZ91: 0 | CA91: 10.1 | CB91: - | CC91: 8.2 | CD91: 11.2 | CF91: Mon | CG91: 21:45:00 | CH91: 4 | CI91: 10 | CJ91: 0 | CK91: 0 | CL91: 0 | CM91: 0 | CN91: 0 | CO91: 0 | CP91: 0 | CQ91: 0 | CR91: 0 | CS91: 0 | CT91: 5 | CU91: 7 | CV91: 2 | CW91: 0 | CX91: 0 | CY91: 0 | CZ91: 0 | DA91: 0 | DB91: 0 | DC91: 0 | DD91: 0 | DE91: 0 | DF91: 0 | DG91: 0 | DH91: 0 | DI91: 0 | DJ91: 0 | DK91: 0 | DL91: 0 | DM91: 0 | DN91: 10.85 | DO91: - | DP91: 3.4 | DQ91: 18.1 | DR91: 1 | DS91: 6 | DT91: 0 | DU91: 0 | DV91: 0 | DW91: 7 | DX91: 3 | DY91: 4 | DZ91: 0 | EA91: 0 | EB91: 0 | EC91: 7 | ED91: 4 | EE91: 10 | EF91: 0 | EG91: 0 | EH91: 0 | EI91: 14 | EJ91: 7 | EK91: 7 | EL91: 4 | EM91: 3 | EN91: 1 | EO91: 8 | EP91: 6 | EQ91: 7 | ER91: 9 | ES91: 12 | ET91: 20 | EU91: 9 | EV91: 4 | EW91: 5 | EX91: 14 | EY91: 16 | EZ91: 16 | FA91: 23 | FB91: 10 | FC91: 12 | FD91: 11
A92: 1 | B92: =OFFSET(Input_Details!$Q$4,MATCH($A92, Input_Details!$J$5:$J$24, 0), 0) -> 2017-11-20 | C92: =INDEX(Input_Details!$H$5:$H$24, MATCH($A92, Input_Details!$J$5:$J$24, 0), 0) -> Meadow Street | D92: =INDEX(Input_Details!$I$5:$I$24, MATCH($A92, Input_Details!$J$5:$J$24, 0), 0) -> 51.49499,-0.09696 | E92: =INDEX(Input_Details!$K$5:$K$24, MATCH($A92, Input_Details!$J$5:$J$24, 0), 0) -> Northbound | F92: Mon | G92: 22:00:00 | H92: 1 | I92: 3 | J92: 0 | K92: 0 | L92: 0 | M92: 0 | N92: 0 | O92: 0 | P92: 0 | Q92: 0 | R92: 0 | S92: 0 | T92: 0 | U92: 1 | V92: 3 | W92: 0 | X92: 0 | Y92: 0 | Z92: 0 | AA92: 0 | AB92: 0 | AC92: 0 | AD92: 0 | AE92: 0 | AF92: 0 | AG92: 0 | AH92: 0 | AI92: 0 | AJ92: 0 | AK92: 0 | AL92: 0 | AM92: 0 | AN92: 15.1 | AO92: - | AP92: 11.4 | AQ92: 17.3 | AR92: =INDEX(Input_Details!$L$5:$L$24, MATCH($A92, Input_Details!$J$5:$J$24, 0), 0) -> Southbound | AS92: Mon | AT92: 22:00:00 | AU92: 1 | AV92: 4 | AW92: 0 | AX92: 0 | AY92: 0 | AZ92: 0 | BA92: 0 | BB92: 0 | BC92: 0 | BD92: 0 | BE92: 0 | BF92: 0 | BG92: 1 | BH92: 2 | BI92: 2 | BJ92: 0 | BK92: 0 | BL92: 0 | BM92: 0 | BN92: 0 | BO92: 0 | BP92: 0 | BQ92: 0 | BR92: 0 | BS92: 0 | BT92: 0 | BU92: 0 | BV92: 0 | BW92: 0 | BX92: 0 | BY92: 0 | BZ92: 0 | CA92: 12.9 | CB92: - | CC92: 6.9 | CD92: 17.7 | CF92: Mon | CG92: 22:00:00 | CH92: 2 | CI92: 7 | CJ92: 0 | CK92: 0 | CL92: 0 | CM92: 0 | CN92: 0 | CO92: 0 | CP92: 0 | CQ92: 0 | CR92: 0 | CS92: 0 | CT92: 1 | CU92: 3 | CV92: 5 | CW92: 0 | CX92: 0 | CY92: 0 | CZ92: 0 | DA92: 0 | DB92: 0 | DC92: 0 | DD92: 0 | DE92: 0 | DF92: 0 | DG92: 0 | DH92: 0 | DI92: 0 | DJ92: 0 | DK92: 0 | DL92: 0 | DM92: 0 | DN92: 13.87777778 | DO92: - | DP92: 6.9 | DQ92: 17.7 | DR92: 1 | DS92: 3 | DT92: 0 | DU92: 0 | DV92: 0 | DW92: 4 | DX92: 1 | DY92: 4 | DZ92: 0 | EA92: 0 | EB92: 0 | EC92: 5 | ED92: 2 | EE92: 7 | EF92: 0 | EG92: 0 | EH92: 0 | EI92: 9 | EJ92: 4 | EK92: 1 | EL92: 5 | EM92: 0 | EN92: 4 | EO92: 13 | EP92: 4 | EQ92: 5 | ER92: 10 | ES92: 9 | ET92: 12 | EU92: 8 | EV92: 5 | EW92: 4 | EX92: 9 | EY92: 11 | EZ92: 14 | FA92: 12 | FB92: 12 | FC92: 18 | FD92: 8
A93: 1 | B93: =OFFSET(Input_Details!$Q$4,MATCH($A93, Input_Details!$J$5:$J$24, 0), 0) -> 2017-11-20 | C93: =INDEX(Input_Details!$H$5:$H$24, MATCH($A93, Input_Details!$J$5:$J$24, 0), 0) -> Meadow Street | D93: =INDEX(Input_Details!$I$5:$I$24, MATCH($A93, Input_Details!$J$5:$J$24, 0), 0) -> 51.49499,-0.09696 | E93: =INDEX(Input_Details!$K$5:$K$24, MATCH($A93, Input_Details!$J$5:$J$24, 0), 0) -> Northbound | F93: Mon | G93: 22:15:00 | H93: 1 | I93: 1 | J93: 0 | K93: 0 | L93: 0 | M93: 0 | N93: 0 | O93: 0 | P93: 0 | Q93: 0 | R93: 0 | S93: 0 | T93: 0 | U93: 1 | V93: 0 | W93: 1 | X93: 0 | Y93: 0 | Z93: 0 | AA93: 0 | AB93: 0 | AC93: 0 | AD93: 0 | AE93: 0 | AF93: 0 | AG93: 0 | AH93: 0 | AI93: 0 | AJ93: 0 | AK93: 0 | AL93: 0 | AM93: 0 | AN93: 17 | AO93: - | AP93: 10.8 | AQ93: 23.2 | AR93: =INDEX(Input_Details!$L$5:$L$24, MATCH($A93, Input_Details!$J$5:$J$24, 0), 0) -> Southbound | AS93: Mon | AT93: 22:15:00 | AU93: 3 | AV93: 3 | AW93: 0 | AX93: 0 | AY93: 0 | AZ93: 0 | BA93: 0 | BB93: 0 | BC93: 0 | BD93: 0 | BE93: 0 | BF93: 0 | BG93: 1 | BH93: 4 | BI93: 1 | BJ93: 0 | BK93: 0 | BL93: 0 | BM93: 0 | BN93: 0 | BO93: 0 | BP93: 0 | BQ93: 0 | BR93: 0 | BS93: 0 | BT93: 0 | BU93: 0 | BV93: 0 | BW93: 0 | BX93: 0 | BY93: 0 | BZ93: 0 | CA93: 12.4 | CB93: - | CC93: 9.9 | CD93: 15.3 | CF93: Mon | CG93: 22:15:00 | CH93: 4 | CI93: 4 | CJ93: 0 | CK93: 0 | CL93: 0 | CM93: 0 | CN93: 0 | CO93: 0 | CP93: 0 | CQ93: 0 | CR93: 0 | CS93: 0 | CT93: 1 | CU93: 5 | CV93: 1 | CW93: 1 | CX93: 0 | CY93: 0 | CZ93: 0 | DA93: 0 | DB93: 0 | DC93: 0 | DD93: 0 | DE93: 0 | DF93: 0 | DG93: 0 | DH93: 0 | DI93: 0 | DJ93: 0 | DK93: 0 | DL93: 0 | DM93: 0 | DN93: 13.55 | DO93: - | DP93: 9.9 | DQ93: 23.2 | DR93: 1 | DS93: 1 | DT93: 0 | DU93: 0 | DV93: 0 | DW93: 2 | DX93: 3 | DY93: 3 | DZ93: 0 | EA93: 0 | EB93: 0 | EC93: 6 | ED93: 4 | EE93: 4 | EF93: 0 | EG93: 0 | EH93: 0 | EI93: 8 | EJ93: 2 | EK93: 6 | EL93: 4 | EM93: 3 | EN93: 10 | EO93: 2 | EP93: 7 | EQ93: 6 | ER93: 7 | ES93: 7 | ET93: 10 | EU93: 7 | EV93: 9 | EW93: 8 | EX93: 8 | EY93: 13 | EZ93: 11 | FA93: 13 | FB93: 17 | FC93: 11 | FD93: 15
A94: 1 | B94: =OFFSET(Input_Details!$Q$4,MATCH($A94, Input_Details!$J$5:$J$24, 0), 0) -> 2017-11-20 | C94: =INDEX(Input_Details!$H$5:$H$24, MATCH($A94, Input_Details!$J$5:$J$24, 0), 0) -> Meadow Street | D94: =INDEX(Input_Details!$I$5:$I$24, MATCH($A94, Input_Details!$J$5:$J$24, 0), 0) -> 51.49499,-0.09696 | E94: =INDEX(Input_Details!$K$5:$K$24, MATCH($A94, Input_Details!$J$5:$J$24, 0), 0) -> Northbound | F94: Mon | G94: 22:30:00 | H94: 1 | I94: 3 | J94: 0 | K94: 0 | L94: 0 | M94: 0 | N94: 0 | O94: 0 | P94: 0 | Q94: 0 | R94: 0 | S94: 0 | T94: 1 | U94: 1 | V94: 1 | W94: 1 | X94: 0 | Y94: 0 | Z94: 0 | AA94: 0 | AB94: 0 | AC94: 0 | AD94: 0 | AE94: 0 | AF94: 0 | AG94: 0 | AH94: 0 | AI94: 0 | AJ94: 0 | AK94: 0 | AL94: 0 | AM94: 0 | AN94: 14.9 | AO94: - | AP94: 5.8 | AQ94: 22.5 | AR94: =INDEX(Input_Details!$L$5:$L$24, MATCH($A94, Input_Details!$J$5:$J$24, 0), 0) -> Southbound | AS94: Mon | AT94: 22:30:00 | AU94: 2 | AV94: 3 | AW94: 0 | AX94: 0 | AY94: 0 | AZ94: 0 | BA94: 0 | BB94: 0 | BC94: 0 | BD94: 0 | BE94: 0 | BF94: 0 | BG94: 0 | BH94: 3 | BI94: 1 | BJ94: 1 | BK94: 0 | BL94: 0 | BM94: 0 | BN94: 0 | BO94: 0 | BP94: 0 | BQ94: 0 | BR94: 0 | BS94: 0 | BT94: 0 | BU94: 0 | BV94: 0 | BW94: 0 | BX94: 0 | BY94: 0 | BZ94: 0 | CA94: 15.4 | CB94: - | CC94: 12.4 | CD94: 20.2 | CF94: Mon | CG94: 22:30:00 | CH94: 3 | CI94: 6 | CJ94: 0 | CK94: 0 | CL94: 0 | CM94: 0 | CN94: 0 | CO94: 0 | CP94: 0 | CQ94: 0 | CR94: 0 | CS94: 0 | CT94: 1 | CU94: 4 | CV94: 2 | CW94: 2 | CX94: 0 | CY94: 0 | CZ94: 0 | DA94: 0 | DB94: 0 | DC94: 0 | DD94: 0 | DE94: 0 | DF94: 0 | DG94: 0 | DH94: 0 | DI94: 0 | DJ94: 0 | DK94: 0 | DL94: 0 | DM94: 0 | DN94: 15.17777778 | DO94: - | DP94: 5.8 | DQ94: 22.5 | DR94: 1 | DS94: 3 | DT94: 0 | DU94: 0 | DV94: 0 | DW94: 4 | DX94: 2 | DY94: 3 | DZ94: 0 | EA94: 0 | EB94: 0 | EC94: 5 | ED94: 3 | EE94: 6 | EF94: 0 | EG94: 0 | EH94: 0 | EI94: 9 | EJ94: 4 | EK94: 5 | EL94: 8 | EM94: 1 | EN94: 12 | EO94: 3 | EP94: 7 | EQ94: 5 | ER94: 8 | ES94: 14 | ET94: 10 | EU94: 6 | EV94: 6 | EW94: 5 | EX94: 9 | EY94: 13 | EZ94: 22 | FA94: 11 | FB94: 18 | FC94: 9 | FD94: 12
A95: 1 | B95: =OFFSET(Input_Details!$Q$4,MATCH($A95, Input_Details!$J$5:$J$24, 0), 0) -> 2017-11-20 | C95: =INDEX(Input_Details!$H$5:$H$24, MATCH($A95, Input_Details!$J$5:$J$24, 0), 0) -> Meadow Street | D95: =INDEX(Input_Details!$I$5:$I$24, MATCH($A95, Input_Details!$J$5:$J$24, 0), 0) -> 51.49499,-0.09696 | E95: =INDEX(Input_Details!$K$5:$K$24, MATCH($A95, Input_Details!$J$5:$J$24, 0), 0) -> Northbound | F95: Mon | G95: 22:45:00 | H95: 2 | I95: 3 | J95: 0 | K95: 0 | L95: 0 | M95: 0 | N95: 0 | O95: 0 | P95: 0 | Q95: 0 | R95: 0 | S95: 0 | T95: 1 | U95: 1 | V95: 2 | W95: 1 | X95: 0 | Y95: 0 | Z95: 0 | AA95: 0 | AB95: 0 | AC95: 0 | AD95: 0 | AE95: 0 | AF95: 0 | AG95: 0 | AH95: 0 | AI95: 0 | AJ95: 0 | AK95: 0 | AL95: 0 | AM95: 0 | AN95: 15.6 | AO95: - | AP95: 8.3 | AQ95: 21.8 | AR95: =INDEX(Input_Details!$L$5:$L$24, MATCH($A95, Input_Details!$J$5:$J$24, 0), 0) -> Southbound | AS95: Mon | AT95: 22:45:00 | AU95: 4 | AV95: 0 | AW95: 0 | AX95: 0 | AY95: 0 | AZ95: 0 | BA95: 0 | BB95: 0 | BC95: 0 | BD95: 0 | BE95: 0 | BF95: 0 | BG95: 0 | BH95: 3 | BI95: 0 | BJ95: 1 | BK95: 0 | BL95: 0 | BM95: 0 | BN95: 0 | BO95: 0 | BP95: 0 | BQ95: 0 | BR95: 0 | BS95: 0 | BT95: 0 | BU95: 0 | BV95: 0 | BW95: 0 | BX95: 0 | BY95: 0 | BZ95: 0 | CA95: 13.9 | CB95: - | CC95: 10.5 | CD95: 22.4 | CF95: Mon | CG95: 22:45:00 | CH95: 6 | CI95: 3 | CJ95: 0 | CK95: 0 | CL95: 0 | CM95: 0 | CN95: 0 | CO95: 0 | CP95: 0 | CQ95: 0 | CR95: 0 | CS95: 0 | CT95: 1 | CU95: 4 | CV95: 2 | CW95: 2 | CX95: 0 | CY95: 0 | CZ95: 0 | DA95: 0 | DB95: 0 | DC95: 0 | DD95: 0 | DE95: 0 | DF95: 0 | DG95: 0 | DH95: 0 | DI95: 0 | DJ95: 0 | DK95: 0 | DL95: 0 | DM95: 0 | DN95: 14.84444444 | DO95: - | DP95: 8.3 | DQ95: 22.4 | DR95: 2 | DS95: 3 | DT95: 0 | DU95: 0 | DV95: 0 | DW95: 5 | DX95: 4 | DY95: 0 | DZ95: 0 | EA95: 0 | EB95: 0 | EC95: 4 | ED95: 6 | EE95: 3 | EF95: 0 | EG95: 0 | EH95: 0 | EI95: 9 | EJ95: 5 | EK95: 2 | EL95: 4 | EM95: 1 | EN95: 11 | EO95: 7 | EP95: 5 | EQ95: 4 | ER95: 6 | ES95: 8 | ET95: 10 | EU95: 5 | EV95: 11 | EW95: 7 | EX95: 9 | EY95: 8 | EZ95: 12 | FA95: 11 | FB95: 16 | FC95: 18 | FD95: 12
A96: 1 | B96: =OFFSET(Input_Details!$Q$4,MATCH($A96, Input_Details!$J$5:$J$24, 0), 0) -> 2017-11-20 | C96: =INDEX(Input_Details!$H$5:$H$24, MATCH($A96, Input_Details!$J$5:$J$24, 0), 0) -> Meadow Street | D96: =INDEX(Input_Details!$I$5:$I$24, MATCH($A96, Input_Details!$J$5:$J$24, 0), 0) -> 51.49499,-0.09696 | E96: =INDEX(Input_Details!$K$5:$K$24, MATCH($A96, Input_Details!$J$5:$J$24, 0), 0) -> Northbound | F96: Mon | G96: 23:00:00 | H96: 1 | I96: 4 | J96: 0 | K96: 0 | L96: 0 | M96: 0 | N96: 0 | O96: 0 | P96: 0 | Q96: 0 | R96: 0 | S96: 0 | T96: 0 | U96: 3 | V96: 1 | W96: 0 | X96: 1 | Y96: 0 | Z96: 0 | AA96: 0 | AB96: 0 | AC96: 0 | AD96: 0 | AE96: 0 | AF96: 0 | AG96: 0 | AH96: 0 | AI96: 0 | AJ96: 0 | AK96: 0 | AL96: 0 | AM96: 0 | AN96: 16.2 | AO96: - | AP96: 11.5 | AQ96: 25.1 | AR96: =INDEX(Input_Details!$L$5:$L$24, MATCH($A96, Input_Details!$J$5:$J$24, 0), 0) -> Southbound | AS96: Mon | AT96: 23:00:00 | AU96: 2 | AV96: 3 | AW96: 0 | AX96: 0 | AY96: 0 | AZ96: 0 | BA96: 0 | BB96: 0 | BC96: 0 | BD96: 0 | BE96: 0 | BF96: 0 | BG96: 1 | BH96: 3 | BI96: 1 | BJ96: 0 | BK96: 0 | BL96: 0 | BM96: 0 | BN96: 0 | BO96: 0 | BP96: 0 | BQ96: 0 | BR96: 0 | BS96: 0 | BT96: 0 | BU96: 0 | BV96: 0 | BW96: 0 | BX96: 0 | BY96: 0 | BZ96: 0 | CA96: 12.4 | CB96: - | CC96: 9.6 | CD96: 16.8 | CF96: Mon | CG96: 23:00:00 | CH96: 3 | CI96: 7 | CJ96: 0 | CK96: 0 | CL96: 0 | CM96: 0 | CN96: 0 | CO96: 0 | CP96: 0 | CQ96: 0 | CR96: 0 | CS96: 0 | CT96: 1 | CU96: 6 | CV96: 2 | CW96: 0 | CX96: 1 | CY96: 0 | CZ96: 0 | DA96: 0 | DB96: 0 | DC96: 0 | DD96: 0 | DE96: 0 | DF96: 0 | DG96: 0 | DH96: 0 | DI96: 0 | DJ96: 0 | DK96: 0 | DL96: 0 | DM96: 0 | DN96: 14.3 | DO96: - | DP96: 9.6 | DQ96: 25.1 | DR96: 1 | DS96: 4 | DT96: 0 | DU96: 0 | DV96: 0 | DW96: 5 | DX96: 2 | DY96: 3 | DZ96: 0 | EA96: 0 | EB96: 0 | EC96: 5 | ED96: 3 | EE96: 7 | EF96: 0 | EG96: 0 | EH96: 0 | EI96: 10 | EJ96: 5 | EK96: 1 | EL96: 3 | EM96: 0 | EN96: 9 | EO96: 7 | EP96: 14 | EQ96: 5 | ER96: 5 | ES96: 4 | ET96: 15 | EU96: 10 | EV96: 4 | EW96: 12 | EX96: 10 | EY96: 6 | EZ96: 7 | FA96: 15 | FB96: 19 | FC96: 11 | FD96: 26
A97: 1 | B97: =OFFSET(Input_Details!$Q$4,MATCH($A97, Input_Details!$J$5:$J$24, 0), 0) -> 2017-11-20 | C97: =INDEX(Input_Details!$H$5:$H$24, MATCH($A97, Input_Details!$J$5:$J$24, 0), 0) -> Meadow Street | D97: =INDEX(Input_Details!$I$5:$I$24, MATCH($A97, Input_Details!$J$5:$J$24, 0), 0) -> 51.49499,-0.09696 | E97: =INDEX(Input_Details!$K$5:$K$24, MATCH($A97, Input_Details!$J$5:$J$24, 0), 0) -> Northbound | F97: Mon | G97: 23:15:00 | H97: 1 | I97: 0 | J97: 0 | K97: 0 | L97: 0 | M97: 0 | N97: 0 | O97: 0 | P97: 0 | Q97: 0 | R97: 0 | S97: 0 | T97: 0 | U97: 1 | V97: 0 | W97: 0 | X97: 0 | Y97: 0 | Z97: 0 | AA97: 0 | AB97: 0 | AC97: 0 | AD97: 0 | AE97: 0 | AF97: 0 | AG97: 0 | AH97: 0 | AI97: 0 | AJ97: 0 | AK97: 0 | AL97: 0 | AM97: 0 | AN97: 10.1 | AO97: - | AP97: 10.1 | AQ97: 10.1 | AR97: =INDEX(Input_Details!$L$5:$L$24, MATCH($A97, Input_Details!$J$5:$J$24, 0), 0) -> Southbound | AS97: Mon | AT97: 23:15:00 | AU97: 4 | AV97: 1 | AW97: 0 | AX97: 0 | AY97: 0 | AZ97: 0 | BA97: 0 | BB97: 0 | BC97: 0 | BD97: 0 | BE97: 0 | BF97: 0 | BG97: 1 | BH97: 3 | BI97: 1 | BJ97: 0 | BK97: 0 | BL97: 0 | BM97: 0 | BN97: 0 | BO97: 0 | BP97: 0 | BQ97: 0 | BR97: 0 | BS97: 0 | BT97: 0 | BU97: 0 | BV97: 0 | BW97: 0 | BX97: 0 | BY97: 0 | BZ97: 0 | CA97: 12 | CB97: - | CC97: 8.7 | CD97: 16.3 | CF97: Mon | CG97: 23:15:00 | CH97: 5 | CI97: 1 | CJ97: 0 | CK97: 0 | CL97: 0 | CM97: 0 | CN97: 0 | CO97: 0 | CP97: 0 | CQ97: 0 | CR97: 0 | CS97: 0 | CT97: 1 | CU97: 4 | CV97: 1 | CW97: 0 | CX97: 0 | CY97: 0 | CZ97: 0 | DA97: 0 | DB97: 0 | DC97: 0 | DD97: 0 | DE97: 0 | DF97: 0 | DG97: 0 | DH97: 0 | DI97: 0 | DJ97: 0 | DK97: 0 | DL97: 0 | DM97: 0 | DN97: 11.68333333 | DO97: - | DP97: 8.7 | DQ97: 16.3 | DR97: 1 | DS97: 0 | DT97: 0 | DU97: 0 | DV97: 0 | DW97: 1 | DX97: 4 | DY97: 1 | DZ97: 0 | EA97: 0 | EB97: 0 | EC97: 5 | ED97: 5 | EE97: 1 | EF97: 0 | EG97: 0 | EH97: 0 | EI97: 6 | EJ97: 1 | EK97: 2 | EL97: 5 | EM97: 1 | EN97: 5 | EO97: 11 | EP97: 10 | EQ97: 5 | ER97: 6 | ES97: 5 | ET97: 7 | EU97: 10 | EV97: 9 | EW97: 4 | EX97: 6 | EY97: 8 | EZ97: 10 | FA97: 8 | FB97: 15 | FC97: 20 | FD97: 14
A98: 1 | B98: =OFFSET(Input_Details!$Q$4,MATCH($A98, Input_Details!$J$5:$J$24, 0), 0) -> 2017-11-20 | C98: =INDEX(Input_Details!$H$5:$H$24, MATCH($A98, Input_Details!$J$5:$J$24, 0), 0) -> Meadow Street | D98: =INDEX(Input_Details!$I$5:$I$24, MATCH($A98, Input_Details!$J$5:$J$24, 0), 0) -> 51.49499,-0.09696 | E98: =INDEX(Input_Details!$K$5:$K$24, MATCH($A98, Input_Details!$J$5:$J$24, 0), 0) -> Northbound | F98: Mon | G98: 23:30:00 | H98: 0 | I98: 3 | J98: 0 | K98: 0 | L98: 0 | M98: 0 | N98: 0 | O98: 0 | P98: 0 | Q98: 0 | R98: 0 | S98: 0 | T98: 0 | U98: 0 | V98: 1 | W98: 2 | X98: 0 | Y98: 0 | Z98: 0 | AA98: 0 | AB98: 0 | AC98: 0 | AD98: 0 | AE98: 0 | AF98: 0 | AG98: 0 | AH98: 0 | AI98: 0 | AJ98: 0 | AK98: 0 | AL98: 0 | AM98: 0 | AN98: 19.7 | AO98: - | AP98: 17.1 | AQ98: 21.7 | AR98: =INDEX(Input_Details!$L$5:$L$24, MATCH($A98, Input_Details!$J$5:$J$24, 0), 0) -> Southbound | AS98: Mon | AT98: 23:30:00 | AU98: 2 | AV98: 2 | AW98: 0 | AX98: 0 | AY98: 0 | AZ98: 0 | BA98: 0 | BB98: 0 | BC98: 0 | BD98: 0 | BE98: 0 | BF98: 0 | BG98: 1 | BH98: 1 | BI98: 2 | BJ98: 0 | BK98: 0 | BL98: 0 | BM98: 0 | BN98: 0 | BO98: 0 | BP98: 0 | BQ98: 0 | BR98: 0 | BS98: 0 | BT98: 0 | BU98: 0 | BV98: 0 | BW98: 0 | BX98: 0 | BY98: 0 | BZ98: 0 | CA98: 13.6 | CB98: - | CC98: 9.4 | CD98: 15.9 | CF98: Mon | CG98: 23:30:00 | CH98: 2 | CI98: 5 | CJ98: 0 | CK98: 0 | CL98: 0 | CM98: 0 | CN98: 0 | CO98: 0 | CP98: 0 | CQ98: 0 | CR98: 0 | CS98: 0 | CT98: 1 | CU98: 1 | CV98: 3 | CW98: 2 | CX98: 0 | CY98: 0 | CZ98: 0 | DA98: 0 | DB98: 0 | DC98: 0 | DD98: 0 | DE98: 0 | DF98: 0 | DG98: 0 | DH98: 0 | DI98: 0 | DJ98: 0 | DK98: 0 | DL98: 0 | DM98: 0 | DN98: 16.21428571 | DO98: - | DP98: 9.4 | DQ98: 21.7 | DR98: 0 | DS98: 3 | DT98: 0 | DU98: 0 | DV98: 0 | DW98: 3 | DX98: 2 | DY98: 2 | DZ98: 0 | EA98: 0 | EB98: 0 | EC98: 4 | ED98: 2 | EE98: 5 | EF98: 0 | EG98: 0 | EH98: 0 | EI98: 7 | EJ98: 3 | EK98: 3 | EL98: 2 | EM98: 1 | EN98: 8 | EO98: 6 | EP98: 3 | EQ98: 4 | ER98: 4 | ES98: 4 | ET98: 19 | EU98: 6 | EV98: 9 | EW98: 8 | EX98: 7 | EY98: 7 | EZ98: 6 | FA98: 20 | FB98: 14 | FC98: 15 | FD98: 11
A99: 1 | B99: =OFFSET(Input_Details!$Q$4,MATCH($A99, Input_Details!$J$5:$J$24, 0), 0) -> 2017-11-20 | C99: =INDEX(Input_Details!$H$5:$H$24, MATCH($A99, Input_Details!$J$5:$J$24, 0), 0) -> Meadow Street | D99: =INDEX(Input_Details!$I$5:$I$24, MATCH($A99, Input_Details!$J$5:$J$24, 0), 0) -> 51.49499,-0.09696 | E99: =INDEX(Input_Details!$K$5:$K$24, MATCH($A99, Input_Details!$J$5:$J$24, 0), 0) -> Northbound | F99: Mon | G99: 23:45:00 | H99: 0 | I99: 5 | J99: 0 | K99: 0 | L99: 0 | M99: 0 | N99: 0 | O99: 0 | P99: 0 | Q99: 0 | R99: 0 | S99: 0 | T99: 1 | U99: 3 | V99: 1 | W99: 0 | X99: 0 | Y99: 0 | Z99: 0 | AA99: 0 | AB99: 0 | AC99: 0 | AD99: 0 | AE99: 0 | AF99: 0 | AG99: 0 | AH99: 0 | AI99: 0 | AJ99: 0 | AK99: 0 | AL99: 0 | AM99: 0 | AN99: 11.7 | AO99: - | AP99: 4.8 | AQ99: 15.6 | AR99: =INDEX(Input_Details!$L$5:$L$24, MATCH($A99, Input_Details!$J$5:$J$24, 0), 0) -> Southbound | AS99: Mon | AT99: 23:45:00 | AU99: 1 | AV99: 0 | AW99: 0 | AX99: 0 | AY99: 0 | AZ99: 0 | BA99: 0 | BB99: 0 | BC99: 0 | BD99: 0 | BE99: 0 | BF99: 0 | BG99: 0 | BH99: 1 | BI99: 0 | BJ99: 0 | BK99: 0 | BL99: 0 | BM99: 0 | BN99: 0 | BO99: 0 | BP99: 0 | BQ99: 0 | BR99: 0 | BS99: 0 | BT99: 0 | BU99: 0 | BV99: 0 | BW99: 0 | BX99: 0 | BY99: 0 | BZ99: 0 | CA99: 13.3 | CB99: - | CC99: 13.3 | CD99: 13.3 | CF99: Mon | CG99: 23:45:00 | CH99: 1 | CI99: 5 | CJ99: 0 | CK99: 0 | CL99: 0 | CM99: 0 | CN99: 0 | CO99: 0 | CP99: 0 | CQ99: 0 | CR99: 0 | CS99: 0 | CT99: 1 | CU99: 4 | CV99: 1 | CW99: 0 | CX99: 0 | CY99: 0 | CZ99: 0 | DA99: 0 | DB99: 0 | DC99: 0 | DD99: 0 | DE99: 0 | DF99: 0 | DG99: 0 | DH99: 0 | DI99: 0 | DJ99: 0 | DK99: 0 | DL99: 0 | DM99: 0 | DN99: 11.96666667 | DO99: - | DP99: 4.8 | DQ99: 15.6 | DR99: 0 | DS99: 5 | DT99: 0 | DU99: 0 | DV99: 0 | DW99: 5 | DX99: 1 | DY99: 0 | DZ99: 0 | EA99: 0 | EB99: 0 | EC99: 1 | ED99: 1 | EE99: 5 | EF99: 0 | EG99: 0 | EH99: 0 | EI99: 6 | EJ99: 5 | EK99: 1 | EL99: 4 | EM99: 1 | EN99: 7 | EO99: 5 | EP99: 3 | EQ99: 1 | ER99: 4 | ES99: 2 | ET99: 12 | EU99: 8 | EV99: 6 | EW99: 7 | EX99: 6 | EY99: 5 | EZ99: 6 | FA99: 13 | FB99: 15 | FC99: 11 | FD99: 10
A100: 1 | B100: =OFFSET(Input_Details!$Q$4,MATCH($A100, Input_Details!$J$5:$J$24, 0), 1) -> 2017-11-21 | C100: =INDEX(Input_Details!$H$5:$H$24, MATCH($A100, Input_Details!$J$5:$J$24, 0), 0) -> Meadow Street | D100: =INDEX(Input_Details!$I$5:$I$24, MATCH($A100, Input_Details!$J$5:$J$24, 0), 0) -> 51.49499,-0.09696 | E100: =INDEX(Input_Details!$K$5:$K$24, MATCH($A100, Input_Details!$J$5:$J$24, 0), 0) -> Northbound | F100: Tues | G100: 00:00:00 | H100: 1 | I100: 1 | J100: 0 | K100: 0 | L100: 0 | M100: 0 | N100: 0 | O100: 0 | P100: 0 | Q100: 0 | R100: 0 | S100: 0 | T100: 0 | U100: 1 | V100: 1 | W100: 0 | X100: 0 | Y100: 0 | Z100: 0 | AA100: 0 | AB100: 0 | AC100: 0 | AD100: 0 | AE100: 0 | AF100: 0 | AG100: 0 | AH100: 0 | AI100: 0 | AJ100: 0 | AK100: 0 | AL100: 0 | AM100: 0 | AN100: 16.4 | AO100: - | AP100: 14.8 | AQ100: 17.9 | AR100: =INDEX(Input_Details!$L$5:$L$24, MATCH($A100, Input_Details!$J$5:$J$24, 0), 0) -> Southbound | AS100: Tues | AT100: 00:00:00 | AU100: 2 | AV100: 1 | AW100: 0 | AX100: 0 | AY100: 0 | AZ100: 0 | BA100: 0 | BB100: 0 | BC100: 0 | BD100: 0 | BE100: 0 | BF100: 0 | BG100: 0 | BH100: 2 | BI100: 0 | BJ100: 1 | BK100: 0 | BL100: 0 | BM100: 0 | BN100: 0 | BO100: 0 | BP100: 0 | BQ100: 0 | BR100: 0 | BS100: 0 | BT100: 0 | BU100: 0 | BV100: 0 | BW100: 0 | BX100: 0 | BY100: 0 | BZ100: 0 | CA100: 15.9 | CB100: - | CC100: 11.9 | CD100: 23 | CF100: Tues | CG100: 00:00:00 | CH100: 3 | CI100: 2 | CJ100: 0 | CK100: 0 | CL100: 0 | CM100: 0 | CN100: 0 | CO100: 0 | CP100: 0 | CQ100: 0 | CR100: 0 | CS100: 0 | CT100: 0 | CU100: 3 | CV100: 1 | CW100: 1 | CX100: 0 | CY100: 0 | CZ100: 0 | DA100: 0 | DB100: 0 | DC100: 0 | DD100: 0 | DE100: 0 | DF100: 0 | DG100: 0 | DH100: 0 | DI100: 0 | DJ100: 0 | DK100: 0 | DL100: 0 | DM100: 0 | DN100: 16.1 | DO100: - | DP100: 11.9 | DQ100: 23 | DR100: 1 | DS100: 1 | DT100: 0 | DU100: 0 | DV100: 0 | DW100: 2 | DX100: 2 | DY100: 1 | DZ100: 0 | EA100: 0 | EB100: 0 | EC100: 3 | ED100: 3 | EE100: 2 | EF100: 0 | EG100: 0 | EH100: 0 | EI100: 5
A101: 1 | B101: =OFFSET(Input_Details!$Q$4,MATCH($A101, Input_Details!$J$5:$J$24, 0), 1) -> 2017-11-21 | C101: =INDEX(Input_Details!$H$5:$H$24, MATCH($A101, Input_Details!$J$5:$J$24, 0), 0) -> Meadow Street | D101: =INDEX(Input_Details!$I$5:$I$24, MATCH($A101, Input_Details!$J$5:$J$24, 0), 0) -> 51.49499,-0.09696 | E101: =INDEX(Input_Details!$K$5:$K$24, MATCH($A101, Input_Details!$J$5:$J$24, 0), 0) -> Northbound | F101: Tues | G101: 00:15:00 | H101: 0 | I101: 4 | J101: 0 | K101: 0 | L101: 0 | M101: 0 | N101: 0 | O101: 0 | P101: 0 | Q101: 0 | R101: 0 | S101: 0 | T101: 0 | U101: 0 | V101: 4 | W101: 0 | X101: 0 | Y101: 0 | Z101: 0 | AA101: 0 | AB101: 0 | AC101: 0 | AD101: 0 | AE101: 0 | AF101: 0 | AG101: 0 | AH101: 0 | AI101: 0 | AJ101: 0 | AK101: 0 | AL101: 0 | AM101: 0 | AN101: 18.4 | AO101: - | AP101: 17 | AQ101: 19.9 | AR101: =INDEX(Input_Details!$L$5:$L$24, MATCH($A101, Input_Details!$J$5:$J$24, 0), 0) -> Southbound | AS101: Tues | AT101: 00:15:00 | AU101: 1 | AV101: 1 | AW101: 0 | AX101: 0 | AY101: 0 | AZ101: 0 | BA101: 0 | BB101: 0 | BC101: 0 | BD101: 0 | BE101: 0 | BF101: 0 | BG101: 0 | BH101: 0 | BI101: 0 | BJ101: 2 | BK101: 0 | BL101: 0 | BM101: 0 | BN101: 0 | BO101: 0 | BP101: 0 | BQ101: 0 | BR101: 0 | BS101: 0 | BT101: 0 | BU101: 0 | BV101: 0 | BW101: 0 | BX101: 0 | BY101: 0 | BZ101: 0 | CA101: 24.4 | CB101: - | CC101: 24.2 | CD101: 24.7 | CF101: Tues | CG101: 00:15:00 | CH101: 1 | CI101: 5 | CJ101: 0 | CK101: 0 | CL101: 0 | CM101: 0 | CN101: 0 | CO101: 0 | CP101: 0 | CQ101: 0 | CR101: 0 | CS101: 0 | CT101: 0 | CU101: 0 | CV101: 4 | CW101: 2 | CX101: 0 | CY101: 0 | CZ101: 0 | DA101: 0 | DB101: 0 | DC101: 0 | DD101: 0 | DE101: 0 | DF101: 0 | DG101: 0 | DH101: 0 | DI101: 0 | DJ101: 0 | DK101: 0 | DL101: 0 | DM101: 0 | DN101: 20.4 | DO101: - | DP101: 17 | DQ101: 24.7 | DR101: 0 | DS101: 4 | DT101: 0 | DU101: 0 | DV101: 0 | DW101: 4 | DX101: 1 | DY101: 1 | DZ101: 0 | EA101: 0 | EB101: 0 | EC101: 2 | ED101: 1 | EE101: 5 | EF101: 0 | EG101: 0 | EH101: 0 | EI101: 6
A102: 1 | B102: =OFFSET(Input_Details!$Q$4,MATCH($A102, Input_Details!$J$5:$J$24, 0), 1) -> 2017-11-21 | C102: =INDEX(Input_Details!$H$5:$H$24, MATCH($A102, Input_Details!$J$5:$J$24, 0), 0) -> Meadow Street | D102: =INDEX(Input_Details!$I$5:$I$24, MATCH($A102, Input_Details!$J$5:$J$24, 0), 0) -> 51.49499,-0.09696 | E102: =INDEX(Input_Details!$K$5:$K$24, MATCH($A102, Input_Details!$J$5:$J$24, 0), 0) -> Northbound | F102: Tues | G102: 00:30:00 | H102: 0 | I102: 0 | J102: 0 | K102: 0 | L102: 0 | M102: 0 | N102: 0 | O102: 0 | P102: 0 | Q102: 0 | R102: 0 | S102: 0 | T102: 0 | U102: 0 | V102: 0 | W102: 0 | X102: 0 | Y102: 0 | Z102: 0 | AA102: 0 | AB102: 0 | AC102: 0 | AD102: 0 | AE102: 0 | AF102: 0 | AG102: 0 | AH102: 0 | AI102: 0 | AJ102: 0 | AK102: 0 | AL102: 0 | AM102: 0 | AN102: - | AO102: - | AP102: - | AQ102: - | AR102: =INDEX(Input_Details!$L$5:$L$24, MATCH($A102, Input_Details!$J$5:$J$24, 0), 0) -> Southbound | AS102: Tues | AT102: 00:30:00 | AU102: 0 | AV102: 0 | AW102: 0 | AX102: 0 | AY102: 0 | AZ102: 0 | BA102: 0 | BB102: 0 | BC102: 0 | BD102: 0 | BE102: 0 | BF102: 0 | BG102: 0 | BH102: 0 | BI102: 0 | BJ102: 0 | BK102: 0 | BL102: 0 | BM102: 0 | BN102: 0 | BO102: 0 | BP102: 0 | BQ102: 0 | BR102: 0 | BS102: 0 | BT102: 0 | BU102: 0 | BV102: 0 | BW102: 0 | BX102: 0 | BY102: 0 | BZ102: 0 | CA102: - | CB102: - | CC102: - | CD102: - | CF102: Tues | CG102: 00:30:00 | CH102: 0 | CI102: 0 | CJ102: 0 | CK102: 0 | CL102: 0 | CM102: 0 | CN102: 0 | CO102: 0 | CP102: 0 | CQ102: 0 | CR102: 0 | CS102: 0 | CT102: 0 | CU102: 0 | CV102: 0 | CW102: 0 | CX102: 0 | CY102: 0 | CZ102: 0 | DA102: 0 | DB102: 0 | DC102: 0 | DD102: 0 | DE102: 0 | DF102: 0 | DG102: 0 | DH102: 0 | DI102: 0 | DJ102: 0 | DK102: 0 | DL102: 0 | DM102: 0 | DN102: - | DO102: - | DP102: - | DQ102: - | DR102: 0 | DS102: 0 | DT102: 0 | DU102: 0 | DV102: 0 | DW102: 0 | DX102: 0 | DY102: 0 | DZ102: 0 | EA102: 0 | EB102: 0 | EC102: 0 | ED102: 0 | EE102: 0 | EF102: 0 | EG102: 0 | EH102: 0 | EI102: 0
A103: 1 | B103: =OFFSET(Input_Details!$Q$4,MATCH($A103, Input_Details!$J$5:$J$24, 0), 1) -> 2017-11-21 | C103: =INDEX(Input_Details!$H$5:$H$24, MATCH($A103, Input_Details!$J$5:$J$24, 0), 0) -> Meadow Street | D103: =INDEX(Input_Details!$I$5:$I$24, MATCH($A103, Input_Details!$J$5:$J$24, 0), 0) -> 51.49499,-0.09696 | E103: =INDEX(Input_Details!$K$5:$K$24, MATCH($A103, Input_Details!$J$5:$J$24, 0), 0) -> Northbound | F103: Tues | G103: 00:45:00 | H103: 0 | I103: 0 | J103: 0 | K103: 0 | L103: 0 | M103: 0 | N103: 0 | O103: 0 | P103: 0 | Q103: 0 | R103: 0 | S103: 0 | T103: 0 | U103: 0 | V103: 0 | W103: 0 | X103: 0 | Y103: 0 | Z103: 0 | AA103: 0 | AB103: 0 | AC103: 0 | AD103: 0 | AE103: 0 | AF103: 0 | AG103: 0 | AH103: 0 | AI103: 0 | AJ103: 0 | AK103: 0 | AL103: 0 | AM103: 0 | AN103: - | AO103: - | AP103: - | AQ103: - | AR103: =INDEX(Input_Details!$L$5:$L$24, MATCH($A103, Input_Details!$J$5:$J$24, 0), 0) -> Southbound | AS103: Tues | AT103: 00:45:00 | AU103: 0 | AV103: 0 | AW103: 0 | AX103: 0 | AY103: 0 | AZ103: 0 | BA103: 0 | BB103: 0 | BC103: 0 | BD103: 0 | BE103: 0 | BF103: 0 | BG103: 0 | BH103: 0 | BI103: 0 | BJ103: 0 | BK103: 0 | BL103: 0 | BM103: 0 | BN103: 0 | BO103: 0 | BP103: 0 | BQ103: 0 | BR103: 0 | BS103: 0 | BT103: 0 | BU103: 0 | BV103: 0 | BW103: 0 | BX103: 0 | BY103: 0 | BZ103: 0 | CA103: - | CB103: - | CC103: - | CD103: - | CF103: Tues | CG103: 00:45:00 | CH103: 0 | CI103: 0 | CJ103: 0 | CK103: 0 | CL103: 0 | CM103: 0 | CN103: 0 | CO103: 0 | CP103: 0 | CQ103: 0 | CR103: 0 | CS103: 0 | CT103: 0 | CU103: 0 | CV103: 0 | CW103: 0 | CX103: 0 | CY103: 0 | CZ103: 0 | DA103: 0 | DB103: 0 | DC103: 0 | DD103: 0 | DE103: 0 | DF103: 0 | DG103: 0 | DH103: 0 | DI103: 0 | DJ103: 0 | DK103: 0 | DL103: 0 | DM103: 0 | DN103: - | DO103: - | DP103: - | DQ103: - | DR103: 0 | DS103: 0 | DT103: 0 | DU103: 0 | DV103: 0 | DW103: 0 | DX103: 0 | DY103: 0 | DZ103: 0 | EA103: 0 | EB103: 0 | EC103: 0 | ED103: 0 | EE103: 0 | EF103: 0 | EG103: 0 | EH103: 0 | EI103: 0
A104: 1 | B104: =OFFSET(Input_Details!$Q$4,MATCH($A104, Input_Details!$J$5:$J$24, 0), 1) -> 2017-11-21 | C104: =INDEX(Input_Details!$H$5:$H$24, MATCH($A104, Input_Details!$J$5:$J$24, 0), 0) -> Meadow Street | D104: =INDEX(Input_Details!$I$5:$I$24, MATCH($A104, Input_Details!$J$5:$J$24, 0), 0) -> 51.49499,-0.09696 | E104: =INDEX(Input_Details!$K$5:$K$24, MATCH($A104, Input_Details!$J$5:$J$24, 0), 0) -> Northbound | F104: Tues | G104: 01:00:00 | H104: 0 | I104: 1 | J104: 0 | K104: 0 | L104: 0 | M104: 0 | N104: 0 | O104: 0 | P104: 0 | Q104: 0 | R104: 0 | S104: 0 | T104: 0 | U104: 0 | V104: 1 | W104: 0 | X104: 0 | Y104: 0 | Z104: 0 | AA104: 0 | AB104: 0 | AC104: 0 | AD104: 0 | AE104: 0 | AF104: 0 | AG104: 0 | AH104: 0 | AI104: 0 | AJ104: 0 | AK104: 0 | AL104: 0 | AM104: 0 | AN104: 16.4 | AO104: - | AP104: 16.4 | AQ104: 16.4 | AR104: =INDEX(Input_Details!$L$5:$L$24, MATCH($A104, Input_Details!$J$5:$J$24, 0), 0) -> Southbound | AS104: Tues | AT104: 01:00:00 | AU104: 0 | AV104: 0 | AW104: 0 | AX104: 0 | AY104: 0 | AZ104: 0 | BA104: 0 | BB104: 0 | BC104: 0 | BD104: 0 | BE104: 0 | BF104: 0 | BG104: 0 | BH104: 0 | BI104: 0 | BJ104: 0 | BK104: 0 | BL104: 0 | BM104: 0 | BN104: 0 | BO104: 0 | BP104: 0 | BQ104: 0 | BR104: 0 | BS104: 0 | BT104: 0 | BU104: 0 | BV104: 0 | BW104: 0 | BX104: 0 | BY104: 0 | BZ104: 0 | CA104: - | CB104: - | CC104: - | CD104: - | CF104: Tues | CG104: 01:00:00 | CH104: 0 | CI104: 1 | CJ104: 0 | CK104: 0 | CL104: 0 | CM104: 0 | CN104: 0 | CO104: 0 | CP104: 0 | CQ104: 0 | CR104: 0 | CS104: 0 | CT104: 0 | CU104: 0 | CV104: 1 | CW104: 0 | CX104: 0 | CY104: 0 | CZ104: 0 | DA104: 0 | DB104: 0 | DC104: 0 | DD104: 0 | DE104: 0 | DF104: 0 | DG104: 0 | DH104: 0 | DI104: 0 | DJ104: 0 | DK104: 0 | DL104: 0 | DM104: 0 | DN104: 16.4 | DO104: - | DP104: 16.4 | DQ104: 16.4 | DR104: 0 | DS104: 1 | DT104: 0 | DU104: 0 | DV104: 0 | DW104: 1 | DX104: 0 | DY104: 0 | DZ104: 0 | EA104: 0 | EB104: 0 | EC104: 0 | ED104: 0 | EE104: 1 | EF104: 0 | EG104: 0 | EH104: 0 | EI104: 1
A105: 1 | B105: =OFFSET(Input_Details!$Q$4,MATCH($A105, Input_Details!$J$5:$J$24, 0), 1) -> 2017-11-21 | C105: =INDEX(Input_Details!$H$5:$H$24, MATCH($A105, Input_Details!$J$5:$J$24, 0), 0) -> Meadow Street | D105: =INDEX(Input_Details!$I$5:$I$24, MATCH($A105, Input_Details!$J$5:$J$24, 0), 0) -> 51.49499,-0.09696 | E105: =INDEX(Input_Details!$K$5:$K$24, MATCH($A105, Input_Details!$J$5:$J$24, 0), 0) -> Northbound | F105: Tues | G105: 01:15:00 | H105: 0 | I105: 0 | J105: 0 | K105: 0 | L105: 0 | M105: 0 | N105: 0 | O105: 0 | P105: 0 | Q105: 0 | R105: 0 | S105: 0 | T105: 0 | U105: 0 | V105: 0 | W105: 0 | X105: 0 | Y105: 0 | Z105: 0 | AA105: 0 | AB105: 0 | AC105: 0 | AD105: 0 | AE105: 0 | AF105: 0 | AG105: 0 | AH105: 0 | AI105: 0 | AJ105: 0 | AK105: 0 | AL105: 0 | AM105: 0 | AN105: - | AO105: - | AP105: - | AQ105: - | AR105: =INDEX(Input_Details!$L$5:$L$24, MATCH($A105, Input_Details!$J$5:$J$24, 0), 0) -> Southbound | AS105: Tues | AT105: 01:15:00 | AU105: 1 | AV105: 0 | AW105: 0 | AX105: 0 | AY105: 0 | AZ105: 0 | BA105: 0 | BB105: 0 | BC105: 0 | BD105: 0 | BE105: 0 | BF105: 0 | BG105: 0 | BH105: 1 | BI105: 0 | BJ105: 0 | BK105: 0 | BL105: 0 | BM105: 0 | BN105: 0 | BO105: 0 | BP105: 0 | BQ105: 0 | BR105: 0 | BS105: 0 | BT105: 0 | BU105: 0 | BV105: 0 | BW105: 0 | BX105: 0 | BY105: 0 | BZ105: 0 | CA105: 11.3 | CB105: - | CC105: 11.3 | CD105: 11.3 | CF105: Tues | CG105: 01:15:00 | CH105: 1 | CI105: 0 | CJ105: 0 | CK105: 0 | CL105: 0 | CM105: 0 | CN105: 0 | CO105: 0 | CP105: 0 | CQ105: 0 | CR105: 0 | CS105: 0 | CT105: 0 | CU105: 1 | CV105: 0 | CW105: 0 | CX105: 0 | CY105: 0 | CZ105: 0 | DA105: 0 | DB105: 0 | DC105: 0 | DD105: 0 | DE105: 0 | DF105: 0 | DG105: 0 | DH105: 0 | DI105: 0 | DJ105: 0 | DK105: 0 | DL105: 0 | DM105: 0 | DN105: 11.3 | DO105: - | DP105: 11.3 | DQ105: 11.3 | DR105: 0 | DS105: 0 | DT105: 0 | DU105: 0 | DV105: 0 | DW105: 0 | DX105: 1 | DY105: 0 | DZ105: 0 | EA105: 0 | EB105: 0 | EC105: 1 | ED105: 1 | EE105: 0 | EF105: 0 | EG105: 0 | EH105: 0 | EI105: 1
A106: 1 | B106: =OFFSET(Input_Details!$Q$4,MATCH($A106, Input_Details!$J$5:$J$24, 0), 1) -> 2017-11-21 | C106: =INDEX(Input_Details!$H$5:$H$24, MATCH($A106, Input_Details!$J$5:$J$24, 0), 0) -> Meadow Street | D106: =INDEX(Input_Details!$I$5:$I$24, MATCH($A106, Input_Details!$J$5:$J$24, 0), 0) -> 51.49499,-0.09696 | E106: =INDEX(Input_Details!$K$5:$K$24, MATCH($A106, Input_Details!$J$5:$J$24, 0), 0) -> Northbound | F106: Tues | G106: 01:30:00 | H106: 0 | I106: 0 | J106: 0 | K106: 0 | L106: 0 | M106: 0 | N106: 0 | O106: 0 | P106: 0 | Q106: 0 | R106: 0 | S106: 0 | T106: 0 | U106: 0 | V106: 0 | W106: 0 | X106: 0 | Y106: 0 | Z106: 0 | AA106: 0 | AB106: 0 | AC106: 0 | AD106: 0 | AE106: 0 | AF106: 0 | AG106: 0 | AH106: 0 | AI106: 0 | AJ106: 0 | AK106: 0 | AL106: 0 | AM106: 0 | AN106: - | AO106: - | AP106: - | AQ106: - | AR106: =INDEX(Input_Details!$L$5:$L$24, MATCH($A106, Input_Details!$J$5:$J$24, 0), 0) -> Southbound | AS106: Tues | AT106: 01:30:00 | AU106: 0 | AV106: 1 | AW106: 0 | AX106: 0 | AY106: 0 | AZ106: 0 | BA106: 0 | BB106: 0 | BC106: 0 | BD106: 0 | BE106: 0 | BF106: 0 | BG106: 0 | BH106: 1 | BI106: 0 | BJ106: 0 | BK106: 0 | BL106: 0 | BM106: 0 | BN106: 0 | BO106: 0 | BP106: 0 | BQ106: 0 | BR106: 0 | BS106: 0 | BT106: 0 | BU106: 0 | BV106: 0 | BW106: 0 | BX106: 0 | BY106: 0 | BZ106: 0 | CA106: 13.9 | CB106: - | CC106: 13.9 | CD106: 13.9 | CF106: Tues | CG106: 01:30:00 | CH106: 0 | CI106: 1 | CJ106: 0 | CK106: 0 | CL106: 0 | CM106: 0 | CN106: 0 | CO106: 0 | CP106: 0 | CQ106: 0 | CR106: 0 | CS106: 0 | CT106: 0 | CU106: 1 | CV106: 0 | CW106: 0 | CX106: 0 | CY106: 0 | CZ106: 0 | DA106: 0 | DB106: 0 | DC106: 0 | DD106: 0 | DE106: 0 | DF106: 0 | DG106: 0 | DH106: 0 | DI106: 0 | DJ106: 0 | DK106: 0 | DL106: 0 | DM106: 0 | DN106: 13.9 | DO106: - | DP106: 13.9 | DQ106: 13.9 | DR106: 0 | DS106: 0 | DT106: 0 | DU106: 0 | DV106: 0 | DW106: 0 | DX106: 0 | DY106: 1 | DZ106: 0 | EA106: 0 | EB106: 0 | EC106: 1 | ED106: 0 | EE106: 1 | EF106: 0 | EG106: 0 | EH106: 0 | EI106: 1
A107: 1 | B107: =OFFSET(Input_Details!$Q$4,MATCH($A107, Input_Details!$J$5:$J$24, 0), 1) -> 2017-11-21 | C107: =INDEX(Input_Details!$H$5:$H$24, MATCH($A107, Input_Details!$J$5:$J$24, 0), 0) -> Meadow Street | D107: =INDEX(Input_Details!$I$5:$I$24, MATCH($A107, Input_Details!$J$5:$J$24, 0), 0) -> 51.49499,-0.09696 | E107: =INDEX(Input_Details!$K$5:$K$24, MATCH($A107, Input_Details!$J$5:$J$24, 0), 0) -> Northbound | F107: Tues | G107: 01:45:00 | H107: 0 | I107: 0 | J107: 0 | K107: 0 | L107: 0 | M107: 0 | N107: 0 | O107: 0 | P107: 0 | Q107: 0 | R107: 0 | S107: 0 | T107: 0 | U107: 0 | V107: 0 | W107: 0 | X107: 0 | Y107: 0 | Z107: 0 | AA107: 0 | AB107: 0 | AC107: 0 | AD107: 0 | AE107: 0 | AF107: 0 | AG107: 0 | AH107: 0 | AI107: 0 | AJ107: 0 | AK107: 0 | AL107: 0 | AM107: 0 | AN107: - | AO107: - | AP107: - | AQ107: - | AR107: =INDEX(Input_Details!$L$5:$L$24, MATCH($A107, Input_Details!$J$5:$J$24, 0), 0) -> Southbound | AS107: Tues | AT107: 01:45:00 | AU107: 0 | AV107: 0 | AW107: 0 | AX107: 0 | AY107: 0 | AZ107: 0 | BA107: 0 | BB107: 0 | BC107: 0 | BD107: 0 | BE107: 0 | BF107: 0 | BG107: 0 | BH107: 0 | BI107: 0 | BJ107: 0 | BK107: 0 | BL107: 0 | BM107: 0 | BN107: 0 | BO107: 0 | BP107: 0 | BQ107: 0 | BR107: 0 | BS107: 0 | BT107: 0 | BU107: 0 | BV107: 0 | BW107: 0 | BX107: 0 | BY107: 0 | BZ107: 0 | CA107: - | CB107: - | CC107: - | CD107: - | CF107: Tues | CG107: 01:45:00 | CH107: 0 | CI107: 0 | CJ107: 0 | CK107: 0 | CL107: 0 | CM107: 0 | CN107: 0 | CO107: 0 | CP107: 0 | CQ107: 0 | CR107: 0 | CS107: 0 | CT107: 0 | CU107: 0 | CV107: 0 | CW107: 0 | CX107: 0 | CY107: 0 | CZ107: 0 | DA107: 0 | DB107: 0 | DC107: 0 | DD107: 0 | DE107: 0 | DF107: 0 | DG107: 0 | DH107: 0 | DI107: 0 | DJ107: 0 | DK107: 0 | DL107: 0 | DM107: 0 | DN107: - | DO107: - | DP107: - | DQ107: - | DR107: 0 | DS107: 0 | DT107: 0 | DU107: 0 | DV107: 0 | DW107: 0 | DX107: 0 | DY107: 0 | DZ107: 0 | EA107: 0 | EB107: 0 | EC107: 0 | ED107: 0 | EE107: 0 | EF107: 0 | EG107: 0 | EH107: 0 | EI107: 0
A108: 1 | B108: =OFFSET(Input_Details!$Q$4,MATCH($A108, Input_Details!$J$5:$J$24, 0), 1) -> 2017-11-21 | C108: =INDEX(Input_Details!$H$5:$H$24, MATCH($A108, Input_Details!$J$5:$J$24, 0), 0) -> Meadow Street | D108: =INDEX(Input_Details!$I$5:$I$24, MATCH($A108, Input_Details!$J$5:$J$24, 0), 0) -> 51.49499,-0.09696 | E108: =INDEX(Input_Details!$K$5:$K$24, MATCH($A108, Input_Details!$J$5:$J$24, 0), 0) -> Northbound | F108: Tues | G108: 02:00:00 | H108: 0 | I108: 0 | J108: 0 | K108: 0 | L108: 0 | M108: 0 | N108: 0 | O108: 0 | P108: 0 | Q108: 0 | R108: 0 | S108: 0 | T108: 0 | U108: 0 | V108: 0 | W108: 0 | X108: 0 | Y108: 0 | Z108: 0 | AA108: 0 | AB108: 0 | AC108: 0 | AD108: 0 | AE108: 0 | AF108: 0 | AG108: 0 | AH108: 0 | AI108: 0 | AJ108: 0 | AK108: 0 | AL108: 0 | AM108: 0 | AN108: - | AO108: - | AP108: - | AQ108: - | AR108: =INDEX(Input_Details!$L$5:$L$24, MATCH($A108, Input_Details!$J$5:$J$24, 0), 0) -> Southbound | AS108: Tues | AT108: 02:00:00 | AU108: 0 | AV108: 0 | AW108: 0 | AX108: 0 | AY108: 0 | AZ108: 0 | BA108: 0 | BB108: 0 | BC108: 0 | BD108: 0 | BE108: 0 | BF108: 0 | BG108: 0 | BH108: 0 | BI108: 0 | BJ108: 0 | BK108: 0 | BL108: 0 | BM108: 0 | BN108: 0 | BO108: 0 | BP108: 0 | BQ108: 0 | BR108: 0 | BS108: 0 | BT108: 0 | BU108: 0 | BV108: 0 | BW108: 0 | BX108: 0 | BY108: 0 | BZ108: 0 | CA108: - | CB108: - | CC108: - | CD108: - | CF108: Tues | CG108: 02:00:00 | CH108: 0 | CI108: 0 | CJ108: 0 | CK108: 0 | CL108: 0 | CM108: 0 | CN108: 0 | CO108: 0 | CP108: 0 | CQ108: 0 | CR108: 0 | CS108: 0 | CT108: 0 | CU108: 0 | CV108: 0 | CW108: 0 | CX108: 0 | CY108: 0 | CZ108: 0 | DA108: 0 | DB108: 0 | DC108: 0 | DD108: 0 | DE108: 0 | DF108: 0 | DG108: 0 | DH108: 0 | DI108: 0 | DJ108: 0 | DK108: 0 | DL108: 0 | DM108: 0 | DN108: - | DO108: - | DP108: - | DQ108: - | DR108: 0 | DS108: 0 | DT108: 0 | DU108: 0 | DV108: 0 | DW108: 0 | DX108: 0 | DY108: 0 | DZ108: 0 | EA108: 0 | EB108: 0 | EC108: 0 | ED108: 0 | EE108: 0 | EF108: 0 | EG108: 0 | EH108: 0 | EI108: 0
A109: 1 | B109: =OFFSET(Input_Details!$Q$4,MATCH($A109, Input_Details!$J$5:$J$24, 0), 1) -> 2017-11-21 | C109: =INDEX(Input_Details!$H$5:$H$24, MATCH($A109, Input_Details!$J$5:$J$24, 0), 0) -> Meadow Street | D109: =INDEX(Input_Details!$I$5:$I$24, MATCH($A109, Input_Details!$J$5:$J$24, 0), 0) -> 51.49499,-0.09696 | E109: =INDEX(Input_Details!$K$5:$K$24, MATCH($A109, Input_Details!$J$5:$J$24, 0), 0) -> Northbound | F109: Tues | G109: 02:15:00 | H109: 0 | I109: 0 | J109: 0 | K109: 0 | L109: 0 | M109: 0 | N109: 0 | O109: 0 | P109: 0 | Q109: 0 | R109: 0 | S109: 0 | T109: 0 | U109: 0 | V109: 0 | W109: 0 | X109: 0 | Y109: 0 | Z109: 0 | AA109: 0 | AB109: 0 | AC109: 0 | AD109: 0 | AE109: 0 | AF109: 0 | AG109: 0 | AH109: 0 | AI109: 0 | AJ109: 0 | AK109: 0 | AL109: 0 | AM109: 0 | AN109: - | AO109: - | AP109: - | AQ109: - | AR109: =INDEX(Input_Details!$L$5:$L$24, MATCH($A109, Input_Details!$J$5:$J$24, 0), 0) -> Southbound | AS109: Tues | AT109: 02:15:00 | AU109: 0 | AV109: 0 | AW109: 0 | AX109: 0 | AY109: 0 | AZ109: 0 | BA109: 0 | BB109: 0 | BC109: 0 | BD109: 0 | BE109: 0 | BF109: 0 | BG109: 0 | BH109: 0 | BI109: 0 | BJ109: 0 | BK109: 0 | BL109: 0 | BM109: 0 | BN109: 0 | BO109: 0 | BP109: 0 | BQ109: 0 | BR109: 0 | BS109: 0 | BT109: 0 | BU109: 0 | BV109: 0 | BW109: 0 | BX109: 0 | BY109: 0 | BZ109: 0 | CA109: - | CB109: - | CC109: - | CD109: - | CF109: Tues | CG109: 02:15:00 | CH109: 0 | CI109: 0 | CJ109: 0 | CK109: 0 | CL109: 0 | CM109: 0 | CN109: 0 | CO109: 0 | CP109: 0 | CQ109: 0 | CR109: 0 | CS109: 0 | CT109: 0 | CU109: 0 | CV109: 0 | CW109: 0 | CX109: 0 | CY109: 0 | CZ109: 0 | DA109: 0 | DB109: 0 | DC109: 0 | DD109: 0 | DE109: 0 | DF109: 0 | DG109: 0 | DH109: 0 | DI109: 0 | DJ109: 0 | DK109: 0 | DL109: 0 | DM109: 0 | DN109: - | DO109: - | DP109: - | DQ109: - | DR109: 0 | DS109: 0 | DT109: 0 | DU109: 0 | DV109: 0 | DW109: 0 | DX109: 0 | DY109: 0 | DZ109: 0 | EA109: 0 | EB109: 0 | EC109: 0 | ED109: 0 | EE109: 0 | EF109: 0 | EG109: 0 | EH109: 0 | EI109: 0
A110: 1 | B110: =OFFSET(Input_Details!$Q$4,MATCH($A110, Input_Details!$J$5:$J$24, 0), 1) -> 2017-11-21 | C110: =INDEX(Input_Details!$H$5:$H$24, MATCH($A110, Input_Details!$J$5:$J$24, 0), 0) -> Meadow Street | D110: =INDEX(Input_Details!$I$5:$I$24, MATCH($A110, Input_Details!$J$5:$J$24, 0), 0) -> 51.49499,-0.09696 | E110: =INDEX(Input_Details!$K$5:$K$24, MATCH($A110, Input_Details!$J$5:$J$24, 0), 0) -> Northbound | F110: Tues | G110: 02:30:00 | H110: 0 | I110: 0 | J110: 0 | K110: 0 | L110: 0 | M110: 0 | N110: 0 | O110: 0 | P110: 0 | Q110: 0 | R110: 0 | S110: 0 | T110: 0 | U110: 0 | V110: 0 | W110: 0 | X110: 0 | Y110: 0 | Z110: 0 | AA110: 0 | AB110: 0 | AC110: 0 | AD110: 0 | AE110: 0 | AF110: 0 | AG110: 0 | AH110: 0 | AI110: 0 | AJ110: 0 | AK110: 0 | AL110: 0 | AM110: 0 | AN110: - | AO110: - | AP110: - | AQ110: - | AR110: =INDEX(Input_Details!$L$5:$L$24, MATCH($A110, Input_Details!$J$5:$J$24, 0), 0) -> Southbound | AS110: Tues | AT110: 02:30:00 | AU110: 1 | AV110: 0 | AW110: 0 | AX110: 0 | AY110: 0 | AZ110: 0 | BA110: 0 | BB110: 0 | BC110: 0 | BD110: 0 | BE110: 0 | BF110: 0 | BG110: 0 | BH110: 1 | BI110: 0 | BJ110: 0 | BK110: 0 | BL110: 0 | BM110: 0 | BN110: 0 | BO110: 0 | BP110: 0 | BQ110: 0 | BR110: 0 | BS110: 0 | BT110: 0 | BU110: 0 | BV110: 0 | BW110: 0 | BX110: 0 | BY110: 0 | BZ110: 0 | CA110: 13.5 | CB110: - | CC110: 13.5 | CD110: 13.5 | CF110: Tues | CG110: 02:30:00 | CH110: 1 | CI110: 0 | CJ110: 0 | CK110: 0 | CL110: 0 | CM110: 0 | CN110: 0 | CO110: 0 | CP110: 0 | CQ110: 0 | CR110: 0 | CS110: 0 | CT110: 0 | CU110: 1 | CV110: 0 | CW110: 0 | CX110: 0 | CY110: 0 | CZ110: 0 | DA110: 0 | DB110: 0 | DC110: 0 | DD110: 0 | DE110: 0 | DF110: 0 | DG110: 0 | DH110: 0 | DI110: 0 | DJ110: 0 | DK110: 0 | DL110: 0 | DM110: 0 | DN110: 13.5 | DO110: - | DP110: 13.5 | DQ110: 13.5 | DR110: 0 | DS110: 0 | DT110: 0 | DU110: 0 | DV110: 0 | DW110: 0 | DX110: 1 | DY110: 0 | DZ110: 0 | EA110: 0 | EB110: 0 | EC110: 1 | ED110: 1 | EE110: 0 | EF110: 0 | EG110: 0 | EH110: 0 | EI110: 1
A111: 1 | B111: =OFFSET(Input_Details!$Q$4,MATCH($A111, Input_Details!$J$5:$J$24, 0), 1) -> 2017-11-21 | C111: =INDEX(Input_Details!$H$5:$H$24, MATCH($A111, Input_Details!$J$5:$J$24, 0), 0) -> Meadow Street | D111: =INDEX(Input_Details!$I$5:$I$24, MATCH($A111, Input_Details!$J$5:$J$24, 0), 0) -> 51.49499,-0.09696 | E111: =INDEX(Input_Details!$K$5:$K$24, MATCH($A111, Input_Details!$J$5:$J$24, 0), 0) -> Northbound | F111: Tues | G111: 02:45:00 | H111: 0 | I111: 0 | J111: 0 | K111: 0 | L111: 0 | M111: 0 | N111: 0 | O111: 0 | P111: 0 | Q111: 0 | R111: 0 | S111: 0 | T111: 0 | U111: 0 | V111: 0 | W111: 0 | X111: 0 | Y111: 0 | Z111: 0 | AA111: 0 | AB111: 0 | AC111: 0 | AD111: 0 | AE111: 0 | AF111: 0 | AG111: 0 | AH111: 0 | AI111: 0 | AJ111: 0 | AK111: 0 | AL111: 0 | AM111: 0 | AN111: - | AO111: - | AP111: - | AQ111: - | AR111: =INDEX(Input_Details!$L$5:$L$24, MATCH($A111, Input_Details!$J$5:$J$24, 0), 0) -> Southbound | AS111: Tues | AT111: 02:45:00 | AU111: 0 | AV111: 0 | AW111: 0 | AX111: 0 | AY111: 0 | AZ111: 0 | BA111: 0 | BB111: 0 | BC111: 0 | BD111: 0 | BE111: 0 | BF111: 0 | BG111: 0 | BH111: 0 | BI111: 0 | BJ111: 0 | BK111: 0 | BL111: 0 | BM111: 0 | BN111: 0 | BO111: 0 | BP111: 0 | BQ111: 0 | BR111: 0 | BS111: 0 | BT111: 0 | BU111: 0 | BV111: 0 | BW111: 0 | BX111: 0 | BY111: 0 | BZ111: 0 | CA111: - | CB111: - | CC111: - | CD111: - | CF111: Tues | CG111: 02:45:00 | CH111: 0 | CI111: 0 | CJ111: 0 | CK111: 0 | CL111: 0 | CM111: 0 | CN111: 0 | CO111: 0 | CP111: 0 | CQ111: 0 | CR111: 0 | CS111: 0 | CT111: 0 | CU111: 0 | CV111: 0 | CW111: 0 | CX111: 0 | CY111: 0 | CZ111: 0 | DA111: 0 | DB111: 0 | DC111: 0 | DD111: 0 | DE111: 0 | DF111: 0 | DG111: 0 | DH111: 0 | DI111: 0 | DJ111: 0 | DK111: 0 | DL111: 0 | DM111: 0 | DN111: - | DO111: - | DP111: - | DQ111: - | DR111: 0 | DS111: 0 | DT111: 0 | DU111: 0 | DV111: 0 | DW111: 0 | DX111: 0 | DY111: 0 | DZ111: 0 | EA111: 0 | EB111: 0 | EC111: 0 | ED111: 0 | EE111: 0 | EF111: 0 | EG111: 0 | EH111: 0 | EI111: 0
A112: 1 | B112: =OFFSET(Input_Details!$Q$4,MATCH($A112, Input_Details!$J$5:$J$24, 0), 1) -> 2017-11-21 | C112: =INDEX(Input_Details!$H$5:$H$24, MATCH($A112, Input_Details!$J$5:$J$24, 0), 0) -> Meadow Street | D112: =INDEX(Input_Details!$I$5:$I$24, MATCH($A112, Input_Details!$J$5:$J$24, 0), 0) -> 51.49499,-0.09696 | E112: =INDEX(Input_Details!$K$5:$K$24, MATCH($A112, Input_Details!$J$5:$J$24, 0), 0) -> Northbound | F112: Tues | G112: 03:00:00 | H112: 0 | I112: 0 | J112: 0 | K112: 0 | L112: 0 | M112: 0 | N112: 0 | O112: 0 | P112: 0 | Q112: 0 | R112: 0 | S112: 0 | T112: 0 | U112: 0 | V112: 0 | W112: 0 | X112: 0 | Y112: 0 | Z112: 0 | AA112: 0 | AB112: 0 | AC112: 0 | AD112: 0 | AE112: 0 | AF112: 0 | AG112: 0 | AH112: 0 | AI112: 0 | AJ112: 0 | AK112: 0 | AL112: 0 | AM112: 0 | AN112: - | AO112: - | AP112: - | AQ112: - | AR112: =INDEX(Input_Details!$L$5:$L$24, MATCH($A112, Input_Details!$J$5:$J$24, 0), 0) -> Southbound | AS112: Tues | AT112: 03:00:00 | AU112: 0 | AV112: 0 | AW112: 0 | AX112: 0 | AY112: 0 | AZ112: 0 | BA112: 0 | BB112: 0 | BC112: 0 | BD112: 0 | BE112: 0 | BF112: 0 | BG112: 0 | BH112: 0 | BI112: 0 | BJ112: 0 | BK112: 0 | BL112: 0 | BM112: 0 | BN112: 0 | BO112: 0 | BP112: 0 | BQ112: 0 | BR112: 0 | BS112: 0 | BT112: 0 | BU112: 0 | BV112: 0 | BW112: 0 | BX112: 0 | BY112: 0 | BZ112: 0 | CA112: - | CB112: - | CC112: - | CD112: - | CF112: Tues | CG112: 03:00:00 | CH112: 0 | CI112: 0 | CJ112: 0 | CK112: 0 | CL112: 0 | CM112: 0 | CN112: 0 | CO112: 0 | CP112: 0 | CQ112: 0 | CR112: 0 | CS112: 0 | CT112: 0 | CU112: 0 | CV112: 0 | CW112: 0 | CX112: 0 | CY112: 0 | CZ112: 0 | DA112: 0 | DB112: 0 | DC112: 0 | DD112: 0 | DE112: 0 | DF112: 0 | DG112: 0 | DH112: 0 | DI112: 0 | DJ112: 0 | DK112: 0 | DL112: 0 | DM112: 0 | DN112: - | DO112: - | DP112: - | DQ112: - | DR112: 0 | DS112: 0 | DT112: 0 | DU112: 0 | DV112: 0 | DW112: 0 | DX112: 0 | DY112: 0 | DZ112: 0 | EA112: 0 | EB112: 0 | EC112: 0 | ED112: 0 | EE112: 0 | EF112: 0 | EG112: 0 | EH112: 0 | EI112: 0
